Workbook

Sheet Waterfall Chart (hidden)
E5: Cumulative | F5: Start & End | G5: Before | H5: After | I5: Data label position | J5: IRR
C6: =$M$7 -> Cons. Upside | D6: =$N$7 -> 2.786040629 | E6: =SUM($D$6:D6) -> 2.786040629 | F6: =D6 -> 2.786040629 | J6: =VLOOKUP(C6,$P$7:$Q$16,2,0) -> 0.157 | M6: MOIC | P6: Equity IRR
D7: =D8-D6 -> 0 | E7: =SUM($D$6:D7) -> 2.786040629 | G7: =E6 -> 2.786040629 | H7: =E7 -> 2.786040629 | I7: =MAX(G7:H7) -> 2.786040629 | K7: 1 | M7: =[23]Scen!C130 -> Cons. Upside | N7: =[23]Scen!R130 -> 2.786040629 | P7: =[23]Scen!C130 -> Cons. Upside | Q7: =[23]Scen!Q130 -> 0.157
C8: =$M$8 -> Entry - Low | D8: =$N$8 -> 2.786040629 | E8: =D8 -> 2.786040629 | F8: =E7 -> 2.786040629 | J8: =VLOOKUP(C8,$P$7:$Q$16,2,0) -> 0.157 | K8: =K7+1 -> 2 | M8: =[23]Scen!C125 -> Entry - Low | N8: =[23]Scen!R125 -> 2.786040629 | P8: =[23]Scen!C125 -> Entry - Low | Q8: =[23]Scen!Q125 -> 0.157
D9: =D10-D8 -> 0 | E9: =SUM($D$8:D9) -> 2.786040629 | G9: =E8 -> 2.786040629 | H9: =E9 -> 2.786040629 | I9: =MAX(G9:H9) -> 2.786040629 | K9: 3 | M9: =[23]Scen!C128 -> Multiple Expansion | N9: =[23]Scen!R128 -> 2.786040629 | P9: =[23]Scen!C128 -> Multiple Expansion | Q9: =[23]Scen!Q128 -> 0.157
C10: =$M$9 -> Multiple Expansion | D10: =$N$9 -> 2.786040629 | E10: =D10 -> 2.786040629 | F10: =E9 -> 2.786040629 | J10: =VLOOKUP(C10,$P$7:$Q$16,2,0) -> 0.157 | K10: 4 | M10: =[23]Scen!C129 -> Leverage - Upside | N10: =[23]Scen!R129 -> 2.786040629 | P10: =[23]Scen!C127 -> Shorter Hold | Q10: =[23]Scen!Q127 -> 0.157
D11: =D12-D10 -> 0 | E11: =SUM(D10:D11) -> 2.786040629 | G11: =E10 -> 2.786040629 | H11: =E11 -> 2.786040629 | I11: =MAX(G11:H11) -> 2.786040629 | K11: 5 | M11: =[23]Scen!C132 -> Ops - Downside | N11: =[23]Scen!R132 -> 2.786040629 | P11: =[23]Scen!C126 -> High Entry Leverage | Q11: =[23]Scen!Q126 -> 0.157
C12: =$M$10 -> Leverage - Upside | D12: =$N$10 -> 2.786040629 | E12: =D12 -> 2.786040629 | F12: =E11 -> 2.786040629 | J12: =VLOOKUP(C12,$P$7:$Q$16,2,0) -> 0.157 | K12: 6 | M12: =[23]Scen!C123 -> Base Case | N12: =[23]Scen!R123 -> 2.786040629 | P12: =[23]Scen!C129 -> Leverage - Upside | Q12: =[23]Scen!Q129 -> 0.157
D13: =D14-D12 -> 0 | E13: =SUM(D12:D13) -> 2.786040629 | G13: =E12 -> 2.786040629 | H13: =E13 -> 2.786040629 | I13: =MAX(G13:H13) -> 2.786040629 | K13: 7 | M13: =[23]Scen!C126 -> High Entry Leverage | N13: =[23]Scen!R126 -> 2.786040629 | P13: =[23]Scen!C132 -> Ops - Downside | Q13: =[23]Scen!Q132 -> 0.157
C14: =$M$11 -> Ops - Downside | D14: =$N$11 -> 2.786040629 | E14: =D14 -> 2.786040629 | F14: =E13 -> 2.786040629 | J14: =VLOOKUP(C14,$P$7:$Q$16,2,0) -> 0.157 | K14: 8 | M14: =[23]Scen!C127 -> Shorter Hold | N14: =[23]Scen!R127 -> 2.786040629 | P14: =[23]Scen!C123 -> Base Case | Q14: =[23]Scen!Q123 -> 0.157
D15: =D16-D14 -> 0 | E15: =SUM(D14:D15) -> 2.786040629 | G15: =E14 -> 2.786040629 | H15: =E15 -> 2.786040629 | I15: =MAX(G15:H15) -> 2.786040629 | K15: 9 | M15: =[23]Scen!C124 -> Entry - High | N15: =[23]Scen!R124 -> 2.786040629 | P15: =[23]Scen!C124 -> Entry - High | Q15: =[23]Scen!Q124 -> 0.157
C16: =$M$12 -> Base Case | D16: =$N$12 -> 2.786040629 | E16: =D16 -> 2.786040629 | F16: =E15 -> 2.786040629 | J16: =VLOOKUP(C16,$P$7:$Q$16,2,0) -> 0.157 | K16: 10 | M16: =[23]Scen!C131 -> Cons. Downside | N16: =[23]Scen!R131 -> 2.786040629 | P16: =[23]Scen!C131 -> Cons. Downside | Q16: =[23]Scen!Q131 -> 0.157
D17: =D18-D16 -> 0 | E17: =SUM(D16:D17) -> 2.786040629 | G17: =E16 -> 2.786040629 | H17: =E17 -> 2.786040629 | I17: =MAX(G17:H17) -> 2.786040629
C18: =$M$13 -> High Entry Leverage | D18: =$N$13 -> 2.786040629 | E18: =D18 -> 2.786040629 | F18: =E17 -> 2.786040629 | J18: =VLOOKUP(C18,$P$7:$Q$16,2,0) -> 0.157
D19: =D20-D18 -> 0 | E19: =SUM(D18:D19) -> 2.786040629 | G19: =E18 -> 2.786040629 | H19: =E19 -> 2.786040629 | I19: =MAX(G19:H19) -> 2.786040629
C20: =$M$14 -> Shorter Hold | D20: =$N$14 -> 2.786040629 | E20: =D20 -> 2.786040629 | F20: =E19 -> 2.786040629 | J20: =VLOOKUP(C20,$P$7:$Q$16,2,0) -> 0.157
D21: =D22-D20 -> 0 | E21: =SUM(D20:D21) -> 2.786040629 | G21: =E20 -> 2.786040629 | H21: =E21 -> 2.786040629 | I21: =MAX(G21:H21) -> 2.786040629 | P21: =M21 -> 0
C22: =$M$15 -> Entry - High | D22: =$N$15 -> 2.786040629 | E22: =D22 -> 2.786040629 | F22: =E21 -> 2.786040629 | J22: =VLOOKUP(C22,$P$7:$Q$16,2,0) -> 0.157
D23: =D24-D22 -> 0 | E23: =SUM(D22:D23) -> 2.786040629 | G23: =E22 -> 2.786040629 | H23: =E23 -> 2.786040629 | I23: =MAX(G23:H23) -> 2.786040629
C24: =$M$16 -> Cons. Downside | D24: =$N$16 -> 2.786040629 | E24: =D24 -> 2.786040629 | F24: =E23 -> 2.786040629 | J24: =VLOOKUP(C24,$P$7:$Q$16,2,0) -> 0.157
E28: Cumulative | F28: Start & End | G28: Before | H28: After | I28: Data label position
C29: =$P$7 -> Cons. Upside | D29: =$Q$7 -> 0.157 | E29: =D29 -> 0.157 | F29: =D29 -> 0.157
D30: =D31-D29 -> 0 | E30: =SUM(D29:D30) -> 0.157 | G30: =E29 -> 0.157 | H30: =E30 -> 0.157 | I30: =MAX(G30:H30) -> 0.157 | J30: =D30 -> 0
C31: =$P$8 -> Entry - Low | D31: =$Q$8 -> 0.157 | E31: =D31 -> 0.157 | F31: =E30 -> 0.157
D32: =D33-D31 -> 0 | E32: =SUM(D31:D32) -> 0.157 | G32: =E31 -> 0.157 | H32: =E32 -> 0.157 | I32: =MAX(G32:H32) -> 0.157 | J32: =D32 -> 0
C33: =$P$9 -> Multiple Expansion | D33: =$Q$9 -> 0.157 | E33: =D33 -> 0.157 | F33: =E32 -> 0.157
D34: =D35-D33 -> 0 | E34: =SUM(D33:D34) -> 0.157 | G34: =E33 -> 0.157 | H34: =E34 -> 0.157 | I34: =MAX(G34:H34) -> 0.157 | J34: =D34 -> 0
C35: =$P$10 -> Shorter Hold | D35: =$Q$10 -> 0.157 | E35: =D35 -> 0.157 | F35: =E34 -> 0.157
D36: =D37-D35 -> 0 | E36: =SUM(D35:D36) -> 0.157 | G36: =E35 -> 0.157 | H36: =E36 -> 0.157 | I36: =MAX(G36:H36) -> 0.157 | J36: =D36 -> 0
C37: =$P$11 -> High Entry Leverage | D37: =$Q$11 -> 0.157 | E37: =D37 -> 0.157 | F37: =E36 -> 0.157
D38: =D39-D37 -> 0 | E38: =SUM(D37:D38) -> 0.157 | G38: =E37 -> 0.157 | H38: =E38 -> 0.157 | I38: =MAX(G38:H38) -> 0.157 | J38: =D38 -> 0
C39: =$P$12 -> Leverage - Upside | D39: =$Q$12 -> 0.157 | E39: =D39 -> 0.157 | F39: =E38 -> 0.157
D40: =D41-D39 -> 0 | E40: =SUM(D39:D40) -> 0.157 | G40: =E39 -> 0.157 | H40: =E40 -> 0.157 | I40: =MAX(G40:H40) -> 0.157 | J40: =D40 -> 0
C41: =$P$13 -> Ops - Downside | D41: =$Q$13 -> 0.157 | E41: =D41 -> 0.157 | F41: =E40 -> 0.157
D42: =D43-D41 -> 0 | E42: =SUM(D41:D42) -> 0.157 | G42: =E41 -> 0.157 | H42: =E42 -> 0.157 | I42: =MAX(G42:H42) -> 0.157 | J42: =D42 -> 0
C43: =$P$14 -> Base Case | D43: =$Q$14 -> 0.157 | E43: =D43 -> 0.157 | F43: =E42 -> 0.157
D44: =D45-D43 -> 0 | E44: =SUM(D43:D44) -> 0.157 | G44: =E43 -> 0.157 | H44: =E44 -> 0.157 | I44: =MAX(G44:H44) -> 0.157 | J44: =D44 -> 0
C45: =$P$15 -> Entry - High | D45: =$Q$15 -> 0.157 | E45: =D45 -> 0.157 | F45: =E44 -> 0.157
D46: =D47-D45 -> 0 | E46: =SUM(D45:D46) -> 0.157 | G46: =E45 -> 0.157 | H46: =E46 -> 0.157 | I46: =MAX(G46:H46) -> 0.157 | J46: =D46 -> 0
C47: =$P$16 -> Cons. Downside | D47: =$Q$16 -> 0.157 | E47: =D47 -> 0.157 | F47: =E46 -> 0.157

Sheet Summary (2) (hidden)
F10: Valuation Weighting | G10: EV / EBITDA Multiple | J10: Entry EV ($m) | R10: Equity IRR
G11: Low | H11: High
B12: Weighted Valuation Range | F12: =SUM(F15:F26) -> 1 | G12: =SUMPRODUCT($F$15:$F$26,G15:G26)/SUM($F$15:$F$26) -> 8.841854057 | H12: 8.992103429
B15: LBO | F15: 0.7 | G15: =[23]Scen!O130 -> 9 | H15: =[23]Scen!O131 -> 9
B18: DCF | F18: 0.1 | G18: =[23]DCF!H126 -> 7.418540569 | H18: =[23]DCF!J124 -> 8.921034285
B21: Trading Comps | F21: 0.1 | G21: =[23]Scen!O133 -> 9 | H21: =[23]Scen!O134 -> 9
B24: Transaction Comps | F24: =1-SUM(F15:F23) -> 0.1 | G24: =[23]Scen!O135 -> 9 | H24: =[23]Scen!O136 -> 9
C31: Key Assumptions / Outputs | O31: =[23]LBO!P5 -> 2022 | P31: =[23]LBO!Q5 -> 2023 | Q31: =[23]LBO!R5 -> 2024 | R31: =[23]LBO!S5 -> 2025 | S31: =[23]LBO!T5 -> 2026 | T31: =[23]LBO!U5 -> 2027 | U31: =[23]LBO!V5 -> 2028 | V31: =[23]LBO!W5 -> 2029
M32: Key Data
C33: Acquisition Year | F33: date | J33: =[23]LBO!J13 -> 2022
C34: Exit Year | F34: date | J34: =[23]LBO!J54 -> 2031 | N34: EBITDA | O34: =[23]Statements!P46 -> 18.14623954 | P34: =[23]Statements!Q46 -> 18.49601971 | Q34: =[23]Statements!R46 -> 18.98179046 | R34: =[23]Statements!S46 -> 19.54478087 | S34: =[23]Statements!T46 -> 20.00796273 | T34: =[23]Statements!U46 -> 20.60717671 | U34: =[23]Statements!V46 -> 21.1303727 | V34: =[23]Statements!W46 -> 21.66147593
C36: Proposed Transaction | N36: Debt Balance | O36: =SUM([23]Statements!P102:P105) -> 72.58495815 | P36: =SUM([23]Statements!Q102:Q105) -> 72.58495815 | Q36: =SUM([23]Statements!R102:R105) -> 75.92716185 | R36: =SUM([23]Statements!S102:S105) -> 75.92716185 | S36: =SUM([23]Statements!T102:T105) -> 75.92716185 | T36: =SUM([23]Statements!U102:U105) -> 75.92716185 | U36: =SUM([23]Statements!V102:V105) -> 75.92716185 | V36: =SUM([23]Statements!W102:W105) -> 86.64590373
C37: Equity Cheque | F37: $m | J37: =[23]LBO!N79 -> 98.9975208 | N37: Cash Balance | O37: =[23]Statements!P81 -> 41.75928163 | P37: =[23]Statements!Q81 -> 43.52126627 | Q37: =[23]Statements!R81 -> 48.6292089 | R37: =[23]Statements!S81 -> 50.39983861 | S37: =[23]Statements!T81 -> 52.17658767 | T37: =[23]Statements!U81 -> 53.96078426 | U37: =[23]Statements!V81 -> 55.75386443 | V37: =[23]Statements!W81 -> 68.27612312
C38: Acquisition Debt | F38: $m | J38: =SUM([23]LBO!N78:N78) -> 72.58495815 | N38: Net Debt | O38: =O36-O37 -> 30.82567652 | P38: =P36-P37 -> 29.06369188 | Q38: 27.29795296 | R38: 25.52732324 | S38: 23.75057418 | T38: 21.96637759 | U38: 20.17329742 | V38: 18.36978061
F39: $m | J39: =SUM(J37:J38) -> 171.5824789
N40: DSCR | O40: =[23]LBO!P217 -> 0 | P40: =[23]LBO!Q217 -> 2.441961542 | Q40: =[23]LBO!R217 -> 2.531856169 | R40: =[23]LBO!S217 -> 3.792915505 | S40: =[23]LBO!T217 -> 3.875756712 | T40: =[23]LBO!U217 -> 3.985378246 | U40: =[23]LBO!V217 -> 4.079891438 | V40: =[23]LBO!W217 -> 4.232938945
C41: Acquisition Scenario | F41: switch | J41: =[23]LBO!J26 -> Transaction X - Max | N41: Leverage Ratio | O41: =[23]LBO!P231 -> 1.698736339 | P41: =[23]LBO!Q231 -> 1.571348449 | Q41: =[23]LBO!R231 -> 1.438112648 | R41: =[23]LBO!S231 -> 1.306094113 | S41: =[23]LBO!T231 -> 1.187056099 | T41: =[23]LBO!U231 -> 1.065957647 | U41: =[23]LBO!V231 -> 0.9547061808 | V41: =[23]LBO!W231 -> 0.8480391949
C43: Entry EBITDA | F43: $m | J43: =[23]LBO!J32 -> 18.14623954
C44: Exit EBITDA | F44: $m | J44: =SUMPRODUCT([23]LBO!90:90,[23]LBO!91:91) -> 22.86153244 | M44: LBO Cash Flows
C46: Acquisition Multiple | F46: x | J46: =J70 -> 9 | N46: =[23]LBO!B102 -> Less: Equity Cheque | O46: =[23]LBO!P102 -> -98.9975208 | P46: =[23]LBO!Q102 -> 0 | Q46: =[23]LBO!R102 -> 0 | R46: =[23]LBO!S102 -> 0 | S46: =[23]LBO!T102 -> 0 | T46: =[23]LBO!U102 -> 0 | U46: =[23]LBO!V102 -> 0 | V46: =[23]LBO!W102 -> 0
C47: Exit Multiple | F47: x | J47: =[23]LBO!J57 -> 9 | N47: =[23]LBO!B103 -> Less: Shortfall Equity Injected | O47: =[23]LBO!P103 -> 0 | P47: =[23]LBO!Q103 -> 0 | Q47: =[23]LBO!R103 -> 0 | R47: =[23]LBO!S103 -> 0 | S47: =[23]LBO!T103 -> 0 | T47: =[23]LBO!U103 -> 0 | U47: =[23]LBO!V103 -> 0 | V47: =[23]LBO!W103 -> 0
C48: Acquisition Leverage Multiple | F48: x | J48: =[23]LBO!J41 -> 4 | N48: =[23]LBO!B104 -> Add: Dividend Distribution | O48: =[23]LBO!P104 -> 10.45841843 | P48: =[23]LBO!Q104 -> 6.33119282 | Q48: =[23]LBO!R104 -> 6.090166729 | R48: =[23]LBO!S104 -> 8.552277668 | S48: =[23]LBO!T104 -> 8.860653204 | T48: =[23]LBO!U104 -> 9.269368273 | U48: =[23]LBO!V104 -> 9.619290609 | V48: =[23]LBO!W104 -> 9.323418082
N49: =[23]LBO!B105 -> Add: Exit Equity Proceeds | O49: =[23]LBO!P105 -> 0 | P49: =[23]LBO!Q105 -> 0 | Q49: =[23]LBO!R105 -> 0 | R49: =[23]LBO!S105 -> 0 | S49: =[23]LBO!T105 -> 0 | T49: =[23]LBO!U105 -> 0 | U49: =[23]LBO!V105 -> 0 | V49: =[23]LBO!W105 -> 0
C50: Min DSCR | F50: x | J50: =[23]LBO!J220 -> 2.441961542 | O50: =SUM(O46:O49) -> -88.53910237 | P50: 6.33119282 | Q50: 6.090166729 | R50: 8.552277668 | S50: 8.860653204 | T50: 9.269368273 | U50: 9.619290609 | V50: 9.323418082
C51: Covenant Satisfied | F51: check | J51: =[23]LBO!J245 -> TRUE
N52: Ability to Pay
C53: Equity Hurdle Rate | F53: % | J53: ='[23]Reverse LBO'!J26 -> 0.12
C54: Equity IRR | F54: % | J54: =[23]LBO!J108 -> 0.157 | N54: Levered Free Cash Flow | O54: ='[23]Reverse LBO'!P33 -> 10.45841843 | P54: ='[23]Reverse LBO'!Q33 -> 6.33119282 | Q54: ='[23]Reverse LBO'!R33 -> 6.090166729 | R54: ='[23]Reverse LBO'!S33 -> 8.552277668 | S54: ='[23]Reverse LBO'!T33 -> 8.860653204 | T54: ='[23]Reverse LBO'!U33 -> 9.269368273 | U54: ='[23]Reverse LBO'!V33 -> 9.619290609 | V54: ='[23]Reverse LBO'!W33 -> 9.323418082
N55: ="Discount Factor @ "&J53*100&"%" -> Discount Factor @ 12% | O55: ='[23]Reverse LBO'!P37 -> 1 | P55: ='[23]Reverse LBO'!Q37 -> 0.8928571429 | Q55: ='[23]Reverse LBO'!R37 -> 0.7971938776 | R55: ='[23]Reverse LBO'!S37 -> 0.7117802478 | S55: ='[23]Reverse LBO'!T37 -> 0.6355180784 | T55: ='[23]Reverse LBO'!U37 -> 0.5674268557 | U55: ='[23]Reverse LBO'!V37 -> 0.5066311212 | V55: ='[23]Reverse LBO'!W37 -> 0.4523492153
C56: Required Equity Cheque | F56: $m | J56: =[23]LBO!J79 -> 98.9975208 | N56: ="Max Equity Cheque @ "&J53*100&"%" -> Max Equity Cheque @ 12% | O56: ='[23]Reverse LBO'!P39 -> 10.45841843 | P56: ='[23]Reverse LBO'!Q39 -> 5.652850733 | Q56: ='[23]Reverse LBO'!R39 -> 4.85504363 | R56: ='[23]Reverse LBO'!S39 -> 6.087342318 | S56: ='[23]Reverse LBO'!T39 -> 5.631105298 | T56: ='[23]Reverse LBO'!U39 -> 5.259688494 | U56: ='[23]Reverse LBO'!V39 -> 4.873431986 | V56: ='[23]Reverse LBO'!W39 -> 4.217440853
C57: ="Maximum Investable Equity @ "&J53*100&"%" -> Maximum Investable Equity @ 12% | F57: $m | J57: ='[23]Reverse LBO'!J43 -> 122.2254712 | N57: =SUM(O56:V56) -> 47.03532174
C58: Premium / Discount | F58: $m | J58: =ROUND(J57-J56,3) -> 23.228
C60: LBO Executed | F60: check | J60: =IF(J54>=J53,TRUE,FALSE) -> TRUE
C64: Capital Structure
C66: Sources $m | D66: $m | E66: x | G66: Uses ($m) | I66: $m | J66: x
C68: =[23]LBO!B78 -> Bridge Facility | D68: =[23]LBO!N78 -> 72.58495815 | E68: =[23]LBO!K78 -> 4 | G68: =[23]LBO!B70 -> Implied Equity Value | I68: =[23]LBO!N70 -> 53.31615583 | J68: =[23]LBO!K70 -> 9
C69: =[23]LBO!B79 -> Equity Cheque | D69: =[23]LBO!N79 -> 98.9975208 | G69: =[23]LBO!B71 -> Net Debt Assumed | I69: =[23]LBO!N71 -> 110 | J69: =[23]LBO!K71 -> 0
G70: Enterprise Value | I70: =SUM(I68:I69) -> 163.3161558 | J70: =SUM(J68:J69) -> 9
G72: =[23]LBO!B72 -> Min Cash Balance | I72: =[23]LBO!N72 -> 5 | J72: =[23]LBO!K72 -> 0.2755391821
G73: =[23]LBO!B73 -> Transaction Costs | I73: =[23]LBO!N73 -> 3.266323117 | J73: =[23]LBO!K73 -> 0.18
D74: =SUM(D68:D69) -> 171.5824789 | I74: =I70+I72+I73 -> 171.5824789 | J74: =J70+J72+J73 -> 9.455539182
A111: End Sheet

Sheet Questions (hidden)
L3: Total CAPEX
C4: Joe Questions | K4: Exploration | L4: ='Financial Statements'!P63 -> 17.6 | M4: 1 | N4: Prepayment make whole -- IRR Hurdle method
B5: 1 | C5: How are Resources converted to Reserves? Incrementally or in larger chunks? | K5: Development | L5: ='Financial Statements'!P64 -> 59.4 | M5: =M4+1 -> 2 | N5: Allow for Prepayment / Term Loan "stacking", with prepayment volumes having seniority over Term Loan (with Term Loan being interest only or grace period during Prepayment tenor and only amortising [with cash sweeps] once prepayment is repaid in full)
B6: =B5+1 -> 2 | C6: Assuming a constant throughput, presumably mine life is determined by to what extent and at what time Resources are converted to Reserves? | K6: Construction | L6: ='Financial Statements'!P65 -> 1045 | M6: 3 | N6: Create Reference Case in new sheet to establish base case metrics for IRR Hurdle method and OPEX carve out quantum
B7: =B6+1 -> 3 | C7: What are the key debt financing structures you typically deal with? RBL? Pre-payment offtake? Term Loans? Bonds? Private or Public equity? | K7: $m | L7: =SUM(L4:L6) -> 1122 | M7: 4 | N7: Allow for refinancing
B8: 4 | C8: What are the key valuation metrics you look at? P-NAV? DCF? DDM? Any reserve based metrics? C1 costs? | K8: $ | L8: =L7*1000000 -> 1122000000 | M8: 5 | N8: Refine sizing methodology for Term Loan with various constraints (gearing, Rserve Life, DSCR, LLCR, etc)
B9: 5 | C9: From a modelling perspective, are there any mining specific line items I should emphasise? | M9: 6 | N9: Add Cobalt production
M10: 7 | N10: Add EV / Resource and EV / Reserves
C11: Economic Ratios | D11: Actual | E11: Benchmark | L11: Reserves | N11: Add reserve based covenants
B12: 1 | C12: CAPEX / Reserves | D12: =L16 -> 4.10989011 | E12: 2 to 10 | K12: Mt | L12: =Scen!J49 -> 273 | N12: Add Rail and Port Infrastructure
B13: =B12+1 -> 2 | C13: CAPEX / Annual Production of Ore (Millions of tonnes) | D13: =L22 -> 18167.0955 | E13: 19k to 28k | K13: Kt | L13: =L12*1000 -> 273000 | N13: Calculate breakeven cost
B14: 3 | C14: CAPEX / years of mine life | D14: =L7/Scen!G7 -> 40.07142857 | E14: 28m / yr of mine life | K14: T | L14: =L12*1000000 -> 273000000 | N14: Add a grace period for the loans
B15: 4 | C15: Fixed Cost / Annual Production of Ore (Millions of tonnes) | D15: =L26 -> 4.397378229 | E15: 1 to 5
B16: 5 | C16: Total Variable Cost / Tonne | D16: =L30 -> 10.20572073 | E16: 15 to 40 | K16: CAPEX / Reserves | L16: =L8/L14 -> 4.10989011
B17: 6 | C17: A Reasonable Annual Ore Production Profile (Millions of tonnes) | D17: =L33 -> 15.24107143 | E17: 20 - 50
B18: 7 | C18: Maintenance CAPEX / Annual Production | D18: =L34 -> 1.486612091 | E18: 1 to 5
B19: 8 | C19: Typical project IRR and equity IRR | D19: =Scen!G3 -> 0.2630053803 | E19: 15 - 30% | K19: Avg Payable Cu Kt | L19: =AVERAGEIF(Mine!R175:EA175,">0") -> 61.76001
K20: Avg Payable Cu T | L20: =L19*1000 -> 61760.01
L22: =L8/L20 -> 18167.0955
B23: =#REF!+1 -> 
K24: Average Fixed Costs | L24: =AVERAGEIF('Financial Statements'!R17:EA17,">0") -> 67.02075569
E25: Ore Mined per annum | F25: =Mine!AF110 -> 16 | K25: Average Ore Mined P.A | L25: =AVERAGEIF(Mine!R110:EA110,">0") -> 15.24107143
L26: =L24/L25 -> 4.397378229
E27: ='Financial Statements'!B17 -> Fixed Costs | F27: ='Financial Statements'!AF17 -> 53.748391 | G27: =F27/SUM($F$27:$F$30) -> 0.2671311495
E28: ='Financial Statements'!B18 -> Variable Mining Costs | F28: ='Financial Statements'!AF18 -> 74.7941496 | G28: =F28/SUM($F$27:$F$30) -> 0.3717292143 | K28: Average Variable Costs | L28: =AVERAGEIF('Financial Statements'!R18:EA18,">0")+AVERAGEIF('Financial Statements'!R19:EA19,">0") -> 155.5461186
E29: ='Financial Statements'!B19 -> Smelting Costs | F29: ='Financial Statements'!AF19 -> 58.69037623 | G29: 0.2916929675 | K29: Average Ore Mined P.A | L29: =L25 -> 15.24107143
E30: ='Financial Statements'!B20 -> Royalties | F30: ='Financial Statements'!AF20 -> 13.97308667 | G30: 0.06944666871 | L30: =L28/L29 -> 10.20572073
E32: Total Reserves at start of production | F32: =Mine!L109 -> 249.6 | K32: Avg Sustaining CAPEX | L32: =AVERAGEIF('Financial Statements'!R69:EA69,">0") -> 22.65756106
E33: CAPEX spent at COD | F33: =SUM('Financial Statements'!P63:P67) -> 1193.483977 | K33: Average Ore Mined P.A | L33: =L29 -> 15.24107143
B34: =B19+1 -> 9 | L34: =L32/L33 -> 1.486612091
C39: Are there any differences in the fixed cost base for a mine that produces both cobalt and copper?

Sheet Data (hidden)
B3: TD Valuation Presentation | C3: https://www.sec.gov/Archives/edgar/data/1158041/000119312522254419/d306901dex99cxiv.htm
B5: Mining Valuation | C5: https://www.pgo.ca/uploaded/files/events/webinar-2019-mining-financial-model-valuation.pdf
D9: Min | E9: Max | F9: Weight
C10: Equity Research | D10: =D14+30 -> 496.0648982 | E10: =E14-60 -> 684.4092124 | F10: =Summary!F40 -> 0.1 | J10: =C10 -> Equity Research
C11: 52 Week Trading Range | D11: =AVERAGE(D14,D12) -> 407.8067859 | E11: =AVERAGE(E14,E12) -> 653.7854822 | F11: =Summary!F35 -> 0.1 | I11: Max | J11: =E10 -> 684.4092124
C12: P / NAV - Trading | D12: ='Net Asset Value'!$N$43 -> 349.5486737 | E12: ='Net Asset Value'!$P$43 -> 563.161752 | F12: =Summary!F31 -> 0.2
C13: EV / EBITDA | D13: =IF(Summary!$F$15<=Time!$L$23,"",Valuation!$L$175) -> 220.3806864 | E13: =IF(Summary!$F$15<=Time!$L$23,"",Valuation!$L$174) -> 328.6646517 | F13: =IF(Summary!$F$15<=Time!$L$23,"",Summary!F26) -> 0.1
C14: P / NAV - Transaction | D14: ='Net Asset Value'!$J$43 -> 466.0648982 | E14: ='Net Asset Value'!$L$43 -> 744.4092124 | F14: =1-SUM(F10:F13) -> 0.5
C15: Valuation Range | D15: =SUMPRODUCT(D10:D14,$F$10:$F$14)/SUM($F$10:$F$14) -> 415.3674209 | E15: =SUMPRODUCT(E10:E14,$F$10:$F$14)/SUM($F$10:$F$14) -> 651.5228913 | F15: =SUM(F10:F14) -> 1
C17: P / NAV - Trading | D17: ='Net Asset Value'!$N$43 -> 349.5486737 | E17: ='Net Asset Value'!$P$43 -> 563.161752
C18: EV / EBITDA | D18: =Valuation!$L$175 -> 220.3806864 | E18: =Valuation!$L$174 -> 328.6646517
C22: P / NAV - Transaction | D22: ='Net Asset Value'!$J$43 -> 466.0648982 | E22: ='Net Asset Value'!$L$43 -> 744.4092124
C23: P / NAV - Trading | D23: ='Net Asset Value'!$N$43 -> 349.5486737 | E23: ='Net Asset Value'!$P$43 -> 563.161752
C28: Precedent Transactions | D28: 35 | E28: 49
C29: Equity Research | D29: 32 | E29: 51
C30: Comparables | D30: 25 | E30: 36
E32: =E59 -> 2027 | F32: =F59 -> 2028 | G32: 2029 | H32: 2030 | I32: 2031 | J32: 2032 | K32: 2033 | L32: 2034 | M32: 2035 | N32: 2036 | O32: 2037 | P32: 2038 | Q32: 2039 | R32: 2040 | S32: 2041 | T32: 2042 | U32: 2043 | V32: 2044 | W32: 2045 | X32: 2046 | Y32: 2047 | Z32: 2048 | AA32: 2049 | AB32: 2050 | AC32: 2051 | AD32: 2052 | AE32: 2053 | AF32: 2054
D33: =Financing!B21 -> Exploration Costs | E33: =-Financing!R21 -> -7.04 | F33: =-Financing!S21 -> -3.52 | G33: =-Financing!T21 -> -3.52 | H33: =-Financing!U21 -> -3.52 | I33: =-Financing!V21 -> 0 | J33: =-Financing!W21 -> 0 | K33: =-Financing!X21 -> 0 | L33: =-Financing!Y21 -> 0 | M33: =-Financing!Z21 -> 0 | N33: =-Financing!AA21 -> 0 | O33: =-Financing!AB21 -> 0 | P33: =-Financing!AC21 -> 0 | Q33: =-Financing!AD21 -> 0 | R33: =-Financing!AE21 -> 0 | S33: =-Financing!AF21 -> 0 | T33: =-Financing!AG21 -> 0 | U33: =-Financing!AH21 -> 0 | V33: =-Financing!AI21 -> 0 | W33: =-Financing!AJ21 -> 0 | X33: =-Financing!AK21 -> 0 | Y33: =-Financing!AL21 -> 0 | Z33: =-Financing!AM21 -> 0 | AA33: =-Financing!AN21 -> 0 | AB33: =-Financing!AO21 -> 0 | AC33: =-Financing!AP21 -> 0 | AD33: =-Financing!AQ21 -> 0 | AE33: =-Financing!AR21 -> 0 | AF33: =-Financing!AS21 -> 0
D34: =Financing!B22 -> Development Costs | E34: =-Financing!R22 -> 0 | F34: =-Financing!S22 -> 0 | G34: =-Financing!T22 -> 0 | H34: =-Financing!U22 -> 0 | I34: =-Financing!V22 -> -23.76 | J34: =-Financing!W22 -> -23.76 | K34: =-Financing!X22 -> -11.88 | L34: =-Financing!Y22 -> 0 | M34: =-Financing!Z22 -> 0 | N34: =-Financing!AA22 -> 0 | O34: =-Financing!AB22 -> 0 | P34: =-Financing!AC22 -> 0 | Q34: =-Financing!AD22 -> 0 | R34: =-Financing!AE22 -> 0 | S34: =-Financing!AF22 -> 0 | T34: =-Financing!AG22 -> 0 | U34: =-Financing!AH22 -> 0 | V34: =-Financing!AI22 -> 0 | W34: =-Financing!AJ22 -> 0 | X34: =-Financing!AK22 -> 0 | Y34: =-Financing!AL22 -> 0 | Z34: =-Financing!AM22 -> 0 | AA34: =-Financing!AN22 -> 0 | AB34: =-Financing!AO22 -> 0 | AC34: =-Financing!AP22 -> 0 | AD34: =-Financing!AQ22 -> 0 | AE34: =-Financing!AR22 -> 0 | AF34: =-Financing!AS22 -> 0
D35: =Financing!B23 -> Construction CAPEX | E35: =-Financing!R23 -> 0 | F35: =-Financing!S23 -> 0 | G35: =-Financing!T23 -> 0 | H35: =-Financing!U23 -> 0 | I35: =-Financing!V23 -> 0 | J35: =-Financing!W23 -> 0 | K35: =-Financing!X23 -> 0 | L35: =-Financing!Y23 -> -418 | M35: =-Financing!Z23 -> -209 | N35: =-Financing!AA23 -> -209 | O35: =-Financing!AB23 -> -209 | P35: =-Financing!AC23 -> 0 | Q35: =-Financing!AD23 -> 0 | R35: =-Financing!AE23 -> 0 | S35: =-Financing!AF23 -> 0 | T35: =-Financing!AG23 -> 0 | U35: =-Financing!AH23 -> 0 | V35: =-Financing!AI23 -> 0 | W35: =-Financing!AJ23 -> 0 | X35: =-Financing!AK23 -> 0 | Y35: =-Financing!AL23 -> 0 | Z35: =-Financing!AM23 -> 0 | AA35: =-Financing!AN23 -> 0 | AB35: =-Financing!AO23 -> 0 | AC35: =-Financing!AP23 -> 0 | AD35: =-Financing!AQ23 -> 0 | AE35: =-Financing!AR23 -> 0 | AF35: =-Financing!AS23 -> 0
D36: =Financing!B24 -> Interest During Construction | E36: =-Financing!R24 -> 0 | F36: =-Financing!S24 -> 0 | G36: =-Financing!T24 -> 0 | H36: =-Financing!U24 -> 0 | I36: =-Financing!V24 -> 0 | J36: =-Financing!W24 -> 0 | K36: =-Financing!X24 -> 0 | L36: =-Financing!Y24 -> 0 | M36: =-Financing!Z24 -> -4.707462393 | N36: =-Financing!AA24 -> -14.50524164 | O36: =-Financing!AB24 -> -24.65485957 | P36: =-Financing!AC24 -> 0 | Q36: =-Financing!AD24 -> 0 | R36: =-Financing!AE24 -> 0 | S36: =-Financing!AF24 -> 0 | T36: =-Financing!AG24 -> 0 | U36: =-Financing!AH24 -> 0 | V36: =-Financing!AI24 -> 0 | W36: =-Financing!AJ24 -> 0 | X36: =-Financing!AK24 -> 0 | Y36: =-Financing!AL24 -> 0 | Z36: =-Financing!AM24 -> 0 | AA36: =-Financing!AN24 -> 0 | AB36: =-Financing!AO24 -> 0 | AC36: =-Financing!AP24 -> 0 | AD36: =-Financing!AQ24 -> 0 | AE36: =-Financing!AR24 -> 0 | AF36: =-Financing!AS24 -> 0
D37: =Financing!B25 -> Fees | E37: =-Financing!R25 -> 0 | F37: =-Financing!S25 -> 0 | G37: =-Financing!T25 -> 0 | H37: =-Financing!U25 -> 0 | I37: =-Financing!V25 -> 0 | J37: =-Financing!W25 -> 0 | K37: =-Financing!X25 -> 0 | L37: =-Financing!Y25 -> -21.55389413 | M37: =-Financing!Z25 -> -4.018039462 | N37: =-Financing!AA25 -> -2.044480021 | O37: =-Financing!AB25 -> 0 | P37: =-Financing!AC25 -> 0 | Q37: =-Financing!AD25 -> 0 | R37: =-Financing!AE25 -> 0 | S37: =-Financing!AF25 -> 0 | T37: =-Financing!AG25 -> 0 | U37: =-Financing!AH25 -> 0 | V37: =-Financing!AI25 -> 0 | W37: =-Financing!AJ25 -> 0 | X37: =-Financing!AK25 -> 0 | Y37: =-Financing!AL25 -> 0 | Z37: =-Financing!AM25 -> 0 | AA37: =-Financing!AN25 -> 0 | AB37: =-Financing!AO25 -> 0 | AC37: =-Financing!AP25 -> 0 | AD37: =-Financing!AQ25 -> 0 | AE37: =-Financing!AR25 -> 0 | AF37: =-Financing!AS25 -> 0
D38: =Financing!B30 -> Exploration - Private Equity | E38: =Financing!R30 -> 7.04 | F38: =Financing!S30 -> 3.52 | G38: =Financing!T30 -> 3.52 | H38: =Financing!U30 -> 3.52 | I38: =Financing!V30 -> 0 | J38: =Financing!W30 -> 0 | K38: =Financing!X30 -> 0 | L38: =Financing!Y30 -> 0 | M38: =Financing!Z30 -> 0 | N38: =Financing!AA30 -> 0 | O38: =Financing!AB30 -> 0 | P38: =Financing!AC30 -> 0 | Q38: =Financing!AD30 -> 0 | R38: =Financing!AE30 -> 0 | S38: =Financing!AF30 -> 0 | T38: =Financing!AG30 -> 0 | U38: =Financing!AH30 -> 0 | V38: =Financing!AI30 -> 0 | W38: =Financing!AJ30 -> 0 | X38: =Financing!AK30 -> 0 | Y38: =Financing!AL30 -> 0 | Z38: =Financing!AM30 -> 0 | AA38: =Financing!AN30 -> 0 | AB38: =Financing!AO30 -> 0 | AC38: =Financing!AP30 -> 0 | AD38: =Financing!AQ30 -> 0 | AE38: =Financing!AR30 -> 0 | AF38: =Financing!AS30 -> 0
D39: =Financing!B31 -> Development - IPO | E39: =Financing!R31 -> 0 | F39: =Financing!S31 -> 0 | G39: =Financing!T31 -> 0 | H39: =Financing!U31 -> 0 | I39: =Financing!V31 -> 23.76 | J39: =Financing!W31 -> 23.76 | K39: =Financing!X31 -> 11.88 | L39: =Financing!Y31 -> 0 | M39: =Financing!Z31 -> 0 | N39: =Financing!AA31 -> 0 | O39: =Financing!AB31 -> 0 | P39: =Financing!AC31 -> 0 | Q39: =Financing!AD31 -> 0 | R39: =Financing!AE31 -> 0 | S39: =Financing!AF31 -> 0 | T39: =Financing!AG31 -> 0 | U39: =Financing!AH31 -> 0 | V39: =Financing!AI31 -> 0 | W39: =Financing!AJ31 -> 0 | X39: =Financing!AK31 -> 0 | Y39: =Financing!AL31 -> 0 | Z39: =Financing!AM31 -> 0 | AA39: =Financing!AN31 -> 0 | AB39: =Financing!AO31 -> 0 | AC39: =Financing!AP31 -> 0 | AD39: =Financing!AQ31 -> 0 | AE39: =Financing!AR31 -> 0 | AF39: =Financing!AS31 -> 0
D40: =Financing!B32 -> Share Capital | E40: =Financing!R32 -> 0 | F40: =Financing!S32 -> 0 | G40: =Financing!T32 -> 0 | H40: =Financing!U32 -> 0 | I40: =Financing!V32 -> 0 | J40: =Financing!W32 -> 0 | K40: =Financing!X32 -> 0 | L40: =Financing!Y32 -> 334.9451932 | M40: =Financing!Z32 -> 0 | N40: =Financing!AA32 -> 0 | O40: =Financing!AB32 -> 0 | P40: =Financing!AC32 -> 0 | Q40: =Financing!AD32 -> 0 | R40: =Financing!AE32 -> 0 | S40: =Financing!AF32 -> 0 | T40: =Financing!AG32 -> 0 | U40: =Financing!AH32 -> 0 | V40: =Financing!AI32 -> 0 | W40: =Financing!AJ32 -> 0 | X40: =Financing!AK32 -> 0 | Y40: =Financing!AL32 -> 0 | Z40: =Financing!AM32 -> 0 | AA40: =Financing!AN32 -> 0 | AB40: =Financing!AO32 -> 0 | AC40: =Financing!AP32 -> 0 | AD40: =Financing!AQ32 -> 0 | AE40: =Financing!AR32 -> 0 | AF40: =Financing!AS32 -> 0
D41: =Financing!B33 -> Shareholder Loan | E41: =Financing!R33 -> 0 | F41: =Financing!S33 -> 0 | G41: =Financing!T33 -> 0 | H41: =Financing!U33 -> 0 | I41: =Financing!V33 -> 0 | J41: =Financing!W33 -> 0 | K41: =Financing!X33 -> 0 | L41: =Financing!Y33 -> 0 | M41: =Financing!Z33 -> 0 | N41: =Financing!AA33 -> 0 | O41: =Financing!AB33 -> 0 | P41: =Financing!AC33 -> 0 | Q41: =Financing!AD33 -> 0 | R41: =Financing!AE33 -> 0 | S41: =Financing!AF33 -> 0 | T41: =Financing!AG33 -> 0 | U41: =Financing!AH33 -> 0 | V41: =Financing!AI33 -> 0 | W41: =Financing!AJ33 -> 0 | X41: =Financing!AK33 -> 0 | Y41: =Financing!AL33 -> 0 | Z41: =Financing!AM33 -> 0 | AA41: =Financing!AN33 -> 0 | AB41: =Financing!AO33 -> 0 | AC41: =Financing!AP33 -> 0 | AD41: =Financing!AQ33 -> 0 | AE41: =Financing!AR33 -> 0 | AF41: =Financing!AS33 -> 0
D42: =Financing!B34 -> Prepayment | E42: =Financing!R34 -> 0 | F42: =Financing!S34 -> 0 | G42: =Financing!T34 -> 0 | H42: =Financing!U34 -> 0 | I42: =Financing!V34 -> 0 | J42: =Financing!W34 -> 0 | K42: =Financing!X34 -> 0 | L42: =Financing!Y34 -> 104.608701 | M42: =Financing!Z34 -> 217.7255019 | N42: =Financing!AA34 -> 225.5497217 | O42: =Financing!AB34 -> 233.6548596 | P42: =Financing!AC34 -> 0 | Q42: =Financing!AD34 -> 0 | R42: =Financing!AE34 -> 0 | S42: =Financing!AF34 -> 0 | T42: =Financing!AG34 -> 0 | U42: =Financing!AH34 -> 0 | V42: =Financing!AI34 -> 0 | W42: =Financing!AJ34 -> 0 | X42: =Financing!AK34 -> 0 | Y42: =Financing!AL34 -> 0 | Z42: =Financing!AM34 -> 0 | AA42: =Financing!AN34 -> 0 | AB42: =Financing!AO34 -> 0 | AC42: =Financing!AP34 -> 0 | AD42: =Financing!AQ34 -> 0 | AE42: =Financing!AR34 -> 0 | AF42: =Financing!AS34 -> 0
D43: =Financing!B35 -> Term Loan | E43: =Financing!R35 -> 0 | F43: =Financing!S35 -> 0 | G43: =Financing!T35 -> 0 | H43: =Financing!U35 -> 0 | I43: =Financing!V35 -> 0 | J43: =Financing!W35 -> 0 | K43: =Financing!X35 -> 0 | L43: =Financing!Y35 -> 0 | M43: =Financing!Z35 -> 0 | N43: =Financing!AA35 -> 0 | O43: =Financing!AB35 -> 0 | P43: =Financing!AC35 -> 0 | Q43: =Financing!AD35 -> 0 | R43: =Financing!AE35 -> 0 | S43: =Financing!AF35 -> 0 | T43: =Financing!AG35 -> 0 | U43: =Financing!AH35 -> 0 | V43: =Financing!AI35 -> 0 | W43: =Financing!AJ35 -> 0 | X43: =Financing!AK35 -> 0 | Y43: =Financing!AL35 -> 0 | Z43: =Financing!AM35 -> 0 | AA43: =Financing!AN35 -> 0 | AB43: =Financing!AO35 -> 0 | AC43: =Financing!AP35 -> 0 | AD43: =Financing!AQ35 -> 0 | AE43: =Financing!AR35 -> 0 | AF43: =Financing!AS35 -> 0
E48: ='Financial Statements'!R5 -> 2016 | F48: ='Financial Statements'!S5 -> 2017 | G48: ='Financial Statements'!T5 -> 2018 | H48: ='Financial Statements'!U5 -> 2019 | I48: ='Financial Statements'!V5 -> 2020 | J48: ='Financial Statements'!W5 -> 2021 | K48: ='Financial Statements'!X5 -> 2022 | L48: ='Financial Statements'!Y5 -> 2023 | M48: ='Financial Statements'!Z5 -> 2024 | N48: ='Financial Statements'!AA5 -> 2025 | O48: ='Financial Statements'!AB5 -> 2026 | P48: ='Financial Statements'!AC5 -> 2027 | Q48: ='Financial Statements'!AD5 -> 2028 | R48: ='Financial Statements'!AE5 -> 2029 | S48: ='Financial Statements'!AF5 -> 2030 | T48: ='Financial Statements'!AG5 -> 2031 | U48: ='Financial Statements'!AH5 -> 2032 | V48: ='Financial Statements'!AI5 -> 2033 | W48: ='Financial Statements'!AJ5 -> 2034 | X48: ='Financial Statements'!AK5 -> 2035 | Y48: ='Financial Statements'!AL5 -> 2036 | Z48: ='Financial Statements'!AM5 -> 2037 | AA48: ='Financial Statements'!AN5 -> 2038 | AB48: ='Financial Statements'!AO5 -> 2039 | AC48: ='Financial Statements'!AP5 -> 2040 | AD48: ='Financial Statements'!AQ5 -> 2041 | AE48: ='Financial Statements'!AR5 -> 2042 | AF48: ='Financial Statements'!AS5 -> 2043 | AG48: ='Financial Statements'!AT5 -> 2044
D49: =Shareholding!B19 -> Founders | E49: =Shareholding!R83 -> 0.4337194337 | F49: =Shareholding!S83 -> 0.4337194337 | G49: =Shareholding!T83 -> 0.4337194337 | H49: =Shareholding!U83 -> 0.4337194337 | I49: =Shareholding!V83 -> 0.1699129096 | J49: =Shareholding!W83 -> 0.1699129096 | K49: =Shareholding!X83 -> 0.1699129096 | L49: =Shareholding!Y83 -> 0.1395407494 | M49: =Shareholding!Z83 -> 0.1395407494 | N49: =Shareholding!AA83 -> 0.1395407494 | O49: =Shareholding!AB83 -> 0.1395407494 | P49: =Shareholding!AC83 -> 0.1395407494 | Q49: =Shareholding!AD83 -> 0.1395407494 | R49: =Shareholding!AE83 -> 0.1395407494 | S49: =Shareholding!AF83 -> 0.1395407494 | T49: =Shareholding!AG83 -> 0.1395407494 | U49: =Shareholding!AH83 -> 0.1395407494 | V49: =Shareholding!AI83 -> 0.1395407494 | W49: =Shareholding!AJ83 -> 0.1395407494 | X49: =Shareholding!AK83 -> 0.1395407494 | Y49: =Shareholding!AL83 -> 0.1395407494 | Z49: =Shareholding!AM83 -> 0.1395407494 | AA49: =Shareholding!AN83 -> 0.1395407494 | AB49: =Shareholding!AO83 -> 0.1395407494 | AC49: =Shareholding!AP83 -> 0.1395407494 | AD49: =Shareholding!AQ83 -> 0.1395407494 | AE49: =Shareholding!AR83 -> 0.1395407494 | AF49: =Shareholding!AS83 -> 0.1395407494 | AG49: =Shareholding!AT83 -> 0.1395407494
D50: =Shareholding!B20 -> Exploration - Private Equity | E50: =Shareholding!R84 -> 0.5662805663 | F50: =Shareholding!S84 -> 0.5662805663 | G50: =Shareholding!T84 -> 0.5662805663 | H50: =Shareholding!U84 -> 0.5662805663 | I50: =Shareholding!V84 -> 0.2218447485 | J50: =Shareholding!W84 -> 0.2218447485 | K50: =Shareholding!X84 -> 0.2218447485 | L50: =Shareholding!Y84 -> 0.1821897025 | M50: =Shareholding!Z84 -> 0.1821897025 | N50: =Shareholding!AA84 -> 0.1821897025 | O50: =Shareholding!AB84 -> 0.1821897025 | P50: =Shareholding!AC84 -> 0.1821897025 | Q50: =Shareholding!AD84 -> 0.1821897025 | R50: =Shareholding!AE84 -> 0.1821897025 | S50: =Shareholding!AF84 -> 0.1821897025 | T50: =Shareholding!AG84 -> 0.1821897025 | U50: =Shareholding!AH84 -> 0.1821897025 | V50: =Shareholding!AI84 -> 0.1821897025 | W50: =Shareholding!AJ84 -> 0.1821897025 | X50: =Shareholding!AK84 -> 0.1821897025 | Y50: =Shareholding!AL84 -> 0.1821897025 | Z50: =Shareholding!AM84 -> 0.1821897025 | AA50: =Shareholding!AN84 -> 0.1821897025 | AB50: =Shareholding!AO84 -> 0.1821897025 | AC50: =Shareholding!AP84 -> 0.1821897025 | AD50: =Shareholding!AQ84 -> 0.1821897025 | AE50: =Shareholding!AR84 -> 0.1821897025 | AF50: =Shareholding!AS84 -> 0.1821897025 | AG50: =Shareholding!AT84 -> 0.1821897025
D51: =Shareholding!B21 -> Development - IPO | E51: =Shareholding!R85 -> 0 | F51: =Shareholding!S85 -> 0 | G51: =Shareholding!T85 -> 0 | H51: =Shareholding!U85 -> 0 | I51: =Shareholding!V85 -> 0.6082423419 | J51: =Shareholding!W85 -> 0.6082423419 | K51: =Shareholding!X85 -> 0.6082423419 | L51: =Shareholding!Y85 -> 0.4995182083 | M51: =Shareholding!Z85 -> 0.4995182083 | N51: =Shareholding!AA85 -> 0.4995182083 | O51: =Shareholding!AB85 -> 0.4995182083 | P51: =Shareholding!AC85 -> 0.4995182083 | Q51: =Shareholding!AD85 -> 0.4995182083 | R51: =Shareholding!AE85 -> 0.4995182083 | S51: =Shareholding!AF85 -> 0.4995182083 | T51: =Shareholding!AG85 -> 0.4995182083 | U51: =Shareholding!AH85 -> 0.4995182083 | V51: =Shareholding!AI85 -> 0.4995182083 | W51: =Shareholding!AJ85 -> 0.4995182083 | X51: =Shareholding!AK85 -> 0.4995182083 | Y51: =Shareholding!AL85 -> 0.4995182083 | Z51: =Shareholding!AM85 -> 0.4995182083 | AA51: =Shareholding!AN85 -> 0.4995182083 | AB51: =Shareholding!AO85 -> 0.4995182083 | AC51: =Shareholding!AP85 -> 0.4995182083 | AD51: =Shareholding!AQ85 -> 0.4995182083 | AE51: =Shareholding!AR85 -> 0.4995182083 | AF51: =Shareholding!AS85 -> 0.4995182083 | AG51: =Shareholding!AT85 -> 0.4995182083
D52: =Shareholding!B22 -> Construction - Private Placement | E52: =Shareholding!R86 -> 0 | F52: =Shareholding!S86 -> 0 | G52: =Shareholding!T86 -> 0 | H52: =Shareholding!U86 -> 0 | I52: =Shareholding!V86 -> 0 | J52: =Shareholding!W86 -> 0 | K52: =Shareholding!X86 -> 0 | L52: =Shareholding!Y86 -> 0.1787513398 | M52: =Shareholding!Z86 -> 0.1787513398 | N52: =Shareholding!AA86 -> 0.1787513398 | O52: =Shareholding!AB86 -> 0.1787513398 | P52: =Shareholding!AC86 -> 0.1787513398 | Q52: =Shareholding!AD86 -> 0.1787513398 | R52: =Shareholding!AE86 -> 0.1787513398 | S52: =Shareholding!AF86 -> 0.1787513398 | T52: =Shareholding!AG86 -> 0.1787513398 | U52: =Shareholding!AH86 -> 0.1787513398 | V52: =Shareholding!AI86 -> 0.1787513398 | W52: =Shareholding!AJ86 -> 0.1787513398 | X52: =Shareholding!AK86 -> 0.1787513398 | Y52: =Shareholding!AL86 -> 0.1787513398 | Z52: =Shareholding!AM86 -> 0.1787513398 | AA52: =Shareholding!AN86 -> 0.1787513398 | AB52: =Shareholding!AO86 -> 0.1787513398 | AC52: =Shareholding!AP86 -> 0.1787513398 | AD52: =Shareholding!AQ86 -> 0.1787513398 | AE52: =Shareholding!AR86 -> 0.1787513398 | AF52: =Shareholding!AS86 -> 0.1787513398 | AG52: =Shareholding!AT86 -> 0.1787513398
D53: Share Price | E53: =Shareholding!R69 -> 13.48 | F53: =Shareholding!S69 -> 13.48 | G53: =Shareholding!T69 -> 13.48 | H53: =Shareholding!U69 -> 13.48 | I53: =Shareholding!V69 -> 16.59343018 | J53: =Shareholding!W69 -> 16.59343018 | K53: =Shareholding!X69 -> 16.59343018 | L53: =Shareholding!Y69 -> 172.1166106 | M53: =Shareholding!Z69 -> 209.7410462 | N53: =Shareholding!AA69 -> 227.1084621 | O53: =Shareholding!AB69 -> 245.8319746 | P53: =Shareholding!AC69 -> 478.9111033 | Q53: =Shareholding!AD69 -> 508.820108 | R53: =Shareholding!AE69 -> 531.33433 | S53: =Shareholding!AF69 -> 556.5767515 | T53: =Shareholding!AG69 -> 582.5811228 | U53: =Shareholding!AH69 -> 608.6243855 | V53: =Shareholding!AI69 -> 593.733775 | W53: =Shareholding!AJ69 -> 576.5581451 | X53: =Shareholding!AK69 -> 564.8545399 | Y53: =Shareholding!AL69 -> 550.8010862 | Z53: =Shareholding!AM69 -> 534.8175861 | AA53: =Shareholding!AN69 -> 516.1242475 | AB53: =Shareholding!AO69 -> 494.6044801 | AC53: =Shareholding!AP69 -> 470.452864 | AD53: =Shareholding!AQ69 -> 444.8258706 | AE53: =Shareholding!AR69 -> 418.5488681 | AF53: =Shareholding!AS69 -> 391.2226593 | AG53: =Shareholding!AT69 -> 362.5134648
E59: =E67 -> 2027 | F59: =F67 -> 2028 | G59: 2029 | H59: 2030 | I59: 2031 | J59: 2032 | K59: 2033 | L59: 2034 | M59: 2035 | N59: 2036 | O59: 2037 | P59: 2038 | Q59: 2039 | R59: 2040 | S59: 2041 | T59: 2042 | U59: 2043 | V59: 2044 | W59: 2045 | X59: 2046 | Y59: 2047 | Z59: 2048 | AA59: 2049 | AB59: 2050 | AC59: 2051 | AD59: 2052 | AE59: 2053 | AF59: 2054 | AJ59: 0 | AK59: 0 | AL59: 0 | AM59: 0 | AN59: 0 | AO59: 0 | AP59: 0 | AQ59: 0 | AR59: 0 | AS59: 0 | AT59: 0 | AU59: 0 | AV59: 0 | AW59: 0 | AX59: 0 | AY59: 0 | AZ59: 0 | BA59: 0 | BB59: 0 | BC59: 0 | BD59: 0 | BE59: 0 | BF59: 0 | BG59: 0 | BH59: 0 | BI59: 0 | BJ59: 0 | BK59: 0 | BL59: 0 | BM59: 0 | BN59: 0 | BO59: 0 | BP59: 0 | BQ59: 0 | BR59: =BR67 -> 0 | BS59: 0 | BT59: 0 | BU59: 0 | BV59: 0 | BW59: 0 | BX59: 0 | BY59: 0 | BZ59: 0 | CA59: 0 | CB59: 0 | CC59: 0 | CD59: 0 | CE59: 0 | CF59: 0 | CG59: 0 | CH59: 0 | CI59: 0 | CJ59: 0 | CK59: 0 | CL59: 0 | CM59: 0 | CN59: 0 | CO59: 0 | CP59: 0 | CQ59: 0 | CR59: 0 | CS59: 0 | CT59: 0 | CU59: 0 | CV59: 0 | CW59: 0 | CX59: 0 | CY59: 0 | CZ59: 0 | DA59: 0 | DB59: 0 | DC59: 0 | DD59: 0 | DE59: 0 | DF59: 0 | DG59: 0 | DH59: 0 | DI59: 0 | DJ59: 0 | DK59: 0 | DL59: 0 | DM59: 0 | DN59: 0 | DO59: 0 | DP59: 0 | DQ59: 0 | DR59: 0 | DS59: 0 | DT59: 0 | DU59: 0 | DV59: 0 | DW59: 0 | DX59: 0 | DY59: 0 | DZ59: 0 | EA59: 0 | EB59: 0 | EC59: 0 | ED59: =ED67 -> 0 | EE59: 0 | EF59: 0 | EG59: 0 | EH59: 0 | EI59: 0 | EJ59: 0 | EK59: 0 | EL59: 0 | EM59: 0 | EN59: 0 | EO59: 0 | EP59: 0 | EQ59: 0 | ER59: 0 | ES59: 0 | ET59: 0 | EU59: 0 | EV59: 0 | EW59: 0 | EX59: 0 | EY59: 0 | EZ59: 0 | FA59: 0 | FB59: 0 | FC59: 0 | FD59: 0 | FE59: 0 | FF59: 0 | FG59: 0 | FH59: 0 | FI59: 0 | FJ59: 0 | FK59: 0 | FL59: 0 | FM59: 0 | FN59: 0 | FO59: 0 | FP59: 0 | FQ59: 0 | FR59: 0 | FS59: 0 | FT59: 0 | FU59: 0 | FV59: 0 | FW59: 0 | FX59: 0 | FY59: 0 | FZ59: 0 | GA59: 0 | GB59: 0 | GC59: 0 | GD59: 0 | GE59: 0 | GF59: 0 | GG59: 0 | GH59: 0 | GI59: 0 | GJ59: 0 | GK59: 0 | GL59: 0 | GM59: 0 | GN59: 0 | GO59: 0 | GP59: =GP67 -> 0 | GQ59: 0 | GR59: 0 | GS59: 0 | GT59: 0 | GU59: 0 | GV59: 0 | GW59: 0 | GX59: 0 | GY59: 0 | GZ59: 0 | HA59: 0 | HB59: 0 | HC59: 0 | HD59: 0 | HE59: 0 | HF59: 0 | HG59: 0 | HH59: 0 | HI59: 0 | HJ59: 0 | HK59: 0 | HL59: 0 | HM59: 0 | HN59: 0 | HO59: 0 | HP59: 0 | HQ59: 0 | HR59: 0 | HS59: 0 | HT59: 0 | HU59: 0 | HV59: 0 | HW59: 0 | HX59: 0 | HY59: 0 | HZ59: 0 | IA59: 0 | IB59: 0 | IC59: 0 | ID59: 0 | IE59: 0 | IF59: 0 | IG59: 0 | IH59: 0 | II59: 0 | IJ59: 0 | IK59: 0 | IL59: 0 | IM59: 0 | IN59: 0 | IO59: 0 | IP59: 0 | IQ59: 0 | IR59: 0 | IS59: 0 | IT59: 0 | IU59: 0 | IV59: 0 | IW59: 0 | IX59: 0 | IY59: 0 | IZ59: 0 | JA59: 0 | JB59: =JB67 -> 0 | JC59: 0 | JD59: 0 | JE59: 0 | JF59: 0 | JG59: 0 | JH59: 0 | JI59: 0 | JJ59: 0 | JK59: 0 | JL59: 0 | JM59: 0 | JN59: 0 | JO59: 0 | JP59: 0 | JQ59: 0 | JR59: 0 | JS59: 0 | JT59: 0 | JU59: 0 | JV59: 0 | JW59: 0 | JX59: 0 | JY59: 0 | JZ59: 0 | KA59: 0 | KB59: 0 | KC59: 0 | KD59: 0 | KE59: 0 | KF59: 0 | KG59: 0 | KH59: 0 | KI59: 0 | KJ59: 0 | KK59: 0 | KL59: 0 | KM59: 0 | KN59: 0 | KO59: 0 | KP59: 0 | KQ59: 0 | KR59: 0 | KS59: 0 | KT59: 0 | KU59: 0 | KV59: 0 | KW59: 0 | KX59: 0 | KY59: 0 | KZ59: 0 | LA59: 0 | LB59: 0 | LC59: 0 | LD59: 0 | LE59: 0 | LF59: 0 | LG59: 0 | LH59: 0 | LI59: 0 | LJ59: 0 | LK59: 0 | LL59: 0 | LM59: 0 | LN59: =LN67 -> 0 | LO59: 0 | LP59: 0 | LQ59: 0 | LR59: 0 | LS59: 0 | LT59: 0 | LU59: 0 | LV59: 0 | LW59: 0 | LX59: 0 | LY59: 0 | LZ59: 0 | MA59: 0 | MB59: 0 | MC59: 0 | MD59: 0 | ME59: 0 | MF59: 0 | MG59: 0 | MH59: 0 | MI59: 0 | MJ59: 0 | MK59: 0 | ML59: 0 | MM59: 0 | MN59: 0 | MO59: 0 | MP59: 0 | MQ59: 0 | MR59: 0 | MS59: 0 | MT59: 0 | MU59: 0 | MV59: 0 | MW59: 0 | MX59: 0 | MY59: 0 | MZ59: 0 | NA59: 0 | NB59: 0 | NC59: 0 | ND59: 0 | NE59: 0 | NF59: 0 | NG59: 0 | NH59: 0 | NI59: 0 | NJ59: 0 | NK59: 0 | NL59: 0 | NM59: 0 | NN59: 0 | NO59: 0 | NP59: 0 | NQ59: 0 | NR59: 0 | NS59: 0 | NT59: 0 | NU59: 0 | NV59: 0 | NW59: 0 | NX59: 0 | NY59: 0 | NZ59: =NZ67 -> 0 | OA59: 0 | OB59: 0 | OC59: 0 | OD59: 0 | OE59: 0 | OF59: 0 | OG59: 0 | OH59: 0 | OI59: 0 | OJ59: 0 | OK59: 0 | OL59: 0 | OM59: 0 | ON59: 0 | OO59: 0 | OP59: 0 | OQ59: 0 | OR59: 0 | OS59: 0 | OT59: 0 | OU59: 0 | OV59: 0 | OW59: 0 | OX59: 0 | OY59: 0 | OZ59: 0 | PA59: 0 | PB59: 0 | PC59: 0 | PD59: 0 | PE59: 0 | PF59: 0 | PG59: 0 | PH59: 0 | PI59: 0 | PJ59: 0 | PK59: 0 | PL59: 0 | PM59: 0 | PN59: 0 | PO59: 0 | PP59: 0 | PQ59: 0 | PR59: 0 | PS59: 0 | PT59: 0 | PU59: 0 | PV59: 0 | PW59: 0 | PX59: 0 | PY59: 0 | PZ59: 0 | QA59: 0 | QB59: 0 | QC59: 0 | QD59: 0 | QE59: 0 | QF59: 0 | QG59: 0 | QH59: 0 | QI59: 0 | QJ59: 0 | QK59: 0 | QL59: =QL67 -> 0 | QM59: 0 | QN59: 0 | QO59: 0 | QP59: 0 | QQ59: 0 | QR59: 0 | QS59: 0 | QT59: 0 | QU59: 0 | QV59: 0 | QW59: 0 | QX59: 0 | QY59: 0 | QZ59: 0 | RA59: 0 | RB59: 0 | RC59: 0 | RD59: 0 | RE59: 0 | RF59: 0 | RG59: 0 | RH59: 0 | RI59: 0 | RJ59: 0 | RK59: 0 | RL59: 0 | RM59: 0 | RN59: 0 | RO59: 0 | RP59: 0 | RQ59: 0 | RR59: 0 | RS59: 0 | RT59: 0 | RU59: 0 | RV59: 0 | RW59: 0 | RX59: 0 | RY59: 0 | RZ59: 0 | SA59: 0 | SB59: 0 | SC59: 0 | SD59: 0 | SE59: 0 | SF59: 0 | SG59: 0 | SH59: 0 | SI59: 0 | SJ59: 0 | SK59: 0 | SL59: 0 | SM59: 0 | SN59: 0 | SO59: 0 | SP59: 0 | SQ59: 0 | SR59: 0 | SS59: 0 | ST59: 0 | SU59: 0 | SV59: 0 | SW59: 0 | SX59: =SX67 -> 0 | SY59: 0 | SZ59: 0 | TA59: 0 | TB59: 0 | TC59: 0 | TD59: 0 | TE59: 0 | TF59: 0 | TG59: 0 | TH59: 0 | TI59: 0 | TJ59: 0 | TK59: 0 | TL59: 0 | TM59: 0 | TN59: 0 | TO59: 0 | TP59: 0 | TQ59: 0 | TR59: 0 | TS59: 0 | TT59: 0 | TU59: 0 | TV59: 0 | TW59: 0 | TX59: 0 | TY59: 0 | TZ59: 0 | UA59: 0 | UB59: 0 | UC59: 0 | UD59: 0 | UE59: 0 | UF59: 0 | UG59: 0 | UH59: 0 | UI59: 0 | UJ59: 0 | UK59: 0 | UL59: 0 | UM59: 0 | UN59: 0 | UO59: 0 | UP59: 0 | UQ59: 0 | UR59: 0 | US59: 0 | UT59: 0 | UU59: 0 | UV59: 0 | UW59: 0 | UX59: 0 | UY59: 0 | UZ59: 0 | VA59: 0 | VB59: 0 | VC59: 0 | VD59: 0 | VE59: 0 | VF59: 0 | VG59: 0 | VH59: 0 | VI59: 0 | VJ59: =VJ67 -> 0 | VK59: 0 | VL59: 0 | VM59: 0 | VN59: 0 | VO59: 0 | VP59: 0 | VQ59: 0 | VR59: 0 | VS59: 0 | VT59: 0 | VU59: 0 | VV59: 0 | VW59: 0 | VX59: 0 | VY59: 0 | VZ59: 0 | WA59: 0 | WB59: 0 | WC59: 0 | WD59: 0 | WE59: 0 | WF59: 0 | WG59: 0 | WH59: 0 | WI59: 0 | WJ59: 0 | WK59: 0 | WL59: 0 | WM59: 0 | WN59: 0 | WO59: 0 | WP59: 0 | WQ59: 0 | WR59: 0 | WS59: 0 | WT59: 0 | WU59: 0 | WV59: 0 | WW59: 0 | WX59: 0 | WY59: 0 | WZ59: 0 | XA59: 0 | XB59: 0 | XC59: 0 | XD59: 0 | XE59: 0 | XF59: 0 | XG59: 0 | XH59: 0 | XI59: 0 | XJ59: 0 | XK59: 0 | XL59: 0 | XM59: 0 | XN59: 0 | XO59: 0 | XP59: 0 | XQ59: 0 | XR59: 0 | XS59: 0 | XT59: 0 | XU59: 0 | XV59: =XV67 -> 0 | XW59: 0 | XX59: 0 | XY59: 0 | XZ59: 0 | YA59: 0 | YB59: 0 | YC59: 0 | YD59: 0 | YE59: 0 | YF59: 0 | YG59: 0 | YH59: 0 | YI59: 0 | YJ59: 0 | YK59: 0 | YL59: 0 | YM59: 0 | YN59: 0 | YO59: 0 | YP59: 0 | YQ59: 0 | YR59: 0 | YS59: 0 | YT59: 0 | YU59: 0 | YV59: 0 | YW59: 0 | YX59: 0 | YY59: 0 | YZ59: 0 | ZA59: 0 | ZB59: 0 | ZC59: 0 | ZD59: 0 | ZE59: 0 | ZF59: 0 | ZG59: 0 | ZH59: 0 | ZI59: 0 | ZJ59: 0 | ZK59: 0 | ZL59: 0 | ZM59: 0 | ZN59: 0 | ZO59: 0 | ZP59: 0 | ZQ59: 0 | ZR59: 0 | ZS59: 0 | ZT59: 0 | ZU59: 0 | ZV59: 0 | ZW59: 0 | ZX59: 0 | ZY59: 0 | ZZ59: 0 | AAA59: 0 | AAB59: 0 | AAC59: 0 | AAD59: 0 | AAE59: 0 | AAF59: 0 | AAG59: 0 | AAH59: =AAH67 -> 0 | AAI59: 0 | AAJ59: 0 | AAK59: 0 | AAL59: 0 | AAM59: 0 | AAN59: 0 | AAO59: 0 | AAP59: 0 | AAQ59: 0 | AAR59: 0 | AAS59: 0 | AAT59: 0 | AAU59: 0 | AAV59: 0 | AAW59: 0 | AAX59: 0 | AAY59: 0 | AAZ59: 0 | ABA59: 0 | ABB59: 0 | ABC59: 0 | ABD59: 0 | ABE59: 0 | ABF59: 0 | ABG59: 0 | ABH59: 0 | ABI59: 0 | ABJ59: 0 | ABK59: 0 | ABL59: 0 | ABM59: 0 | ABN59: 0 | ABO59: 0 | ABP59: 0 | ABQ59: 0 | ABR59: 0 | ABS59: 0 | ABT59: 0 | ABU59: 0 | ABV59: 0 | ABW59: 0 | ABX59: 0 | ABY59: 0 | ABZ59: 0 | ACA59: 0 | ACB59: 0 | ACC59: 0 | ACD59: 0 | ACE59: 0 | ACF59: 0 | ACG59: 0 | ACH59: 0 | ACI59: 0 | ACJ59: 0 | ACK59: 0 | ACL59: 0 | ACM59: 0 | ACN59: 0 | ACO59: 0 | ACP59: 0 | ACQ59: 0 | ACR59: 0 | ACS59: 0 | ACT59: =ACT67 -> 0 | ACU59: 0 | ACV59: 0 | ACW59: 0 | ACX59: 0 | ACY59: 0 | ACZ59: 0 | ADA59: 0 | ADB59: 0 | ADC59: 0 | ADD59: 0 | ADE59: 0 | ADF59: 0 | ADG59: 0 | ADH59: 0 | ADI59: 0 | ADJ59: 0 | ADK59: 0 | ADL59: 0 | ADM59: 0 | ADN59: 0 | ADO59: 0 | ADP59: 0 | ADQ59: 0 | ADR59: 0 | ADS59: 0 | ADT59: 0 | ADU59: 0 | ADV59: 0 | ADW59: 0 | ADX59: 0 | ADY59: 0 | ADZ59: 0 | AEA59: 0 | AEB59: 0 | AEC59: 0 | AED59: 0 | AEE59: 0 | AEF59: 0 | AEG59: 0 | AEH59: 0 | AEI59: 0 | AEJ59: 0 | AEK59: 0 | AEL59: 0 | AEM59: 0 | AEN59: 0 | AEO59: 0 | AEP59: 0 | AEQ59: 0 | AER59: 0 | AES59: 0 | AET59: 0 | AEU59: 0 | AEV59: 0 | AEW59: 0 | AEX59: 0 | AEY59: 0 | AEZ59: 0 | AFA59: 0 | AFB59: 0 | AFC59: 0 | AFD59: 0 | AFE59: 0 | AFF59: =AFF67 -> 0 | AFG59: 0 | AFH59: 0 | AFI59: 0 | AFJ59: 0 | AFK59: 0 | AFL59: 0 | AFM59: 0 | AFN59: 0 | AFO59: 0 | AFP59: 0 | AFQ59: 0 | AFR59: 0 | AFS59: 0 | AFT59: 0 | AFU59: 0 | AFV59: 0 | AFW59: 0 | AFX59: 0 | AFY59: 0 | AFZ59: 0 | AGA59: 0 | AGB59: 0 | AGC59: 0 | AGD59: 0 | AGE59: 0 | AGF59: 0 | AGG59: 0 | AGH59: 0 | AGI59: 0 | AGJ59: 0 | AGK59: 0 | AGL59: 0 | AGM59: 0 | AGN59: 0 | AGO59: 0 | AGP59: 0 | AGQ59: 0 | AGR59: 0 | AGS59: 0 | AGT59: 0 | AGU59: 0 | AGV59: 0 | AGW59: 0 | AGX59: 0 | AGY59: 0 | AGZ59: 0 | AHA59: 0 | AHB59: 0 | AHC59: 0 | AHD59: 0 | AHE59: 0 | AHF59: 0 | AHG59: 0 | AHH59: 0 | AHI59: 0 | AHJ59: 0 | AHK59: 0 | AHL59: 0 | AHM59: 0 | AHN59: 0 | AHO59: 0 | AHP59: 0 | AHQ59: 0 | AHR59: =AHR67 -> 0 | AHS59: 0 | AHT59: 0 | AHU59: 0 | AHV59: 0 | AHW59: 0 | AHX59: 0 | AHY59: 0 | AHZ59: 0 | AIA59: 0 | AIB59: 0 | AIC59: 0 | AID59: 0 | AIE59: 0 | AIF59: 0 | AIG59: 0 | AIH59: 0 | AII59: 0 | AIJ59: 0 | AIK59: 0 | AIL59: 0 | AIM59: 0 | AIN59: 0 | AIO59: 0 | AIP59: 0 | AIQ59: 0 | AIR59: 0 | AIS59: 0 | AIT59: 0 | AIU59: 0 | AIV59: 0 | AIW59: 0 | AIX59: 0 | AIY59: 0 | AIZ59: 0 | AJA59: 0 | AJB59: 0 | AJC59: 0 | AJD59: 0 | AJE59: 0 | AJF59: 0 | AJG59: 0 | AJH59: 0 | AJI59: 0 | AJJ59: 0 | AJK59: 0 | AJL59: 0 | AJM59: 0 | AJN59: 0 | AJO59: 0 | AJP59: 0 | AJQ59: 0 | AJR59: 0 | AJS59: 0 | AJT59: 0 | AJU59: 0 | AJV59: 0 | AJW59: 0 | AJX59: 0 | AJY59: 0 | AJZ59: 0 | AKA59: 0 | AKB59: 0 | AKC59: 0 | AKD59: =AKD67 -> 0 | AKE59: 0 | AKF59: 0 | AKG59: 0 | AKH59: 0 | AKI59: 0 | AKJ59: 0 | AKK59: 0 | AKL59: 0 | AKM59: 0 | AKN59: 0 | AKO59: 0 | AKP59: 0 | AKQ59: 0 | AKR59: 0 | AKS59: 0 | AKT59: 0 | AKU59: 0 | AKV59: 0 | AKW59: 0 | AKX59: 0 | AKY59: 0 | AKZ59: 0 | ALA59: 0 | ALB59: 0 | ALC59: 0 | ALD59: 0 | ALE59: 0 | ALF59: 0 | ALG59: 0 | ALH59: 0 | ALI59: 0 | ALJ59: 0 | ALK59: 0 | ALL59: 0 | ALM59: 0 | ALN59: 0 | ALO59: 0 | ALP59: 0 | ALQ59: 0 | ALR59: 0 | ALS59: 0 | ALT59: 0 | ALU59: 0 | ALV59: 0 | ALW59: 0 | ALX59: 0 | ALY59: 0 | ALZ59: 0 | AMA59: 0 | AMB59: 0 | AMC59: 0 | AMD59: 0 | AME59: 0 | AMF59: 0 | AMG59: 0 | AMH59: 0 | AMI59: 0 | AMJ59: 0 | AMK59: 0 | AML59: 0 | AMM59: 0 | AMN59: 0 | AMO59: 0 | AMP59: =AMP67 -> 0 | AMQ59: 0 | AMR59: 0 | AMS59: 0 | AMT59: 0 | AMU59: 0 | AMV59: 0 | AMW59: 0 | AMX59: 0 | AMY59: 0 | AMZ59: 0 | ANA59: 0 | ANB59: 0 | ANC59: 0 | AND59: 0 | ANE59: 0 | ANF59: 0 | ANG59: 0 | ANH59: 0 | ANI59: 0 | ANJ59: 0 | ANK59: 0 | ANL59: 0 | ANM59: 0 | ANN59: 0 | ANO59: 0 | ANP59: 0 | ANQ59: 0 | ANR59: 0 | ANS59: 0 | ANT59: 0 | ANU59: 0 | ANV59: 0 | ANW59: 0 | ANX59: 0 | ANY59: 0 | ANZ59: 0 | AOA59: 0 | AOB59: 0 | AOC59: 0 | AOD59: 0 | AOE59: 0 | AOF59: 0 | AOG59: 0 | AOH59: 0 | AOI59: 0 | AOJ59: 0 | AOK59: 0 | AOL59: 0 | AOM59: 0 | AON59: 0 | AOO59: 0 | AOP59: 0 | AOQ59: 0 | AOR59: 0 | AOS59: 0 | AOT59: 0 | AOU59: 0 | AOV59: 0 | AOW59: 0 | AOX59: 0 | AOY59: 0 | AOZ59: 0 | APA59: 0 | APB59: =APB67 -> 0 | APC59: 0 | APD59: 0 | APE59: 0 | APF59: 0 | APG59: 0 | APH59: 0 | API59: 0 | APJ59: 0 | APK59: 0 | APL59: 0 | APM59: 0 | APN59: 0 | APO59: 0 | APP59: 0 | APQ59: 0 | APR59: 0 | APS59: 0 | APT59: 0 | APU59: 0 | APV59: 0 | APW59: 0 | APX59: 0 | APY59: 0 | APZ59: 0 | AQA59: 0 | AQB59: 0 | AQC59: 0 | AQD59: 0 | AQE59: 0 | AQF59: 0 | AQG59: 0 | AQH59: 0 | AQI59: 0 | AQJ59: 0 | AQK59: 0 | AQL59: 0 | AQM59: 0 | AQN59: 0 | AQO59: 0 | AQP59: 0 | AQQ59: 0 | AQR59: 0 | AQS59: 0 | AQT59: 0 | AQU59: 0 | AQV59: 0 | AQW59: 0 | AQX59: 0 | AQY59: 0 | AQZ59: 0 | ARA59: 0 | ARB59: 0 | ARC59: 0 | ARD59: 0 | ARE59: 0 | ARF59: 0 | ARG59: 0 | ARH59: 0 | ARI59: 0 | ARJ59: 0 | ARK59: 0 | ARL59: 0 | ARM59: 0 | ARN59: =ARN67 -> 0 | ARO59: 0 | ARP59: 0 | ARQ59: 0 | ARR59: 0 | ARS59: 0 | ART59: 0 | ARU59: 0 | ARV59: 0 | ARW59: 0 | ARX59: 0 | ARY59: 0 | ARZ59: 0 | ASA59: 0 | ASB59: 0 | ASC59: 0 | ASD59: 0 | ASE59: 0 | ASF59: 0 | ASG59: 0 | ASH59: 0 | ASI59: 0 | ASJ59: 0 | ASK59: 0 | ASL59: 0 | ASM59: 0 | ASN59: 0 | ASO59: 0 | ASP59: 0 | ASQ59: 0 | ASR59: 0 | ASS59: 0 | AST59: 0 | ASU59: 0 | ASV59: 0 | ASW59: 0 | ASX59: 0 | ASY59: 0 | ASZ59: 0 | ATA59: 0 | ATB59: 0 | ATC59: 0 | ATD59: 0 | ATE59: 0 | ATF59: 0 | ATG59: 0 | ATH59: 0 | ATI59: 0 | ATJ59: 0 | ATK59: 0 | ATL59: 0 | ATM59: 0 | ATN59: 0 | ATO59: 0 | ATP59: 0 | ATQ59: 0 | ATR59: 0 | ATS59: 0 | ATT59: 0 | ATU59: 0 | ATV59: 0 | ATW59: 0 | ATX59: 0 | ATY59: 0 | ATZ59: =ATZ67 -> 0 | AUA59: 0 | AUB59: 0 | AUC59: 0 | AUD59: 0 | AUE59: 0 | AUF59: 0 | AUG59: 0 | AUH59: 0 | AUI59: 0 | AUJ59: 0 | AUK59: 0 | AUL59: 0 | AUM59: 0 | AUN59: 0 | AUO59: 0 | AUP59: 0 | AUQ59: 0 | AUR59: 0 | AUS59: 0 | AUT59: 0 | AUU59: 0 | AUV59: 0 | AUW59: 0 | AUX59: 0 | AUY59: 0 | AUZ59: 0 | AVA59: 0 | AVB59: 0 | AVC59: 0 | AVD59: 0 | AVE59: 0 | AVF59: 0 | AVG59: 0 | AVH59: 0 | AVI59: 0 | AVJ59: 0 | AVK59: 0 | AVL59: 0 | AVM59: 0 | AVN59: 0 | AVO59: 0 | AVP59: 0 | AVQ59: 0 | AVR59: 0 | AVS59: 0 | AVT59: 0 | AVU59: 0 | AVV59: 0 | AVW59: 0 | AVX59: 0 | AVY59: 0 | AVZ59: 0 | AWA59: 0 | AWB59: 0 | AWC59: 0 | AWD59: 0 | AWE59: 0 | AWF59: 0 | AWG59: 0 | AWH59: 0 | AWI59: 0 | AWJ59: 0 | AWK59: 0 | AWL59: =AWL67 -> 0 | AWM59: 0 | AWN59: 0 | AWO59: 0 | AWP59: 0 | AWQ59: 0 | AWR59: 0 | AWS59: 0 | AWT59: 0 | AWU59: 0 | AWV59: 0 | AWW59: 0 | AWX59: 0 | AWY59: 0 | AWZ59: 0 | AXA59: 0 | AXB59: 0 | AXC59: 0 | AXD59: 0 | AXE59: 0 | AXF59: 0 | AXG59: 0 | AXH59: 0 | AXI59: 0 | AXJ59: 0 | AXK59: 0 | AXL59: 0 | AXM59: 0 | AXN59: 0 | AXO59: 0 | AXP59: 0 | AXQ59: 0 | AXR59: 0 | AXS59: 0 | AXT59: 0 | AXU59: 0 | AXV59: 0 | AXW59: 0 | AXX59: 0 | AXY59: 0 | AXZ59: 0 | AYA59: 0 | AYB59: 0 | AYC59: 0 | AYD59: 0 | AYE59: 0 | AYF59: 0 | AYG59: 0 | AYH59: 0 | AYI59: 0 | AYJ59: 0 | AYK59: 0 | AYL59: 0 | AYM59: 0 | AYN59: 0 | AYO59: 0 | AYP59: 0 | AYQ59: 0 | AYR59: 0 | AYS59: 0 | AYT59: 0 | AYU59: 0 | AYV59: 0 | AYW59: 0 | AYX59: =AYX67 -> 0 | AYY59: 0 | AYZ59: 0 | AZA59: 0 | AZB59: 0 | AZC59: 0 | AZD59: 0 | AZE59: 0 | AZF59: 0 | AZG59: 0 | AZH59: 0 | AZI59: 0 | AZJ59: 0 | AZK59: 0 | AZL59: 0 | AZM59: 0 | AZN59: 0 | AZO59: 0 | AZP59: 0 | AZQ59: 0 | AZR59: 0 | AZS59: 0 | AZT59: 0 | AZU59: 0 | AZV59: 0 | AZW59: 0 | AZX59: 0 | AZY59: 0 | AZZ59: 0 | BAA59: 0 | BAB59: 0 | BAC59: 0 | BAD59: 0 | BAE59: 0 | BAF59: 0 | BAG59: 0 | BAH59: 0 | BAI59: 0 | BAJ59: 0 | BAK59: 0 | BAL59: 0 | BAM59: 0 | BAN59: 0 | BAO59: 0 | BAP59: 0 | BAQ59: 0 | BAR59: 0 | BAS59: 0 | BAT59: 0 | BAU59: 0 | BAV59: 0 | BAW59: 0 | BAX59: 0 | BAY59: 0 | BAZ59: 0 | BBA59: 0 | BBB59: 0 | BBC59: 0 | BBD59: 0 | BBE59: 0 | BBF59: 0 | BBG59: 0 | BBH59: 0 | BBI59: 0 | BBJ59: =BBJ67 -> 0 | BBK59: 0 | BBL59: 0 | BBM59: 0 | BBN59: 0 | BBO59: 0 | BBP59: 0 | BBQ59: 0 | BBR59: 0 | BBS59: 0 | BBT59: 0 | BBU59: 0 | BBV59: 0 | BBW59: 0 | BBX59: 0 | BBY59: 0 | BBZ59: 0 | BCA59: 0 | BCB59: 0 | BCC59: 0 | BCD59: 0 | BCE59: 0 | BCF59: 0 | BCG59: 0 | BCH59: 0 | BCI59: 0 | BCJ59: 0 | BCK59: 0 | BCL59: 0 | BCM59: 0 | BCN59: 0 | BCO59: 0 | BCP59: 0 | BCQ59: 0 | BCR59: 0 | BCS59: 0 | BCT59: 0 | BCU59: 0 | BCV59: 0 | BCW59: 0 | BCX59: 0 | BCY59: 0 | BCZ59: 0 | BDA59: 0 | BDB59: 0 | BDC59: 0 | BDD59: 0 | BDE59: 0 | BDF59: 0 | BDG59: 0 | BDH59: 0 | BDI59: 0 | BDJ59: 0 | BDK59: 0 | BDL59: 0 | BDM59: 0 | BDN59: 0 | BDO59: 0 | BDP59: 0 | BDQ59: 0 | BDR59: 0 | BDS59: 0 | BDT59: 0 | BDU59: 0 | BDV59: =BDV67 -> 0 | BDW59: 0 | BDX59: 0 | BDY59: 0 | BDZ59: 0 | BEA59: 0 | BEB59: 0 | BEC59: 0 | BED59: 0 | BEE59: 0 | BEF59: 0 | BEG59: 0 | BEH59: 0 | BEI59: 0 | BEJ59: 0 | BEK59: 0 | BEL59: 0 | BEM59: 0 | BEN59: 0 | BEO59: 0 | BEP59: 0 | BEQ59: 0 | BER59: 0 | BES59: 0 | BET59: 0 | BEU59: 0 | BEV59: 0 | BEW59: 0 | BEX59: 0 | BEY59: 0 | BEZ59: 0 | BFA59: 0 | BFB59: 0 | BFC59: 0 | BFD59: 0 | BFE59: 0 | BFF59: 0 | BFG59: 0 | BFH59: 0 | BFI59: 0 | BFJ59: 0 | BFK59: 0 | BFL59: 0 | BFM59: 0 | BFN59: 0 | BFO59: 0 | BFP59: 0 | BFQ59: 0 | BFR59: 0 | BFS59: 0 | BFT59: 0 | BFU59: 0 | BFV59: 0 | BFW59: 0 | BFX59: 0 | BFY59: 0 | BFZ59: 0 | BGA59: 0 | BGB59: 0 | BGC59: 0 | BGD59: 0 | BGE59: 0 | BGF59: 0 | BGG59: 0 | BGH59: =BGH67 -> 0 | BGI59: 0 | BGJ59: 0 | BGK59: 0 | BGL59: 0 | BGM59: 0 | BGN59: 0 | BGO59: 0 | BGP59: 0 | BGQ59: 0 | BGR59: 0 | BGS59: 0 | BGT59: 0 | BGU59: 0 | BGV59: 0 | BGW59: 0 | BGX59: 0 | BGY59: 0 | BGZ59: 0 | BHA59: 0 | BHB59: 0 | BHC59: 0 | BHD59: 0 | BHE59: 0 | BHF59: 0 | BHG59: 0 | BHH59: 0 | BHI59: 0 | BHJ59: 0 | BHK59: 0 | BHL59: 0 | BHM59: 0 | BHN59: 0 | BHO59: 0 | BHP59: 0 | BHQ59: 0 | BHR59: 0 | BHS59: 0 | BHT59: 0 | BHU59: 0 | BHV59: 0 | BHW59: 0 | BHX59: 0 | BHY59: 0 | BHZ59: 0 | BIA59: 0 | BIB59: 0 | BIC59: 0 | BID59: 0 | BIE59: 0 | BIF59: 0 | BIG59: 0 | BIH59: 0 | BII59: 0 | BIJ59: 0 | BIK59: 0 | BIL59: 0 | BIM59: 0 | BIN59: 0 | BIO59: 0 | BIP59: 0 | BIQ59: 0 | BIR59: 0 | BIS59: 0 | BIT59: =BIT67 -> 0 | BIU59: 0 | BIV59: 0 | BIW59: 0 | BIX59: 0 | BIY59: 0 | BIZ59: 0 | BJA59: 0 | BJB59: 0 | BJC59: 0 | BJD59: 0 | BJE59: 0 | BJF59: 0 | BJG59: 0 | BJH59: 0 | BJI59: 0 | BJJ59: 0 | BJK59: 0 | BJL59: 0 | BJM59: 0 | BJN59: 0 | BJO59: 0 | BJP59: 0 | BJQ59: 0 | BJR59: 0 | BJS59: 0 | BJT59: 0 | BJU59: 0 | BJV59: 0 | BJW59: 0 | BJX59: 0 | BJY59: 0 | BJZ59: 0 | BKA59: 0 | BKB59: 0 | BKC59: 0 | BKD59: 0 | BKE59: 0 | BKF59: 0 | BKG59: 0 | BKH59: 0 | BKI59: 0 | BKJ59: 0 | BKK59: 0 | BKL59: 0 | BKM59: 0 | BKN59: 0 | BKO59: 0 | BKP59: 0 | BKQ59: 0 | BKR59: 0 | BKS59: 0 | BKT59: 0 | BKU59: 0 | BKV59: 0 | BKW59: 0 | BKX59: 0 | BKY59: 0 | BKZ59: 0 | BLA59: 0 | BLB59: 0 | BLC59: 0 | BLD59: 0 | BLE59: 0 | BLF59: =BLF67 -> 0 | BLG59: 0 | BLH59: 0 | BLI59: 0 | BLJ59: 0 | BLK59: 0 | BLL59: 0 | BLM59: 0 | BLN59: 0 | BLO59: 0 | BLP59: 0 | BLQ59: 0 | BLR59: 0 | BLS59: 0 | BLT59: 0 | BLU59: 0 | BLV59: 0 | BLW59: 0 | BLX59: 0 | BLY59: 0 | BLZ59: 0 | BMA59: 0 | BMB59: 0 | BMC59: 0 | BMD59: 0 | BME59: 0 | BMF59: 0 | BMG59: 0 | BMH59: 0 | BMI59: 0 | BMJ59: 0 | BMK59: 0 | BML59: 0 | BMM59: 0 | BMN59: 0 | BMO59: 0 | BMP59: 0 | BMQ59: 0 | BMR59: 0 | BMS59: 0 | BMT59: 0 | BMU59: 0 | BMV59: 0 | BMW59: 0 | BMX59: 0 | BMY59: 0 | BMZ59: 0 | BNA59: 0 | BNB59: 0 | BNC59: 0 | BND59: 0 | BNE59: 0 | BNF59: 0 | BNG59: 0 | BNH59: 0 | BNI59: 0 | BNJ59: 0 | BNK59: 0 | BNL59: 0 | BNM59: 0 | BNN59: 0 | BNO59: 0 | BNP59: 0 | BNQ59: 0 | BNR59: =BNR67 -> 0 | BNS59: 0 | BNT59: 0 | BNU59: 0 | BNV59: 0 | BNW59: 0 | BNX59: 0 | BNY59: 0 | BNZ59: 0 | BOA59: 0 | BOB59: 0 | BOC59: 0 | BOD59: 0 | BOE59: 0 | BOF59: 0 | BOG59: 0 | BOH59: 0 | BOI59: 0 | BOJ59: 0 | BOK59: 0 | BOL59: 0 | BOM59: 0 | BON59: 0 | BOO59: 0 | BOP59: 0 | BOQ59: 0 | BOR59: 0 | BOS59: 0 | BOT59: 0 | BOU59: 0 | BOV59: 0 | BOW59: 0 | BOX59: 0 | BOY59: 0 | BOZ59: 0 | BPA59: 0 | BPB59: 0 | BPC59: 0 | BPD59: 0 | BPE59: 0 | BPF59: 0 | BPG59: 0 | BPH59: 0 | BPI59: 0 | BPJ59: 0 | BPK59: 0 | BPL59: 0 | BPM59: 0 | BPN59: 0 | BPO59: 0 | BPP59: 0 | BPQ59: 0 | BPR59: 0 | BPS59: 0 | BPT59: 0 | BPU59: 0 | BPV59: 0 | BPW59: 0 | BPX59: 0 | BPY59: 0 | BPZ59: 0 | BQA59: 0 | BQB59: 0 | BQC59: 0 | BQD59: =BQD67 -> 0 | BQE59: 0 | BQF59: 0 | BQG59: 0 | BQH59: 0 | BQI59: 0 | BQJ59: 0 | BQK59: 0 | BQL59: 0 | BQM59: 0 | BQN59: 0 | BQO59: 0 | BQP59: 0 | BQQ59: 0 | BQR59: 0 | BQS59: 0 | BQT59: 0 | BQU59: 0 | BQV59: 0 | BQW59: 0 | BQX59: 0 | BQY59: 0 | BQZ59: 0 | BRA59: 0 | BRB59: 0 | BRC59: 0 | BRD59: 0 | BRE59: 0 | BRF59: 0 | BRG59: 0 | BRH59: 0 | BRI59: 0 | BRJ59: 0 | BRK59: 0 | BRL59: 0 | BRM59: 0 | BRN59: 0 | BRO59: 0 | BRP59: 0 | BRQ59: 0 | BRR59: 0 | BRS59: 0 | BRT59: 0 | BRU59: 0 | BRV59: 0 | BRW59: 0 | BRX59: 0 | BRY59: 0 | BRZ59: 0 | BSA59: 0 | BSB59: 0 | BSC59: 0 | BSD59: 0 | BSE59: 0 | BSF59: 0 | BSG59: 0 | BSH59: 0 | BSI59: 0 | BSJ59: 0 | BSK59: 0 | BSL59: 0 | BSM59: 0 | BSN59: 0 | BSO59: 0 | BSP59: =BSP67 -> 0 | BSQ59: 0 | BSR59: 0 | BSS59: 0 | BST59: 0 | BSU59: 0 | BSV59: 0 | BSW59: 0 | BSX59: 0 | BSY59: 0 | BSZ59: 0 | BTA59: 0 | BTB59: 0 | BTC59: 0 | BTD59: 0 | BTE59: 0 | BTF59: 0 | BTG59: 0 | BTH59: 0 | BTI59: 0 | BTJ59: 0 | BTK59: 0 | BTL59: 0 | BTM59: 0 | BTN59: 0 | BTO59: 0 | BTP59: 0 | BTQ59: 0 | BTR59: 0 | BTS59: 0 | BTT59: 0 | BTU59: 0 | BTV59: 0 | BTW59: 0 | BTX59: 0 | BTY59: 0 | BTZ59: 0 | BUA59: 0 | BUB59: 0 | BUC59: 0 | BUD59: 0 | BUE59: 0 | BUF59: 0 | BUG59: 0 | BUH59: 0 | BUI59: 0 | BUJ59: 0 | BUK59: 0 | BUL59: 0 | BUM59: 0 | BUN59: 0 | BUO59: 0 | BUP59: 0 | BUQ59: 0 | BUR59: 0 | BUS59: 0 | BUT59: 0 | BUU59: 0 | BUV59: 0 | BUW59: 0 | BUX59: 0 | BUY59: 0 | BUZ59: 0 | BVA59: 0 | BVB59: =BVB67 -> 0 | BVC59: 0 | BVD59: 0 | BVE59: 0 | BVF59: 0 | BVG59: 0 | BVH59: 0 | BVI59: 0 | BVJ59: 0 | BVK59: 0 | BVL59: 0 | BVM59: 0 | BVN59: 0 | BVO59: 0 | BVP59: 0 | BVQ59: 0 | BVR59: 0 | BVS59: 0 | BVT59: 0 | BVU59: 0 | BVV59: 0 | BVW59: 0 | BVX59: 0 | BVY59: 0 | BVZ59: 0 | BWA59: 0 | BWB59: 0 | BWC59: 0 | BWD59: 0 | BWE59: 0 | BWF59: 0 | BWG59: 0 | BWH59: 0 | BWI59: 0 | BWJ59: 0 | BWK59: 0 | BWL59: 0 | BWM59: 0 | BWN59: 0 | BWO59: 0 | BWP59: 0 | BWQ59: 0 | BWR59: 0 | BWS59: 0 | BWT59: 0 | BWU59: 0 | BWV59: 0 | BWW59: 0 | BWX59: 0 | BWY59: 0 | BWZ59: 0 | BXA59: 0 | BXB59: 0 | BXC59: 0 | BXD59: 0 | BXE59: 0 | BXF59: 0 | BXG59: 0 | BXH59: 0 | BXI59: 0 | BXJ59: 0 | BXK59: 0 | BXL59: 0 | BXM59: 0 | BXN59: =BXN67 -> 0 | BXO59: 0 | BXP59: 0 | BXQ59: 0 | BXR59: 0 | BXS59: 0 | BXT59: 0 | BXU59: 0 | BXV59: 0 | BXW59: 0 | BXX59: 0 | BXY59: 0 | BXZ59: 0 | BYA59: 0 | BYB59: 0 | BYC59: 0 | BYD59: 0 | BYE59: 0 | BYF59: 0 | BYG59: 0 | BYH59: 0 | BYI59: 0 | BYJ59: 0 | BYK59: 0 | BYL59: 0 | BYM59: 0 | BYN59: 0 | BYO59: 0 | BYP59: 0 | BYQ59: 0 | BYR59: 0 | BYS59: 0 | BYT59: 0 | BYU59: 0 | BYV59: 0 | BYW59: 0 | BYX59: 0 | BYY59: 0 | BYZ59: 0 | BZA59: 0 | BZB59: 0 | BZC59: 0 | BZD59: 0 | BZE59: 0 | BZF59: 0 | BZG59: 0 | BZH59: 0 | BZI59: 0 | BZJ59: 0 | BZK59: 0 | BZL59: 0 | BZM59: 0 | BZN59: 0 | BZO59: 0 | BZP59: 0 | BZQ59: 0 | BZR59: 0 | BZS59: 0 | BZT59: 0 | BZU59: 0 | BZV59: 0 | BZW59: 0 | BZX59: 0 | BZY59: 0 | BZZ59: =BZZ67 -> 0 | CAA59: 0 | CAB59: 0 | CAC59: 0 | CAD59: 0 | CAE59: 0 | CAF59: 0 | CAG59: 0 | CAH59: 0 | CAI59: 0 | CAJ59: 0 | CAK59: 0 | CAL59: 0 | CAM59: 0 | CAN59: 0 | CAO59: 0 | CAP59: 0 | CAQ59: 0 | CAR59: 0 | CAS59: 0 | CAT59: 0 | CAU59: 0 | CAV59: 0 | CAW59: 0 | CAX59: 0 | CAY59: 0 | CAZ59: 0 | CBA59: 0 | CBB59: 0 | CBC59: 0 | CBD59: 0 | CBE59: 0 | CBF59: 0 | CBG59: 0 | CBH59: 0 | CBI59: 0 | CBJ59: 0 | CBK59: 0 | CBL59: 0 | CBM59: 0 | CBN59: 0 | CBO59: 0 | CBP59: 0 | CBQ59: 0 | CBR59: 0 | CBS59: 0 | CBT59: 0 | CBU59: 0 | CBV59: 0 | CBW59: 0 | CBX59: 0 | CBY59: 0 | CBZ59: 0 | CCA59: 0 | CCB59: 0 | CCC59: 0 | CCD59: 0 | CCE59: 0 | CCF59: 0 | CCG59: 0 | CCH59: 0 | CCI59: 0 | CCJ59: 0 | CCK59: 0 | CCL59: =CCL67 -> 0 | CCM59: 0 | CCN59: 0 | CCO59: 0 | CCP59: 0 | CCQ59: 0 | CCR59: 0 | CCS59: 0 | CCT59: 0 | CCU59: 0 | CCV59: 0 | CCW59: 0 | CCX59: 0 | CCY59: 0 | CCZ59: 0 | CDA59: 0 | CDB59: 0 | CDC59: 0 | CDD59: 0 | CDE59: 0 | CDF59: 0 | CDG59: 0 | CDH59: 0 | CDI59: 0 | CDJ59: 0 | CDK59: 0 | CDL59: 0 | CDM59: 0 | CDN59: 0 | CDO59: 0 | CDP59: 0 | CDQ59: 0 | CDR59: 0 | CDS59: 0 | CDT59: 0 | CDU59: 0 | CDV59: 0 | CDW59: 0 | CDX59: 0 | CDY59: 0 | CDZ59: 0 | CEA59: 0 | CEB59: 0 | CEC59: 0 | CED59: 0 | CEE59: 0 | CEF59: 0 | CEG59: 0 | CEH59: 0 | CEI59: 0 | CEJ59: 0 | CEK59: 0 | CEL59: 0 | CEM59: 0 | CEN59: 0 | CEO59: 0 | CEP59: 0 | CEQ59: 0 | CER59: 0 | CES59: 0 | CET59: 0 | CEU59: 0 | CEV59: 0 | CEW59: 0 | CEX59: =CEX67 -> 0 | CEY59: 0 | CEZ59: 0 | CFA59: 0 | CFB59: 0 | CFC59: 0 | CFD59: 0 | CFE59: 0 | CFF59: 0 | CFG59: 0 | CFH59: 0 | CFI59: 0 | CFJ59: 0 | CFK59: 0 | CFL59: 0 | CFM59: 0 | CFN59: 0 | CFO59: 0 | CFP59: 0 | CFQ59: 0 | CFR59: 0 | CFS59: 0 | CFT59: 0 | CFU59: 0 | CFV59: 0 | CFW59: 0 | CFX59: 0 | CFY59: 0 | CFZ59: 0 | CGA59: 0 | CGB59: 0 | CGC59: 0 | CGD59: 0 | CGE59: 0 | CGF59: 0 | CGG59: 0 | CGH59: 0 | CGI59: 0 | CGJ59: 0 | CGK59: 0 | CGL59: 0 | CGM59: 0 | CGN59: 0 | CGO59: 0 | CGP59: 0 | CGQ59: 0 | CGR59: 0 | CGS59: 0 | CGT59: 0 | CGU59: 0 | CGV59: 0 | CGW59: 0 | CGX59: 0 | CGY59: 0 | CGZ59: 0 | CHA59: 0 | CHB59: 0 | CHC59: 0 | CHD59: 0 | CHE59: 0 | CHF59: 0 | CHG59: 0 | CHH59: 0 | CHI59: 0 | CHJ59: =CHJ67 -> 0 | CHK59: 0 | CHL59: 0 | CHM59: 0 | CHN59: 0 | CHO59: 0 | CHP59: 0 | CHQ59: 0 | CHR59: 0 | CHS59: 0 | CHT59: 0 | CHU59: 0 | CHV59: 0 | CHW59: 0 | CHX59: 0 | CHY59: 0 | CHZ59: 0 | CIA59: 0 | CIB59: 0 | CIC59: 0 | CID59: 0 | CIE59: 0 | CIF59: 0 | CIG59: 0 | CIH59: 0 | CII59: 0 | CIJ59: 0 | CIK59: 0 | CIL59: 0 | CIM59: 0 | CIN59: 0 | CIO59: 0 | CIP59: 0 | CIQ59: 0 | CIR59: 0 | CIS59: 0 | CIT59: 0 | CIU59: 0 | CIV59: 0 | CIW59: 0 | CIX59: 0 | CIY59: 0 | CIZ59: 0 | CJA59: 0 | CJB59: 0 | CJC59: 0 | CJD59: 0 | CJE59: 0 | CJF59: 0 | CJG59: 0 | CJH59: 0 | CJI59: 0 | CJJ59: 0 | CJK59: 0 | CJL59: 0 | CJM59: 0 | CJN59: 0 | CJO59: 0 | CJP59: 0 | CJQ59: 0 | CJR59: 0 | CJS59: 0 | CJT59: 0 | CJU59: 0 | CJV59: =CJV67 -> 0 | CJW59: 0 | CJX59: 0 | CJY59: 0 | CJZ59: 0 | CKA59: 0 | CKB59: 0 | CKC59: 0 | CKD59: 0 | CKE59: 0 | CKF59: 0 | CKG59: 0 | CKH59: 0 | CKI59: 0 | CKJ59: 0 | CKK59: 0 | CKL59: 0 | CKM59: 0 | CKN59: 0 | CKO59: 0 | CKP59: 0 | CKQ59: 0 | CKR59: 0 | CKS59: 0 | CKT59: 0 | CKU59: 0 | CKV59: 0 | CKW59: 0 | CKX59: 0 | CKY59: 0 | CKZ59: 0 | CLA59: 0 | CLB59: 0 | CLC59: 0 | CLD59: 0 | CLE59: 0 | CLF59: 0 | CLG59: 0 | CLH59: 0 | CLI59: 0 | CLJ59: 0 | CLK59: 0 | CLL59: 0 | CLM59: 0 | CLN59: 0 | CLO59: 0 | CLP59: 0 | CLQ59: 0 | CLR59: 0 | CLS59: 0 | CLT59: 0 | CLU59: 0 | CLV59: 0 | CLW59: 0 | CLX59: 0 | CLY59: 0 | CLZ59: 0 | CMA59: 0 | CMB59: 0 | CMC59: 0 | CMD59: 0 | CME59: 0 | CMF59: 0 | CMG59: 0 | CMH59: =CMH67 -> 0 | CMI59: 0 | CMJ59: 0 | CMK59: 0 | CML59: 0 | CMM59: 0 | CMN59: 0 | CMO59: 0 | CMP59: 0 | CMQ59: 0 | CMR59: 0 | CMS59: 0 | CMT59: 0 | CMU59: 0 | CMV59: 0 | CMW59: 0 | CMX59: 0 | CMY59: 0 | CMZ59: 0 | CNA59: 0 | CNB59: 0 | CNC59: 0 | CND59: 0 | CNE59: 0 | CNF59: 0 | CNG59: 0 | CNH59: 0 | CNI59: 0 | CNJ59: 0 | CNK59: 0 | CNL59: 0 | CNM59: 0 | CNN59: 0 | CNO59: 0 | CNP59: 0 | CNQ59: 0 | CNR59: 0 | CNS59: 0 | CNT59: 0 | CNU59: 0 | CNV59: 0 | CNW59: 0 | CNX59: 0 | CNY59: 0 | CNZ59: 0 | COA59: 0 | COB59: 0 | COC59: 0 | COD59: 0 | COE59: 0 | COF59: 0 | COG59: 0 | COH59: 0 | COI59: 0 | COJ59: 0 | COK59: 0 | COL59: 0 | COM59: 0 | CON59: 0 | COO59: 0 | COP59: 0 | COQ59: 0 | COR59: 0 | COS59: 0 | COT59: =COT67 -> 0 | COU59: 0 | COV59: 0 | COW59: 0 | COX59: 0 | COY59: 0 | COZ59: 0 | CPA59: 0 | CPB59: 0 | CPC59: 0 | CPD59: 0 | CPE59: 0 | CPF59: 0 | CPG59: 0 | CPH59: 0 | CPI59: 0 | CPJ59: 0 | CPK59: 0 | CPL59: 0 | CPM59: 0 | CPN59: 0 | CPO59: 0 | CPP59: 0 | CPQ59: 0 | CPR59: 0 | CPS59: 0 | CPT59: 0 | CPU59: 0 | CPV59: 0 | CPW59: 0 | CPX59: 0 | CPY59: 0 | CPZ59: 0 | CQA59: 0 | CQB59: 0 | CQC59: 0 | CQD59: 0 | CQE59: 0 | CQF59: 0 | CQG59: 0 | CQH59: 0 | CQI59: 0 | CQJ59: 0 | CQK59: 0 | CQL59: 0 | CQM59: 0 | CQN59: 0 | CQO59: 0 | CQP59: 0 | CQQ59: 0 | CQR59: 0 | CQS59: 0 | CQT59: 0 | CQU59: 0 | CQV59: 0 | CQW59: 0 | CQX59: 0 | CQY59: 0 | CQZ59: 0 | CRA59: 0 | CRB59: 0 | CRC59: 0 | CRD59: 0 | CRE59: 0 | CRF59: =CRF67 -> 0 | CRG59: 0 | CRH59: 0 | CRI59: 0 | CRJ59: 0 | CRK59: 0 | CRL59: 0 | CRM59: 0 | CRN59: 0 | CRO59: 0 | CRP59: 0 | CRQ59: 0 | CRR59: 0 | CRS59: 0 | CRT59: 0 | CRU59: 0 | CRV59: 0 | CRW59: 0 | CRX59: 0 | CRY59: 0 | CRZ59: 0 | CSA59: 0 | CSB59: 0 | CSC59: 0 | CSD59: 0 | CSE59: 0 | CSF59: 0 | CSG59: 0 | CSH59: 0 | CSI59: 0 | CSJ59: 0 | CSK59: 0 | CSL59: 0 | CSM59: 0 | CSN59: 0 | CSO59: 0 | CSP59: 0 | CSQ59: 0 | CSR59: 0 | CSS59: 0 | CST59: 0 | CSU59: 0 | CSV59: 0 | CSW59: 0 | CSX59: 0 | CSY59: 0 | CSZ59: 0 | CTA59: 0 | CTB59: 0 | CTC59: 0 | CTD59: 0 | CTE59: 0 | CTF59: 0 | CTG59: 0 | CTH59: 0 | CTI59: 0 | CTJ59: 0 | CTK59: 0 | CTL59: 0 | CTM59: 0 | CTN59: 0 | CTO59: 0 | CTP59: 0 | CTQ59: 0 | CTR59: =CTR67 -> 0 | CTS59: 0 | CTT59: 0 | CTU59: 0 | CTV59: 0 | CTW59: 0 | CTX59: 0 | CTY59: 0 | CTZ59: 0 | CUA59: 0 | CUB59: 0 | CUC59: 0 | CUD59: 0 | CUE59: 0 | CUF59: 0 | CUG59: 0 | CUH59: 0 | CUI59: 0 | CUJ59: 0 | CUK59: 0 | CUL59: 0 | CUM59: 0 | CUN59: 0 | CUO59: 0 | CUP59: 0 | CUQ59: 0 | CUR59: 0 | CUS59: 0 | CUT59: 0 | CUU59: 0 | CUV59: 0 | CUW59: 0 | CUX59: 0 | CUY59: 0 | CUZ59: 0 | CVA59: 0 | CVB59: 0 | CVC59: 0 | CVD59: 0 | CVE59: 0 | CVF59: 0 | CVG59: 0 | CVH59: 0 | CVI59: 0 | CVJ59: 0 | CVK59: 0 | CVL59: 0 | CVM59: 0 | CVN59: 0 | CVO59: 0 | CVP59: 0 | CVQ59: 0 | CVR59: 0 | CVS59: 0 | CVT59: 0 | CVU59: 0 | CVV59: 0 | CVW59: 0 | CVX59: 0 | CVY59: 0 | CVZ59: 0 | CWA59: 0 | CWB59: 0 | CWC59: 0 | CWD59: =CWD67 -> 0 | CWE59: 0 | CWF59: 0 | CWG59: 0 | CWH59: 0 | CWI59: 0 | CWJ59: 0 | CWK59: 0 | CWL59: 0 | CWM59: 0 | CWN59: 0 | CWO59: 0 | CWP59: 0 | CWQ59: 0 | CWR59: 0 | CWS59: 0 | CWT59: 0 | CWU59: 0 | CWV59: 0 | CWW59: 0 | CWX59: 0 | CWY59: 0 | CWZ59: 0 | CXA59: 0 | CXB59: 0 | CXC59: 0 | CXD59: 0 | CXE59: 0 | CXF59: 0 | CXG59: 0 | CXH59: 0 | CXI59: 0 | CXJ59: 0 | CXK59: 0 | CXL59: 0 | CXM59: 0 | CXN59: 0 | CXO59: 0 | CXP59: 0 | CXQ59: 0 | CXR59: 0 | CXS59: 0 | CXT59: 0 | CXU59: 0 | CXV59: 0 | CXW59: 0 | CXX59: 0 | CXY59: 0 | CXZ59: 0 | CYA59: 0 | CYB59: 0 | CYC59: 0 | CYD59: 0 | CYE59: 0 | CYF59: 0 | CYG59: 0 | CYH59: 0 | CYI59: 0 | CYJ59: 0 | CYK59: 0 | CYL59: 0 | CYM59: 0 | CYN59: 0 | CYO59: 0 | CYP59: =CYP67 -> 0 | CYQ59: 0 | CYR59: 0 | CYS59: 0 | CYT59: 0 | CYU59: 0 | CYV59: 0 | CYW59: 0 | CYX59: 0 | CYY59: 0 | CYZ59: 0 | CZA59: 0 | CZB59: 0 | CZC59: 0 | CZD59: 0 | CZE59: 0 | CZF59: 0 | CZG59: 0 | CZH59: 0 | CZI59: 0 | CZJ59: 0 | CZK59: 0 | CZL59: 0 | CZM59: 0 | CZN59: 0 | CZO59: 0 | CZP59: 0 | CZQ59: 0 | CZR59: 0 | CZS59: 0 | CZT59: 0 | CZU59: 0 | CZV59: 0 | CZW59: 0 | CZX59: 0 | CZY59: 0 | CZZ59: 0 | DAA59: 0 | DAB59: 0 | DAC59: 0 | DAD59: 0 | DAE59: 0 | DAF59: 0 | DAG59: 0 | DAH59: 0 | DAI59: 0 | DAJ59: 0 | DAK59: 0 | DAL59: 0 | DAM59: 0 | DAN59: 0 | DAO59: 0 | DAP59: 0 | DAQ59: 0 | DAR59: 0 | DAS59: 0 | DAT59: 0 | DAU59: 0 | DAV59: 0 | DAW59: 0 | DAX59: 0 | DAY59: 0 | DAZ59: 0 | DBA59: 0 | DBB59: =DBB67 -> 0 | DBC59: 0 | DBD59: 0 | DBE59: 0 | DBF59: 0 | DBG59: 0 | DBH59: 0 | DBI59: 0 | DBJ59: 0 | DBK59: 0 | DBL59: 0 | DBM59: 0 | DBN59: 0 | DBO59: 0 | DBP59: 0 | DBQ59: 0 | DBR59: 0 | DBS59: 0 | DBT59: 0 | DBU59: 0 | DBV59: 0 | DBW59: 0 | DBX59: 0 | DBY59: 0 | DBZ59: 0 | DCA59: 0 | DCB59: 0 | DCC59: 0 | DCD59: 0 | DCE59: 0 | DCF59: 0 | DCG59: 0 | DCH59: 0 | DCI59: 0 | DCJ59: 0 | DCK59: 0 | DCL59: 0 | DCM59: 0 | DCN59: 0 | DCO59: 0 | DCP59: 0 | DCQ59: 0 | DCR59: 0 | DCS59: 0 | DCT59: 0 | DCU59: 0 | DCV59: 0 | DCW59: 0 | DCX59: 0 | DCY59: 0 | DCZ59: 0 | DDA59: 0 | DDB59: 0 | DDC59: 0 | DDD59: 0 | DDE59: 0 | DDF59: 0 | DDG59: 0 | DDH59: 0 | DDI59: 0 | DDJ59: 0 | DDK59: 0 | DDL59: 0 | DDM59: 0 | DDN59: =DDN67 -> 0 | DDO59: 0 | DDP59: 0 | DDQ59: 0 | DDR59: 0 | DDS59: 0 | DDT59: 0 | DDU59: 0 | DDV59: 0 | DDW59: 0 | DDX59: 0 | DDY59: 0 | DDZ59: 0 | DEA59: 0 | DEB59: 0 | DEC59: 0 | DED59: 0 | DEE59: 0 | DEF59: 0 | DEG59: 0 | DEH59: 0 | DEI59: 0 | DEJ59: 0 | DEK59: 0 | DEL59: 0 | DEM59: 0 | DEN59: 0 | DEO59: 0 | DEP59: 0 | DEQ59: 0 | DER59: 0 | DES59: 0 | DET59: 0 | DEU59: 0 | DEV59: 0 | DEW59: 0 | DEX59: 0 | DEY59: 0 | DEZ59: 0 | DFA59: 0 | DFB59: 0 | DFC59: 0 | DFD59: 0 | DFE59: 0 | DFF59: 0 | DFG59: 0 | DFH59: 0 | DFI59: 0 | DFJ59: 0 | DFK59: 0 | DFL59: 0 | DFM59: 0 | DFN59: 0 | DFO59: 0 | DFP59: 0 | DFQ59: 0 | DFR59: 0 | DFS59: 0 | DFT59: 0 | DFU59: 0 | DFV59: 0 | DFW59: 0 | DFX59: 0 | DFY59: 0 | DFZ59: =DFZ67 -> 0 | DGA59: 0 | DGB59: 0 | DGC59: 0 | DGD59: 0 | DGE59: 0 | DGF59: 0 | DGG59: 0 | DGH59: 0 | DGI59: 0 | DGJ59: 0 | DGK59: 0 | DGL59: 0 | DGM59: 0 | DGN59: 0 | DGO59: 0 | DGP59: 0 | DGQ59: 0 | DGR59: 0 | DGS59: 0 | DGT59: 0 | DGU59: 0 | DGV59: 0 | DGW59: 0 | DGX59: 0 | DGY59: 0 | DGZ59: 0 | DHA59: 0 | DHB59: 0 | DHC59: 0 | DHD59: 0 | DHE59: 0 | DHF59: 0 | DHG59: 0 | DHH59: 0 | DHI59: 0 | DHJ59: 0 | DHK59: 0 | DHL59: 0 | DHM59: 0 | DHN59: 0 | DHO59: 0 | DHP59: 0 | DHQ59: 0 | DHR59: 0 | DHS59: 0 | DHT59: 0 | DHU59: 0 | DHV59: 0 | DHW59: 0 | DHX59: 0 | DHY59: 0 | DHZ59: 0 | DIA59: 0 | DIB59: 0 | DIC59: 0 | DID59: 0 | DIE59: 0 | DIF59: 0 | DIG59: 0 | DIH59: 0 | DII59: 0 | DIJ59: 0 | DIK59: 0 | DIL59: =DIL67 -> 0 | DIM59: 0 | DIN59: 0 | DIO59: 0 | DIP59: 0 | DIQ59: 0 | DIR59: 0 | DIS59: 0 | DIT59: 0 | DIU59: 0 | DIV59: 0 | DIW59: 0 | DIX59: 0 | DIY59: 0 | DIZ59: 0 | DJA59: 0 | DJB59: 0 | DJC59: 0 | DJD59: 0 | DJE59: 0 | DJF59: 0 | DJG59: 0 | DJH59: 0 | DJI59: 0 | DJJ59: 0 | DJK59: 0 | DJL59: 0 | DJM59: 0 | DJN59: 0 | DJO59: 0 | DJP59: 0 | DJQ59: 0 | DJR59: 0 | DJS59: 0 | DJT59: 0 | DJU59: 0 | DJV59: 0 | DJW59: 0 | DJX59: 0 | DJY59: 0 | DJZ59: 0 | DKA59: 0 | DKB59: 0 | DKC59: 0 | DKD59: 0 | DKE59: 0 | DKF59: 0 | DKG59: 0 | DKH59: 0 | DKI59: 0 | DKJ59: 0 | DKK59: 0 | DKL59: 0 | DKM59: 0 | DKN59: 0 | DKO59: 0 | DKP59: 0 | DKQ59: 0 | DKR59: 0 | DKS59: 0 | DKT59: 0 | DKU59: 0 | DKV59: 0 | DKW59: 0 | DKX59: =DKX67 -> 0 | DKY59: 0 | DKZ59: 0 | DLA59: 0 | DLB59: 0 | DLC59: 0 | DLD59: 0 | DLE59: 0 | DLF59: 0 | DLG59: 0 | DLH59: 0 | DLI59: 0 | DLJ59: 0 | DLK59: 0 | DLL59: 0 | DLM59: 0 | DLN59: 0 | DLO59: 0 | DLP59: 0 | DLQ59: 0 | DLR59: 0 | DLS59: 0 | DLT59: 0 | DLU59: 0 | DLV59: 0 | DLW59: 0 | DLX59: 0 | DLY59: 0 | DLZ59: 0 | DMA59: 0 | DMB59: 0 | DMC59: 0 | DMD59: 0 | DME59: 0 | DMF59: 0 | DMG59: 0 | DMH59: 0 | DMI59: 0 | DMJ59: 0 | DMK59: 0 | DML59: 0 | DMM59: 0 | DMN59: 0 | DMO59: 0 | DMP59: 0 | DMQ59: 0 | DMR59: 0 | DMS59: 0 | DMT59: 0 | DMU59: 0 | DMV59: 0 | DMW59: 0 | DMX59: 0 | DMY59: 0 | DMZ59: 0 | DNA59: 0 | DNB59: 0 | DNC59: 0 | DND59: 0 | DNE59: 0 | DNF59: 0 | DNG59: 0 | DNH59: 0 | DNI59: 0 | DNJ59: =DNJ67 -> 0 | DNK59: 0 | DNL59: 0 | DNM59: 0 | DNN59: 0 | DNO59: 0 | DNP59: 0 | DNQ59: 0 | DNR59: 0 | DNS59: 0 | DNT59: 0 | DNU59: 0 | DNV59: 0 | DNW59: 0 | DNX59: 0 | DNY59: 0 | DNZ59: 0 | DOA59: 0 | DOB59: 0 | DOC59: 0 | DOD59: 0 | DOE59: 0 | DOF59: 0 | DOG59: 0 | DOH59: 0 | DOI59: 0 | DOJ59: 0 | DOK59: 0 | DOL59: 0 | DOM59: 0 | DON59: 0 | DOO59: 0 | DOP59: 0 | DOQ59: 0 | DOR59: 0 | DOS59: 0 | DOT59: 0 | DOU59: 0 | DOV59: 0 | DOW59: 0 | DOX59: 0 | DOY59: 0 | DOZ59: 0 | DPA59: 0 | DPB59: 0 | DPC59: 0 | DPD59: 0 | DPE59: 0 | DPF59: 0 | DPG59: 0 | DPH59: 0 | DPI59: 0 | DPJ59: 0 | DPK59: 0 | DPL59: 0 | DPM59: 0 | DPN59: 0 | DPO59: 0 | DPP59: 0 | DPQ59: 0 | DPR59: 0 | DPS59: 0 | DPT59: 0 | DPU59: 0 | DPV59: =DPV67 -> 0 | DPW59: 0 | DPX59: 0 | DPY59: 0 | DPZ59: 0 | DQA59: 0 | DQB59: 0 | DQC59: 0 | DQD59: 0 | DQE59: 0 | DQF59: 0 | DQG59: 0 | DQH59: 0 | DQI59: 0 | DQJ59: 0 | DQK59: 0 | DQL59: 0 | DQM59: 0 | DQN59: 0 | DQO59: 0 | DQP59: 0 | DQQ59: 0 | DQR59: 0 | DQS59: 0 | DQT59: 0 | DQU59: 0 | DQV59: 0 | DQW59: 0 | DQX59: 0 | DQY59: 0 | DQZ59: 0 | DRA59: 0 | DRB59: 0 | DRC59: 0 | DRD59: 0 | DRE59: 0 | DRF59: 0 | DRG59: 0 | DRH59: 0 | DRI59: 0 | DRJ59: 0 | DRK59: 0 | DRL59: 0 | DRM59: 0 | DRN59: 0 | DRO59: 0 | DRP59: 0 | DRQ59: 0 | DRR59: 0 | DRS59: 0 | DRT59: 0 | DRU59: 0 | DRV59: 0 | DRW59: 0 | DRX59: 0 | DRY59: 0 | DRZ59: 0 | DSA59: 0 | DSB59: 0 | DSC59: 0 | DSD59: 0 | DSE59: 0 | DSF59: 0 | DSG59: 0 | DSH59: =DSH67 -> 0 | DSI59: 0 | DSJ59: 0 | DSK59: 0 | DSL59: 0 | DSM59: 0 | DSN59: 0 | DSO59: 0 | DSP59: 0 | DSQ59: 0 | DSR59: 0 | DSS59: 0 | DST59: 0 | DSU59: 0 | DSV59: 0 | DSW59: 0 | DSX59: 0 | DSY59: 0 | DSZ59: 0 | DTA59: 0 | DTB59: 0 | DTC59: 0 | DTD59: 0 | DTE59: 0 | DTF59: 0 | DTG59: 0 | DTH59: 0 | DTI59: 0 | DTJ59: 0 | DTK59: 0 | DTL59: 0 | DTM59: 0 | DTN59: 0 | DTO59: 0 | DTP59: 0 | DTQ59: 0 | DTR59: 0 | DTS59: 0 | DTT59: 0 | DTU59: 0 | DTV59: 0 | DTW59: 0 | DTX59: 0 | DTY59: 0 | DTZ59: 0 | DUA59: 0 | DUB59: 0 | DUC59: 0 | DUD59: 0 | DUE59: 0 | DUF59: 0 | DUG59: 0 | DUH59: 0 | DUI59: 0 | DUJ59: 0 | DUK59: 0 | DUL59: 0 | DUM59: 0 | DUN59: 0 | DUO59: 0 | DUP59: 0 | DUQ59: 0 | DUR59: 0 | DUS59: 0 | DUT59: =DUT67 -> 0 | DUU59: 0 | DUV59: 0 | DUW59: 0 | DUX59: 0 | DUY59: 0 | DUZ59: 0 | DVA59: 0 | DVB59: 0 | DVC59: 0 | DVD59: 0 | DVE59: 0 | DVF59: 0 | DVG59: 0 | DVH59: 0 | DVI59: 0 | DVJ59: 0 | DVK59: 0 | DVL59: 0 | DVM59: 0 | DVN59: 0 | DVO59: 0 | DVP59: 0 | DVQ59: 0 | DVR59: 0 | DVS59: 0 | DVT59: 0 | DVU59: 0 | DVV59: 0 | DVW59: 0 | DVX59: 0 | DVY59: 0 | DVZ59: 0 | DWA59: 0 | DWB59: 0 | DWC59: 0 | DWD59: 0 | DWE59: 0 | DWF59: 0 | DWG59: 0 | DWH59: 0 | DWI59: 0 | DWJ59: 0 | DWK59: 0 | DWL59: 0 | DWM59: 0 | DWN59: 0 | DWO59: 0 | DWP59: 0 | DWQ59: 0 | DWR59: 0 | DWS59: 0 | DWT59: 0 | DWU59: 0 | DWV59: 0 | DWW59: 0 | DWX59: 0 | DWY59: 0 | DWZ59: 0 | DXA59: 0 | DXB59: 0 | DXC59: 0 | DXD59: 0 | DXE59: 0 | DXF59: =DXF67 -> 0 | DXG59: 0 | DXH59: 0 | DXI59: 0 | DXJ59: 0 | DXK59: 0 | DXL59: 0 | DXM59: 0 | DXN59: 0 | DXO59: 0 | DXP59: 0 | DXQ59: 0 | DXR59: 0 | DXS59: 0 | DXT59: 0 | DXU59: 0 | DXV59: 0 | DXW59: 0 | DXX59: 0 | DXY59: 0 | DXZ59: 0 | DYA59: 0 | DYB59: 0 | DYC59: 0 | DYD59: 0 | DYE59: 0 | DYF59: 0 | DYG59: 0 | DYH59: 0 | DYI59: 0 | DYJ59: 0 | DYK59: 0 | DYL59: 0 | DYM59: 0 | DYN59: 0 | DYO59: 0 | DYP59: 0 | DYQ59: 0 | DYR59: 0 | DYS59: 0 | DYT59: 0 | DYU59: 0 | DYV59: 0 | DYW59: 0 | DYX59: 0 | DYY59: 0 | DYZ59: 0 | DZA59: 0 | DZB59: 0 | DZC59: 0 | DZD59: 0 | DZE59: 0 | DZF59: 0 | DZG59: 0 | DZH59: 0 | DZI59: 0 | DZJ59: 0 | DZK59: 0 | DZL59: 0 | DZM59: 0 | DZN59: 0 | DZO59: 0 | DZP59: 0 | DZQ59: 0 | DZR59: =DZR67 -> 0 | DZS59: 0 | DZT59: 0 | DZU59: 0 | DZV59: 0 | DZW59: 0 | DZX59: 0 | DZY59: 0 | DZZ59: 0 | EAA59: 0 | EAB59: 0 | EAC59: 0 | EAD59: 0 | EAE59: 0 | EAF59: 0 | EAG59: 0 | EAH59: 0 | EAI59: 0 | EAJ59: 0 | EAK59: 0 | EAL59: 0 | EAM59: 0 | EAN59: 0 | EAO59: 0 | EAP59: 0 | EAQ59: 0 | EAR59: 0 | EAS59: 0 | EAT59: 0 | EAU59: 0 | EAV59: 0 | EAW59: 0 | EAX59: 0 | EAY59: 0 | EAZ59: 0 | EBA59: 0 | EBB59: 0 | EBC59: 0 | EBD59: 0 | EBE59: 0 | EBF59: 0 | EBG59: 0 | EBH59: 0 | EBI59: 0 | EBJ59: 0 | EBK59: 0 | EBL59: 0 | EBM59: 0 | EBN59: 0 | EBO59: 0 | EBP59: 0 | EBQ59: 0 | EBR59: 0 | EBS59: 0 | EBT59: 0 | EBU59: 0 | EBV59: 0 | EBW59: 0 | EBX59: 0 | EBY59: 0 | EBZ59: 0 | ECA59: 0 | ECB59: 0 | ECC59: 0 | ECD59: =ECD67 -> 0 | ECE59: 0 | ECF59: 0 | ECG59: 0 | ECH59: 0 | ECI59: 0 | ECJ59: 0 | ECK59: 0 | ECL59: 0 | ECM59: 0 | ECN59: 0 | ECO59: 0 | ECP59: 0 | ECQ59: 0 | ECR59: 0 | ECS59: 0 | ECT59: 0 | ECU59: 0 | ECV59: 0 | ECW59: 0 | ECX59: 0 | ECY59: 0 | ECZ59: 0 | EDA59: 0 | EDB59: 0 | EDC59: 0 | EDD59: 0 | EDE59: 0 | EDF59: 0 | EDG59: 0 | EDH59: 0 | EDI59: 0 | EDJ59: 0 | EDK59: 0 | EDL59: 0 | EDM59: 0 | EDN59: 0 | EDO59: 0 | EDP59: 0 | EDQ59: 0 | EDR59: 0 | EDS59: 0 | EDT59: 0 | EDU59: 0 | EDV59: 0 | EDW59: 0 | EDX59: 0 | EDY59: 0 | EDZ59: 0 | EEA59: 0 | EEB59: 0 | EEC59: 0 | EED59: 0 | EEE59: 0 | EEF59: 0 | EEG59: 0 | EEH59: 0 | EEI59: 0 | EEJ59: 0 | EEK59: 0 | EEL59: 0 | EEM59: 0 | EEN59: 0 | EEO59: 0 | EEP59: =EEP67 -> 0 | EEQ59: 0 | EER59: 0 | EES59: 0 | EET59: 0 | EEU59: 0 | EEV59: 0 | EEW59: 0 | EEX59: 0 | EEY59: 0 | EEZ59: 0 | EFA59: 0 | EFB59: 0 | EFC59: 0 | EFD59: 0 | EFE59: 0 | EFF59: 0 | EFG59: 0 | EFH59: 0 | EFI59: 0 | EFJ59: 0 | EFK59: 0 | EFL59: 0 | EFM59: 0 | EFN59: 0 | EFO59: 0 | EFP59: 0 | EFQ59: 0 | EFR59: 0 | EFS59: 0 | EFT59: 0 | EFU59: 0 | EFV59: 0 | EFW59: 0 | EFX59: 0 | EFY59: 0 | EFZ59: 0 | EGA59: 0 | EGB59: 0 | EGC59: 0 | EGD59: 0 | EGE59: 0 | EGF59: 0 | EGG59: 0 | EGH59: 0 | EGI59: 0 | EGJ59: 0 | EGK59: 0 | EGL59: 0 | EGM59: 0 | EGN59: 0 | EGO59: 0 | EGP59: 0 | EGQ59: 0 | EGR59: 0 | EGS59: 0 | EGT59: 0 | EGU59: 0 | EGV59: 0 | EGW59: 0 | EGX59: 0 | EGY59: 0 | EGZ59: 0 | EHA59: 0 | EHB59: =EHB67 -> 0 | EHC59: 0 | EHD59: 0 | EHE59: 0 | EHF59: 0 | EHG59: 0 | EHH59: 0 | EHI59: 0 | EHJ59: 0 | EHK59: 0 | EHL59: 0 | EHM59: 0 | EHN59: 0 | EHO59: 0 | EHP59: 0 | EHQ59: 0 | EHR59: 0 | EHS59: 0 | EHT59: 0 | EHU59: 0 | EHV59: 0 | EHW59: 0 | EHX59: 0 | EHY59: 0 | EHZ59: 0 | EIA59: 0 | EIB59: 0 | EIC59: 0 | EID59: 0 | EIE59: 0 | EIF59: 0 | EIG59: 0 | EIH59: 0 | EII59: 0 | EIJ59: 0 | EIK59: 0 | EIL59: 0 | EIM59: 0 | EIN59: 0 | EIO59: 0 | EIP59: 0 | EIQ59: 0 | EIR59: 0 | EIS59: 0 | EIT59: 0 | EIU59: 0 | EIV59: 0 | EIW59: 0 | EIX59: 0 | EIY59: 0 | EIZ59: 0 | EJA59: 0 | EJB59: 0 | EJC59: 0 | EJD59: 0 | EJE59: 0 | EJF59: 0 | EJG59: 0 | EJH59: 0 | EJI59: 0 | EJJ59: 0 | EJK59: 0 | EJL59: 0 | EJM59: 0 | EJN59: =EJN67 -> 0 | EJO59: 0 | EJP59: 0 | EJQ59: 0 | EJR59: 0 | EJS59: 0 | EJT59: 0 | EJU59: 0 | EJV59: 0 | EJW59: 0 | EJX59: 0 | EJY59: 0 | EJZ59: 0 | EKA59: 0 | EKB59: 0 | EKC59: 0 | EKD59: 0 | EKE59: 0 | EKF59: 0 | EKG59: 0 | EKH59: 0 | EKI59: 0 | EKJ59: 0 | EKK59: 0 | EKL59: 0 | EKM59: 0 | EKN59: 0 | EKO59: 0 | EKP59: 0 | EKQ59: 0 | EKR59: 0 | EKS59: 0 | EKT59: 0 | EKU59: 0 | EKV59: 0 | EKW59: 0 | EKX59: 0 | EKY59: 0 | EKZ59: 0 | ELA59: 0 | ELB59: 0 | ELC59: 0 | ELD59: 0 | ELE59: 0 | ELF59: 0 | ELG59: 0 | ELH59: 0 | ELI59: 0 | ELJ59: 0 | ELK59: 0 | ELL59: 0 | ELM59: 0 | ELN59: 0 | ELO59: 0 | ELP59: 0 | ELQ59: 0 | ELR59: 0 | ELS59: 0 | ELT59: 0 | ELU59: 0 | ELV59: 0 | ELW59: 0 | ELX59: 0 | ELY59: 0 | ELZ59: =ELZ67 -> 0 | EMA59: 0 | EMB59: 0 | EMC59: 0 | EMD59: 0 | EME59: 0 | EMF59: 0 | EMG59: 0 | EMH59: 0 | EMI59: 0 | EMJ59: 0 | EMK59: 0 | EML59: 0 | EMM59: 0 | EMN59: 0 | EMO59: 0 | EMP59: 0 | EMQ59: 0 | EMR59: 0 | EMS59: 0 | EMT59: 0 | EMU59: 0 | EMV59: 0 | EMW59: 0 | EMX59: 0 | EMY59: 0 | EMZ59: 0 | ENA59: 0 | ENB59: 0 | ENC59: 0 | END59: 0 | ENE59: 0 | ENF59: 0 | ENG59: 0 | ENH59: 0 | ENI59: 0 | ENJ59: 0 | ENK59: 0 | ENL59: 0 | ENM59: 0 | ENN59: 0 | ENO59: 0 | ENP59: 0 | ENQ59: 0 | ENR59: 0 | ENS59: 0 | ENT59: 0 | ENU59: 0 | ENV59: 0 | ENW59: 0 | ENX59: 0 | ENY59: 0 | ENZ59: 0 | EOA59: 0 | EOB59: 0 | EOC59: 0 | EOD59: 0 | EOE59: 0 | EOF59: 0 | EOG59: 0 | EOH59: 0 | EOI59: 0 | EOJ59: 0 | EOK59: 0 | EOL59: =EOL67 -> 0 | EOM59: 0 | EON59: 0 | EOO59: 0 | EOP59: 0 | EOQ59: 0 | EOR59: 0 | EOS59: 0 | EOT59: 0 | EOU59: 0 | EOV59: 0 | EOW59: 0 | EOX59: 0 | EOY59: 0 | EOZ59: 0 | EPA59: 0 | EPB59: 0 | EPC59: 0 | EPD59: 0 | EPE59: 0 | EPF59: 0 | EPG59: 0 | EPH59: 0 | EPI59: 0 | EPJ59: 0 | EPK59: 0 | EPL59: 0 | EPM59: 0 | EPN59: 0 | EPO59: 0 | EPP59: 0 | EPQ59: 0 | EPR59: 0 | EPS59: 0 | EPT59: 0 | EPU59: 0 | EPV59: 0 | EPW59: 0 | EPX59: 0 | EPY59: 0 | EPZ59: 0 | EQA59: 0 | EQB59: 0 | EQC59: 0 | EQD59: 0 | EQE59: 0 | EQF59: 0 | EQG59: 0 | EQH59: 0 | EQI59: 0 | EQJ59: 0 | EQK59: 0 | EQL59: 0 | EQM59: 0 | EQN59: 0 | EQO59: 0 | EQP59: 0 | EQQ59: 0 | EQR59: 0 | EQS59: 0 | EQT59: 0 | EQU59: 0 | EQV59: 0 | EQW59: 0 | EQX59: =EQX67 -> 0 | EQY59: 0 | EQZ59: 0 | ERA59: 0 | ERB59: 0 | ERC59: 0 | ERD59: 0 | ERE59: 0 | ERF59: 0 | ERG59: 0 | ERH59: 0 | ERI59: 0 | ERJ59: 0 | ERK59: 0 | ERL59: 0 | ERM59: 0 | ERN59: 0 | ERO59: 0 | ERP59: 0 | ERQ59: 0 | ERR59: 0 | ERS59: 0 | ERT59: 0 | ERU59: 0 | ERV59: 0 | ERW59: 0 | ERX59: 0 | ERY59: 0 | ERZ59: 0 | ESA59: 0 | ESB59: 0 | ESC59: 0 | ESD59: 0 | ESE59: 0 | ESF59: 0 | ESG59: 0 | ESH59: 0 | ESI59: 0 | ESJ59: 0 | ESK59: 0 | ESL59: 0 | ESM59: 0 | ESN59: 0 | ESO59: 0 | ESP59: 0 | ESQ59: 0 | ESR59: 0 | ESS59: 0 | EST59: 0 | ESU59: 0 | ESV59: 0 | ESW59: 0 | ESX59: 0 | ESY59: 0 | ESZ59: 0 | ETA59: 0 | ETB59: 0 | ETC59: 0 | ETD59: 0 | ETE59: 0 | ETF59: 0 | ETG59: 0 | ETH59: 0 | ETI59: 0 | ETJ59: =ETJ67 -> 0 | ETK59: 0 | ETL59: 0 | ETM59: 0 | ETN59: 0 | ETO59: 0 | ETP59: 0 | ETQ59: 0 | ETR59: 0 | ETS59: 0 | ETT59: 0 | ETU59: 0 | ETV59: 0 | ETW59: 0 | ETX59: 0 | ETY59: 0 | ETZ59: 0 | EUA59: 0 | EUB59: 0 | EUC59: 0 | EUD59: 0 | EUE59: 0 | EUF59: 0 | EUG59: 0 | EUH59: 0 | EUI59: 0 | EUJ59: 0 | EUK59: 0 | EUL59: 0 | EUM59: 0 | EUN59: 0 | EUO59: 0 | EUP59: 0 | EUQ59: 0 | EUR59: 0 | EUS59: 0 | EUT59: 0 | EUU59: 0 | EUV59: 0 | EUW59: 0 | EUX59: 0 | EUY59: 0 | EUZ59: 0 | EVA59: 0 | EVB59: 0 | EVC59: 0 | EVD59: 0 | EVE59: 0 | EVF59: 0 | EVG59: 0 | EVH59: 0 | EVI59: 0 | EVJ59: 0 | EVK59: 0 | EVL59: 0 | EVM59: 0 | EVN59: 0 | EVO59: 0 | EVP59: 0 | EVQ59: 0 | EVR59: 0 | EVS59: 0 | EVT59: 0 | EVU59: 0 | EVV59: =EVV67 -> 0 | EVW59: 0 | EVX59: 0 | EVY59: 0 | EVZ59: 0 | EWA59: 0 | EWB59: 0 | EWC59: 0 | EWD59: 0 | EWE59: 0 | EWF59: 0 | EWG59: 0 | EWH59: 0 | EWI59: 0 | EWJ59: 0 | EWK59: 0 | EWL59: 0 | EWM59: 0 | EWN59: 0 | EWO59: 0 | EWP59: 0 | EWQ59: 0 | EWR59: 0 | EWS59: 0 | EWT59: 0 | EWU59: 0 | EWV59: 0 | EWW59: 0 | EWX59: 0 | EWY59: 0 | EWZ59: 0 | EXA59: 0 | EXB59: 0 | EXC59: 0 | EXD59: 0 | EXE59: 0 | EXF59: 0 | EXG59: 0 | EXH59: 0 | EXI59: 0 | EXJ59: 0 | EXK59: 0 | EXL59: 0 | EXM59: 0 | EXN59: 0 | EXO59: 0 | EXP59: 0 | EXQ59: 0 | EXR59: 0 | EXS59: 0 | EXT59: 0 | EXU59: 0 | EXV59: 0 | EXW59: 0 | EXX59: 0 | EXY59: 0 | EXZ59: 0 | EYA59: 0 | EYB59: 0 | EYC59: 0 | EYD59: 0 | EYE59: 0 | EYF59: 0 | EYG59: 0 | EYH59: =EYH67 -> 0 | EYI59: 0 | EYJ59: 0 | EYK59: 0 | EYL59: 0 | EYM59: 0 | EYN59: 0 | EYO59: 0 | EYP59: 0 | EYQ59: 0 | EYR59: 0 | EYS59: 0 | EYT59: 0 | EYU59: 0 | EYV59: 0 | EYW59: 0 | EYX59: 0 | EYY59: 0 | EYZ59: 0 | EZA59: 0 | EZB59: 0 | EZC59: 0 | EZD59: 0 | EZE59: 0 | EZF59: 0 | EZG59: 0 | EZH59: 0 | EZI59: 0 | EZJ59: 0 | EZK59: 0 | EZL59: 0 | EZM59: 0 | EZN59: 0 | EZO59: 0 | EZP59: 0 | EZQ59: 0 | EZR59: 0 | EZS59: 0 | EZT59: 0 | EZU59: 0 | EZV59: 0 | EZW59: 0 | EZX59: 0 | EZY59: 0 | EZZ59: 0 | FAA59: 0 | FAB59: 0 | FAC59: 0 | FAD59: 0 | FAE59: 0 | FAF59: 0 | FAG59: 0 | FAH59: 0 | FAI59: 0 | FAJ59: 0 | FAK59: 0 | FAL59: 0 | FAM59: 0 | FAN59: 0 | FAO59: 0 | FAP59: 0 | FAQ59: 0 | FAR59: 0 | FAS59: 0 | FAT59: =FAT67 -> 0 | FAU59: 0 | FAV59: 0 | FAW59: 0 | FAX59: 0 | FAY59: 0 | FAZ59: 0 | FBA59: 0 | FBB59: 0 | FBC59: 0 | FBD59: 0 | FBE59: 0 | FBF59: 0 | FBG59: 0 | FBH59: 0 | FBI59: 0 | FBJ59: 0 | FBK59: 0 | FBL59: 0 | FBM59: 0 | FBN59: 0 | FBO59: 0 | FBP59: 0 | FBQ59: 0 | FBR59: 0 | FBS59: 0 | FBT59: 0 | FBU59: 0 | FBV59: 0 | FBW59: 0 | FBX59: 0 | FBY59: 0 | FBZ59: 0 | FCA59: 0 | FCB59: 0 | FCC59: 0 | FCD59: 0 | FCE59: 0 | FCF59: 0 | FCG59: 0 | FCH59: 0 | FCI59: 0 | FCJ59: 0 | FCK59: 0 | FCL59: 0 | FCM59: 0 | FCN59: 0 | FCO59: 0 | FCP59: 0 | FCQ59: 0 | FCR59: 0 | FCS59: 0 | FCT59: 0 | FCU59: 0 | FCV59: 0 | FCW59: 0 | FCX59: 0 | FCY59: 0 | FCZ59: 0 | FDA59: 0 | FDB59: 0 | FDC59: 0 | FDD59: 0 | FDE59: 0 | FDF59: =FDF67 -> 0 | FDG59: 0 | FDH59: 0 | FDI59: 0 | FDJ59: 0 | FDK59: 0 | FDL59: 0 | FDM59: 0 | FDN59: 0 | FDO59: 0 | FDP59: 0 | FDQ59: 0 | FDR59: 0 | FDS59: 0 | FDT59: 0 | FDU59: 0 | FDV59: 0 | FDW59: 0 | FDX59: 0 | FDY59: 0 | FDZ59: 0 | FEA59: 0 | FEB59: 0 | FEC59: 0 | FED59: 0 | FEE59: 0 | FEF59: 0 | FEG59: 0 | FEH59: 0 | FEI59: 0 | FEJ59: 0 | FEK59: 0 | FEL59: 0 | FEM59: 0 | FEN59: 0 | FEO59: 0 | FEP59: 0 | FEQ59: 0 | FER59: 0 | FES59: 0 | FET59: 0 | FEU59: 0 | FEV59: 0 | FEW59: 0 | FEX59: 0 | FEY59: 0 | FEZ59: 0 | FFA59: 0 | FFB59: 0 | FFC59: 0 | FFD59: 0 | FFE59: 0 | FFF59: 0 | FFG59: 0 | FFH59: 0 | FFI59: 0 | FFJ59: 0 | FFK59: 0 | FFL59: 0 | FFM59: 0 | FFN59: 0 | FFO59: 0 | FFP59: 0 | FFQ59: 0 | FFR59: =FFR67 -> 0 | FFS59: 0 | FFT59: 0 | FFU59: 0 | FFV59: 0 | FFW59: 0 | FFX59: 0 | FFY59: 0 | FFZ59: 0 | FGA59: 0 | FGB59: 0 | FGC59: 0 | FGD59: 0 | FGE59: 0 | FGF59: 0 | FGG59: 0 | FGH59: 0 | FGI59: 0 | FGJ59: 0 | FGK59: 0 | FGL59: 0 | FGM59: 0 | FGN59: 0 | FGO59: 0 | FGP59: 0 | FGQ59: 0 | FGR59: 0 | FGS59: 0 | FGT59: 0 | FGU59: 0 | FGV59: 0 | FGW59: 0 | FGX59: 0 | FGY59: 0 | FGZ59: 0 | FHA59: 0 | FHB59: 0 | FHC59: 0 | FHD59: 0 | FHE59: 0 | FHF59: 0 | FHG59: 0 | FHH59: 0 | FHI59: 0 | FHJ59: 0 | FHK59: 0 | FHL59: 0 | FHM59: 0 | FHN59: 0 | FHO59: 0 | FHP59: 0 | FHQ59: 0 | FHR59: 0 | FHS59: 0 | FHT59: 0 | FHU59: 0 | FHV59: 0 | FHW59: 0 | FHX59: 0 | FHY59: 0 | FHZ59: 0 | FIA59: 0 | FIB59: 0 | FIC59: 0 | FID59: =FID67 -> 0 | FIE59: 0 | FIF59: 0 | FIG59: 0 | FIH59: 0 | FII59: 0 | FIJ59: 0 | FIK59: 0 | FIL59: 0 | FIM59: 0 | FIN59: 0 | FIO59: 0 | FIP59: 0 | FIQ59: 0 | FIR59: 0 | FIS59: 0 | FIT59: 0 | FIU59: 0 | FIV59: 0 | FIW59: 0 | FIX59: 0 | FIY59: 0 | FIZ59: 0 | FJA59: 0 | FJB59: 0 | FJC59: 0 | FJD59: 0 | FJE59: 0 | FJF59: 0 | FJG59: 0 | FJH59: 0 | FJI59: 0 | FJJ59: 0 | FJK59: 0 | FJL59: 0 | FJM59: 0 | FJN59: 0 | FJO59: 0 | FJP59: 0 | FJQ59: 0 | FJR59: 0 | FJS59: 0 | FJT59: 0 | FJU59: 0 | FJV59: 0 | FJW59: 0 | FJX59: 0 | FJY59: 0 | FJZ59: 0 | FKA59: 0 | FKB59: 0 | FKC59: 0 | FKD59: 0 | FKE59: 0 | FKF59: 0 | FKG59: 0 | FKH59: 0 | FKI59: 0 | FKJ59: 0 | FKK59: 0 | FKL59: 0 | FKM59: 0 | FKN59: 0 | FKO59: 0 | FKP59: =FKP67 -> 0 | FKQ59: 0 | FKR59: 0 | FKS59: 0 | FKT59: 0 | FKU59: 0 | FKV59: 0 | FKW59: 0 | FKX59: 0 | FKY59: 0 | FKZ59: 0 | FLA59: 0 | FLB59: 0 | FLC59: 0 | FLD59: 0 | FLE59: 0 | FLF59: 0 | FLG59: 0 | FLH59: 0 | FLI59: 0 | FLJ59: 0 | FLK59: 0 | FLL59: 0 | FLM59: 0 | FLN59: 0 | FLO59: 0 | FLP59: 0 | FLQ59: 0 | FLR59: 0 | FLS59: 0 | FLT59: 0 | FLU59: 0 | FLV59: 0 | FLW59: 0 | FLX59: 0 | FLY59: 0 | FLZ59: 0 | FMA59: 0 | FMB59: 0 | FMC59: 0 | FMD59: 0 | FME59: 0 | FMF59: 0 | FMG59: 0 | FMH59: 0 | FMI59: 0 | FMJ59: 0 | FMK59: 0 | FML59: 0 | FMM59: 0 | FMN59: 0 | FMO59: 0 | FMP59: 0 | FMQ59: 0 | FMR59: 0 | FMS59: 0 | FMT59: 0 | FMU59: 0 | FMV59: 0 | FMW59: 0 | FMX59: 0 | FMY59: 0 | FMZ59: 0 | FNA59: 0 | FNB59: =FNB67 -> 0 | FNC59: 0 | FND59: 0 | FNE59: 0 | FNF59: 0 | FNG59: 0 | FNH59: 0 | FNI59: 0 | FNJ59: 0 | FNK59: 0 | FNL59: 0 | FNM59: 0 | FNN59: 0 | FNO59: 0 | FNP59: 0 | FNQ59: 0 | FNR59: 0 | FNS59: 0 | FNT59: 0 | FNU59: 0 | FNV59: 0 | FNW59: 0 | FNX59: 0 | FNY59: 0 | FNZ59: 0 | FOA59: 0 | FOB59: 0 | FOC59: 0 | FOD59: 0 | FOE59: 0 | FOF59: 0 | FOG59: 0 | FOH59: 0 | FOI59: 0 | FOJ59: 0 | FOK59: 0 | FOL59: 0 | FOM59: 0 | FON59: 0 | FOO59: 0 | FOP59: 0 | FOQ59: 0 | FOR59: 0 | FOS59: 0 | FOT59: 0 | FOU59: 0 | FOV59: 0 | FOW59: 0 | FOX59: 0 | FOY59: 0 | FOZ59: 0 | FPA59: 0 | FPB59: 0 | FPC59: 0 | FPD59: 0 | FPE59: 0 | FPF59: 0 | FPG59: 0 | FPH59: 0 | FPI59: 0 | FPJ59: 0 | FPK59: 0 | FPL59: 0 | FPM59: 0 | FPN59: =FPN67 -> 0 | FPO59: 0 | FPP59: 0 | FPQ59: 0 | FPR59: 0 | FPS59: 0 | FPT59: 0 | FPU59: 0 | FPV59: 0 | FPW59: 0 | FPX59: 0 | FPY59: 0 | FPZ59: 0 | FQA59: 0 | FQB59: 0 | FQC59: 0 | FQD59: 0 | FQE59: 0 | FQF59: 0 | FQG59: 0 | FQH59: 0 | FQI59: 0 | FQJ59: 0 | FQK59: 0 | FQL59: 0 | FQM59: 0 | FQN59: 0 | FQO59: 0 | FQP59: 0 | FQQ59: 0 | FQR59: 0 | FQS59: 0 | FQT59: 0 | FQU59: 0 | FQV59: 0 | FQW59: 0 | FQX59: 0 | FQY59: 0 | FQZ59: 0 | FRA59: 0 | FRB59: 0 | FRC59: 0 | FRD59: 0 | FRE59: 0 | FRF59: 0 | FRG59: 0 | FRH59: 0 | FRI59: 0 | FRJ59: 0 | FRK59: 0 | FRL59: 0 | FRM59: 0 | FRN59: 0 | FRO59: 0 | FRP59: 0 | FRQ59: 0 | FRR59: 0 | FRS59: 0 | FRT59: 0 | FRU59: 0 | FRV59: 0 | FRW59: 0 | FRX59: 0 | FRY59: 0 | FRZ59: =FRZ67 -> 0 | FSA59: 0 | FSB59: 0 | FSC59: 0 | FSD59: 0 | FSE59: 0 | FSF59: 0 | FSG59: 0 | FSH59: 0 | FSI59: 0 | FSJ59: 0 | FSK59: 0 | FSL59: 0 | FSM59: 0 | FSN59: 0 | FSO59: 0 | FSP59: 0 | FSQ59: 0 | FSR59: 0 | FSS59: 0 | FST59: 0 | FSU59: 0 | FSV59: 0 | FSW59: 0 | FSX59: 0 | FSY59: 0 | FSZ59: 0 | FTA59: 0 | FTB59: 0 | FTC59: 0 | FTD59: 0 | FTE59: 0 | FTF59: 0 | FTG59: 0 | FTH59: 0 | FTI59: 0 | FTJ59: 0 | FTK59: 0 | FTL59: 0 | FTM59: 0 | FTN59: 0 | FTO59: 0 | FTP59: 0 | FTQ59: 0 | FTR59: 0 | FTS59: 0 | FTT59: 0 | FTU59: 0 | FTV59: 0 | FTW59: 0 | FTX59: 0 | FTY59: 0 | FTZ59: 0 | FUA59: 0 | FUB59: 0 | FUC59: 0 | FUD59: 0 | FUE59: 0 | FUF59: 0 | FUG59: 0 | FUH59: 0 | FUI59: 0 | FUJ59: 0 | FUK59: 0 | FUL59: =FUL67 -> 0 | FUM59: 0 | FUN59: 0 | FUO59: 0 | FUP59: 0 | FUQ59: 0 | FUR59: 0 | FUS59: 0 | FUT59: 0 | FUU59: 0 | FUV59: 0 | FUW59: 0 | FUX59: 0 | FUY59: 0 | FUZ59: 0 | FVA59: 0 | FVB59: 0 | FVC59: 0 | FVD59: 0 | FVE59: 0 | FVF59: 0 | FVG59: 0 | FVH59: 0 | FVI59: 0 | FVJ59: 0 | FVK59: 0 | FVL59: 0 | FVM59: 0 | FVN59: 0 | FVO59: 0 | FVP59: 0 | FVQ59: 0 | FVR59: 0 | FVS59: 0 | FVT59: 0 | FVU59: 0 | FVV59: 0 | FVW59: 0 | FVX59: 0 | FVY59: 0 | FVZ59: 0 | FWA59: 0 | FWB59: 0 | FWC59: 0 | FWD59: 0 | FWE59: 0 | FWF59: 0 | FWG59: 0 | FWH59: 0 | FWI59: 0 | FWJ59: 0 | FWK59: 0 | FWL59: 0 | FWM59: 0 | FWN59: 0 | FWO59: 0 | FWP59: 0 | FWQ59: 0 | FWR59: 0 | FWS59: 0 | FWT59: 0 | FWU59: 0 | FWV59: 0 | FWW59: 0 | FWX59: =FWX67 -> 0 | FWY59: 0 | FWZ59: 0 | FXA59: 0 | FXB59: 0 | FXC59: 0 | FXD59: 0 | FXE59: 0 | FXF59: 0 | FXG59: 0 | FXH59: 0 | FXI59: 0 | FXJ59: 0 | FXK59: 0 | FXL59: 0 | FXM59: 0 | FXN59: 0 | FXO59: 0 | FXP59: 0 | FXQ59: 0 | FXR59: 0 | FXS59: 0 | FXT59: 0 | FXU59: 0 | FXV59: 0 | FXW59: 0 | FXX59: 0 | FXY59: 0 | FXZ59: 0 | FYA59: 0 | FYB59: 0 | FYC59: 0 | FYD59: 0 | FYE59: 0 | FYF59: 0 | FYG59: 0 | FYH59: 0 | FYI59: 0 | FYJ59: 0 | FYK59: 0 | FYL59: 0 | FYM59: 0 | FYN59: 0 | FYO59: 0 | FYP59: 0 | FYQ59: 0 | FYR59: 0 | FYS59: 0 | FYT59: 0 | FYU59: 0 | FYV59: 0 | FYW59: 0 | FYX59: 0 | FYY59: 0 | FYZ59: 0 | FZA59: 0 | FZB59: 0 | FZC59: 0 | FZD59: 0 | FZE59: 0 | FZF59: 0 | FZG59: 0 | FZH59: 0 | FZI59: 0 | FZJ59: =FZJ67 -> 0 | FZK59: 0 | FZL59: 0 | FZM59: 0 | FZN59: 0 | FZO59: 0 | FZP59: 0 | FZQ59: 0 | FZR59: 0 | FZS59: 0 | FZT59: 0 | FZU59: 0 | FZV59: 0 | FZW59: 0 | FZX59: 0 | FZY59: 0 | FZZ59: 0 | GAA59: 0 | GAB59: 0 | GAC59: 0 | GAD59: 0 | GAE59: 0 | GAF59: 0 | GAG59: 0 | GAH59: 0 | GAI59: 0 | GAJ59: 0 | GAK59: 0 | GAL59: 0 | GAM59: 0 | GAN59: 0 | GAO59: 0 | GAP59: 0 | GAQ59: 0 | GAR59: 0 | GAS59: 0 | GAT59: 0 | GAU59: 0 | GAV59: 0 | GAW59: 0 | GAX59: 0 | GAY59: 0 | GAZ59: 0 | GBA59: 0 | GBB59: 0 | GBC59: 0 | GBD59: 0 | GBE59: 0 | GBF59: 0 | GBG59: 0 | GBH59: 0 | GBI59: 0 | GBJ59: 0 | GBK59: 0 | GBL59: 0 | GBM59: 0 | GBN59: 0 | GBO59: 0 | GBP59: 0 | GBQ59: 0 | GBR59: 0 | GBS59: 0 | GBT59: 0 | GBU59: 0 | GBV59: =GBV67 -> 0 | GBW59: 0 | GBX59: 0 | GBY59: 0 | GBZ59: 0 | GCA59: 0 | GCB59: 0 | GCC59: 0 | GCD59: 0 | GCE59: 0 | GCF59: 0 | GCG59: 0 | GCH59: 0 | GCI59: 0 | GCJ59: 0 | GCK59: 0 | GCL59: 0 | GCM59: 0 | GCN59: 0 | GCO59: 0 | GCP59: 0 | GCQ59: 0 | GCR59: 0 | GCS59: 0 | GCT59: 0 | GCU59: 0 | GCV59: 0 | GCW59: 0 | GCX59: 0 | GCY59: 0 | GCZ59: 0 | GDA59: 0 | GDB59: 0 | GDC59: 0 | GDD59: 0 | GDE59: 0 | GDF59: 0 | GDG59: 0 | GDH59: 0 | GDI59: 0 | GDJ59: 0 | GDK59: 0 | GDL59: 0 | GDM59: 0 | GDN59: 0 | GDO59: 0 | GDP59: 0 | GDQ59: 0 | GDR59: 0 | GDS59: 0 | GDT59: 0 | GDU59: 0 | GDV59: 0 | GDW59: 0 | GDX59: 0 | GDY59: 0 | GDZ59: 0 | GEA59: 0 | GEB59: 0 | GEC59: 0 | GED59: 0 | GEE59: 0 | GEF59: 0 | GEG59: 0 | GEH59: =GEH67 -> 0 | GEI59: 0 | GEJ59: 0 | GEK59: 0 | GEL59: 0 | GEM59: 0 | GEN59: 0 | GEO59: 0 | GEP59: 0 | GEQ59: 0 | GER59: 0 | GES59: 0 | GET59: 0 | GEU59: 0 | GEV59: 0 | GEW59: 0 | GEX59: 0 | GEY59: 0 | GEZ59: 0 | GFA59: 0 | GFB59: 0 | GFC59: 0 | GFD59: 0 | GFE59: 0 | GFF59: 0 | GFG59: 0 | GFH59: 0 | GFI59: 0 | GFJ59: 0 | GFK59: 0 | GFL59: 0 | GFM59: 0 | GFN59: 0 | GFO59: 0 | GFP59: 0 | GFQ59: 0 | GFR59: 0 | GFS59: 0 | GFT59: 0 | GFU59: 0 | GFV59: 0 | GFW59: 0 | GFX59: 0 | GFY59: 0 | GFZ59: 0 | GGA59: 0 | GGB59: 0 | GGC59: 0 | GGD59: 0 | GGE59: 0 | GGF59: 0 | GGG59: 0 | GGH59: 0 | GGI59: 0 | GGJ59: 0 | GGK59: 0 | GGL59: 0 | GGM59: 0 | GGN59: 0 | GGO59: 0 | GGP59: 0 | GGQ59: 0 | GGR59: 0 | GGS59: 0 | GGT59: =GGT67 -> 0 | GGU59: 0 | GGV59: 0 | GGW59: 0 | GGX59: 0 | GGY59: 0 | GGZ59: 0 | GHA59: 0 | GHB59: 0 | GHC59: 0 | GHD59: 0 | GHE59: 0 | GHF59: 0 | GHG59: 0 | GHH59: 0 | GHI59: 0 | GHJ59: 0 | GHK59: 0 | GHL59: 0 | GHM59: 0 | GHN59: 0 | GHO59: 0 | GHP59: 0 | GHQ59: 0 | GHR59: 0 | GHS59: 0 | GHT59: 0 | GHU59: 0 | GHV59: 0 | GHW59: 0 | GHX59: 0 | GHY59: 0 | GHZ59: 0 | GIA59: 0 | GIB59: 0 | GIC59: 0 | GID59: 0 | GIE59: 0 | GIF59: 0 | GIG59: 0 | GIH59: 0 | GII59: 0 | GIJ59: 0 | GIK59: 0 | GIL59: 0 | GIM59: 0 | GIN59: 0 | GIO59: 0 | GIP59: 0 | GIQ59: 0 | GIR59: 0 | GIS59: 0 | GIT59: 0 | GIU59: 0 | GIV59: 0 | GIW59: 0 | GIX59: 0 | GIY59: 0 | GIZ59: 0 | GJA59: 0 | GJB59: 0 | GJC59: 0 | GJD59: 0 | GJE59: 0 | GJF59: =GJF67 -> 0 | GJG59: 0 | GJH59: 0 | GJI59: 0 | GJJ59: 0 | GJK59: 0 | GJL59: 0 | GJM59: 0 | GJN59: 0 | GJO59: 0 | GJP59: 0 | GJQ59: 0 | GJR59: 0 | GJS59: 0 | GJT59: 0 | GJU59: 0 | GJV59: 0 | GJW59: 0 | GJX59: 0 | GJY59: 0 | GJZ59: 0 | GKA59: 0 | GKB59: 0 | GKC59: 0 | GKD59: 0 | GKE59: 0 | GKF59: 0 | GKG59: 0 | GKH59: 0 | GKI59: 0 | GKJ59: 0 | GKK59: 0 | GKL59: 0 | GKM59: 0 | GKN59: 0 | GKO59: 0 | GKP59: 0 | GKQ59: 0 | GKR59: 0 | GKS59: 0 | GKT59: 0 | GKU59: 0 | GKV59: 0 | GKW59: 0 | GKX59: 0 | GKY59: 0 | GKZ59: 0 | GLA59: 0 | GLB59: 0 | GLC59: 0 | GLD59: 0 | GLE59: 0 | GLF59: 0 | GLG59: 0 | GLH59: 0 | GLI59: 0 | GLJ59: 0 | GLK59: 0 | GLL59: 0 | GLM59: 0 | GLN59: 0 | GLO59: 0 | GLP59: 0 | GLQ59: 0 | GLR59: =GLR67 -> 0 | GLS59: 0 | GLT59: 0 | GLU59: 0 | GLV59: 0 | GLW59: 0 | GLX59: 0 | GLY59: 0 | GLZ59: 0 | GMA59: 0 | GMB59: 0 | GMC59: 0 | GMD59: 0 | GME59: 0 | GMF59: 0 | GMG59: 0 | GMH59: 0 | GMI59: 0 | GMJ59: 0 | GMK59: 0 | GML59: 0 | GMM59: 0 | GMN59: 0 | GMO59: 0 | GMP59: 0 | GMQ59: 0 | GMR59: 0 | GMS59: 0 | GMT59: 0 | GMU59: 0 | GMV59: 0 | GMW59: 0 | GMX59: 0 | GMY59: 0 | GMZ59: 0 | GNA59: 0 | GNB59: 0 | GNC59: 0 | GND59: 0 | GNE59: 0 | GNF59: 0 | GNG59: 0 | GNH59: 0 | GNI59: 0 | GNJ59: 0 | GNK59: 0 | GNL59: 0 | GNM59: 0 | GNN59: 0 | GNO59: 0 | GNP59: 0 | GNQ59: 0 | GNR59: 0 | GNS59: 0 | GNT59: 0 | GNU59: 0 | GNV59: 0 | GNW59: 0 | GNX59: 0 | GNY59: 0 | GNZ59: 0 | GOA59: 0 | GOB59: 0 | GOC59: 0 | GOD59: =GOD67 -> 0 | GOE59: 0 | GOF59: 0 | GOG59: 0 | GOH59: 0 | GOI59: 0 | GOJ59: 0 | GOK59: 0 | GOL59: 0 | GOM59: 0 | GON59: 0 | GOO59: 0 | GOP59: 0 | GOQ59: 0 | GOR59: 0 | GOS59: 0 | GOT59: 0 | GOU59: 0 | GOV59: 0 | GOW59: 0 | GOX59: 0 | GOY59: 0 | GOZ59: 0 | GPA59: 0 | GPB59: 0 | GPC59: 0 | GPD59: 0 | GPE59: 0 | GPF59: 0 | GPG59: 0 | GPH59: 0 | GPI59: 0 | GPJ59: 0 | GPK59: 0 | GPL59: 0 | GPM59: 0 | GPN59: 0 | GPO59: 0 | GPP59: 0 | GPQ59: 0 | GPR59: 0 | GPS59: 0 | GPT59: 0 | GPU59: 0 | GPV59: 0 | GPW59: 0 | GPX59: 0 | GPY59: 0 | GPZ59: 0 | GQA59: 0 | GQB59: 0 | GQC59: 0 | GQD59: 0 | GQE59: 0 | GQF59: 0 | GQG59: 0 | GQH59: 0 | GQI59: 0 | GQJ59: 0 | GQK59: 0 | GQL59: 0 | GQM59: 0 | GQN59: 0 | GQO59: 0 | GQP59: =GQP67 -> 0 | GQQ59: 0 | GQR59: 0 | GQS59: 0 | GQT59: 0 | GQU59: 0 | GQV59: 0 | GQW59: 0 | GQX59: 0 | GQY59: 0 | GQZ59: 0 | GRA59: 0 | GRB59: 0 | GRC59: 0 | GRD59: 0 | GRE59: 0 | GRF59: 0 | GRG59: 0 | GRH59: 0 | GRI59: 0 | GRJ59: 0 | GRK59: 0 | GRL59: 0 | GRM59: 0 | GRN59: 0 | GRO59: 0 | GRP59: 0 | GRQ59: 0 | GRR59: 0 | GRS59: 0 | GRT59: 0 | GRU59: 0 | GRV59: 0 | GRW59: 0 | GRX59: 0 | GRY59: 0 | GRZ59: 0 | GSA59: 0 | GSB59: 0 | GSC59: 0 | GSD59: 0 | GSE59: 0 | GSF59: 0 | GSG59: 0 | GSH59: 0 | GSI59: 0 | GSJ59: 0 | GSK59: 0 | GSL59: 0 | GSM59: 0 | GSN59: 0 | GSO59: 0 | GSP59: 0 | GSQ59: 0 | GSR59: 0 | GSS59: 0 | GST59: 0 | GSU59: 0 | GSV59: 0 | GSW59: 0 | GSX59: 0 | GSY59: 0 | GSZ59: 0 | GTA59: 0 | GTB59: =GTB67 -> 0 | GTC59: 0 | GTD59: 0 | GTE59: 0 | GTF59: 0 | GTG59: 0 | GTH59: 0 | GTI59: 0 | GTJ59: 0 | GTK59: 0 | GTL59: 0 | GTM59: 0 | GTN59: 0 | GTO59: 0 | GTP59: 0 | GTQ59: 0 | GTR59: 0 | GTS59: 0 | GTT59: 0 | GTU59: 0 | GTV59: 0 | GTW59: 0 | GTX59: 0 | GTY59: 0 | GTZ59: 0 | GUA59: 0 | GUB59: 0 | GUC59: 0 | GUD59: 0 | GUE59: 0 | GUF59: 0 | GUG59: 0 | GUH59: 0 | GUI59: 0 | GUJ59: 0 | GUK59: 0 | GUL59: 0 | GUM59: 0 | GUN59: 0 | GUO59: 0 | GUP59: 0 | GUQ59: 0 | GUR59: 0 | GUS59: 0 | GUT59: 0 | GUU59: 0 | GUV59: 0 | GUW59: 0 | GUX59: 0 | GUY59: 0 | GUZ59: 0 | GVA59: 0 | GVB59: 0 | GVC59: 0 | GVD59: 0 | GVE59: 0 | GVF59: 0 | GVG59: 0 | GVH59: 0 | GVI59: 0 | GVJ59: 0 | GVK59: 0 | GVL59: 0 | GVM59: 0 | GVN59: =GVN67 -> 0 | GVO59: 0 | GVP59: 0 | GVQ59: 0 | GVR59: 0 | GVS59: 0 | GVT59: 0 | GVU59: 0 | GVV59: 0 | GVW59: 0 | GVX59: 0 | GVY59: 0 | GVZ59: 0 | GWA59: 0 | GWB59: 0 | GWC59: 0 | GWD59: 0 | GWE59: 0 | GWF59: 0 | GWG59: 0 | GWH59: 0 | GWI59: 0 | GWJ59: 0 | GWK59: 0 | GWL59: 0 | GWM59: 0 | GWN59: 0 | GWO59: 0 | GWP59: 0 | GWQ59: 0 | GWR59: 0 | GWS59: 0 | GWT59: 0 | GWU59: 0 | GWV59: 0 | GWW59: 0 | GWX59: 0 | GWY59: 0 | GWZ59: 0 | GXA59: 0 | GXB59: 0 | GXC59: 0 | GXD59: 0 | GXE59: 0 | GXF59: 0 | GXG59: 0 | GXH59: 0 | GXI59: 0 | GXJ59: 0 | GXK59: 0 | GXL59: 0 | GXM59: 0 | GXN59: 0 | GXO59: 0 | GXP59: 0 | GXQ59: 0 | GXR59: 0 | GXS59: 0 | GXT59: 0 | GXU59: 0 | GXV59: 0 | GXW59: 0 | GXX59: 0 | GXY59: 0 | GXZ59: =GXZ67 -> 0 | GYA59: 0 | GYB59: 0 | GYC59: 0 | GYD59: 0 | GYE59: 0 | GYF59: 0 | GYG59: 0 | GYH59: 0 | GYI59: 0 | GYJ59: 0 | GYK59: 0 | GYL59: 0 | GYM59: 0 | GYN59: 0 | GYO59: 0 | GYP59: 0 | GYQ59: 0 | GYR59: 0 | GYS59: 0 | GYT59: 0 | GYU59: 0 | GYV59: 0 | GYW59: 0 | GYX59: 0 | GYY59: 0 | GYZ59: 0 | GZA59: 0 | GZB59: 0 | GZC59: 0 | GZD59: 0 | GZE59: 0 | GZF59: 0 | GZG59: 0 | GZH59: 0 | GZI59: 0 | GZJ59: 0 | GZK59: 0 | GZL59: 0 | GZM59: 0 | GZN59: 0 | GZO59: 0 | GZP59: 0 | GZQ59: 0 | GZR59: 0 | GZS59: 0 | GZT59: 0 | GZU59: 0 | GZV59: 0 | GZW59: 0 | GZX59: 0 | GZY59: 0 | GZZ59: 0 | HAA59: 0 | HAB59: 0 | HAC59: 0 | HAD59: 0 | HAE59: 0 | HAF59: 0 | HAG59: 0 | HAH59: 0 | HAI59: 0 | HAJ59: 0 | HAK59: 0 | HAL59: =HAL67 -> 0 | HAM59: 0 | HAN59: 0 | HAO59: 0 | HAP59: 0 | HAQ59: 0 | HAR59: 0 | HAS59: 0 | HAT59: 0 | HAU59: 0 | HAV59: 0 | HAW59: 0 | HAX59: 0 | HAY59: 0 | HAZ59: 0 | HBA59: 0 | HBB59: 0 | HBC59: 0 | HBD59: 0 | HBE59: 0 | HBF59: 0 | HBG59: 0 | HBH59: 0 | HBI59: 0 | HBJ59: 0 | HBK59: 0 | HBL59: 0 | HBM59: 0 | HBN59: 0 | HBO59: 0 | HBP59: 0 | HBQ59: 0 | HBR59: 0 | HBS59: 0 | HBT59: 0 | HBU59: 0 | HBV59: 0 | HBW59: 0 | HBX59: 0 | HBY59: 0 | HBZ59: 0 | HCA59: 0 | HCB59: 0 | HCC59: 0 | HCD59: 0 | HCE59: 0 | HCF59: 0 | HCG59: 0 | HCH59: 0 | HCI59: 0 | HCJ59: 0 | HCK59: 0 | HCL59: 0 | HCM59: 0 | HCN59: 0 | HCO59: 0 | HCP59: 0 | HCQ59: 0 | HCR59: 0 | HCS59: 0 | HCT59: 0 | HCU59: 0 | HCV59: 0 | HCW59: 0 | HCX59: =HCX67 -> 0 | HCY59: 0 | HCZ59: 0 | HDA59: 0 | HDB59: 0 | HDC59: 0 | HDD59: 0 | HDE59: 0 | HDF59: 0 | HDG59: 0 | HDH59: 0 | HDI59: 0 | HDJ59: 0 | HDK59: 0 | HDL59: 0 | HDM59: 0 | HDN59: 0 | HDO59: 0 | HDP59: 0 | HDQ59: 0 | HDR59: 0 | HDS59: 0 | HDT59: 0 | HDU59: 0 | HDV59: 0 | HDW59: 0 | HDX59: 0 | HDY59: 0 | HDZ59: 0 | HEA59: 0 | HEB59: 0 | HEC59: 0 | HED59: 0 | HEE59: 0 | HEF59: 0 | HEG59: 0 | HEH59: 0 | HEI59: 0 | HEJ59: 0 | HEK59: 0 | HEL59: 0 | HEM59: 0 | HEN59: 0 | HEO59: 0 | HEP59: 0 | HEQ59: 0 | HER59: 0 | HES59: 0 | HET59: 0 | HEU59: 0 | HEV59: 0 | HEW59: 0 | HEX59: 0 | HEY59: 0 | HEZ59: 0 | HFA59: 0 | HFB59: 0 | HFC59: 0 | HFD59: 0 | HFE59: 0 | HFF59: 0 | HFG59: 0 | HFH59: 0 | HFI59: 0 | HFJ59: =HFJ67 -> 0 | HFK59: 0 | HFL59: 0 | HFM59: 0 | HFN59: 0 | HFO59: 0 | HFP59: 0 | HFQ59: 0 | HFR59: 0 | HFS59: 0 | HFT59: 0 | HFU59: 0 | HFV59: 0 | HFW59: 0 | HFX59: 0 | HFY59: 0 | HFZ59: 0 | HGA59: 0 | HGB59: 0 | HGC59: 0 | HGD59: 0 | HGE59: 0 | HGF59: 0 | HGG59: 0 | HGH59: 0 | HGI59: 0 | HGJ59: 0 | HGK59: 0 | HGL59: 0 | HGM59: 0 | HGN59: 0 | HGO59: 0 | HGP59: 0 | HGQ59: 0 | HGR59: 0 | HGS59: 0 | HGT59: 0 | HGU59: 0 | HGV59: 0 | HGW59: 0 | HGX59: 0 | HGY59: 0 | HGZ59: 0 | HHA59: 0 | HHB59: 0 | HHC59: 0 | HHD59: 0 | HHE59: 0 | HHF59: 0 | HHG59: 0 | HHH59: 0 | HHI59: 0 | HHJ59: 0 | HHK59: 0 | HHL59: 0 | HHM59: 0 | HHN59: 0 | HHO59: 0 | HHP59: 0 | HHQ59: 0 | HHR59: 0 | HHS59: 0 | HHT59: 0 | HHU59: 0 | HHV59: =HHV67 -> 0 | HHW59: 0 | HHX59: 0 | HHY59: 0 | HHZ59: 0 | HIA59: 0 | HIB59: 0 | HIC59: 0 | HID59: 0 | HIE59: 0 | HIF59: 0 | HIG59: 0 | HIH59: 0 | HII59: 0 | HIJ59: 0 | HIK59: 0 | HIL59: 0 | HIM59: 0 | HIN59: 0 | HIO59: 0 | HIP59: 0 | HIQ59: 0 | HIR59: 0 | HIS59: 0 | HIT59: 0 | HIU59: 0 | HIV59: 0 | HIW59: 0 | HIX59: 0 | HIY59: 0 | HIZ59: 0 | HJA59: 0 | HJB59: 0 | HJC59: 0 | HJD59: 0 | HJE59: 0 | HJF59: 0 | HJG59: 0 | HJH59: 0 | HJI59: 0 | HJJ59: 0 | HJK59: 0 | HJL59: 0 | HJM59: 0 | HJN59: 0 | HJO59: 0 | HJP59: 0 | HJQ59: 0 | HJR59: 0 | HJS59: 0 | HJT59: 0 | HJU59: 0 | HJV59: 0 | HJW59: 0 | HJX59: 0 | HJY59: 0 | HJZ59: 0 | HKA59: 0 | HKB59: 0 | HKC59: 0 | HKD59: 0 | HKE59: 0 | HKF59: 0 | HKG59: 0 | HKH59: =HKH67 -> 0 | HKI59: 0 | HKJ59: 0 | HKK59: 0 | HKL59: 0 | HKM59: 0 | HKN59: 0 | HKO59: 0 | HKP59: 0 | HKQ59: 0 | HKR59: 0 | HKS59: 0 | HKT59: 0 | HKU59: 0 | HKV59: 0 | HKW59: 0 | HKX59: 0 | HKY59: 0 | HKZ59: 0 | HLA59: 0 | HLB59: 0 | HLC59: 0 | HLD59: 0 | HLE59: 0 | HLF59: 0 | HLG59: 0 | HLH59: 0 | HLI59: 0 | HLJ59: 0 | HLK59: 0 | HLL59: 0 | HLM59: 0 | HLN59: 0 | HLO59: 0 | HLP59: 0 | HLQ59: 0 | HLR59: 0 | HLS59: 0 | HLT59: 0 | HLU59: 0 | HLV59: 0 | HLW59: 0 | HLX59: 0 | HLY59: 0 | HLZ59: 0 | HMA59: 0 | HMB59: 0 | HMC59: 0 | HMD59: 0 | HME59: 0 | HMF59: 0 | HMG59: 0 | HMH59: 0 | HMI59: 0 | HMJ59: 0 | HMK59: 0 | HML59: 0 | HMM59: 0 | HMN59: 0 | HMO59: 0 | HMP59: 0 | HMQ59: 0 | HMR59: 0 | HMS59: 0 | HMT59: =HMT67 -> 0 | HMU59: 0 | HMV59: 0 | HMW59: 0 | HMX59: 0 | HMY59: 0 | HMZ59: 0 | HNA59: 0 | HNB59: 0 | HNC59: 0 | HND59: 0 | HNE59: 0 | HNF59: 0 | HNG59: 0 | HNH59: 0 | HNI59: 0 | HNJ59: 0 | HNK59: 0 | HNL59: 0 | HNM59: 0 | HNN59: 0 | HNO59: 0 | HNP59: 0 | HNQ59: 0 | HNR59: 0 | HNS59: 0 | HNT59: 0 | HNU59: 0 | HNV59: 0 | HNW59: 0 | HNX59: 0 | HNY59: 0 | HNZ59: 0 | HOA59: 0 | HOB59: 0 | HOC59: 0 | HOD59: 0 | HOE59: 0 | HOF59: 0 | HOG59: 0 | HOH59: 0 | HOI59: 0 | HOJ59: 0 | HOK59: 0 | HOL59: 0 | HOM59: 0 | HON59: 0 | HOO59: 0 | HOP59: 0 | HOQ59: 0 | HOR59: 0 | HOS59: 0 | HOT59: 0 | HOU59: 0 | HOV59: 0 | HOW59: 0 | HOX59: 0 | HOY59: 0 | HOZ59: 0 | HPA59: 0 | HPB59: 0 | HPC59: 0 | HPD59: 0 | HPE59: 0 | HPF59: =HPF67 -> 0 | HPG59: 0 | HPH59: 0 | HPI59: 0 | HPJ59: 0 | HPK59: 0 | HPL59: 0 | HPM59: 0 | HPN59: 0 | HPO59: 0 | HPP59: 0 | HPQ59: 0 | HPR59: 0 | HPS59: 0 | HPT59: 0 | HPU59: 0 | HPV59: 0 | HPW59: 0 | HPX59: 0 | HPY59: 0 | HPZ59: 0 | HQA59: 0 | HQB59: 0 | HQC59: 0 | HQD59: 0 | HQE59: 0 | HQF59: 0 | HQG59: 0 | HQH59: 0 | HQI59: 0 | HQJ59: 0 | HQK59: 0 | HQL59: 0 | HQM59: 0 | HQN59: 0 | HQO59: 0 | HQP59: 0 | HQQ59: 0 | HQR59: 0 | HQS59: 0 | HQT59: 0 | HQU59: 0 | HQV59: 0 | HQW59: 0 | HQX59: 0 | HQY59: 0 | HQZ59: 0 | HRA59: 0 | HRB59: 0 | HRC59: 0 | HRD59: 0 | HRE59: 0 | HRF59: 0 | HRG59: 0 | HRH59: 0 | HRI59: 0 | HRJ59: 0 | HRK59: 0 | HRL59: 0 | HRM59: 0 | HRN59: 0 | HRO59: 0 | HRP59: 0 | HRQ59: 0 | HRR59: =HRR67 -> 0 | HRS59: 0 | HRT59: 0 | HRU59: 0 | HRV59: 0 | HRW59: 0 | HRX59: 0 | HRY59: 0 | HRZ59: 0 | HSA59: 0 | HSB59: 0 | HSC59: 0 | HSD59: 0 | HSE59: 0 | HSF59: 0 | HSG59: 0 | HSH59: 0 | HSI59: 0 | HSJ59: 0 | HSK59: 0 | HSL59: 0 | HSM59: 0 | HSN59: 0 | HSO59: 0 | HSP59: 0 | HSQ59: 0 | HSR59: 0 | HSS59: 0 | HST59: 0 | HSU59: 0 | HSV59: 0 | HSW59: 0 | HSX59: 0 | HSY59: 0 | HSZ59: 0 | HTA59: 0 | HTB59: 0 | HTC59: 0 | HTD59: 0 | HTE59: 0 | HTF59: 0 | HTG59: 0 | HTH59: 0 | HTI59: 0 | HTJ59: 0 | HTK59: 0 | HTL59: 0 | HTM59: 0 | HTN59: 0 | HTO59: 0 | HTP59: 0 | HTQ59: 0 | HTR59: 0 | HTS59: 0 | HTT59: 0 | HTU59: 0 | HTV59: 0 | HTW59: 0 | HTX59: 0 | HTY59: 0 | HTZ59: 0 | HUA59: 0 | HUB59: 0 | HUC59: 0 | HUD59: =HUD67 -> 0 | HUE59: 0 | HUF59: 0 | HUG59: 0 | HUH59: 0 | HUI59: 0 | HUJ59: 0 | HUK59: 0 | HUL59: 0 | HUM59: 0 | HUN59: 0 | HUO59: 0 | HUP59: 0 | HUQ59: 0 | HUR59: 0 | HUS59: 0 | HUT59: 0 | HUU59: 0 | HUV59: 0 | HUW59: 0 | HUX59: 0 | HUY59: 0 | HUZ59: 0 | HVA59: 0 | HVB59: 0 | HVC59: 0 | HVD59: 0 | HVE59: 0 | HVF59: 0 | HVG59: 0 | HVH59: 0 | HVI59: 0 | HVJ59: 0 | HVK59: 0 | HVL59: 0 | HVM59: 0 | HVN59: 0 | HVO59: 0 | HVP59: 0 | HVQ59: 0 | HVR59: 0 | HVS59: 0 | HVT59: 0 | HVU59: 0 | HVV59: 0 | HVW59: 0 | HVX59: 0 | HVY59: 0 | HVZ59: 0 | HWA59: 0 | HWB59: 0 | HWC59: 0 | HWD59: 0 | HWE59: 0 | HWF59: 0 | HWG59: 0 | HWH59: 0 | HWI59: 0 | HWJ59: 0 | HWK59: 0 | HWL59: 0 | HWM59: 0 | HWN59: 0 | HWO59: 0 | HWP59: =HWP67 -> 0 | HWQ59: 0 | HWR59: 0 | HWS59: 0 | HWT59: 0 | HWU59: 0 | HWV59: 0 | HWW59: 0 | HWX59: 0 | HWY59: 0 | HWZ59: 0 | HXA59: 0 | HXB59: 0 | HXC59: 0 | HXD59: 0 | HXE59: 0 | HXF59: 0 | HXG59: 0 | HXH59: 0 | HXI59: 0 | HXJ59: 0 | HXK59: 0 | HXL59: 0 | HXM59: 0 | HXN59: 0 | HXO59: 0 | HXP59: 0 | HXQ59: 0 | HXR59: 0 | HXS59: 0 | HXT59: 0 | HXU59: 0 | HXV59: 0 | HXW59: 0 | HXX59: 0 | HXY59: 0 | HXZ59: 0 | HYA59: 0 | HYB59: 0 | HYC59: 0 | HYD59: 0 | HYE59: 0 | HYF59: 0 | HYG59: 0 | HYH59: 0 | HYI59: 0 | HYJ59: 0 | HYK59: 0 | HYL59: 0 | HYM59: 0 | HYN59: 0 | HYO59: 0 | HYP59: 0 | HYQ59: 0 | HYR59: 0 | HYS59: 0 | HYT59: 0 | HYU59: 0 | HYV59: 0 | HYW59: 0 | HYX59: 0 | HYY59: 0 | HYZ59: 0 | HZA59: 0 | HZB59: =HZB67 -> 0 | HZC59: 0 | HZD59: 0 | HZE59: 0 | HZF59: 0 | HZG59: 0 | HZH59: 0 | HZI59: 0 | HZJ59: 0 | HZK59: 0 | HZL59: 0 | HZM59: 0 | HZN59: 0 | HZO59: 0 | HZP59: 0 | HZQ59: 0 | HZR59: 0 | HZS59: 0 | HZT59: 0 | HZU59: 0 | HZV59: 0 | HZW59: 0 | HZX59: 0 | HZY59: 0 | HZZ59: 0 | IAA59: 0 | IAB59: 0 | IAC59: 0 | IAD59: 0 | IAE59: 0 | IAF59: 0 | IAG59: 0 | IAH59: 0 | IAI59: 0 | IAJ59: 0 | IAK59: 0 | IAL59: 0 | IAM59: 0 | IAN59: 0 | IAO59: 0 | IAP59: 0 | IAQ59: 0 | IAR59: 0 | IAS59: 0 | IAT59: 0 | IAU59: 0 | IAV59: 0 | IAW59: 0 | IAX59: 0 | IAY59: 0 | IAZ59: 0 | IBA59: 0 | IBB59: 0 | IBC59: 0 | IBD59: 0 | IBE59: 0 | IBF59: 0 | IBG59: 0 | IBH59: 0 | IBI59: 0 | IBJ59: 0 | IBK59: 0 | IBL59: 0 | IBM59: 0 | IBN59: =IBN67 -> 0 | IBO59: 0 | IBP59: 0 | IBQ59: 0 | IBR59: 0 | IBS59: 0 | IBT59: 0 | IBU59: 0 | IBV59: 0 | IBW59: 0 | IBX59: 0 | IBY59: 0 | IBZ59: 0 | ICA59: 0 | ICB59: 0 | ICC59: 0 | ICD59: 0 | ICE59: 0 | ICF59: 0 | ICG59: 0 | ICH59: 0 | ICI59: 0 | ICJ59: 0 | ICK59: 0 | ICL59: 0 | ICM59: 0 | ICN59: 0 | ICO59: 0 | ICP59: 0 | ICQ59: 0 | ICR59: 0 | ICS59: 0 | ICT59: 0 | ICU59: 0 | ICV59: 0 | ICW59: 0 | ICX59: 0 | ICY59: 0 | ICZ59: 0 | IDA59: 0 | IDB59: 0 | IDC59: 0 | IDD59: 0 | IDE59: 0 | IDF59: 0 | IDG59: 0 | IDH59: 0 | IDI59: 0 | IDJ59: 0 | IDK59: 0 | IDL59: 0 | IDM59: 0 | IDN59: 0 | IDO59: 0 | IDP59: 0 | IDQ59: 0 | IDR59: 0 | IDS59: 0 | IDT59: 0 | IDU59: 0 | IDV59: 0 | IDW59: 0 | IDX59: 0 | IDY59: 0 | IDZ59: =IDZ67 -> 0 | IEA59: 0 | IEB59: 0 | IEC59: 0 | IED59: 0 | IEE59: 0 | IEF59: 0 | IEG59: 0 | IEH59: 0 | IEI59: 0 | IEJ59: 0 | IEK59: 0 | IEL59: 0 | IEM59: 0 | IEN59: 0 | IEO59: 0 | IEP59: 0 | IEQ59: 0 | IER59: 0 | IES59: 0 | IET59: 0 | IEU59: 0 | IEV59: 0 | IEW59: 0 | IEX59: 0 | IEY59: 0 | IEZ59: 0 | IFA59: 0 | IFB59: 0 | IFC59: 0 | IFD59: 0 | IFE59: 0 | IFF59: 0 | IFG59: 0 | IFH59: 0 | IFI59: 0 | IFJ59: 0 | IFK59: 0 | IFL59: 0 | IFM59: 0 | IFN59: 0 | IFO59: 0 | IFP59: 0 | IFQ59: 0 | IFR59: 0 | IFS59: 0 | IFT59: 0 | IFU59: 0 | IFV59: 0 | IFW59: 0 | IFX59: 0 | IFY59: 0 | IFZ59: 0 | IGA59: 0 | IGB59: 0 | IGC59: 0 | IGD59: 0 | IGE59: 0 | IGF59: 0 | IGG59: 0 | IGH59: 0 | IGI59: 0 | IGJ59: 0 | IGK59: 0 | IGL59: =IGL67 -> 0 | IGM59: 0 | IGN59: 0 | IGO59: 0 | IGP59: 0 | IGQ59: 0 | IGR59: 0 | IGS59: 0 | IGT59: 0 | IGU59: 0 | IGV59: 0 | IGW59: 0 | IGX59: 0 | IGY59: 0 | IGZ59: 0 | IHA59: 0 | IHB59: 0 | IHC59: 0 | IHD59: 0 | IHE59: 0 | IHF59: 0 | IHG59: 0 | IHH59: 0 | IHI59: 0 | IHJ59: 0 | IHK59: 0 | IHL59: 0 | IHM59: 0 | IHN59: 0 | IHO59: 0 | IHP59: 0 | IHQ59: 0 | IHR59: 0 | IHS59: 0 | IHT59: 0 | IHU59: 0 | IHV59: 0 | IHW59: 0 | IHX59: 0 | IHY59: 0 | IHZ59: 0 | IIA59: 0 | IIB59: 0 | IIC59: 0 | IID59: 0 | IIE59: 0 | IIF59: 0 | IIG59: 0 | IIH59: 0 | III59: 0 | IIJ59: 0 | IIK59: 0 | IIL59: 0 | IIM59: 0 | IIN59: 0 | IIO59: 0 | IIP59: 0 | IIQ59: 0 | IIR59: 0 | IIS59: 0 | IIT59: 0 | IIU59: 0 | IIV59: 0 | IIW59: 0 | IIX59: =IIX67 -> 0 | IIY59: 0 | IIZ59: 0 | IJA59: 0 | IJB59: 0 | IJC59: 0 | IJD59: 0 | IJE59: 0 | IJF59: 0 | IJG59: 0 | IJH59: 0 | IJI59: 0 | IJJ59: 0 | IJK59: 0 | IJL59: 0 | IJM59: 0 | IJN59: 0 | IJO59: 0 | IJP59: 0 | IJQ59: 0 | IJR59: 0 | IJS59: 0 | IJT59: 0 | IJU59: 0 | IJV59: 0 | IJW59: 0 | IJX59: 0 | IJY59: 0 | IJZ59: 0 | IKA59: 0 | IKB59: 0 | IKC59: 0 | IKD59: 0 | IKE59: 0 | IKF59: 0 | IKG59: 0 | IKH59: 0 | IKI59: 0 | IKJ59: 0 | IKK59: 0 | IKL59: 0 | IKM59: 0 | IKN59: 0 | IKO59: 0 | IKP59: 0 | IKQ59: 0 | IKR59: 0 | IKS59: 0 | IKT59: 0 | IKU59: 0 | IKV59: 0 | IKW59: 0 | IKX59: 0 | IKY59: 0 | IKZ59: 0 | ILA59: 0 | ILB59: 0 | ILC59: 0 | ILD59: 0 | ILE59: 0 | ILF59: 0 | ILG59: 0 | ILH59: 0 | ILI59: 0 | ILJ59: =ILJ67 -> 0 | ILK59: 0 | ILL59: 0 | ILM59: 0 | ILN59: 0 | ILO59: 0 | ILP59: 0 | ILQ59: 0 | ILR59: 0 | ILS59: 0 | ILT59: 0 | ILU59: 0 | ILV59: 0 | ILW59: 0 | ILX59: 0 | ILY59: 0 | ILZ59: 0 | IMA59: 0 | IMB59: 0 | IMC59: 0 | IMD59: 0 | IME59: 0 | IMF59: 0 | IMG59: 0 | IMH59: 0 | IMI59: 0 | IMJ59: 0 | IMK59: 0 | IML59: 0 | IMM59: 0 | IMN59: 0 | IMO59: 0 | IMP59: 0 | IMQ59: 0 | IMR59: 0 | IMS59: 0 | IMT59: 0 | IMU59: 0 | IMV59: 0 | IMW59: 0 | IMX59: 0 | IMY59: 0 | IMZ59: 0 | INA59: 0 | INB59: 0 | INC59: 0 | IND59: 0 | INE59: 0 | INF59: 0 | ING59: 0 | INH59: 0 | INI59: 0 | INJ59: 0 | INK59: 0 | INL59: 0 | INM59: 0 | INN59: 0 | INO59: 0 | INP59: 0 | INQ59: 0 | INR59: 0 | INS59: 0 | INT59: 0 | INU59: 0 | INV59: =INV67 -> 0 | INW59: 0 | INX59: 0 | INY59: 0 | INZ59: 0 | IOA59: 0 | IOB59: 0 | IOC59: 0 | IOD59: 0 | IOE59: 0 | IOF59: 0 | IOG59: 0 | IOH59: 0 | IOI59: 0 | IOJ59: 0 | IOK59: 0 | IOL59: 0 | IOM59: 0 | ION59: 0 | IOO59: 0 | IOP59: 0 | IOQ59: 0 | IOR59: 0 | IOS59: 0 | IOT59: 0 | IOU59: 0 | IOV59: 0 | IOW59: 0 | IOX59: 0 | IOY59: 0 | IOZ59: 0 | IPA59: 0 | IPB59: 0 | IPC59: 0 | IPD59: 0 | IPE59: 0 | IPF59: 0 | IPG59: 0 | IPH59: 0 | IPI59: 0 | IPJ59: 0 | IPK59: 0 | IPL59: 0 | IPM59: 0 | IPN59: 0 | IPO59: 0 | IPP59: 0 | IPQ59: 0 | IPR59: 0 | IPS59: 0 | IPT59: 0 | IPU59: 0 | IPV59: 0 | IPW59: 0 | IPX59: 0 | IPY59: 0 | IPZ59: 0 | IQA59: 0 | IQB59: 0 | IQC59: 0 | IQD59: 0 | IQE59: 0 | IQF59: 0 | IQG59: 0 | IQH59: =IQH67 -> 0 | IQI59: 0 | IQJ59: 0 | IQK59: 0 | IQL59: 0 | IQM59: 0 | IQN59: 0 | IQO59: 0 | IQP59: 0 | IQQ59: 0 | IQR59: 0 | IQS59: 0 | IQT59: 0 | IQU59: 0 | IQV59: 0 | IQW59: 0 | IQX59: 0 | IQY59: 0 | IQZ59: 0 | IRA59: 0 | IRB59: 0 | IRC59: 0 | IRD59: 0 | IRE59: 0 | IRF59: 0 | IRG59: 0 | IRH59: 0 | IRI59: 0 | IRJ59: 0 | IRK59: 0 | IRL59: 0 | IRM59: 0 | IRN59: 0 | IRO59: 0 | IRP59: 0 | IRQ59: 0 | IRR59: 0 | IRS59: 0 | IRT59: 0 | IRU59: 0 | IRV59: 0 | IRW59: 0 | IRX59: 0 | IRY59: 0 | IRZ59: 0 | ISA59: 0 | ISB59: 0 | ISC59: 0 | ISD59: 0 | ISE59: 0 | ISF59: 0 | ISG59: 0 | ISH59: 0 | ISI59: 0 | ISJ59: 0 | ISK59: 0 | ISL59: 0 | ISM59: 0 | ISN59: 0 | ISO59: 0 | ISP59: 0 | ISQ59: 0 | ISR59: 0 | ISS59: 0 | IST59: =IST67 -> 0 | ISU59: 0 | ISV59: 0 | ISW59: 0 | ISX59: 0 | ISY59: 0 | ISZ59: 0 | ITA59: 0 | ITB59: 0 | ITC59: 0 | ITD59: 0 | ITE59: 0 | ITF59: 0 | ITG59: 0 | ITH59: 0 | ITI59: 0 | ITJ59: 0 | ITK59: 0 | ITL59: 0 | ITM59: 0 | ITN59: 0 | ITO59: 0 | ITP59: 0 | ITQ59: 0 | ITR59: 0 | ITS59: 0 | ITT59: 0 | ITU59: 0 | ITV59: 0 | ITW59: 0 | ITX59: 0 | ITY59: 0 | ITZ59: 0 | IUA59: 0 | IUB59: 0 | IUC59: 0 | IUD59: 0 | IUE59: 0 | IUF59: 0 | IUG59: 0 | IUH59: 0 | IUI59: 0 | IUJ59: 0 | IUK59: 0 | IUL59: 0 | IUM59: 0 | IUN59: 0 | IUO59: 0 | IUP59: 0 | IUQ59: 0 | IUR59: 0 | IUS59: 0 | IUT59: 0 | IUU59: 0 | IUV59: 0 | IUW59: 0 | IUX59: 0 | IUY59: 0 | IUZ59: 0 | IVA59: 0 | IVB59: 0 | IVC59: 0 | IVD59: 0 | IVE59: 0 | IVF59: =IVF67 -> 0 | IVG59: 0 | IVH59: 0 | IVI59: 0 | IVJ59: 0 | IVK59: 0 | IVL59: 0 | IVM59: 0 | IVN59: 0 | IVO59: 0 | IVP59: 0 | IVQ59: 0 | IVR59: 0 | IVS59: 0 | IVT59: 0 | IVU59: 0 | IVV59: 0 | IVW59: 0 | IVX59: 0 | IVY59: 0 | IVZ59: 0 | IWA59: 0 | IWB59: 0 | IWC59: 0 | IWD59: 0 | IWE59: 0 | IWF59: 0 | IWG59: 0 | IWH59: 0 | IWI59: 0 | IWJ59: 0 | IWK59: 0 | IWL59: 0 | IWM59: 0 | IWN59: 0 | IWO59: 0 | IWP59: 0 | IWQ59: 0 | IWR59: 0 | IWS59: 0 | IWT59: 0 | IWU59: 0 | IWV59: 0 | IWW59: 0 | IWX59: 0 | IWY59: 0 | IWZ59: 0 | IXA59: 0 | IXB59: 0 | IXC59: 0 | IXD59: 0 | IXE59: 0 | IXF59: 0 | IXG59: 0 | IXH59: 0 | IXI59: 0 | IXJ59: 0 | IXK59: 0 | IXL59: 0 | IXM59: 0 | IXN59: 0 | IXO59: 0 | IXP59: 0 | IXQ59: 0 | IXR59: =IXR67 -> 0 | IXS59: 0 | IXT59: 0 | IXU59: 0 | IXV59: 0 | IXW59: 0 | IXX59: 0 | IXY59: 0 | IXZ59: 0 | IYA59: 0 | IYB59: 0 | IYC59: 0 | IYD59: 0 | IYE59: 0 | IYF59: 0 | IYG59: 0 | IYH59: 0 | IYI59: 0 | IYJ59: 0 | IYK59: 0 | IYL59: 0 | IYM59: 0 | IYN59: 0 | IYO59: 0 | IYP59: 0 | IYQ59: 0 | IYR59: 0 | IYS59: 0 | IYT59: 0 | IYU59: 0 | IYV59: 0 | IYW59: 0 | IYX59: 0 | IYY59: 0 | IYZ59: 0 | IZA59: 0 | IZB59: 0 | IZC59: 0 | IZD59: 0 | IZE59: 0 | IZF59: 0 | IZG59: 0 | IZH59: 0 | IZI59: 0 | IZJ59: 0 | IZK59: 0 | IZL59: 0 | IZM59: 0 | IZN59: 0 | IZO59: 0 | IZP59: 0 | IZQ59: 0 | IZR59: 0 | IZS59: 0 | IZT59: 0 | IZU59: 0 | IZV59: 0 | IZW59: 0 | IZX59: 0 | IZY59: 0 | IZZ59: 0 | JAA59: 0 | JAB59: 0 | JAC59: 0 | JAD59: =JAD67 -> 0 | JAE59: 0 | JAF59: 0 | JAG59: 0 | JAH59: 0 | JAI59: 0 | JAJ59: 0 | JAK59: 0 | JAL59: 0 | JAM59: 0 | JAN59: 0 | JAO59: 0 | JAP59: 0 | JAQ59: 0 | JAR59: 0 | JAS59: 0 | JAT59: 0 | JAU59: 0 | JAV59: 0 | JAW59: 0 | JAX59: 0 | JAY59: 0 | JAZ59: 0 | JBA59: 0 | JBB59: 0 | JBC59: 0 | JBD59: 0 | JBE59: 0 | JBF59: 0 | JBG59: 0 | JBH59: 0 | JBI59: 0 | JBJ59: 0 | JBK59: 0 | JBL59: 0 | JBM59: 0 | JBN59: 0 | JBO59: 0 | JBP59: 0 | JBQ59: 0 | JBR59: 0 | JBS59: 0 | JBT59: 0 | JBU59: 0 | JBV59: 0 | JBW59: 0 | JBX59: 0 | JBY59: 0 | JBZ59: 0 | JCA59: 0 | JCB59: 0 | JCC59: 0 | JCD59: 0 | JCE59: 0 | JCF59: 0 | JCG59: 0 | JCH59: 0 | JCI59: 0 | JCJ59: 0 | JCK59: 0 | JCL59: 0 | JCM59: 0 | JCN59: 0 | JCO59: 0 | JCP59: =JCP67 -> 0 | JCQ59: 0 | JCR59: 0 | JCS59: 0 | JCT59: 0 | JCU59: 0 | JCV59: 0 | JCW59: 0 | JCX59: 0 | JCY59: 0 | JCZ59: 0 | JDA59: 0 | JDB59: 0 | JDC59: 0 | JDD59: 0 | JDE59: 0 | JDF59: 0 | JDG59: 0 | JDH59: 0 | JDI59: 0 | JDJ59: 0 | JDK59: 0 | JDL59: 0 | JDM59: 0 | JDN59: 0 | JDO59: 0 | JDP59: 0 | JDQ59: 0 | JDR59: 0 | JDS59: 0 | JDT59: 0 | JDU59: 0 | JDV59: 0 | JDW59: 0 | JDX59: 0 | JDY59: 0 | JDZ59: 0 | JEA59: 0 | JEB59: 0 | JEC59: 0 | JED59: 0 | JEE59: 0 | JEF59: 0 | JEG59: 0 | JEH59: 0 | JEI59: 0 | JEJ59: 0 | JEK59: 0 | JEL59: 0 | JEM59: 0 | JEN59: 0 | JEO59: 0 | JEP59: 0 | JEQ59: 0 | JER59: 0 | JES59: 0 | JET59: 0 | JEU59: 0 | JEV59: 0 | JEW59: 0 | JEX59: 0 | JEY59: 0 | JEZ59: 0 | JFA59: 0 | JFB59: =JFB67 -> 0 | JFC59: 0 | JFD59: 0 | JFE59: 0 | JFF59: 0 | JFG59: 0 | JFH59: 0 | JFI59: 0 | JFJ59: 0 | JFK59: 0 | JFL59: 0 | JFM59: 0 | JFN59: 0 | JFO59: 0 | JFP59: 0 | JFQ59: 0 | JFR59: 0 | JFS59: 0 | JFT59: 0 | JFU59: 0 | JFV59: 0 | JFW59: 0 | JFX59: 0 | JFY59: 0 | JFZ59: 0 | JGA59: 0 | JGB59: 0 | JGC59: 0 | JGD59: 0 | JGE59: 0 | JGF59: 0 | JGG59: 0 | JGH59: 0 | JGI59: 0 | JGJ59: 0 | JGK59: 0 | JGL59: 0 | JGM59: 0 | JGN59: 0 | JGO59: 0 | JGP59: 0 | JGQ59: 0 | JGR59: 0 | JGS59: 0 | JGT59: 0 | JGU59: 0 | JGV59: 0 | JGW59: 0 | JGX59: 0 | JGY59: 0 | JGZ59: 0 | JHA59: 0 | JHB59: 0 | JHC59: 0 | JHD59: 0 | JHE59: 0 | JHF59: 0 | JHG59: 0 | JHH59: 0 | JHI59: 0 | JHJ59: 0 | JHK59: 0 | JHL59: 0 | JHM59: 0 | JHN59: =JHN67 -> 0 | JHO59: 0 | JHP59: 0 | JHQ59: 0 | JHR59: 0 | JHS59: 0 | JHT59: 0 | JHU59: 0 | JHV59: 0 | JHW59: 0 | JHX59: 0 | JHY59: 0 | JHZ59: 0 | JIA59: 0 | JIB59: 0 | JIC59: 0 | JID59: 0 | JIE59: 0 | JIF59: 0 | JIG59: 0 | JIH59: 0 | JII59: 0 | JIJ59: 0 | JIK59: 0 | JIL59: 0 | JIM59: 0 | JIN59: 0 | JIO59: 0 | JIP59: 0 | JIQ59: 0 | JIR59: 0 | JIS59: 0 | JIT59: 0 | JIU59: 0 | JIV59: 0 | JIW59: 0 | JIX59: 0 | JIY59: 0 | JIZ59: 0 | JJA59: 0 | JJB59: 0 | JJC59: 0 | JJD59: 0 | JJE59: 0 | JJF59: 0 | JJG59: 0 | JJH59: 0 | JJI59: 0 | JJJ59: 0 | JJK59: 0 | JJL59: 0 | JJM59: 0 | JJN59: 0 | JJO59: 0 | JJP59: 0 | JJQ59: 0 | JJR59: 0 | JJS59: 0 | JJT59: 0 | JJU59: 0 | JJV59: 0 | JJW59: 0 | JJX59: 0 | JJY59: 0 | JJZ59: =JJZ67 -> 0 | JKA59: 0 | JKB59: 0 | JKC59: 0 | JKD59: 0 | JKE59: 0 | JKF59: 0 | JKG59: 0 | JKH59: 0 | JKI59: 0 | JKJ59: 0 | JKK59: 0 | JKL59: 0 | JKM59: 0 | JKN59: 0 | JKO59: 0 | JKP59: 0 | JKQ59: 0 | JKR59: 0 | JKS59: 0 | JKT59: 0 | JKU59: 0 | JKV59: 0 | JKW59: 0 | JKX59: 0 | JKY59: 0 | JKZ59: 0 | JLA59: 0 | JLB59: 0 | JLC59: 0 | JLD59: 0 | JLE59: 0 | JLF59: 0 | JLG59: 0 | JLH59: 0 | JLI59: 0 | JLJ59: 0 | JLK59: 0 | JLL59: 0 | JLM59: 0 | JLN59: 0 | JLO59: 0 | JLP59: 0 | JLQ59: 0 | JLR59: 0 | JLS59: 0 | JLT59: 0 | JLU59: 0 | JLV59: 0 | JLW59: 0 | JLX59: 0 | JLY59: 0 | JLZ59: 0 | JMA59: 0 | JMB59: 0 | JMC59: 0 | JMD59: 0 | JME59: 0 | JMF59: 0 | JMG59: 0 | JMH59: 0 | JMI59: 0 | JMJ59: 0 | JMK59: 0 | JML59: =JML67 -> 0 | JMM59: 0 | JMN59: 0 | JMO59: 0 | JMP59: 0 | JMQ59: 0 | JMR59: 0 | JMS59: 0 | JMT59: 0 | JMU59: 0 | JMV59: 0 | JMW59: 0 | JMX59: 0 | JMY59: 0 | JMZ59: 0 | JNA59: 0 | JNB59: 0 | JNC59: 0 | JND59: 0 | JNE59: 0 | JNF59: 0 | JNG59: 0 | JNH59: 0 | JNI59: 0 | JNJ59: 0 | JNK59: 0 | JNL59: 0 | JNM59: 0 | JNN59: 0 | JNO59: 0 | JNP59: 0 | JNQ59: 0 | JNR59: 0 | JNS59: 0 | JNT59: 0 | JNU59: 0 | JNV59: 0 | JNW59: 0 | JNX59: 0 | JNY59: 0 | JNZ59: 0 | JOA59: 0 | JOB59: 0 | JOC59: 0 | JOD59: 0 | JOE59: 0 | JOF59: 0 | JOG59: 0 | JOH59: 0 | JOI59: 0 | JOJ59: 0 | JOK59: 0 | JOL59: 0 | JOM59: 0 | JON59: 0 | JOO59: 0 | JOP59: 0 | JOQ59: 0 | JOR59: 0 | JOS59: 0 | JOT59: 0 | JOU59: 0 | JOV59: 0 | JOW59: 0 | JOX59: =JOX67 -> 0 | JOY59: 0 | JOZ59: 0 | JPA59: 0 | JPB59: 0 | JPC59: 0 | JPD59: 0 | JPE59: 0 | JPF59: 0 | JPG59: 0 | JPH59: 0 | JPI59: 0 | JPJ59: 0 | JPK59: 0 | JPL59: 0 | JPM59: 0 | JPN59: 0 | JPO59: 0 | JPP59: 0 | JPQ59: 0 | JPR59: 0 | JPS59: 0 | JPT59: 0 | JPU59: 0 | JPV59: 0 | JPW59: 0 | JPX59: 0 | JPY59: 0 | JPZ59: 0 | JQA59: 0 | JQB59: 0 | JQC59: 0 | JQD59: 0 | JQE59: 0 | JQF59: 0 | JQG59: 0 | JQH59: 0 | JQI59: 0 | JQJ59: 0 | JQK59: 0 | JQL59: 0 | JQM59: 0 | JQN59: 0 | JQO59: 0 | JQP59: 0 | JQQ59: 0 | JQR59: 0 | JQS59: 0 | JQT59: 0 | JQU59: 0 | JQV59: 0 | JQW59: 0 | JQX59: 0 | JQY59: 0 | JQZ59: 0 | JRA59: 0 | JRB59: 0 | JRC59: 0 | JRD59: 0 | JRE59: 0 | JRF59: 0 | JRG59: 0 | JRH59: 0 | JRI59: 0 | JRJ59: =JRJ67 -> 0 | JRK59: 0 | JRL59: 0 | JRM59: 0 | JRN59: 0 | JRO59: 0 | JRP59: 0 | JRQ59: 0 | JRR59: 0 | JRS59: 0 | JRT59: 0 | JRU59: 0 | JRV59: 0 | JRW59: 0 | JRX59: 0 | JRY59: 0 | JRZ59: 0 | JSA59: 0 | JSB59: 0 | JSC59: 0 | JSD59: 0 | JSE59: 0 | JSF59: 0 | JSG59: 0 | JSH59: 0 | JSI59: 0 | JSJ59: 0 | JSK59: 0 | JSL59: 0 | JSM59: 0 | JSN59: 0 | JSO59: 0 | JSP59: 0 | JSQ59: 0 | JSR59: 0 | JSS59: 0 | JST59: 0 | JSU59: 0 | JSV59: 0 | JSW59: 0 | JSX59: 0 | JSY59: 0 | JSZ59: 0 | JTA59: 0 | JTB59: 0 | JTC59: 0 | JTD59: 0 | JTE59: 0 | JTF59: 0 | JTG59: 0 | JTH59: 0 | JTI59: 0 | JTJ59: 0 | JTK59: 0 | JTL59: 0 | JTM59: 0 | JTN59: 0 | JTO59: 0 | JTP59: 0 | JTQ59: 0 | JTR59: 0 | JTS59: 0 | JTT59: 0 | JTU59: 0 | JTV59: =JTV67 -> 0 | JTW59: 0 | JTX59: 0 | JTY59: 0 | JTZ59: 0 | JUA59: 0 | JUB59: 0 | JUC59: 0 | JUD59: 0 | JUE59: 0 | JUF59: 0 | JUG59: 0 | JUH59: 0 | JUI59: 0 | JUJ59: 0 | JUK59: 0 | JUL59: 0 | JUM59: 0 | JUN59: 0 | JUO59: 0 | JUP59: 0 | JUQ59: 0 | JUR59: 0 | JUS59: 0 | JUT59: 0 | JUU59: 0 | JUV59: 0 | JUW59: 0 | JUX59: 0 | JUY59: 0 | JUZ59: 0 | JVA59: 0 | JVB59: 0 | JVC59: 0 | JVD59: 0 | JVE59: 0 | JVF59: 0 | JVG59: 0 | JVH59: 0 | JVI59: 0 | JVJ59: 0 | JVK59: 0 | JVL59: 0 | JVM59: 0 | JVN59: 0 | JVO59: 0 | JVP59: 0 | JVQ59: 0 | JVR59: 0 | JVS59: 0 | JVT59: 0 | JVU59: 0 | JVV59: 0 | JVW59: 0 | JVX59: 0 | JVY59: 0 | JVZ59: 0 | JWA59: 0 | JWB59: 0 | JWC59: 0 | JWD59: 0 | JWE59: 0 | JWF59: 0 | JWG59: 0 | JWH59: =JWH67 -> 0 | JWI59: 0 | JWJ59: 0 | JWK59: 0 | JWL59: 0 | JWM59: 0 | JWN59: 0 | JWO59: 0 | JWP59: 0 | JWQ59: 0 | JWR59: 0 | JWS59: 0 | JWT59: 0 | JWU59: 0 | JWV59: 0 | JWW59: 0 | JWX59: 0 | JWY59: 0 | JWZ59: 0 | JXA59: 0 | JXB59: 0 | JXC59: 0 | JXD59: 0 | JXE59: 0 | JXF59: 0 | JXG59: 0 | JXH59: 0 | JXI59: 0 | JXJ59: 0 | JXK59: 0 | JXL59: 0 | JXM59: 0 | JXN59: 0 | JXO59: 0 | JXP59: 0 | JXQ59: 0 | JXR59: 0 | JXS59: 0 | JXT59: 0 | JXU59: 0 | JXV59: 0 | JXW59: 0 | JXX59: 0 | JXY59: 0 | JXZ59: 0 | JYA59: 0 | JYB59: 0 | JYC59: 0 | JYD59: 0 | JYE59: 0 | JYF59: 0 | JYG59: 0 | JYH59: 0 | JYI59: 0 | JYJ59: 0 | JYK59: 0 | JYL59: 0 | JYM59: 0 | JYN59: 0 | JYO59: 0 | JYP59: 0 | JYQ59: 0 | JYR59: 0 | JYS59: 0 | JYT59: =JYT67 -> 0 | JYU59: 0 | JYV59: 0 | JYW59: 0 | JYX59: 0 | JYY59: 0 | JYZ59: 0 | JZA59: 0 | JZB59: 0 | JZC59: 0 | JZD59: 0 | JZE59: 0 | JZF59: 0 | JZG59: 0 | JZH59: 0 | JZI59: 0 | JZJ59: 0 | JZK59: 0 | JZL59: 0 | JZM59: 0 | JZN59: 0 | JZO59: 0 | JZP59: 0 | JZQ59: 0 | JZR59: 0 | JZS59: 0 | JZT59: 0 | JZU59: 0 | JZV59: 0 | JZW59: 0 | JZX59: 0 | JZY59: 0 | JZZ59: 0 | KAA59: 0 | KAB59: 0 | KAC59: 0 | KAD59: 0 | KAE59: 0 | KAF59: 0 | KAG59: 0 | KAH59: 0 | KAI59: 0 | KAJ59: 0 | KAK59: 0 | KAL59: 0 | KAM59: 0 | KAN59: 0 | KAO59: 0 | KAP59: 0 | KAQ59: 0 | KAR59: 0 | KAS59: 0 | KAT59: 0 | KAU59: 0 | KAV59: 0 | KAW59: 0 | KAX59: 0 | KAY59: 0 | KAZ59: 0 | KBA59: 0 | KBB59: 0 | KBC59: 0 | KBD59: 0 | KBE59: 0 | KBF59: =KBF67 -> 0 | KBG59: 0 | KBH59: 0 | KBI59: 0 | KBJ59: 0 | KBK59: 0 | KBL59: 0 | KBM59: 0 | KBN59: 0 | KBO59: 0 | KBP59: 0 | KBQ59: 0 | KBR59: 0 | KBS59: 0 | KBT59: 0 | KBU59: 0 | KBV59: 0 | KBW59: 0 | KBX59: 0 | KBY59: 0 | KBZ59: 0 | KCA59: 0 | KCB59: 0 | KCC59: 0 | KCD59: 0 | KCE59: 0 | KCF59: 0 | KCG59: 0 | KCH59: 0 | KCI59: 0 | KCJ59: 0 | KCK59: 0 | KCL59: 0 | KCM59: 0 | KCN59: 0 | KCO59: 0 | KCP59: 0 | KCQ59: 0 | KCR59: 0 | KCS59: 0 | KCT59: 0 | KCU59: 0 | KCV59: 0 | KCW59: 0 | KCX59: 0 | KCY59: 0 | KCZ59: 0 | KDA59: 0 | KDB59: 0 | KDC59: 0 | KDD59: 0 | KDE59: 0 | KDF59: 0 | KDG59: 0 | KDH59: 0 | KDI59: 0 | KDJ59: 0 | KDK59: 0 | KDL59: 0 | KDM59: 0 | KDN59: 0 | KDO59: 0 | KDP59: 0 | KDQ59: 0 | KDR59: =KDR67 -> 0 | KDS59: 0 | KDT59: 0 | KDU59: 0 | KDV59: 0 | KDW59: 0 | KDX59: 0 | KDY59: 0 | KDZ59: 0 | KEA59: 0 | KEB59: 0 | KEC59: 0 | KED59: 0 | KEE59: 0 | KEF59: 0 | KEG59: 0 | KEH59: 0 | KEI59: 0 | KEJ59: 0 | KEK59: 0 | KEL59: 0 | KEM59: 0 | KEN59: 0 | KEO59: 0 | KEP59: 0 | KEQ59: 0 | KER59: 0 | KES59: 0 | KET59: 0 | KEU59: 0 | KEV59: 0 | KEW59: 0 | KEX59: 0 | KEY59: 0 | KEZ59: 0 | KFA59: 0 | KFB59: 0 | KFC59: 0 | KFD59: 0 | KFE59: 0 | KFF59: 0 | KFG59: 0 | KFH59: 0 | KFI59: 0 | KFJ59: 0 | KFK59: 0 | KFL59: 0 | KFM59: 0 | KFN59: 0 | KFO59: 0 | KFP59: 0 | KFQ59: 0 | KFR59: 0 | KFS59: 0 | KFT59: 0 | KFU59: 0 | KFV59: 0 | KFW59: 0 | KFX59: 0 | KFY59: 0 | KFZ59: 0 | KGA59: 0 | KGB59: 0 | KGC59: 0 | KGD59: =KGD67 -> 0 | KGE59: 0 | KGF59: 0 | KGG59: 0 | KGH59: 0 | KGI59: 0 | KGJ59: 0 | KGK59: 0 | KGL59: 0 | KGM59: 0 | KGN59: 0 | KGO59: 0 | KGP59: 0 | KGQ59: 0 | KGR59: 0 | KGS59: 0 | KGT59: 0 | KGU59: 0 | KGV59: 0 | KGW59: 0 | KGX59: 0 | KGY59: 0 | KGZ59: 0 | KHA59: 0 | KHB59: 0 | KHC59: 0 | KHD59: 0 | KHE59: 0 | KHF59: 0 | KHG59: 0 | KHH59: 0 | KHI59: 0 | KHJ59: 0 | KHK59: 0 | KHL59: 0 | KHM59: 0 | KHN59: 0 | KHO59: 0 | KHP59: 0 | KHQ59: 0 | KHR59: 0 | KHS59: 0 | KHT59: 0 | KHU59: 0 | KHV59: 0 | KHW59: 0 | KHX59: 0 | KHY59: 0 | KHZ59: 0 | KIA59: 0 | KIB59: 0 | KIC59: 0 | KID59: 0 | KIE59: 0 | KIF59: 0 | KIG59: 0 | KIH59: 0 | KII59: 0 | KIJ59: 0 | KIK59: 0 | KIL59: 0 | KIM59: 0 | KIN59: 0 | KIO59: 0 | KIP59: =KIP67 -> 0 | KIQ59: 0 | KIR59: 0 | KIS59: 0 | KIT59: 0 | KIU59: 0 | KIV59: 0 | KIW59: 0 | KIX59: 0 | KIY59: 0 | KIZ59: 0 | KJA59: 0 | KJB59: 0 | KJC59: 0 | KJD59: 0 | KJE59: 0 | KJF59: 0 | KJG59: 0 | KJH59: 0 | KJI59: 0 | KJJ59: 0 | KJK59: 0 | KJL59: 0 | KJM59: 0 | KJN59: 0 | KJO59: 0 | KJP59: 0 | KJQ59: 0 | KJR59: 0 | KJS59: 0 | KJT59: 0 | KJU59: 0 | KJV59: 0 | KJW59: 0 | KJX59: 0 | KJY59: 0 | KJZ59: 0 | KKA59: 0 | KKB59: 0 | KKC59: 0 | KKD59: 0 | KKE59: 0 | KKF59: 0 | KKG59: 0 | KKH59: 0 | KKI59: 0 | KKJ59: 0 | KKK59: 0 | KKL59: 0 | KKM59: 0 | KKN59: 0 | KKO59: 0 | KKP59: 0 | KKQ59: 0 | KKR59: 0 | KKS59: 0 | KKT59: 0 | KKU59: 0 | KKV59: 0 | KKW59: 0 | KKX59: 0 | KKY59: 0 | KKZ59: 0 | KLA59: 0 | KLB59: =KLB67 -> 0 | KLC59: 0 | KLD59: 0 | KLE59: 0 | KLF59: 0 | KLG59: 0 | KLH59: 0 | KLI59: 0 | KLJ59: 0 | KLK59: 0 | KLL59: 0 | KLM59: 0 | KLN59: 0 | KLO59: 0 | KLP59: 0 | KLQ59: 0 | KLR59: 0 | KLS59: 0 | KLT59: 0 | KLU59: 0 | KLV59: 0 | KLW59: 0 | KLX59: 0 | KLY59: 0 | KLZ59: 0 | KMA59: 0 | KMB59: 0 | KMC59: 0 | KMD59: 0 | KME59: 0 | KMF59: 0 | KMG59: 0 | KMH59: 0 | KMI59: 0 | KMJ59: 0 | KMK59: 0 | KML59: 0 | KMM59: 0 | KMN59: 0 | KMO59: 0 | KMP59: 0 | KMQ59: 0 | KMR59: 0 | KMS59: 0 | KMT59: 0 | KMU59: 0 | KMV59: 0 | KMW59: 0 | KMX59: 0 | KMY59: 0 | KMZ59: 0 | KNA59: 0 | KNB59: 0 | KNC59: 0 | KND59: 0 | KNE59: 0 | KNF59: 0 | KNG59: 0 | KNH59: 0 | KNI59: 0 | KNJ59: 0 | KNK59: 0 | KNL59: 0 | KNM59: 0 | KNN59: =KNN67 -> 0 | KNO59: 0 | KNP59: 0 | KNQ59: 0 | KNR59: 0 | KNS59: 0 | KNT59: 0 | KNU59: 0 | KNV59: 0 | KNW59: 0 | KNX59: 0 | KNY59: 0 | KNZ59: 0 | KOA59: 0 | KOB59: 0 | KOC59: 0 | KOD59: 0 | KOE59: 0 | KOF59: 0 | KOG59: 0 | KOH59: 0 | KOI59: 0 | KOJ59: 0 | KOK59: 0 | KOL59: 0 | KOM59: 0 | KON59: 0 | KOO59: 0 | KOP59: 0 | KOQ59: 0 | KOR59: 0 | KOS59: 0 | KOT59: 0 | KOU59: 0 | KOV59: 0 | KOW59: 0 | KOX59: 0 | KOY59: 0 | KOZ59: 0 | KPA59: 0 | KPB59: 0 | KPC59: 0 | KPD59: 0 | KPE59: 0 | KPF59: 0 | KPG59: 0 | KPH59: 0 | KPI59: 0 | KPJ59: 0 | KPK59: 0 | KPL59: 0 | KPM59: 0 | KPN59: 0 | KPO59: 0 | KPP59: 0 | KPQ59: 0 | KPR59: 0 | KPS59: 0 | KPT59: 0 | KPU59: 0 | KPV59: 0 | KPW59: 0 | KPX59: 0 | KPY59: 0 | KPZ59: =KPZ67 -> 0 | KQA59: 0 | KQB59: 0 | KQC59: 0 | KQD59: 0 | KQE59: 0 | KQF59: 0 | KQG59: 0 | KQH59: 0 | KQI59: 0 | KQJ59: 0 | KQK59: 0 | KQL59: 0 | KQM59: 0 | KQN59: 0 | KQO59: 0 | KQP59: 0 | KQQ59: 0 | KQR59: 0 | KQS59: 0 | KQT59: 0 | KQU59: 0 | KQV59: 0 | KQW59: 0 | KQX59: 0 | KQY59: 0 | KQZ59: 0 | KRA59: 0 | KRB59: 0 | KRC59: 0 | KRD59: 0 | KRE59: 0 | KRF59: 0 | KRG59: 0 | KRH59: 0 | KRI59: 0 | KRJ59: 0 | KRK59: 0 | KRL59: 0 | KRM59: 0 | KRN59: 0 | KRO59: 0 | KRP59: 0 | KRQ59: 0 | KRR59: 0 | KRS59: 0 | KRT59: 0 | KRU59: 0 | KRV59: 0 | KRW59: 0 | KRX59: 0 | KRY59: 0 | KRZ59: 0 | KSA59: 0 | KSB59: 0 | KSC59: 0 | KSD59: 0 | KSE59: 0 | KSF59: 0 | KSG59: 0 | KSH59: 0 | KSI59: 0 | KSJ59: 0 | KSK59: 0 | KSL59: =KSL67 -> 0 | KSM59: 0 | KSN59: 0 | KSO59: 0 | KSP59: 0 | KSQ59: 0 | KSR59: 0 | KSS59: 0 | KST59: 0 | KSU59: 0 | KSV59: 0 | KSW59: 0 | KSX59: 0 | KSY59: 0 | KSZ59: 0 | KTA59: 0 | KTB59: 0 | KTC59: 0 | KTD59: 0 | KTE59: 0 | KTF59: 0 | KTG59: 0 | KTH59: 0 | KTI59: 0 | KTJ59: 0 | KTK59: 0 | KTL59: 0 | KTM59: 0 | KTN59: 0 | KTO59: 0 | KTP59: 0 | KTQ59: 0 | KTR59: 0 | KTS59: 0 | KTT59: 0 | KTU59: 0 | KTV59: 0 | KTW59: 0 | KTX59: 0 | KTY59: 0 | KTZ59: 0 | KUA59: 0 | KUB59: 0 | KUC59: 0 | KUD59: 0 | KUE59: 0 | KUF59: 0 | KUG59: 0 | KUH59: 0 | KUI59: 0 | KUJ59: 0 | KUK59: 0 | KUL59: 0 | KUM59: 0 | KUN59: 0 | KUO59: 0 | KUP59: 0 | KUQ59: 0 | KUR59: 0 | KUS59: 0 | KUT59: 0 | KUU59: 0 | KUV59: 0 | KUW59: 0 | KUX59: =KUX67 -> 0 | KUY59: 0 | KUZ59: 0 | KVA59: 0 | KVB59: 0 | KVC59: 0 | KVD59: 0 | KVE59: 0 | KVF59: 0 | KVG59: 0 | KVH59: 0 | KVI59: 0 | KVJ59: 0 | KVK59: 0 | KVL59: 0 | KVM59: 0 | KVN59: 0 | KVO59: 0 | KVP59: 0 | KVQ59: 0 | KVR59: 0 | KVS59: 0 | KVT59: 0 | KVU59: 0 | KVV59: 0 | KVW59: 0 | KVX59: 0 | KVY59: 0 | KVZ59: 0 | KWA59: 0 | KWB59: 0 | KWC59: 0 | KWD59: 0 | KWE59: 0 | KWF59: 0 | KWG59: 0 | KWH59: 0 | KWI59: 0 | KWJ59: 0 | KWK59: 0 | KWL59: 0 | KWM59: 0 | KWN59: 0 | KWO59: 0 | KWP59: 0 | KWQ59: 0 | KWR59: 0 | KWS59: 0 | KWT59: 0 | KWU59: 0 | KWV59: 0 | KWW59: 0 | KWX59: 0 | KWY59: 0 | KWZ59: 0 | KXA59: 0 | KXB59: 0 | KXC59: 0 | KXD59: 0 | KXE59: 0 | KXF59: 0 | KXG59: 0 | KXH59: 0 | KXI59: 0 | KXJ59: =KXJ67 -> 0 | KXK59: 0 | KXL59: 0 | KXM59: 0 | KXN59: 0 | KXO59: 0 | KXP59: 0 | KXQ59: 0 | KXR59: 0 | KXS59: 0 | KXT59: 0 | KXU59: 0 | KXV59: 0 | KXW59: 0 | KXX59: 0 | KXY59: 0 | KXZ59: 0 | KYA59: 0 | KYB59: 0 | KYC59: 0 | KYD59: 0 | KYE59: 0 | KYF59: 0 | KYG59: 0 | KYH59: 0 | KYI59: 0 | KYJ59: 0 | KYK59: 0 | KYL59: 0 | KYM59: 0 | KYN59: 0 | KYO59: 0 | KYP59: 0 | KYQ59: 0 | KYR59: 0 | KYS59: 0 | KYT59: 0 | KYU59: 0 | KYV59: 0 | KYW59: 0 | KYX59: 0 | KYY59: 0 | KYZ59: 0 | KZA59: 0 | KZB59: 0 | KZC59: 0 | KZD59: 0 | KZE59: 0 | KZF59: 0 | KZG59: 0 | KZH59: 0 | KZI59: 0 | KZJ59: 0 | KZK59: 0 | KZL59: 0 | KZM59: 0 | KZN59: 0 | KZO59: 0 | KZP59: 0 | KZQ59: 0 | KZR59: 0 | KZS59: 0 | KZT59: 0 | KZU59: 0 | KZV59: =KZV67 -> 0 | KZW59: 0 | KZX59: 0 | KZY59: 0 | KZZ59: 0 | LAA59: 0 | LAB59: 0 | LAC59: 0 | LAD59: 0 | LAE59: 0 | LAF59: 0 | LAG59: 0 | LAH59: 0 | LAI59: 0 | LAJ59: 0 | LAK59: 0 | LAL59: 0 | LAM59: 0 | LAN59: 0 | LAO59: 0 | LAP59: 0 | LAQ59: 0 | LAR59: 0 | LAS59: 0 | LAT59: 0 | LAU59: 0 | LAV59: 0 | LAW59: 0 | LAX59: 0 | LAY59: 0 | LAZ59: 0 | LBA59: 0 | LBB59: 0 | LBC59: 0 | LBD59: 0 | LBE59: 0 | LBF59: 0 | LBG59: 0 | LBH59: 0 | LBI59: 0 | LBJ59: 0 | LBK59: 0 | LBL59: 0 | LBM59: 0 | LBN59: 0 | LBO59: 0 | LBP59: 0 | LBQ59: 0 | LBR59: 0 | LBS59: 0 | LBT59: 0 | LBU59: 0 | LBV59: 0 | LBW59: 0 | LBX59: 0 | LBY59: 0 | LBZ59: 0 | LCA59: 0 | LCB59: 0 | LCC59: 0 | LCD59: 0 | LCE59: 0 | LCF59: 0 | LCG59: 0 | LCH59: =LCH67 -> 0 | LCI59: 0 | LCJ59: 0 | LCK59: 0 | LCL59: 0 | LCM59: 0 | LCN59: 0 | LCO59: 0 | LCP59: 0 | LCQ59: 0 | LCR59: 0 | LCS59: 0 | LCT59: 0 | LCU59: 0 | LCV59: 0 | LCW59: 0 | LCX59: 0 | LCY59: 0 | LCZ59: 0 | LDA59: 0 | LDB59: 0 | LDC59: 0 | LDD59: 0 | LDE59: 0 | LDF59: 0 | LDG59: 0 | LDH59: 0 | LDI59: 0 | LDJ59: 0 | LDK59: 0 | LDL59: 0 | LDM59: 0 | LDN59: 0 | LDO59: 0 | LDP59: 0 | LDQ59: 0 | LDR59: 0 | LDS59: 0 | LDT59: 0 | LDU59: 0 | LDV59: 0 | LDW59: 0 | LDX59: 0 | LDY59: 0 | LDZ59: 0 | LEA59: 0 | LEB59: 0 | LEC59: 0 | LED59: 0 | LEE59: 0 | LEF59: 0 | LEG59: 0 | LEH59: 0 | LEI59: 0 | LEJ59: 0 | LEK59: 0 | LEL59: 0 | LEM59: 0 | LEN59: 0 | LEO59: 0 | LEP59: 0 | LEQ59: 0 | LER59: 0 | LES59: 0 | LET59: =LET67 -> 0 | LEU59: 0 | LEV59: 0 | LEW59: 0 | LEX59: 0 | LEY59: 0 | LEZ59: 0 | LFA59: 0 | LFB59: 0 | LFC59: 0 | LFD59: 0 | LFE59: 0 | LFF59: 0 | LFG59: 0 | LFH59: 0 | LFI59: 0 | LFJ59: 0 | LFK59: 0 | LFL59: 0 | LFM59: 0 | LFN59: 0 | LFO59: 0 | LFP59: 0 | LFQ59: 0 | LFR59: 0 | LFS59: 0 | LFT59: 0 | LFU59: 0 | LFV59: 0 | LFW59: 0 | LFX59: 0 | LFY59: 0 | LFZ59: 0 | LGA59: 0 | LGB59: 0 | LGC59: 0 | LGD59: 0 | LGE59: 0 | LGF59: 0 | LGG59: 0 | LGH59: 0 | LGI59: 0 | LGJ59: 0 | LGK59: 0 | LGL59: 0 | LGM59: 0 | LGN59: 0 | LGO59: 0 | LGP59: 0 | LGQ59: 0 | LGR59: 0 | LGS59: 0 | LGT59: 0 | LGU59: 0 | LGV59: 0 | LGW59: 0 | LGX59: 0 | LGY59: 0 | LGZ59: 0 | LHA59: 0 | LHB59: 0 | LHC59: 0 | LHD59: 0 | LHE59: 0 | LHF59: =LHF67 -> 0 | LHG59: 0 | LHH59: 0 | LHI59: 0 | LHJ59: 0 | LHK59: 0 | LHL59: 0 | LHM59: 0 | LHN59: 0 | LHO59: 0 | LHP59: 0 | LHQ59: 0 | LHR59: 0 | LHS59: 0 | LHT59: 0 | LHU59: 0 | LHV59: 0 | LHW59: 0 | LHX59: 0 | LHY59: 0 | LHZ59: 0 | LIA59: 0 | LIB59: 0 | LIC59: 0 | LID59: 0 | LIE59: 0 | LIF59: 0 | LIG59: 0 | LIH59: 0 | LII59: 0 | LIJ59: 0 | LIK59: 0 | LIL59: 0 | LIM59: 0 | LIN59: 0 | LIO59: 0 | LIP59: 0 | LIQ59: 0 | LIR59: 0 | LIS59: 0 | LIT59: 0 | LIU59: 0 | LIV59: 0 | LIW59: 0 | LIX59: 0 | LIY59: 0 | LIZ59: 0 | LJA59: 0 | LJB59: 0 | LJC59: 0 | LJD59: 0 | LJE59: 0 | LJF59: 0 | LJG59: 0 | LJH59: 0 | LJI59: 0 | LJJ59: 0 | LJK59: 0 | LJL59: 0 | LJM59: 0 | LJN59: 0 | LJO59: 0 | LJP59: 0 | LJQ59: 0 | LJR59: =LJR67 -> 0 | LJS59: 0 | LJT59: 0 | LJU59: 0 | LJV59: 0 | LJW59: 0 | LJX59: 0 | LJY59: 0 | LJZ59: 0 | LKA59: 0 | LKB59: 0 | LKC59: 0 | LKD59: 0 | LKE59: 0 | LKF59: 0 | LKG59: 0 | LKH59: 0 | LKI59: 0 | LKJ59: 0 | LKK59: 0 | LKL59: 0 | LKM59: 0 | LKN59: 0 | LKO59: 0 | LKP59: 0 | LKQ59: 0 | LKR59: 0 | LKS59: 0 | LKT59: 0 | LKU59: 0 | LKV59: 0 | LKW59: 0 | LKX59: 0 | LKY59: 0 | LKZ59: 0 | LLA59: 0 | LLB59: 0 | LLC59: 0 | LLD59: 0 | LLE59: 0 | LLF59: 0 | LLG59: 0 | LLH59: 0 | LLI59: 0 | LLJ59: 0 | LLK59: 0 | LLL59: 0 | LLM59: 0 | LLN59: 0 | LLO59: 0 | LLP59: 0 | LLQ59: 0 | LLR59: 0 | LLS59: 0 | LLT59: 0 | LLU59: 0 | LLV59: 0 | LLW59: 0 | LLX59: 0 | LLY59: 0 | LLZ59: 0 | LMA59: 0 | LMB59: 0 | LMC59: 0 | LMD59: =LMD67 -> 0 | LME59: 0 | LMF59: 0 | LMG59: 0 | LMH59: 0 | LMI59: 0 | LMJ59: 0 | LMK59: 0 | LML59: 0 | LMM59: 0 | LMN59: 0 | LMO59: 0 | LMP59: 0 | LMQ59: 0 | LMR59: 0 | LMS59: 0 | LMT59: 0 | LMU59: 0 | LMV59: 0 | LMW59: 0 | LMX59: 0 | LMY59: 0 | LMZ59: 0 | LNA59: 0 | LNB59: 0 | LNC59: 0 | LND59: 0 | LNE59: 0 | LNF59: 0 | LNG59: 0 | LNH59: 0 | LNI59: 0 | LNJ59: 0 | LNK59: 0 | LNL59: 0 | LNM59: 0 | LNN59: 0 | LNO59: 0 | LNP59: 0 | LNQ59: 0 | LNR59: 0 | LNS59: 0 | LNT59: 0 | LNU59: 0 | LNV59: 0 | LNW59: 0 | LNX59: 0 | LNY59: 0 | LNZ59: 0 | LOA59: 0 | LOB59: 0 | LOC59: 0 | LOD59: 0 | LOE59: 0 | LOF59: 0 | LOG59: 0 | LOH59: 0 | LOI59: 0 | LOJ59: 0 | LOK59: 0 | LOL59: 0 | LOM59: 0 | LON59: 0 | LOO59: 0 | LOP59: =LOP67 -> 0 | LOQ59: 0 | LOR59: 0 | LOS59: 0 | LOT59: 0 | LOU59: 0 | LOV59: 0 | LOW59: 0 | LOX59: 0 | LOY59: 0 | LOZ59: 0 | LPA59: 0 | LPB59: 0 | LPC59: 0 | LPD59: 0 | LPE59: 0 | LPF59: 0 | LPG59: 0 | LPH59: 0 | LPI59: 0 | LPJ59: 0 | LPK59: 0 | LPL59: 0 | LPM59: 0 | LPN59: 0 | LPO59: 0 | LPP59: 0 | LPQ59: 0 | LPR59: 0 | LPS59: 0 | LPT59: 0 | LPU59: 0 | LPV59: 0 | LPW59: 0 | LPX59: 0 | LPY59: 0 | LPZ59: 0 | LQA59: 0 | LQB59: 0 | LQC59: 0 | LQD59: 0 | LQE59: 0 | LQF59: 0 | LQG59: 0 | LQH59: 0 | LQI59: 0 | LQJ59: 0 | LQK59: 0 | LQL59: 0 | LQM59: 0 | LQN59: 0 | LQO59: 0 | LQP59: 0 | LQQ59: 0 | LQR59: 0 | LQS59: 0 | LQT59: 0 | LQU59: 0 | LQV59: 0 | LQW59: 0 | LQX59: 0 | LQY59: 0 | LQZ59: 0 | LRA59: 0 | LRB59: =LRB67 -> 0 | LRC59: 0 | LRD59: 0 | LRE59: 0 | LRF59: 0 | LRG59: 0 | LRH59: 0 | LRI59: 0 | LRJ59: 0 | LRK59: 0 | LRL59: 0 | LRM59: 0 | LRN59: 0 | LRO59: 0 | LRP59: 0 | LRQ59: 0 | LRR59: 0 | LRS59: 0 | LRT59: 0 | LRU59: 0 | LRV59: 0 | LRW59: 0 | LRX59: 0 | LRY59: 0 | LRZ59: 0 | LSA59: 0 | LSB59: 0 | LSC59: 0 | LSD59: 0 | LSE59: 0 | LSF59: 0 | LSG59: 0 | LSH59: 0 | LSI59: 0 | LSJ59: 0 | LSK59: 0 | LSL59: 0 | LSM59: 0 | LSN59: 0 | LSO59: 0 | LSP59: 0 | LSQ59: 0 | LSR59: 0 | LSS59: 0 | LST59: 0 | LSU59: 0 | LSV59: 0 | LSW59: 0 | LSX59: 0 | LSY59: 0 | LSZ59: 0 | LTA59: 0 | LTB59: 0 | LTC59: 0 | LTD59: 0 | LTE59: 0 | LTF59: 0 | LTG59: 0 | LTH59: 0 | LTI59: 0 | LTJ59: 0 | LTK59: 0 | LTL59: 0 | LTM59: 0 | LTN59: =LTN67 -> 0 | LTO59: 0 | LTP59: 0 | LTQ59: 0 | LTR59: 0 | LTS59: 0 | LTT59: 0 | LTU59: 0 | LTV59: 0 | LTW59: 0 | LTX59: 0 | LTY59: 0 | LTZ59: 0 | LUA59: 0 | LUB59: 0 | LUC59: 0 | LUD59: 0 | LUE59: 0 | LUF59: 0 | LUG59: 0 | LUH59: 0 | LUI59: 0 | LUJ59: 0 | LUK59: 0 | LUL59: 0 | LUM59: 0 | LUN59: 0 | LUO59: 0 | LUP59: 0 | LUQ59: 0 | LUR59: 0 | LUS59: 0 | LUT59: 0 | LUU59: 0 | LUV59: 0 | LUW59: 0 | LUX59: 0 | LUY59: 0 | LUZ59: 0 | LVA59: 0 | LVB59: 0 | LVC59: 0 | LVD59: 0 | LVE59: 0 | LVF59: 0 | LVG59: 0 | LVH59: 0 | LVI59: 0 | LVJ59: 0 | LVK59: 0 | LVL59: 0 | LVM59: 0 | LVN59: 0 | LVO59: 0 | LVP59: 0 | LVQ59: 0 | LVR59: 0 | LVS59: 0 | LVT59: 0 | LVU59: 0 | LVV59: 0 | LVW59: 0 | LVX59: 0 | LVY59: 0 | LVZ59: =LVZ67 -> 0 | LWA59: 0 | LWB59: 0 | LWC59: 0 | LWD59: 0 | LWE59: 0 | LWF59: 0 | LWG59: 0 | LWH59: 0 | LWI59: 0 | LWJ59: 0 | LWK59: 0 | LWL59: 0 | LWM59: 0 | LWN59: 0 | LWO59: 0 | LWP59: 0 | LWQ59: 0 | LWR59: 0 | LWS59: 0 | LWT59: 0 | LWU59: 0 | LWV59: 0 | LWW59: 0 | LWX59: 0 | LWY59: 0 | LWZ59: 0 | LXA59: 0 | LXB59: 0 | LXC59: 0 | LXD59: 0 | LXE59: 0 | LXF59: 0 | LXG59: 0 | LXH59: 0 | LXI59: 0 | LXJ59: 0 | LXK59: 0 | LXL59: 0 | LXM59: 0 | LXN59: 0 | LXO59: 0 | LXP59: 0 | LXQ59: 0 | LXR59: 0 | LXS59: 0 | LXT59: 0 | LXU59: 0 | LXV59: 0 | LXW59: 0 | LXX59: 0 | LXY59: 0 | LXZ59: 0 | LYA59: 0 | LYB59: 0 | LYC59: 0 | LYD59: 0 | LYE59: 0 | LYF59: 0 | LYG59: 0 | LYH59: 0 | LYI59: 0 | LYJ59: 0 | LYK59: 0 | LYL59: =LYL67 -> 0 | LYM59: 0 | LYN59: 0 | LYO59: 0 | LYP59: 0 | LYQ59: 0 | LYR59: 0 | LYS59: 0 | LYT59: 0 | LYU59: 0 | LYV59: 0 | LYW59: 0 | LYX59: 0 | LYY59: 0 | LYZ59: 0 | LZA59: 0 | LZB59: 0 | LZC59: 0 | LZD59: 0 | LZE59: 0 | LZF59: 0 | LZG59: 0 | LZH59: 0 | LZI59: 0 | LZJ59: 0 | LZK59: 0 | LZL59: 0 | LZM59: 0 | LZN59: 0 | LZO59: 0 | LZP59: 0 | LZQ59: 0 | LZR59: 0 | LZS59: 0 | LZT59: 0 | LZU59: 0 | LZV59: 0 | LZW59: 0 | LZX59: 0 | LZY59: 0 | LZZ59: 0 | MAA59: 0 | MAB59: 0 | MAC59: 0 | MAD59: 0 | MAE59: 0 | MAF59: 0 | MAG59: 0 | MAH59: 0 | MAI59: 0 | MAJ59: 0 | MAK59: 0 | MAL59: 0 | MAM59: 0 | MAN59: 0 | MAO59: 0 | MAP59: 0 | MAQ59: 0 | MAR59: 0 | MAS59: 0 | MAT59: 0 | MAU59: 0 | MAV59: 0 | MAW59: 0 | MAX59: =MAX67 -> 0 | MAY59: 0 | MAZ59: 0 | MBA59: 0 | MBB59: 0 | MBC59: 0 | MBD59: 0 | MBE59: 0 | MBF59: 0 | MBG59: 0 | MBH59: 0 | MBI59: 0 | MBJ59: 0 | MBK59: 0 | MBL59: 0 | MBM59: 0 | MBN59: 0 | MBO59: 0 | MBP59: 0 | MBQ59: 0 | MBR59: 0 | MBS59: 0 | MBT59: 0 | MBU59: 0 | MBV59: 0 | MBW59: 0 | MBX59: 0 | MBY59: 0 | MBZ59: 0 | MCA59: 0 | MCB59: 0 | MCC59: 0 | MCD59: 0 | MCE59: 0 | MCF59: 0 | MCG59: 0 | MCH59: 0 | MCI59: 0 | MCJ59: 0 | MCK59: 0 | MCL59: 0 | MCM59: 0 | MCN59: 0 | MCO59: 0 | MCP59: 0 | MCQ59: 0 | MCR59: 0 | MCS59: 0 | MCT59: 0 | MCU59: 0 | MCV59: 0 | MCW59: 0 | MCX59: 0 | MCY59: 0 | MCZ59: 0 | MDA59: 0 | MDB59: 0 | MDC59: 0 | MDD59: 0 | MDE59: 0 | MDF59: 0 | MDG59: 0 | MDH59: 0 | MDI59: 0 | MDJ59: =MDJ67 -> 0 | MDK59: 0 | MDL59: 0 | MDM59: 0 | MDN59: 0 | MDO59: 0 | MDP59: 0 | MDQ59: 0 | MDR59: 0 | MDS59: 0 | MDT59: 0 | MDU59: 0 | MDV59: 0 | MDW59: 0 | MDX59: 0 | MDY59: 0 | MDZ59: 0 | MEA59: 0 | MEB59: 0 | MEC59: 0 | MED59: 0 | MEE59: 0 | MEF59: 0 | MEG59: 0 | MEH59: 0 | MEI59: 0 | MEJ59: 0 | MEK59: 0 | MEL59: 0 | MEM59: 0 | MEN59: 0 | MEO59: 0 | MEP59: 0 | MEQ59: 0 | MER59: 0 | MES59: 0 | MET59: 0 | MEU59: 0 | MEV59: 0 | MEW59: 0 | MEX59: 0 | MEY59: 0 | MEZ59: 0 | MFA59: 0 | MFB59: 0 | MFC59: 0 | MFD59: 0 | MFE59: 0 | MFF59: 0 | MFG59: 0 | MFH59: 0 | MFI59: 0 | MFJ59: 0 | MFK59: 0 | MFL59: 0 | MFM59: 0 | MFN59: 0 | MFO59: 0 | MFP59: 0 | MFQ59: 0 | MFR59: 0 | MFS59: 0 | MFT59: 0 | MFU59: 0 | MFV59: =MFV67 -> 0 | MFW59: 0 | MFX59: 0 | MFY59: 0 | MFZ59: 0 | MGA59: 0 | MGB59: 0 | MGC59: 0 | MGD59: 0 | MGE59: 0 | MGF59: 0 | MGG59: 0 | MGH59: 0 | MGI59: 0 | MGJ59: 0 | MGK59: 0 | MGL59: 0 | MGM59: 0 | MGN59: 0 | MGO59: 0 | MGP59: 0 | MGQ59: 0 | MGR59: 0 | MGS59: 0 | MGT59: 0 | MGU59: 0 | MGV59: 0 | MGW59: 0 | MGX59: 0 | MGY59: 0 | MGZ59: 0 | MHA59: 0 | MHB59: 0 | MHC59: 0 | MHD59: 0 | MHE59: 0 | MHF59: 0 | MHG59: 0 | MHH59: 0 | MHI59: 0 | MHJ59: 0 | MHK59: 0 | MHL59: 0 | MHM59: 0 | MHN59: 0 | MHO59: 0 | MHP59: 0 | MHQ59: 0 | MHR59: 0 | MHS59: 0 | MHT59: 0 | MHU59: 0 | MHV59: 0 | MHW59: 0 | MHX59: 0 | MHY59: 0 | MHZ59: 0 | MIA59: 0 | MIB59: 0 | MIC59: 0 | MID59: 0 | MIE59: 0 | MIF59: 0 | MIG59: 0 | MIH59: =MIH67 -> 0 | MII59: 0 | MIJ59: 0 | MIK59: 0 | MIL59: 0 | MIM59: 0 | MIN59: 0 | MIO59: 0 | MIP59: 0 | MIQ59: 0 | MIR59: 0 | MIS59: 0 | MIT59: 0 | MIU59: 0 | MIV59: 0 | MIW59: 0 | MIX59: 0 | MIY59: 0 | MIZ59: 0 | MJA59: 0 | MJB59: 0 | MJC59: 0 | MJD59: 0 | MJE59: 0 | MJF59: 0 | MJG59: 0 | MJH59: 0 | MJI59: 0 | MJJ59: 0 | MJK59: 0 | MJL59: 0 | MJM59: 0 | MJN59: 0 | MJO59: 0 | MJP59: 0 | MJQ59: 0 | MJR59: 0 | MJS59: 0 | MJT59: 0 | MJU59: 0 | MJV59: 0 | MJW59: 0 | MJX59: 0 | MJY59: 0 | MJZ59: 0 | MKA59: 0 | MKB59: 0 | MKC59: 0 | MKD59: 0 | MKE59: 0 | MKF59: 0 | MKG59: 0 | MKH59: 0 | MKI59: 0 | MKJ59: 0 | MKK59: 0 | MKL59: 0 | MKM59: 0 | MKN59: 0 | MKO59: 0 | MKP59: 0 | MKQ59: 0 | MKR59: 0 | MKS59: 0 | MKT59: =MKT67 -> 0 | MKU59: 0 | MKV59: 0 | MKW59: 0 | MKX59: 0 | MKY59: 0 | MKZ59: 0 | MLA59: 0 | MLB59: 0 | MLC59: 0 | MLD59: 0 | MLE59: 0 | MLF59: 0 | MLG59: 0 | MLH59: 0 | MLI59: 0 | MLJ59: 0 | MLK59: 0 | MLL59: 0 | MLM59: 0 | MLN59: 0 | MLO59: 0 | MLP59: 0 | MLQ59: 0 | MLR59: 0 | MLS59: 0 | MLT59: 0 | MLU59: 0 | MLV59: 0 | MLW59: 0 | MLX59: 0 | MLY59: 0 | MLZ59: 0 | MMA59: 0 | MMB59: 0 | MMC59: 0 | MMD59: 0 | MME59: 0 | MMF59: 0 | MMG59: 0 | MMH59: 0 | MMI59: 0 | MMJ59: 0 | MMK59: 0 | MML59: 0 | MMM59: 0 | MMN59: 0 | MMO59: 0 | MMP59: 0 | MMQ59: 0 | MMR59: 0 | MMS59: 0 | MMT59: 0 | MMU59: 0 | MMV59: 0 | MMW59: 0 | MMX59: 0 | MMY59: 0 | MMZ59: 0 | MNA59: 0 | MNB59: 0 | MNC59: 0 | MND59: 0 | MNE59: 0 | MNF59: =MNF67 -> 0 | MNG59: 0 | MNH59: 0 | MNI59: 0 | MNJ59: 0 | MNK59: 0 | MNL59: 0 | MNM59: 0 | MNN59: 0 | MNO59: 0 | MNP59: 0 | MNQ59: 0 | MNR59: 0 | MNS59: 0 | MNT59: 0 | MNU59: 0 | MNV59: 0 | MNW59: 0 | MNX59: 0 | MNY59: 0 | MNZ59: 0 | MOA59: 0 | MOB59: 0 | MOC59: 0 | MOD59: 0 | MOE59: 0 | MOF59: 0 | MOG59: 0 | MOH59: 0 | MOI59: 0 | MOJ59: 0 | MOK59: 0 | MOL59: 0 | MOM59: 0 | MON59: 0 | MOO59: 0 | MOP59: 0 | MOQ59: 0 | MOR59: 0 | MOS59: 0 | MOT59: 0 | MOU59: 0 | MOV59: 0 | MOW59: 0 | MOX59: 0 | MOY59: 0 | MOZ59: 0 | MPA59: 0 | MPB59: 0 | MPC59: 0 | MPD59: 0 | MPE59: 0 | MPF59: 0 | MPG59: 0 | MPH59: 0 | MPI59: 0 | MPJ59: 0 | MPK59: 0 | MPL59: 0 | MPM59: 0 | MPN59: 0 | MPO59: 0 | MPP59: 0 | MPQ59: 0 | MPR59: =MPR67 -> 0 | MPS59: 0 | MPT59: 0 | MPU59: 0 | MPV59: 0 | MPW59: 0 | MPX59: 0 | MPY59: 0 | MPZ59: 0 | MQA59: 0 | MQB59: 0 | MQC59: 0 | MQD59: 0 | MQE59: 0 | MQF59: 0 | MQG59: 0 | MQH59: 0 | MQI59: 0 | MQJ59: 0 | MQK59: 0 | MQL59: 0 | MQM59: 0 | MQN59: 0 | MQO59: 0 | MQP59: 0 | MQQ59: 0 | MQR59: 0 | MQS59: 0 | MQT59: 0 | MQU59: 0 | MQV59: 0 | MQW59: 0 | MQX59: 0 | MQY59: 0 | MQZ59: 0 | MRA59: 0 | MRB59: 0 | MRC59: 0 | MRD59: 0 | MRE59: 0 | MRF59: 0 | MRG59: 0 | MRH59: 0 | MRI59: 0 | MRJ59: 0 | MRK59: 0 | MRL59: 0 | MRM59: 0 | MRN59: 0 | MRO59: 0 | MRP59: 0 | MRQ59: 0 | MRR59: 0 | MRS59: 0 | MRT59: 0 | MRU59: 0 | MRV59: 0 | MRW59: 0 | MRX59: 0 | MRY59: 0 | MRZ59: 0 | MSA59: 0 | MSB59: 0 | MSC59: 0 | MSD59: =MSD67 -> 0 | MSE59: 0 | MSF59: 0 | MSG59: 0 | MSH59: 0 | MSI59: 0 | MSJ59: 0 | MSK59: 0 | MSL59: 0 | MSM59: 0 | MSN59: 0 | MSO59: 0 | MSP59: 0 | MSQ59: 0 | MSR59: 0 | MSS59: 0 | MST59: 0 | MSU59: 0 | MSV59: 0 | MSW59: 0 | MSX59: 0 | MSY59: 0 | MSZ59: 0 | MTA59: 0 | MTB59: 0 | MTC59: 0 | MTD59: 0 | MTE59: 0 | MTF59: 0 | MTG59: 0 | MTH59: 0 | MTI59: 0 | MTJ59: 0 | MTK59: 0 | MTL59: 0 | MTM59: 0 | MTN59: 0 | MTO59: 0 | MTP59: 0 | MTQ59: 0 | MTR59: 0 | MTS59: 0 | MTT59: 0 | MTU59: 0 | MTV59: 0 | MTW59: 0 | MTX59: 0 | MTY59: 0 | MTZ59: 0 | MUA59: 0 | MUB59: 0 | MUC59: 0 | MUD59: 0 | MUE59: 0 | MUF59: 0 | MUG59: 0 | MUH59: 0 | MUI59: 0 | MUJ59: 0 | MUK59: 0 | MUL59: 0 | MUM59: 0 | MUN59: 0 | MUO59: 0 | MUP59: =MUP67 -> 0 | MUQ59: 0 | MUR59: 0 | MUS59: 0 | MUT59: 0 | MUU59: 0 | MUV59: 0 | MUW59: 0 | MUX59: 0 | MUY59: 0 | MUZ59: 0 | MVA59: 0 | MVB59: 0 | MVC59: 0 | MVD59: 0 | MVE59: 0 | MVF59: 0 | MVG59: 0 | MVH59: 0 | MVI59: 0 | MVJ59: 0 | MVK59: 0 | MVL59: 0 | MVM59: 0 | MVN59: 0 | MVO59: 0 | MVP59: 0 | MVQ59: 0 | MVR59: 0 | MVS59: 0 | MVT59: 0 | MVU59: 0 | MVV59: 0 | MVW59: 0 | MVX59: 0 | MVY59: 0 | MVZ59: 0 | MWA59: 0 | MWB59: 0 | MWC59: 0 | MWD59: 0 | MWE59: 0 | MWF59: 0 | MWG59: 0 | MWH59: 0 | MWI59: 0 | MWJ59: 0 | MWK59: 0 | MWL59: 0 | MWM59: 0 | MWN59: 0 | MWO59: 0 | MWP59: 0 | MWQ59: 0 | MWR59: 0 | MWS59: 0 | MWT59: 0 | MWU59: 0 | MWV59: 0 | MWW59: 0 | MWX59: 0 | MWY59: 0 | MWZ59: 0 | MXA59: 0 | MXB59: =MXB67 -> 0 | MXC59: 0 | MXD59: 0 | MXE59: 0 | MXF59: 0 | MXG59: 0 | MXH59: 0 | MXI59: 0 | MXJ59: 0 | MXK59: 0 | MXL59: 0 | MXM59: 0 | MXN59: 0 | MXO59: 0 | MXP59: 0 | MXQ59: 0 | MXR59: 0 | MXS59: 0 | MXT59: 0 | MXU59: 0 | MXV59: 0 | MXW59: 0 | MXX59: 0 | MXY59: 0 | MXZ59: 0 | MYA59: 0 | MYB59: 0 | MYC59: 0 | MYD59: 0 | MYE59: 0 | MYF59: 0 | MYG59: 0 | MYH59: 0 | MYI59: 0 | MYJ59: 0 | MYK59: 0 | MYL59: 0 | MYM59: 0 | MYN59: 0 | MYO59: 0 | MYP59: 0 | MYQ59: 0 | MYR59: 0 | MYS59: 0 | MYT59: 0 | MYU59: 0 | MYV59: 0 | MYW59: 0 | MYX59: 0 | MYY59: 0 | MYZ59: 0 | MZA59: 0 | MZB59: 0 | MZC59: 0 | MZD59: 0 | MZE59: 0 | MZF59: 0 | MZG59: 0 | MZH59: 0 | MZI59: 0 | MZJ59: 0 | MZK59: 0 | MZL59: 0 | MZM59: 0 | MZN59: =MZN67 -> 0 | MZO59: 0 | MZP59: 0 | MZQ59: 0 | MZR59: 0 | MZS59: 0 | MZT59: 0 | MZU59: 0 | MZV59: 0 | MZW59: 0 | MZX59: 0 | MZY59: 0 | MZZ59: 0 | NAA59: 0 | NAB59: 0 | NAC59: 0 | NAD59: 0 | NAE59: 0 | NAF59: 0 | NAG59: 0 | NAH59: 0 | NAI59: 0 | NAJ59: 0 | NAK59: 0 | NAL59: 0 | NAM59: 0 | NAN59: 0 | NAO59: 0 | NAP59: 0 | NAQ59: 0 | NAR59: 0 | NAS59: 0 | NAT59: 0 | NAU59: 0 | NAV59: 0 | NAW59: 0 | NAX59: 0 | NAY59: 0 | NAZ59: 0 | NBA59: 0 | NBB59: 0 | NBC59: 0 | NBD59: 0 | NBE59: 0 | NBF59: 0 | NBG59: 0 | NBH59: 0 | NBI59: 0 | NBJ59: 0 | NBK59: 0 | NBL59: 0 | NBM59: 0 | NBN59: 0 | NBO59: 0 | NBP59: 0 | NBQ59: 0 | NBR59: 0 | NBS59: 0 | NBT59: 0 | NBU59: 0 | NBV59: 0 | NBW59: 0 | NBX59: 0 | NBY59: 0 | NBZ59: =NBZ67 -> 0 | NCA59: 0 | NCB59: 0 | NCC59: 0 | NCD59: 0 | NCE59: 0 | NCF59: 0 | NCG59: 0 | NCH59: 0 | NCI59: 0 | NCJ59: 0 | NCK59: 0 | NCL59: 0 | NCM59: 0 | NCN59: 0 | NCO59: 0 | NCP59: 0 | NCQ59: 0 | NCR59: 0 | NCS59: 0 | NCT59: 0 | NCU59: 0 | NCV59: 0 | NCW59: 0 | NCX59: 0 | NCY59: 0 | NCZ59: 0 | NDA59: 0 | NDB59: 0 | NDC59: 0 | NDD59: 0 | NDE59: 0 | NDF59: 0 | NDG59: 0 | NDH59: 0 | NDI59: 0 | NDJ59: 0 | NDK59: 0 | NDL59: 0 | NDM59: 0 | NDN59: 0 | NDO59: 0 | NDP59: 0 | NDQ59: 0 | NDR59: 0 | NDS59: 0 | NDT59: 0 | NDU59: 0 | NDV59: 0 | NDW59: 0 | NDX59: 0 | NDY59: 0 | NDZ59: 0 | NEA59: 0 | NEB59: 0 | NEC59: 0 | NED59: 0 | NEE59: 0 | NEF59: 0 | NEG59: 0 | NEH59: 0 | NEI59: 0 | NEJ59: 0 | NEK59: 0 | NEL59: =NEL67 -> 0 | NEM59: 0 | NEN59: 0 | NEO59: 0 | NEP59: 0 | NEQ59: 0 | NER59: 0 | NES59: 0 | NET59: 0 | NEU59: 0 | NEV59: 0 | NEW59: 0 | NEX59: 0 | NEY59: 0 | NEZ59: 0 | NFA59: 0 | NFB59: 0 | NFC59: 0 | NFD59: 0 | NFE59: 0 | NFF59: 0 | NFG59: 0 | NFH59: 0 | NFI59: 0 | NFJ59: 0 | NFK59: 0 | NFL59: 0 | NFM59: 0 | NFN59: 0 | NFO59: 0 | NFP59: 0 | NFQ59: 0 | NFR59: 0 | NFS59: 0 | NFT59: 0 | NFU59: 0 | NFV59: 0 | NFW59: 0 | NFX59: 0 | NFY59: 0 | NFZ59: 0 | NGA59: 0 | NGB59: 0 | NGC59: 0 | NGD59: 0 | NGE59: 0 | NGF59: 0 | NGG59: 0 | NGH59: 0 | NGI59: 0 | NGJ59: 0 | NGK59: 0 | NGL59: 0 | NGM59: 0 | NGN59: 0 | NGO59: 0 | NGP59: 0 | NGQ59: 0 | NGR59: 0 | NGS59: 0 | NGT59: 0 | NGU59: 0 | NGV59: 0 | NGW59: 0 | NGX59: =NGX67 -> 0 | NGY59: 0 | NGZ59: 0 | NHA59: 0 | NHB59: 0 | NHC59: 0 | NHD59: 0 | NHE59: 0 | NHF59: 0 | NHG59: 0 | NHH59: 0 | NHI59: 0 | NHJ59: 0 | NHK59: 0 | NHL59: 0 | NHM59: 0 | NHN59: 0 | NHO59: 0 | NHP59: 0 | NHQ59: 0 | NHR59: 0 | NHS59: 0 | NHT59: 0 | NHU59: 0 | NHV59: 0 | NHW59: 0 | NHX59: 0 | NHY59: 0 | NHZ59: 0 | NIA59: 0 | NIB59: 0 | NIC59: 0 | NID59: 0 | NIE59: 0 | NIF59: 0 | NIG59: 0 | NIH59: 0 | NII59: 0 | NIJ59: 0 | NIK59: 0 | NIL59: 0 | NIM59: 0 | NIN59: 0 | NIO59: 0 | NIP59: 0 | NIQ59: 0 | NIR59: 0 | NIS59: 0 | NIT59: 0 | NIU59: 0 | NIV59: 0 | NIW59: 0 | NIX59: 0 | NIY59: 0 | NIZ59: 0 | NJA59: 0 | NJB59: 0 | NJC59: 0 | NJD59: 0 | NJE59: 0 | NJF59: 0 | NJG59: 0 | NJH59: 0 | NJI59: 0 | NJJ59: =NJJ67 -> 0 | NJK59: 0 | NJL59: 0 | NJM59: 0 | NJN59: 0 | NJO59: 0 | NJP59: 0 | NJQ59: 0 | NJR59: 0 | NJS59: 0 | NJT59: 0 | NJU59: 0 | NJV59: 0 | NJW59: 0 | NJX59: 0 | NJY59: 0 | NJZ59: 0 | NKA59: 0 | NKB59: 0 | NKC59: 0 | NKD59: 0 | NKE59: 0 | NKF59: 0 | NKG59: 0 | NKH59: 0 | NKI59: 0 | NKJ59: 0 | NKK59: 0 | NKL59: 0 | NKM59: 0 | NKN59: 0 | NKO59: 0 | NKP59: 0 | NKQ59: 0 | NKR59: 0 | NKS59: 0 | NKT59: 0 | NKU59: 0 | NKV59: 0 | NKW59: 0 | NKX59: 0 | NKY59: 0 | NKZ59: 0 | NLA59: 0 | NLB59: 0 | NLC59: 0 | NLD59: 0 | NLE59: 0 | NLF59: 0 | NLG59: 0 | NLH59: 0 | NLI59: 0 | NLJ59: 0 | NLK59: 0 | NLL59: 0 | NLM59: 0 | NLN59: 0 | NLO59: 0 | NLP59: 0 | NLQ59: 0 | NLR59: 0 | NLS59: 0 | NLT59: 0 | NLU59: 0 | NLV59: =NLV67 -> 0 | NLW59: 0 | NLX59: 0 | NLY59: 0 | NLZ59: 0 | NMA59: 0 | NMB59: 0 | NMC59: 0 | NMD59: 0 | NME59: 0 | NMF59: 0 | NMG59: 0 | NMH59: 0 | NMI59: 0 | NMJ59: 0 | NMK59: 0 | NML59: 0 | NMM59: 0 | NMN59: 0 | NMO59: 0 | NMP59: 0 | NMQ59: 0 | NMR59: 0 | NMS59: 0 | NMT59: 0 | NMU59: 0 | NMV59: 0 | NMW59: 0 | NMX59: 0 | NMY59: 0 | NMZ59: 0 | NNA59: 0 | NNB59: 0 | NNC59: 0 | NND59: 0 | NNE59: 0 | NNF59: 0 | NNG59: 0 | NNH59: 0 | NNI59: 0 | NNJ59: 0 | NNK59: 0 | NNL59: 0 | NNM59: 0 | NNN59: 0 | NNO59: 0 | NNP59: 0 | NNQ59: 0 | NNR59: 0 | NNS59: 0 | NNT59: 0 | NNU59: 0 | NNV59: 0 | NNW59: 0 | NNX59: 0 | NNY59: 0 | NNZ59: 0 | NOA59: 0 | NOB59: 0 | NOC59: 0 | NOD59: 0 | NOE59: 0 | NOF59: 0 | NOG59: 0 | NOH59: =NOH67 -> 0 | NOI59: 0 | NOJ59: 0 | NOK59: 0 | NOL59: 0 | NOM59: 0 | NON59: 0 | NOO59: 0 | NOP59: 0 | NOQ59: 0 | NOR59: 0 | NOS59: 0 | NOT59: 0 | NOU59: 0 | NOV59: 0 | NOW59: 0 | NOX59: 0 | NOY59: 0 | NOZ59: 0 | NPA59: 0 | NPB59: 0 | NPC59: 0 | NPD59: 0 | NPE59: 0 | NPF59: 0 | NPG59: 0 | NPH59: 0 | NPI59: 0 | NPJ59: 0 | NPK59: 0 | NPL59: 0 | NPM59: 0 | NPN59: 0 | NPO59: 0 | NPP59: 0 | NPQ59: 0 | NPR59: 0 | NPS59: 0 | NPT59: 0 | NPU59: 0 | NPV59: 0 | NPW59: 0 | NPX59: 0 | NPY59: 0 | NPZ59: 0 | NQA59: 0 | NQB59: 0 | NQC59: 0 | NQD59: 0 | NQE59: 0 | NQF59: 0 | NQG59: 0 | NQH59: 0 | NQI59: 0 | NQJ59: 0 | NQK59: 0 | NQL59: 0 | NQM59: 0 | NQN59: 0 | NQO59: 0 | NQP59: 0 | NQQ59: 0 | NQR59: 0 | NQS59: 0 | NQT59: =NQT67 -> 0 | NQU59: 0 | NQV59: 0 | NQW59: 0 | NQX59: 0 | NQY59: 0 | NQZ59: 0 | NRA59: 0 | NRB59: 0 | NRC59: 0 | NRD59: 0 | NRE59: 0 | NRF59: 0 | NRG59: 0 | NRH59: 0 | NRI59: 0 | NRJ59: 0 | NRK59: 0 | NRL59: 0 | NRM59: 0 | NRN59: 0 | NRO59: 0 | NRP59: 0 | NRQ59: 0 | NRR59: 0 | NRS59: 0 | NRT59: 0 | NRU59: 0 | NRV59: 0 | NRW59: 0 | NRX59: 0 | NRY59: 0 | NRZ59: 0 | NSA59: 0 | NSB59: 0 | NSC59: 0 | NSD59: 0 | NSE59: 0 | NSF59: 0 | NSG59: 0 | NSH59: 0 | NSI59: 0 | NSJ59: 0 | NSK59: 0 | NSL59: 0 | NSM59: 0 | NSN59: 0 | NSO59: 0 | NSP59: 0 | NSQ59: 0 | NSR59: 0 | NSS59: 0 | NST59: 0 | NSU59: 0 | NSV59: 0 | NSW59: 0 | NSX59: 0 | NSY59: 0 | NSZ59: 0 | NTA59: 0 | NTB59: 0 | NTC59: 0 | NTD59: 0 | NTE59: 0 | NTF59: =NTF67 -> 0 | NTG59: 0 | NTH59: 0 | NTI59: 0 | NTJ59: 0 | NTK59: 0 | NTL59: 0 | NTM59: 0 | NTN59: 0 | NTO59: 0 | NTP59: 0 | NTQ59: 0 | NTR59: 0 | NTS59: 0 | NTT59: 0 | NTU59: 0 | NTV59: 0 | NTW59: 0 | NTX59: 0 | NTY59: 0 | NTZ59: 0 | NUA59: 0 | NUB59: 0 | NUC59: 0 | NUD59: 0 | NUE59: 0 | NUF59: 0 | NUG59: 0 | NUH59: 0 | NUI59: 0 | NUJ59: 0 | NUK59: 0 | NUL59: 0 | NUM59: 0 | NUN59: 0 | NUO59: 0 | NUP59: 0 | NUQ59: 0 | NUR59: 0 | NUS59: 0 | NUT59: 0 | NUU59: 0 | NUV59: 0 | NUW59: 0 | NUX59: 0 | NUY59: 0 | NUZ59: 0 | NVA59: 0 | NVB59: 0 | NVC59: 0 | NVD59: 0 | NVE59: 0 | NVF59: 0 | NVG59: 0 | NVH59: 0 | NVI59: 0 | NVJ59: 0 | NVK59: 0 | NVL59: 0 | NVM59: 0 | NVN59: 0 | NVO59: 0 | NVP59: 0 | NVQ59: 0 | NVR59: =NVR67 -> 0 | NVS59: 0 | NVT59: 0 | NVU59: 0 | NVV59: 0 | NVW59: 0 | NVX59: 0 | NVY59: 0 | NVZ59: 0 | NWA59: 0 | NWB59: 0 | NWC59: 0 | NWD59: 0 | NWE59: 0 | NWF59: 0 | NWG59: 0 | NWH59: 0 | NWI59: 0 | NWJ59: 0 | NWK59: 0 | NWL59: 0 | NWM59: 0 | NWN59: 0 | NWO59: 0 | NWP59: 0 | NWQ59: 0 | NWR59: 0 | NWS59: 0 | NWT59: 0 | NWU59: 0 | NWV59: 0 | NWW59: 0 | NWX59: 0 | NWY59: 0 | NWZ59: 0 | NXA59: 0 | NXB59: 0 | NXC59: 0 | NXD59: 0 | NXE59: 0 | NXF59: 0 | NXG59: 0 | NXH59: 0 | NXI59: 0 | NXJ59: 0 | NXK59: 0 | NXL59: 0 | NXM59: 0 | NXN59: 0 | NXO59: 0 | NXP59: 0 | NXQ59: 0 | NXR59: 0 | NXS59: 0 | NXT59: 0 | NXU59: 0 | NXV59: 0 | NXW59: 0 | NXX59: 0 | NXY59: 0 | NXZ59: 0 | NYA59: 0 | NYB59: 0 | NYC59: 0 | NYD59: =NYD67 -> 0 | NYE59: 0 | NYF59: 0 | NYG59: 0 | NYH59: 0 | NYI59: 0 | NYJ59: 0 | NYK59: 0 | NYL59: 0 | NYM59: 0 | NYN59: 0 | NYO59: 0 | NYP59: 0 | NYQ59: 0 | NYR59: 0 | NYS59: 0 | NYT59: 0 | NYU59: 0 | NYV59: 0 | NYW59: 0 | NYX59: 0 | NYY59: 0 | NYZ59: 0 | NZA59: 0 | NZB59: 0 | NZC59: 0 | NZD59: 0 | NZE59: 0 | NZF59: 0 | NZG59: 0 | NZH59: 0 | NZI59: 0 | NZJ59: 0 | NZK59: 0 | NZL59: 0 | NZM59: 0 | NZN59: 0 | NZO59: 0 | NZP59: 0 | NZQ59: 0 | NZR59: 0 | NZS59: 0 | NZT59: 0 | NZU59: 0 | NZV59: 0 | NZW59: 0 | NZX59: 0 | NZY59: 0 | NZZ59: 0 | OAA59: 0 | OAB59: 0 | OAC59: 0 | OAD59: 0 | OAE59: 0 | OAF59: 0 | OAG59: 0 | OAH59: 0 | OAI59: 0 | OAJ59: 0 | OAK59: 0 | OAL59: 0 | OAM59: 0 | OAN59: 0 | OAO59: 0 | OAP59: =OAP67 -> 0 | OAQ59: 0 | OAR59: 0 | OAS59: 0 | OAT59: 0 | OAU59: 0 | OAV59: 0 | OAW59: 0 | OAX59: 0 | OAY59: 0 | OAZ59: 0 | OBA59: 0 | OBB59: 0 | OBC59: 0 | OBD59: 0 | OBE59: 0 | OBF59: 0 | OBG59: 0 | OBH59: 0 | OBI59: 0 | OBJ59: 0 | OBK59: 0 | OBL59: 0 | OBM59: 0 | OBN59: 0 | OBO59: 0 | OBP59: 0 | OBQ59: 0 | OBR59: 0 | OBS59: 0 | OBT59: 0 | OBU59: 0 | OBV59: 0 | OBW59: 0 | OBX59: 0 | OBY59: 0 | OBZ59: 0 | OCA59: 0 | OCB59: 0 | OCC59: 0 | OCD59: 0 | OCE59: 0 | OCF59: 0 | OCG59: 0 | OCH59: 0 | OCI59: 0 | OCJ59: 0 | OCK59: 0 | OCL59: 0 | OCM59: 0 | OCN59: 0 | OCO59: 0 | OCP59: 0 | OCQ59: 0 | OCR59: 0 | OCS59: 0 | OCT59: 0 | OCU59: 0 | OCV59: 0 | OCW59: 0 | OCX59: 0 | OCY59: 0 | OCZ59: 0 | ODA59: 0 | ODB59: =ODB67 -> 0 | ODC59: 0 | ODD59: 0 | ODE59: 0 | ODF59: 0 | ODG59: 0 | ODH59: 0 | ODI59: 0 | ODJ59: 0 | ODK59: 0 | ODL59: 0 | ODM59: 0 | ODN59: 0 | ODO59: 0 | ODP59: 0 | ODQ59: 0 | ODR59: 0 | ODS59: 0 | ODT59: 0 | ODU59: 0 | ODV59: 0 | ODW59: 0 | ODX59: 0 | ODY59: 0 | ODZ59: 0 | OEA59: 0 | OEB59: 0 | OEC59: 0 | OED59: 0 | OEE59: 0 | OEF59: 0 | OEG59: 0 | OEH59: 0 | OEI59: 0 | OEJ59: 0 | OEK59: 0 | OEL59: 0 | OEM59: 0 | OEN59: 0 | OEO59: 0 | OEP59: 0 | OEQ59: 0 | OER59: 0 | OES59: 0 | OET59: 0 | OEU59: 0 | OEV59: 0 | OEW59: 0 | OEX59: 0 | OEY59: 0 | OEZ59: 0 | OFA59: 0 | OFB59: 0 | OFC59: 0 | OFD59: 0 | OFE59: 0 | OFF59: 0 | OFG59: 0 | OFH59: 0 | OFI59: 0 | OFJ59: 0 | OFK59: 0 | OFL59: 0 | OFM59: 0 | OFN59: =OFN67 -> 0 | OFO59: 0 | OFP59: 0 | OFQ59: 0 | OFR59: 0 | OFS59: 0 | OFT59: 0 | OFU59: 0 | OFV59: 0 | OFW59: 0 | OFX59: 0 | OFY59: 0 | OFZ59: 0 | OGA59: 0 | OGB59: 0 | OGC59: 0 | OGD59: 0 | OGE59: 0 | OGF59: 0 | OGG59: 0 | OGH59: 0 | OGI59: 0 | OGJ59: 0 | OGK59: 0 | OGL59: 0 | OGM59: 0 | OGN59: 0 | OGO59: 0 | OGP59: 0 | OGQ59: 0 | OGR59: 0 | OGS59: 0 | OGT59: 0 | OGU59: 0 | OGV59: 0 | OGW59: 0 | OGX59: 0 | OGY59: 0 | OGZ59: 0 | OHA59: 0 | OHB59: 0 | OHC59: 0 | OHD59: 0 | OHE59: 0 | OHF59: 0 | OHG59: 0 | OHH59: 0 | OHI59: 0 | OHJ59: 0 | OHK59: 0 | OHL59: 0 | OHM59: 0 | OHN59: 0 | OHO59: 0 | OHP59: 0 | OHQ59: 0 | OHR59: 0 | OHS59: 0 | OHT59: 0 | OHU59: 0 | OHV59: 0 | OHW59: 0 | OHX59: 0 | OHY59: 0 | OHZ59: =OHZ67 -> 0 | OIA59: 0 | OIB59: 0 | OIC59: 0 | OID59: 0 | OIE59: 0 | OIF59: 0 | OIG59: 0 | OIH59: 0 | OII59: 0 | OIJ59: 0 | OIK59: 0 | OIL59: 0 | OIM59: 0 | OIN59: 0 | OIO59: 0 | OIP59: 0 | OIQ59: 0 | OIR59: 0 | OIS59: 0 | OIT59: 0 | OIU59: 0 | OIV59: 0 | OIW59: 0 | OIX59: 0 | OIY59: 0 | OIZ59: 0 | OJA59: 0 | OJB59: 0 | OJC59: 0 | OJD59: 0 | OJE59: 0 | OJF59: 0 | OJG59: 0 | OJH59: 0 | OJI59: 0 | OJJ59: 0 | OJK59: 0 | OJL59: 0 | OJM59: 0 | OJN59: 0 | OJO59: 0 | OJP59: 0 | OJQ59: 0 | OJR59: 0 | OJS59: 0 | OJT59: 0 | OJU59: 0 | OJV59: 0 | OJW59: 0 | OJX59: 0 | OJY59: 0 | OJZ59: 0 | OKA59: 0 | OKB59: 0 | OKC59: 0 | OKD59: 0 | OKE59: 0 | OKF59: 0 | OKG59: 0 | OKH59: 0 | OKI59: 0 | OKJ59: 0 | OKK59: 0 | OKL59: =OKL67 -> 0 | OKM59: 0 | OKN59: 0 | OKO59: 0 | OKP59: 0 | OKQ59: 0 | OKR59: 0 | OKS59: 0 | OKT59: 0 | OKU59: 0 | OKV59: 0 | OKW59: 0 | OKX59: 0 | OKY59: 0 | OKZ59: 0 | OLA59: 0 | OLB59: 0 | OLC59: 0 | OLD59: 0 | OLE59: 0 | OLF59: 0 | OLG59: 0 | OLH59: 0 | OLI59: 0 | OLJ59: 0 | OLK59: 0 | OLL59: 0 | OLM59: 0 | OLN59: 0 | OLO59: 0 | OLP59: 0 | OLQ59: 0 | OLR59: 0 | OLS59: 0 | OLT59: 0 | OLU59: 0 | OLV59: 0 | OLW59: 0 | OLX59: 0 | OLY59: 0 | OLZ59: 0 | OMA59: 0 | OMB59: 0 | OMC59: 0 | OMD59: 0 | OME59: 0 | OMF59: 0 | OMG59: 0 | OMH59: 0 | OMI59: 0 | OMJ59: 0 | OMK59: 0 | OML59: 0 | OMM59: 0 | OMN59: 0 | OMO59: 0 | OMP59: 0 | OMQ59: 0 | OMR59: 0 | OMS59: 0 | OMT59: 0 | OMU59: 0 | OMV59: 0 | OMW59: 0 | OMX59: =OMX67 -> 0 | OMY59: 0 | OMZ59: 0 | ONA59: 0 | ONB59: 0 | ONC59: 0 | OND59: 0 | ONE59: 0 | ONF59: 0 | ONG59: 0 | ONH59: 0 | ONI59: 0 | ONJ59: 0 | ONK59: 0 | ONL59: 0 | ONM59: 0 | ONN59: 0 | ONO59: 0 | ONP59: 0 | ONQ59: 0 | ONR59: 0 | ONS59: 0 | ONT59: 0 | ONU59: 0 | ONV59: 0 | ONW59: 0 | ONX59: 0 | ONY59: 0 | ONZ59: 0 | OOA59: 0 | OOB59: 0 | OOC59: 0 | OOD59: 0 | OOE59: 0 | OOF59: 0 | OOG59: 0 | OOH59: 0 | OOI59: 0 | OOJ59: 0 | OOK59: 0 | OOL59: 0 | OOM59: 0 | OON59: 0 | OOO59: 0 | OOP59: 0 | OOQ59: 0 | OOR59: 0 | OOS59: 0 | OOT59: 0 | OOU59: 0 | OOV59: 0 | OOW59: 0 | OOX59: 0 | OOY59: 0 | OOZ59: 0 | OPA59: 0 | OPB59: 0 | OPC59: 0 | OPD59: 0 | OPE59: 0 | OPF59: 0 | OPG59: 0 | OPH59: 0 | OPI59: 0 | OPJ59: =OPJ67 -> 0 | OPK59: 0 | OPL59: 0 | OPM59: 0 | OPN59: 0 | OPO59: 0 | OPP59: 0 | OPQ59: 0 | OPR59: 0 | OPS59: 0 | OPT59: 0 | OPU59: 0 | OPV59: 0 | OPW59: 0 | OPX59: 0 | OPY59: 0 | OPZ59: 0 | OQA59: 0 | OQB59: 0 | OQC59: 0 | OQD59: 0 | OQE59: 0 | OQF59: 0 | OQG59: 0 | OQH59: 0 | OQI59: 0 | OQJ59: 0 | OQK59: 0 | OQL59: 0 | OQM59: 0 | OQN59: 0 | OQO59: 0 | OQP59: 0 | OQQ59: 0 | OQR59: 0 | OQS59: 0 | OQT59: 0 | OQU59: 0 | OQV59: 0 | OQW59: 0 | OQX59: 0 | OQY59: 0 | OQZ59: 0 | ORA59: 0 | ORB59: 0 | ORC59: 0 | ORD59: 0 | ORE59: 0 | ORF59: 0 | ORG59: 0 | ORH59: 0 | ORI59: 0 | ORJ59: 0 | ORK59: 0 | ORL59: 0 | ORM59: 0 | ORN59: 0 | ORO59: 0 | ORP59: 0 | ORQ59: 0 | ORR59: 0 | ORS59: 0 | ORT59: 0 | ORU59: 0 | ORV59: =ORV67 -> 0 | ORW59: 0 | ORX59: 0 | ORY59: 0 | ORZ59: 0 | OSA59: 0 | OSB59: 0 | OSC59: 0 | OSD59: 0 | OSE59: 0 | OSF59: 0 | OSG59: 0 | OSH59: 0 | OSI59: 0 | OSJ59: 0 | OSK59: 0 | OSL59: 0 | OSM59: 0 | OSN59: 0 | OSO59: 0 | OSP59: 0 | OSQ59: 0 | OSR59: 0 | OSS59: 0 | OST59: 0 | OSU59: 0 | OSV59: 0 | OSW59: 0 | OSX59: 0 | OSY59: 0 | OSZ59: 0 | OTA59: 0 | OTB59: 0 | OTC59: 0 | OTD59: 0 | OTE59: 0 | OTF59: 0 | OTG59: 0 | OTH59: 0 | OTI59: 0 | OTJ59: 0 | OTK59: 0 | OTL59: 0 | OTM59: 0 | OTN59: 0 | OTO59: 0 | OTP59: 0 | OTQ59: 0 | OTR59: 0 | OTS59: 0 | OTT59: 0 | OTU59: 0 | OTV59: 0 | OTW59: 0 | OTX59: 0 | OTY59: 0 | OTZ59: 0 | OUA59: 0 | OUB59: 0 | OUC59: 0 | OUD59: 0 | OUE59: 0 | OUF59: 0 | OUG59: 0 | OUH59: =OUH67 -> 0 | OUI59: 0 | OUJ59: 0 | OUK59: 0 | OUL59: 0 | OUM59: 0 | OUN59: 0 | OUO59: 0 | OUP59: 0 | OUQ59: 0 | OUR59: 0 | OUS59: 0 | OUT59: 0 | OUU59: 0 | OUV59: 0 | OUW59: 0 | OUX59: 0 | OUY59: 0 | OUZ59: 0 | OVA59: 0 | OVB59: 0 | OVC59: 0 | OVD59: 0 | OVE59: 0 | OVF59: 0 | OVG59: 0 | OVH59: 0 | OVI59: 0 | OVJ59: 0 | OVK59: 0 | OVL59: 0 | OVM59: 0 | OVN59: 0 | OVO59: 0 | OVP59: 0 | OVQ59: 0 | OVR59: 0 | OVS59: 0 | OVT59: 0 | OVU59: 0 | OVV59: 0 | OVW59: 0 | OVX59: 0 | OVY59: 0 | OVZ59: 0 | OWA59: 0 | OWB59: 0 | OWC59: 0 | OWD59: 0 | OWE59: 0 | OWF59: 0 | OWG59: 0 | OWH59: 0 | OWI59: 0 | OWJ59: 0 | OWK59: 0 | OWL59: 0 | OWM59: 0 | OWN59: 0 | OWO59: 0 | OWP59: 0 | OWQ59: 0 | OWR59: 0 | OWS59: 0 | OWT59: =OWT67 -> 0 | OWU59: 0 | OWV59: 0 | OWW59: 0 | OWX59: 0 | OWY59: 0 | OWZ59: 0 | OXA59: 0 | OXB59: 0 | OXC59: 0 | OXD59: 0 | OXE59: 0 | OXF59: 0 | OXG59: 0 | OXH59: 0 | OXI59: 0 | OXJ59: 0 | OXK59: 0 | OXL59: 0 | OXM59: 0 | OXN59: 0 | OXO59: 0 | OXP59: 0 | OXQ59: 0 | OXR59: 0 | OXS59: 0 | OXT59: 0 | OXU59: 0 | OXV59: 0 | OXW59: 0 | OXX59: 0 | OXY59: 0 | OXZ59: 0 | OYA59: 0 | OYB59: 0 | OYC59: 0 | OYD59: 0 | OYE59: 0 | OYF59: 0 | OYG59: 0 | OYH59: 0 | OYI59: 0 | OYJ59: 0 | OYK59: 0 | OYL59: 0 | OYM59: 0 | OYN59: 0 | OYO59: 0 | OYP59: 0 | OYQ59: 0 | OYR59: 0 | OYS59: 0 | OYT59: 0 | OYU59: 0 | OYV59: 0 | OYW59: 0 | OYX59: 0 | OYY59: 0 | OYZ59: 0 | OZA59: 0 | OZB59: 0 | OZC59: 0 | OZD59: 0 | OZE59: 0 | OZF59: =OZF67 -> 0 | OZG59: 0 | OZH59: 0 | OZI59: 0 | OZJ59: 0 | OZK59: 0 | OZL59: 0 | OZM59: 0 | OZN59: 0 | OZO59: 0 | OZP59: 0 | OZQ59: 0 | OZR59: 0 | OZS59: 0 | OZT59: 0 | OZU59: 0 | OZV59: 0 | OZW59: 0 | OZX59: 0 | OZY59: 0 | OZZ59: 0 | PAA59: 0 | PAB59: 0 | PAC59: 0 | PAD59: 0 | PAE59: 0 | PAF59: 0 | PAG59: 0 | PAH59: 0 | PAI59: 0 | PAJ59: 0 | PAK59: 0 | PAL59: 0 | PAM59: 0 | PAN59: 0 | PAO59: 0 | PAP59: 0 | PAQ59: 0 | PAR59: 0 | PAS59: 0 | PAT59: 0 | PAU59: 0 | PAV59: 0 | PAW59: 0 | PAX59: 0 | PAY59: 0 | PAZ59: 0 | PBA59: 0 | PBB59: 0 | PBC59: 0 | PBD59: 0 | PBE59: 0 | PBF59: 0 | PBG59: 0 | PBH59: 0 | PBI59: 0 | PBJ59: 0 | PBK59: 0 | PBL59: 0 | PBM59: 0 | PBN59: 0 | PBO59: 0 | PBP59: 0 | PBQ59: 0 | PBR59: =PBR67 -> 0 | PBS59: 0 | PBT59: 0 | PBU59: 0 | PBV59: 0 | PBW59: 0 | PBX59: 0 | PBY59: 0 | PBZ59: 0 | PCA59: 0 | PCB59: 0 | PCC59: 0 | PCD59: 0 | PCE59: 0 | PCF59: 0 | PCG59: 0 | PCH59: 0 | PCI59: 0 | PCJ59: 0 | PCK59: 0 | PCL59: 0 | PCM59: 0 | PCN59: 0 | PCO59: 0 | PCP59: 0 | PCQ59: 0 | PCR59: 0 | PCS59: 0 | PCT59: 0 | PCU59: 0 | PCV59: 0 | PCW59: 0 | PCX59: 0 | PCY59: 0 | PCZ59: 0 | PDA59: 0 | PDB59: 0 | PDC59: 0 | PDD59: 0 | PDE59: 0 | PDF59: 0 | PDG59: 0 | PDH59: 0 | PDI59: 0 | PDJ59: 0 | PDK59: 0 | PDL59: 0 | PDM59: 0 | PDN59: 0 | PDO59: 0 | PDP59: 0 | PDQ59: 0 | PDR59: 0 | PDS59: 0 | PDT59: 0 | PDU59: 0 | PDV59: 0 | PDW59: 0 | PDX59: 0 | PDY59: 0 | PDZ59: 0 | PEA59: 0 | PEB59: 0 | PEC59: 0 | PED59: =PED67 -> 0 | PEE59: 0 | PEF59: 0 | PEG59: 0 | PEH59: 0 | PEI59: 0 | PEJ59: 0 | PEK59: 0 | PEL59: 0 | PEM59: 0 | PEN59: 0 | PEO59: 0 | PEP59: 0 | PEQ59: 0 | PER59: 0 | PES59: 0 | PET59: 0 | PEU59: 0 | PEV59: 0 | PEW59: 0 | PEX59: 0 | PEY59: 0 | PEZ59: 0 | PFA59: 0 | PFB59: 0 | PFC59: 0 | PFD59: 0 | PFE59: 0 | PFF59: 0 | PFG59: 0 | PFH59: 0 | PFI59: 0 | PFJ59: 0 | PFK59: 0 | PFL59: 0 | PFM59: 0 | PFN59: 0 | PFO59: 0 | PFP59: 0 | PFQ59: 0 | PFR59: 0 | PFS59: 0 | PFT59: 0 | PFU59: 0 | PFV59: 0 | PFW59: 0 | PFX59: 0 | PFY59: 0 | PFZ59: 0 | PGA59: 0 | PGB59: 0 | PGC59: 0 | PGD59: 0 | PGE59: 0 | PGF59: 0 | PGG59: 0 | PGH59: 0 | PGI59: 0 | PGJ59: 0 | PGK59: 0 | PGL59: 0 | PGM59: 0 | PGN59: 0 | PGO59: 0 | PGP59: =PGP67 -> 0 | PGQ59: 0 | PGR59: 0 | PGS59: 0 | PGT59: 0 | PGU59: 0 | PGV59: 0 | PGW59: 0 | PGX59: 0 | PGY59: 0 | PGZ59: 0 | PHA59: 0 | PHB59: 0 | PHC59: 0 | PHD59: 0 | PHE59: 0 | PHF59: 0 | PHG59: 0 | PHH59: 0 | PHI59: 0 | PHJ59: 0 | PHK59: 0 | PHL59: 0 | PHM59: 0 | PHN59: 0 | PHO59: 0 | PHP59: 0 | PHQ59: 0 | PHR59: 0 | PHS59: 0 | PHT59: 0 | PHU59: 0 | PHV59: 0 | PHW59: 0 | PHX59: 0 | PHY59: 0 | PHZ59: 0 | PIA59: 0 | PIB59: 0 | PIC59: 0 | PID59: 0 | PIE59: 0 | PIF59: 0 | PIG59: 0 | PIH59: 0 | PII59: 0 | PIJ59: 0 | PIK59: 0 | PIL59: 0 | PIM59: 0 | PIN59: 0 | PIO59: 0 | PIP59: 0 | PIQ59: 0 | PIR59: 0 | PIS59: 0 | PIT59: 0 | PIU59: 0 | PIV59: 0 | PIW59: 0 | PIX59: 0 | PIY59: 0 | PIZ59: 0 | PJA59: 0 | PJB59: =PJB67 -> 0 | PJC59: 0 | PJD59: 0 | PJE59: 0 | PJF59: 0 | PJG59: 0 | PJH59: 0 | PJI59: 0 | PJJ59: 0 | PJK59: 0 | PJL59: 0 | PJM59: 0 | PJN59: 0 | PJO59: 0 | PJP59: 0 | PJQ59: 0 | PJR59: 0 | PJS59: 0 | PJT59: 0 | PJU59: 0 | PJV59: 0 | PJW59: 0 | PJX59: 0 | PJY59: 0 | PJZ59: 0 | PKA59: 0 | PKB59: 0 | PKC59: 0 | PKD59: 0 | PKE59: 0 | PKF59: 0 | PKG59: 0 | PKH59: 0 | PKI59: 0 | PKJ59: 0 | PKK59: 0 | PKL59: 0 | PKM59: 0 | PKN59: 0 | PKO59: 0 | PKP59: 0 | PKQ59: 0 | PKR59: 0 | PKS59: 0 | PKT59: 0 | PKU59: 0 | PKV59: 0 | PKW59: 0 | PKX59: 0 | PKY59: 0 | PKZ59: 0 | PLA59: 0 | PLB59: 0 | PLC59: 0 | PLD59: 0 | PLE59: 0 | PLF59: 0 | PLG59: 0 | PLH59: 0 | PLI59: 0 | PLJ59: 0 | PLK59: 0 | PLL59: 0 | PLM59: 0 | PLN59: =PLN67 -> 0 | PLO59: 0 | PLP59: 0 | PLQ59: 0 | PLR59: 0 | PLS59: 0 | PLT59: 0 | PLU59: 0 | PLV59: 0 | PLW59: 0 | PLX59: 0 | PLY59: 0 | PLZ59: 0 | PMA59: 0 | PMB59: 0 | PMC59: 0 | PMD59: 0 | PME59: 0 | PMF59: 0 | PMG59: 0 | PMH59: 0 | PMI59: 0 | PMJ59: 0 | PMK59: 0 | PML59: 0 | PMM59: 0 | PMN59: 0 | PMO59: 0 | PMP59: 0 | PMQ59: 0 | PMR59: 0 | PMS59: 0 | PMT59: 0 | PMU59: 0 | PMV59: 0 | PMW59: 0 | PMX59: 0 | PMY59: 0 | PMZ59: 0 | PNA59: 0 | PNB59: 0 | PNC59: 0 | PND59: 0 | PNE59: 0 | PNF59: 0 | PNG59: 0 | PNH59: 0 | PNI59: 0 | PNJ59: 0 | PNK59: 0 | PNL59: 0 | PNM59: 0 | PNN59: 0 | PNO59: 0 | PNP59: 0 | PNQ59: 0 | PNR59: 0 | PNS59: 0 | PNT59: 0 | PNU59: 0 | PNV59: 0 | PNW59: 0 | PNX59: 0 | PNY59: 0 | PNZ59: =PNZ67 -> 0 | POA59: 0 | POB59: 0 | POC59: 0 | POD59: 0 | POE59: 0 | POF59: 0 | POG59: 0 | POH59: 0 | POI59: 0 | POJ59: 0 | POK59: 0 | POL59: 0 | POM59: 0 | PON59: 0 | POO59: 0 | POP59: 0 | POQ59: 0 | POR59: 0 | POS59: 0 | POT59: 0 | POU59: 0 | POV59: 0 | POW59: 0 | POX59: 0 | POY59: 0 | POZ59: 0 | PPA59: 0 | PPB59: 0 | PPC59: 0 | PPD59: 0 | PPE59: 0 | PPF59: 0 | PPG59: 0 | PPH59: 0 | PPI59: 0 | PPJ59: 0 | PPK59: 0 | PPL59: 0 | PPM59: 0 | PPN59: 0 | PPO59: 0 | PPP59: 0 | PPQ59: 0 | PPR59: 0 | PPS59: 0 | PPT59: 0 | PPU59: 0 | PPV59: 0 | PPW59: 0 | PPX59: 0 | PPY59: 0 | PPZ59: 0 | PQA59: 0 | PQB59: 0 | PQC59: 0 | PQD59: 0 | PQE59: 0 | PQF59: 0 | PQG59: 0 | PQH59: 0 | PQI59: 0 | PQJ59: 0 | PQK59: 0 | PQL59: =PQL67 -> 0 | PQM59: 0 | PQN59: 0 | PQO59: 0 | PQP59: 0 | PQQ59: 0 | PQR59: 0 | PQS59: 0 | PQT59: 0 | PQU59: 0 | PQV59: 0 | PQW59: 0 | PQX59: 0 | PQY59: 0 | PQZ59: 0 | PRA59: 0 | PRB59: 0 | PRC59: 0 | PRD59: 0 | PRE59: 0 | PRF59: 0 | PRG59: 0 | PRH59: 0 | PRI59: 0 | PRJ59: 0 | PRK59: 0 | PRL59: 0 | PRM59: 0 | PRN59: 0 | PRO59: 0 | PRP59: 0 | PRQ59: 0 | PRR59: 0 | PRS59: 0 | PRT59: 0 | PRU59: 0 | PRV59: 0 | PRW59: 0 | PRX59: 0 | PRY59: 0 | PRZ59: 0 | PSA59: 0 | PSB59: 0 | PSC59: 0 | PSD59: 0 | PSE59: 0 | PSF59: 0 | PSG59: 0 | PSH59: 0 | PSI59: 0 | PSJ59: 0 | PSK59: 0 | PSL59: 0 | PSM59: 0 | PSN59: 0 | PSO59: 0 | PSP59: 0 | PSQ59: 0 | PSR59: 0 | PSS59: 0 | PST59: 0 | PSU59: 0 | PSV59: 0 | PSW59: 0 | PSX59: =PSX67 -> 0 | PSY59: 0 | PSZ59: 0 | PTA59: 0 | PTB59: 0 | PTC59: 0 | PTD59: 0 | PTE59: 0 | PTF59: 0 | PTG59: 0 | PTH59: 0 | PTI59: 0 | PTJ59: 0 | PTK59: 0 | PTL59: 0 | PTM59: 0 | PTN59: 0 | PTO59: 0 | PTP59: 0 | PTQ59: 0 | PTR59: 0 | PTS59: 0 | PTT59: 0 | PTU59: 0 | PTV59: 0 | PTW59: 0 | PTX59: 0 | PTY59: 0 | PTZ59: 0 | PUA59: 0 | PUB59: 0 | PUC59: 0 | PUD59: 0 | PUE59: 0 | PUF59: 0 | PUG59: 0 | PUH59: 0 | PUI59: 0 | PUJ59: 0 | PUK59: 0 | PUL59: 0 | PUM59: 0 | PUN59: 0 | PUO59: 0 | PUP59: 0 | PUQ59: 0 | PUR59: 0 | PUS59: 0 | PUT59: 0 | PUU59: 0 | PUV59: 0 | PUW59: 0 | PUX59: 0 | PUY59: 0 | PUZ59: 0 | PVA59: 0 | PVB59: 0 | PVC59: 0 | PVD59: 0 | PVE59: 0 | PVF59: 0 | PVG59: 0 | PVH59: 0 | PVI59: 0 | PVJ59: =PVJ67 -> 0 | PVK59: 0 | PVL59: 0 | PVM59: 0 | PVN59: 0 | PVO59: 0 | PVP59: 0 | PVQ59: 0 | PVR59: 0 | PVS59: 0 | PVT59: 0 | PVU59: 0 | PVV59: 0 | PVW59: 0 | PVX59: 0 | PVY59: 0 | PVZ59: 0 | PWA59: 0 | PWB59: 0 | PWC59: 0 | PWD59: 0 | PWE59: 0 | PWF59: 0 | PWG59: 0 | PWH59: 0 | PWI59: 0 | PWJ59: 0 | PWK59: 0 | PWL59: 0 | PWM59: 0 | PWN59: 0 | PWO59: 0 | PWP59: 0 | PWQ59: 0 | PWR59: 0 | PWS59: 0 | PWT59: 0 | PWU59: 0 | PWV59: 0 | PWW59: 0 | PWX59: 0 | PWY59: 0 | PWZ59: 0 | PXA59: 0 | PXB59: 0 | PXC59: 0 | PXD59: 0 | PXE59: 0 | PXF59: 0 | PXG59: 0 | PXH59: 0 | PXI59: 0 | PXJ59: 0 | PXK59: 0 | PXL59: 0 | PXM59: 0 | PXN59: 0 | PXO59: 0 | PXP59: 0 | PXQ59: 0 | PXR59: 0 | PXS59: 0 | PXT59: 0 | PXU59: 0 | PXV59: =PXV67 -> 0 | PXW59: 0 | PXX59: 0 | PXY59: 0 | PXZ59: 0 | PYA59: 0 | PYB59: 0 | PYC59: 0 | PYD59: 0 | PYE59: 0 | PYF59: 0 | PYG59: 0 | PYH59: 0 | PYI59: 0 | PYJ59: 0 | PYK59: 0 | PYL59: 0 | PYM59: 0 | PYN59: 0 | PYO59: 0 | PYP59: 0 | PYQ59: 0 | PYR59: 0 | PYS59: 0 | PYT59: 0 | PYU59: 0 | PYV59: 0 | PYW59: 0 | PYX59: 0 | PYY59: 0 | PYZ59: 0 | PZA59: 0 | PZB59: 0 | PZC59: 0 | PZD59: 0 | PZE59: 0 | PZF59: 0 | PZG59: 0 | PZH59: 0 | PZI59: 0 | PZJ59: 0 | PZK59: 0 | PZL59: 0 | PZM59: 0 | PZN59: 0 | PZO59: 0 | PZP59: 0 | PZQ59: 0 | PZR59: 0 | PZS59: 0 | PZT59: 0 | PZU59: 0 | PZV59: 0 | PZW59: 0 | PZX59: 0 | PZY59: 0 | PZZ59: 0 | QAA59: 0 | QAB59: 0 | QAC59: 0 | QAD59: 0 | QAE59: 0 | QAF59: 0 | QAG59: 0 | QAH59: =QAH67 -> 0 | QAI59: 0 | QAJ59: 0 | QAK59: 0 | QAL59: 0 | QAM59: 0 | QAN59: 0 | QAO59: 0 | QAP59: 0 | QAQ59: 0 | QAR59: 0 | QAS59: 0 | QAT59: 0 | QAU59: 0 | QAV59: 0 | QAW59: 0 | QAX59: 0 | QAY59: 0 | QAZ59: 0 | QBA59: 0 | QBB59: 0 | QBC59: 0 | QBD59: 0 | QBE59: 0 | QBF59: 0 | QBG59: 0 | QBH59: 0 | QBI59: 0 | QBJ59: 0 | QBK59: 0 | QBL59: 0 | QBM59: 0 | QBN59: 0 | QBO59: 0 | QBP59: 0 | QBQ59: 0 | QBR59: 0 | QBS59: 0 | QBT59: 0 | QBU59: 0 | QBV59: 0 | QBW59: 0 | QBX59: 0 | QBY59: 0 | QBZ59: 0 | QCA59: 0 | QCB59: 0 | QCC59: 0 | QCD59: 0 | QCE59: 0 | QCF59: 0 | QCG59: 0 | QCH59: 0 | QCI59: 0 | QCJ59: 0 | QCK59: 0 | QCL59: 0 | QCM59: 0 | QCN59: 0 | QCO59: 0 | QCP59: 0 | QCQ59: 0 | QCR59: 0 | QCS59: 0 | QCT59: =QCT67 -> 0 | QCU59: 0 | QCV59: 0 | QCW59: 0 | QCX59: 0 | QCY59: 0 | QCZ59: 0 | QDA59: 0 | QDB59: 0 | QDC59: 0 | QDD59: 0 | QDE59: 0 | QDF59: 0 | QDG59: 0 | QDH59: 0 | QDI59: 0 | QDJ59: 0 | QDK59: 0 | QDL59: 0 | QDM59: 0 | QDN59: 0 | QDO59: 0 | QDP59: 0 | QDQ59: 0 | QDR59: 0 | QDS59: 0 | QDT59: 0 | QDU59: 0 | QDV59: 0 | QDW59: 0 | QDX59: 0 | QDY59: 0 | QDZ59: 0 | QEA59: 0 | QEB59: 0 | QEC59: 0 | QED59: 0 | QEE59: 0 | QEF59: 0 | QEG59: 0 | QEH59: 0 | QEI59: 0 | QEJ59: 0 | QEK59: 0 | QEL59: 0 | QEM59: 0 | QEN59: 0 | QEO59: 0 | QEP59: 0 | QEQ59: 0 | QER59: 0 | QES59: 0 | QET59: 0 | QEU59: 0 | QEV59: 0 | QEW59: 0 | QEX59: 0 | QEY59: 0 | QEZ59: 0 | QFA59: 0 | QFB59: 0 | QFC59: 0 | QFD59: 0 | QFE59: 0 | QFF59: =QFF67 -> 0 | QFG59: 0 | QFH59: 0 | QFI59: 0 | QFJ59: 0 | QFK59: 0 | QFL59: 0 | QFM59: 0 | QFN59: 0 | QFO59: 0 | QFP59: 0 | QFQ59: 0 | QFR59: 0 | QFS59: 0 | QFT59: 0 | QFU59: 0 | QFV59: 0 | QFW59: 0 | QFX59: 0 | QFY59: 0 | QFZ59: 0 | QGA59: 0 | QGB59: 0 | QGC59: 0 | QGD59: 0 | QGE59: 0 | QGF59: 0 | QGG59: 0 | QGH59: 0 | QGI59: 0 | QGJ59: 0 | QGK59: 0 | QGL59: 0 | QGM59: 0 | QGN59: 0 | QGO59: 0 | QGP59: 0 | QGQ59: 0 | QGR59: 0 | QGS59: 0 | QGT59: 0 | QGU59: 0 | QGV59: 0 | QGW59: 0 | QGX59: 0 | QGY59: 0 | QGZ59: 0 | QHA59: 0 | QHB59: 0 | QHC59: 0 | QHD59: 0 | QHE59: 0 | QHF59: 0 | QHG59: 0 | QHH59: 0 | QHI59: 0 | QHJ59: 0 | QHK59: 0 | QHL59: 0 | QHM59: 0 | QHN59: 0 | QHO59: 0 | QHP59: 0 | QHQ59: 0 | QHR59: =QHR67 -> 0 | QHS59: 0 | QHT59: 0 | QHU59: 0 | QHV59: 0 | QHW59: 0 | QHX59: 0 | QHY59: 0 | QHZ59: 0 | QIA59: 0 | QIB59: 0 | QIC59: 0 | QID59: 0 | QIE59: 0 | QIF59: 0 | QIG59: 0 | QIH59: 0 | QII59: 0 | QIJ59: 0 | QIK59: 0 | QIL59: 0 | QIM59: 0 | QIN59: 0 | QIO59: 0 | QIP59: 0 | QIQ59: 0 | QIR59: 0 | QIS59: 0 | QIT59: 0 | QIU59: 0 | QIV59: 0 | QIW59: 0 | QIX59: 0 | QIY59: 0 | QIZ59: 0 | QJA59: 0 | QJB59: 0 | QJC59: 0 | QJD59: 0 | QJE59: 0 | QJF59: 0 | QJG59: 0 | QJH59: 0 | QJI59: 0 | QJJ59: 0 | QJK59: 0 | QJL59: 0 | QJM59: 0 | QJN59: 0 | QJO59: 0 | QJP59: 0 | QJQ59: 0 | QJR59: 0 | QJS59: 0 | QJT59: 0 | QJU59: 0 | QJV59: 0 | QJW59: 0 | QJX59: 0 | QJY59: 0 | QJZ59: 0 | QKA59: 0 | QKB59: 0 | QKC59: 0 | QKD59: =QKD67 -> 0 | QKE59: 0 | QKF59: 0 | QKG59: 0 | QKH59: 0 | QKI59: 0 | QKJ59: 0 | QKK59: 0 | QKL59: 0 | QKM59: 0 | QKN59: 0 | QKO59: 0 | QKP59: 0 | QKQ59: 0 | QKR59: 0 | QKS59: 0 | QKT59: 0 | QKU59: 0 | QKV59: 0 | QKW59: 0 | QKX59: 0 | QKY59: 0 | QKZ59: 0 | QLA59: 0 | QLB59: 0 | QLC59: 0 | QLD59: 0 | QLE59: 0 | QLF59: 0 | QLG59: 0 | QLH59: 0 | QLI59: 0 | QLJ59: 0 | QLK59: 0 | QLL59: 0 | QLM59: 0 | QLN59: 0 | QLO59: 0 | QLP59: 0 | QLQ59: 0 | QLR59: 0 | QLS59: 0 | QLT59: 0 | QLU59: 0 | QLV59: 0 | QLW59: 0 | QLX59: 0 | QLY59: 0 | QLZ59: 0 | QMA59: 0 | QMB59: 0 | QMC59: 0 | QMD59: 0 | QME59: 0 | QMF59: 0 | QMG59: 0 | QMH59: 0 | QMI59: 0 | QMJ59: 0 | QMK59: 0 | QML59: 0 | QMM59: 0 | QMN59: 0 | QMO59: 0 | QMP59: =QMP67 -> 0 | QMQ59: 0 | QMR59: 0 | QMS59: 0 | QMT59: 0 | QMU59: 0 | QMV59: 0 | QMW59: 0 | QMX59: 0 | QMY59: 0 | QMZ59: 0 | QNA59: 0 | QNB59: 0 | QNC59: 0 | QND59: 0 | QNE59: 0 | QNF59: 0 | QNG59: 0 | QNH59: 0 | QNI59: 0 | QNJ59: 0 | QNK59: 0 | QNL59: 0 | QNM59: 0 | QNN59: 0 | QNO59: 0 | QNP59: 0 | QNQ59: 0 | QNR59: 0 | QNS59: 0 | QNT59: 0 | QNU59: 0 | QNV59: 0 | QNW59: 0 | QNX59: 0 | QNY59: 0 | QNZ59: 0 | QOA59: 0 | QOB59: 0 | QOC59: 0 | QOD59: 0 | QOE59: 0 | QOF59: 0 | QOG59: 0 | QOH59: 0 | QOI59: 0 | QOJ59: 0 | QOK59: 0 | QOL59: 0 | QOM59: 0 | QON59: 0 | QOO59: 0 | QOP59: 0 | QOQ59: 0 | QOR59: 0 | QOS59: 0 | QOT59: 0 | QOU59: 0 | QOV59: 0 | QOW59: 0 | QOX59: 0 | QOY59: 0 | QOZ59: 0 | QPA59: 0 | QPB59: =QPB67 -> 0 | QPC59: 0 | QPD59: 0 | QPE59: 0 | QPF59: 0 | QPG59: 0 | QPH59: 0 | QPI59: 0 | QPJ59: 0 | QPK59: 0 | QPL59: 0 | QPM59: 0 | QPN59: 0 | QPO59: 0 | QPP59: 0 | QPQ59: 0 | QPR59: 0 | QPS59: 0 | QPT59: 0 | QPU59: 0 | QPV59: 0 | QPW59: 0 | QPX59: 0 | QPY59: 0 | QPZ59: 0 | QQA59: 0 | QQB59: 0 | QQC59: 0 | QQD59: 0 | QQE59: 0 | QQF59: 0 | QQG59: 0 | QQH59: 0 | QQI59: 0 | QQJ59: 0 | QQK59: 0 | QQL59: 0 | QQM59: 0 | QQN59: 0 | QQO59: 0 | QQP59: 0 | QQQ59: 0 | QQR59: 0 | QQS59: 0 | QQT59: 0 | QQU59: 0 | QQV59: 0 | QQW59: 0 | QQX59: 0 | QQY59: 0 | QQZ59: 0 | QRA59: 0 | QRB59: 0 | QRC59: 0 | QRD59: 0 | QRE59: 0 | QRF59: 0 | QRG59: 0 | QRH59: 0 | QRI59: 0 | QRJ59: 0 | QRK59: 0 | QRL59: 0 | QRM59: 0 | QRN59: =QRN67 -> 0 | QRO59: 0 | QRP59: 0 | QRQ59: 0 | QRR59: 0 | QRS59: 0 | QRT59: 0 | QRU59: 0 | QRV59: 0 | QRW59: 0 | QRX59: 0 | QRY59: 0 | QRZ59: 0 | QSA59: 0 | QSB59: 0 | QSC59: 0 | QSD59: 0 | QSE59: 0 | QSF59: 0 | QSG59: 0 | QSH59: 0 | QSI59: 0 | QSJ59: 0 | QSK59: 0 | QSL59: 0 | QSM59: 0 | QSN59: 0 | QSO59: 0 | QSP59: 0 | QSQ59: 0 | QSR59: 0 | QSS59: 0 | QST59: 0 | QSU59: 0 | QSV59: 0 | QSW59: 0 | QSX59: 0 | QSY59: 0 | QSZ59: 0 | QTA59: 0 | QTB59: 0 | QTC59: 0 | QTD59: 0 | QTE59: 0 | QTF59: 0 | QTG59: 0 | QTH59: 0 | QTI59: 0 | QTJ59: 0 | QTK59: 0 | QTL59: 0 | QTM59: 0 | QTN59: 0 | QTO59: 0 | QTP59: 0 | QTQ59: 0 | QTR59: 0 | QTS59: 0 | QTT59: 0 | QTU59: 0 | QTV59: 0 | QTW59: 0 | QTX59: 0 | QTY59: 0 | QTZ59: =QTZ67 -> 0 | QUA59: 0 | QUB59: 0 | QUC59: 0 | QUD59: 0 | QUE59: 0 | QUF59: 0 | QUG59: 0 | QUH59: 0 | QUI59: 0 | QUJ59: 0 | QUK59: 0 | QUL59: 0 | QUM59: 0 | QUN59: 0 | QUO59: 0 | QUP59: 0 | QUQ59: 0 | QUR59: 0 | QUS59: 0 | QUT59: 0 | QUU59: 0 | QUV59: 0 | QUW59: 0 | QUX59: 0 | QUY59: 0 | QUZ59: 0 | QVA59: 0 | QVB59: 0 | QVC59: 0 | QVD59: 0 | QVE59: 0 | QVF59: 0 | QVG59: 0 | QVH59: 0 | QVI59: 0 | QVJ59: 0 | QVK59: 0 | QVL59: 0 | QVM59: 0 | QVN59: 0 | QVO59: 0 | QVP59: 0 | QVQ59: 0 | QVR59: 0 | QVS59: 0 | QVT59: 0 | QVU59: 0 | QVV59: 0 | QVW59: 0 | QVX59: 0 | QVY59: 0 | QVZ59: 0 | QWA59: 0 | QWB59: 0 | QWC59: 0 | QWD59: 0 | QWE59: 0 | QWF59: 0 | QWG59: 0 | QWH59: 0 | QWI59: 0 | QWJ59: 0 | QWK59: 0 | QWL59: =QWL67 -> 0 | QWM59: 0 | QWN59: 0 | QWO59: 0 | QWP59: 0 | QWQ59: 0 | QWR59: 0 | QWS59: 0 | QWT59: 0 | QWU59: 0 | QWV59: 0 | QWW59: 0 | QWX59: 0 | QWY59: 0 | QWZ59: 0 | QXA59: 0 | QXB59: 0 | QXC59: 0 | QXD59: 0 | QXE59: 0 | QXF59: 0 | QXG59: 0 | QXH59: 0 | QXI59: 0 | QXJ59: 0 | QXK59: 0 | QXL59: 0 | QXM59: 0 | QXN59: 0 | QXO59: 0 | QXP59: 0 | QXQ59: 0 | QXR59: 0 | QXS59: 0 | QXT59: 0 | QXU59: 0 | QXV59: 0 | QXW59: 0 | QXX59: 0 | QXY59: 0 | QXZ59: 0 | QYA59: 0 | QYB59: 0 | QYC59: 0 | QYD59: 0 | QYE59: 0 | QYF59: 0 | QYG59: 0 | QYH59: 0 | QYI59: 0 | QYJ59: 0 | QYK59: 0 | QYL59: 0 | QYM59: 0 | QYN59: 0 | QYO59: 0 | QYP59: 0 | QYQ59: 0 | QYR59: 0 | QYS59: 0 | QYT59: 0 | QYU59: 0 | QYV59: 0 | QYW59: 0 | QYX59: =QYX67 -> 0 | QYY59: 0 | QYZ59: 0 | QZA59: 0 | QZB59: 0 | QZC59: 0 | QZD59: 0 | QZE59: 0 | QZF59: 0 | QZG59: 0 | QZH59: 0 | QZI59: 0 | QZJ59: 0 | QZK59: 0 | QZL59: 0 | QZM59: 0 | QZN59: 0 | QZO59: 0 | QZP59: 0 | QZQ59: 0 | QZR59: 0 | QZS59: 0 | QZT59: 0 | QZU59: 0 | QZV59: 0 | QZW59: 0 | QZX59: 0 | QZY59: 0 | QZZ59: 0 | RAA59: 0 | RAB59: 0 | RAC59: 0 | RAD59: 0 | RAE59: 0 | RAF59: 0 | RAG59: 0 | RAH59: 0 | RAI59: 0 | RAJ59: 0 | RAK59: 0 | RAL59: 0 | RAM59: 0 | RAN59: 0 | RAO59: 0 | RAP59: 0 | RAQ59: 0 | RAR59: 0 | RAS59: 0 | RAT59: 0 | RAU59: 0 | RAV59: 0 | RAW59: 0 | RAX59: 0 | RAY59: 0 | RAZ59: 0 | RBA59: 0 | RBB59: 0 | RBC59: 0 | RBD59: 0 | RBE59: 0 | RBF59: 0 | RBG59: 0 | RBH59: 0 | RBI59: 0 | RBJ59: =RBJ67 -> 0 | RBK59: 0 | RBL59: 0 | RBM59: 0 | RBN59: 0 | RBO59: 0 | RBP59: 0 | RBQ59: 0 | RBR59: 0 | RBS59: 0 | RBT59: 0 | RBU59: 0 | RBV59: 0 | RBW59: 0 | RBX59: 0 | RBY59: 0 | RBZ59: 0 | RCA59: 0 | RCB59: 0 | RCC59: 0 | RCD59: 0 | RCE59: 0 | RCF59: 0 | RCG59: 0 | RCH59: 0 | RCI59: 0 | RCJ59: 0 | RCK59: 0 | RCL59: 0 | RCM59: 0 | RCN59: 0 | RCO59: 0 | RCP59: 0 | RCQ59: 0 | RCR59: 0 | RCS59: 0 | RCT59: 0 | RCU59: 0 | RCV59: 0 | RCW59: 0 | RCX59: 0 | RCY59: 0 | RCZ59: 0 | RDA59: 0 | RDB59: 0 | RDC59: 0 | RDD59: 0 | RDE59: 0 | RDF59: 0 | RDG59: 0 | RDH59: 0 | RDI59: 0 | RDJ59: 0 | RDK59: 0 | RDL59: 0 | RDM59: 0 | RDN59: 0 | RDO59: 0 | RDP59: 0 | RDQ59: 0 | RDR59: 0 | RDS59: 0 | RDT59: 0 | RDU59: 0 | RDV59: =RDV67 -> 0 | RDW59: 0 | RDX59: 0 | RDY59: 0 | RDZ59: 0 | REA59: 0 | REB59: 0 | REC59: 0 | RED59: 0 | REE59: 0 | REF59: 0 | REG59: 0 | REH59: 0 | REI59: 0 | REJ59: 0 | REK59: 0 | REL59: 0 | REM59: 0 | REN59: 0 | REO59: 0 | REP59: 0 | REQ59: 0 | RER59: 0 | RES59: 0 | RET59: 0 | REU59: 0 | REV59: 0 | REW59: 0 | REX59: 0 | REY59: 0 | REZ59: 0 | RFA59: 0 | RFB59: 0 | RFC59: 0 | RFD59: 0 | RFE59: 0 | RFF59: 0 | RFG59: 0 | RFH59: 0 | RFI59: 0 | RFJ59: 0 | RFK59: 0 | RFL59: 0 | RFM59: 0 | RFN59: 0 | RFO59: 0 | RFP59: 0 | RFQ59: 0 | RFR59: 0 | RFS59: 0 | RFT59: 0 | RFU59: 0 | RFV59: 0 | RFW59: 0 | RFX59: 0 | RFY59: 0 | RFZ59: 0 | RGA59: 0 | RGB59: 0 | RGC59: 0 | RGD59: 0 | RGE59: 0 | RGF59: 0 | RGG59: 0 | RGH59: =RGH67 -> 0 | RGI59: 0 | RGJ59: 0 | RGK59: 0 | RGL59: 0 | RGM59: 0 | RGN59: 0 | RGO59: 0 | RGP59: 0 | RGQ59: 0 | RGR59: 0 | RGS59: 0 | RGT59: 0 | RGU59: 0 | RGV59: 0 | RGW59: 0 | RGX59: 0 | RGY59: 0 | RGZ59: 0 | RHA59: 0 | RHB59: 0 | RHC59: 0 | RHD59: 0 | RHE59: 0 | RHF59: 0 | RHG59: 0 | RHH59: 0 | RHI59: 0 | RHJ59: 0 | RHK59: 0 | RHL59: 0 | RHM59: 0 | RHN59: 0 | RHO59: 0 | RHP59: 0 | RHQ59: 0 | RHR59: 0 | RHS59: 0 | RHT59: 0 | RHU59: 0 | RHV59: 0 | RHW59: 0 | RHX59: 0 | RHY59: 0 | RHZ59: 0 | RIA59: 0 | RIB59: 0 | RIC59: 0 | RID59: 0 | RIE59: 0 | RIF59: 0 | RIG59: 0 | RIH59: 0 | RII59: 0 | RIJ59: 0 | RIK59: 0 | RIL59: 0 | RIM59: 0 | RIN59: 0 | RIO59: 0 | RIP59: 0 | RIQ59: 0 | RIR59: 0 | RIS59: 0 | RIT59: =RIT67 -> 0 | RIU59: 0 | RIV59: 0 | RIW59: 0 | RIX59: 0 | RIY59: 0 | RIZ59: 0 | RJA59: 0 | RJB59: 0 | RJC59: 0 | RJD59: 0 | RJE59: 0 | RJF59: 0 | RJG59: 0 | RJH59: 0 | RJI59: 0 | RJJ59: 0 | RJK59: 0 | RJL59: 0 | RJM59: 0 | RJN59: 0 | RJO59: 0 | RJP59: 0 | RJQ59: 0 | RJR59: 0 | RJS59: 0 | RJT59: 0 | RJU59: 0 | RJV59: 0 | RJW59: 0 | RJX59: 0 | RJY59: 0 | RJZ59: 0 | RKA59: 0 | RKB59: 0 | RKC59: 0 | RKD59: 0 | RKE59: 0 | RKF59: 0 | RKG59: 0 | RKH59: 0 | RKI59: 0 | RKJ59: 0 | RKK59: 0 | RKL59: 0 | RKM59: 0 | RKN59: 0 | RKO59: 0 | RKP59: 0 | RKQ59: 0 | RKR59: 0 | RKS59: 0 | RKT59: 0 | RKU59: 0 | RKV59: 0 | RKW59: 0 | RKX59: 0 | RKY59: 0 | RKZ59: 0 | RLA59: 0 | RLB59: 0 | RLC59: 0 | RLD59: 0 | RLE59: 0 | RLF59: =RLF67 -> 0 | RLG59: 0 | RLH59: 0 | RLI59: 0 | RLJ59: 0 | RLK59: 0 | RLL59: 0 | RLM59: 0 | RLN59: 0 | RLO59: 0 | RLP59: 0 | RLQ59: 0 | RLR59: 0 | RLS59: 0 | RLT59: 0 | RLU59: 0 | RLV59: 0 | RLW59: 0 | RLX59: 0 | RLY59: 0 | RLZ59: 0 | RMA59: 0 | RMB59: 0 | RMC59: 0 | RMD59: 0 | RME59: 0 | RMF59: 0 | RMG59: 0 | RMH59: 0 | RMI59: 0 | RMJ59: 0 | RMK59: 0 | RML59: 0 | RMM59: 0 | RMN59: 0 | RMO59: 0 | RMP59: 0 | RMQ59: 0 | RMR59: 0 | RMS59: 0 | RMT59: 0 | RMU59: 0 | RMV59: 0 | RMW59: 0 | RMX59: 0 | RMY59: 0 | RMZ59: 0 | RNA59: 0 | RNB59: 0 | RNC59: 0 | RND59: 0 | RNE59: 0 | RNF59: 0 | RNG59: 0 | RNH59: 0 | RNI59: 0 | RNJ59: 0 | RNK59: 0 | RNL59: 0 | RNM59: 0 | RNN59: 0 | RNO59: 0 | RNP59: 0 | RNQ59: 0 | RNR59: =RNR67 -> 0 | RNS59: 0 | RNT59: 0 | RNU59: 0 | RNV59: 0 | RNW59: 0 | RNX59: 0 | RNY59: 0 | RNZ59: 0 | ROA59: 0 | ROB59: 0 | ROC59: 0 | ROD59: 0 | ROE59: 0 | ROF59: 0 | ROG59: 0 | ROH59: 0 | ROI59: 0 | ROJ59: 0 | ROK59: 0 | ROL59: 0 | ROM59: 0 | RON59: 0 | ROO59: 0 | ROP59: 0 | ROQ59: 0 | ROR59: 0 | ROS59: 0 | ROT59: 0 | ROU59: 0 | ROV59: 0 | ROW59: 0 | ROX59: 0 | ROY59: 0 | ROZ59: 0 | RPA59: 0 | RPB59: 0 | RPC59: 0 | RPD59: 0 | RPE59: 0 | RPF59: 0 | RPG59: 0 | RPH59: 0 | RPI59: 0 | RPJ59: 0 | RPK59: 0 | RPL59: 0 | RPM59: 0 | RPN59: 0 | RPO59: 0 | RPP59: 0 | RPQ59: 0 | RPR59: 0 | RPS59: 0 | RPT59: 0 | RPU59: 0 | RPV59: 0 | RPW59: 0 | RPX59: 0 | RPY59: 0 | RPZ59: 0 | RQA59: 0 | RQB59: 0 | RQC59: 0 | RQD59: =RQD67 -> 0 | RQE59: 0 | RQF59: 0 | RQG59: 0 | RQH59: 0 | RQI59: 0 | RQJ59: 0 | RQK59: 0 | RQL59: 0 | RQM59: 0 | RQN59: 0 | RQO59: 0 | RQP59: 0 | RQQ59: 0 | RQR59: 0 | RQS59: 0 | RQT59: 0 | RQU59: 0 | RQV59: 0 | RQW59: 0 | RQX59: 0 | RQY59: 0 | RQZ59: 0 | RRA59: 0 | RRB59: 0 | RRC59: 0 | RRD59: 0 | RRE59: 0 | RRF59: 0 | RRG59: 0 | RRH59: 0 | RRI59: 0 | RRJ59: 0 | RRK59: 0 | RRL59: 0 | RRM59: 0 | RRN59: 0 | RRO59: 0 | RRP59: 0 | RRQ59: 0 | RRR59: 0 | RRS59: 0 | RRT59: 0 | RRU59: 0 | RRV59: 0 | RRW59: 0 | RRX59: 0 | RRY59: 0 | RRZ59: 0 | RSA59: 0 | RSB59: 0 | RSC59: 0 | RSD59: 0 | RSE59: 0 | RSF59: 0 | RSG59: 0 | RSH59: 0 | RSI59: 0 | RSJ59: 0 | RSK59: 0 | RSL59: 0 | RSM59: 0 | RSN59: 0 | RSO59: 0 | RSP59: =RSP67 -> 0 | RSQ59: 0 | RSR59: 0 | RSS59: 0 | RST59: 0 | RSU59: 0 | RSV59: 0 | RSW59: 0 | RSX59: 0 | RSY59: 0 | RSZ59: 0 | RTA59: 0 | RTB59: 0 | RTC59: 0 | RTD59: 0 | RTE59: 0 | RTF59: 0 | RTG59: 0 | RTH59: 0 | RTI59: 0 | RTJ59: 0 | RTK59: 0 | RTL59: 0 | RTM59: 0 | RTN59: 0 | RTO59: 0 | RTP59: 0 | RTQ59: 0 | RTR59: 0 | RTS59: 0 | RTT59: 0 | RTU59: 0 | RTV59: 0 | RTW59: 0 | RTX59: 0 | RTY59: 0 | RTZ59: 0 | RUA59: 0 | RUB59: 0 | RUC59: 0 | RUD59: 0 | RUE59: 0 | RUF59: 0 | RUG59: 0 | RUH59: 0 | RUI59: 0 | RUJ59: 0 | RUK59: 0 | RUL59: 0 | RUM59: 0 | RUN59: 0 | RUO59: 0 | RUP59: 0 | RUQ59: 0 | RUR59: 0 | RUS59: 0 | RUT59: 0 | RUU59: 0 | RUV59: 0 | RUW59: 0 | RUX59: 0 | RUY59: 0 | RUZ59: 0 | RVA59: 0 | RVB59: =RVB67 -> 0 | RVC59: 0 | RVD59: 0 | RVE59: 0 | RVF59: 0 | RVG59: 0 | RVH59: 0 | RVI59: 0 | RVJ59: 0 | RVK59: 0 | RVL59: 0 | RVM59: 0 | RVN59: 0 | RVO59: 0 | RVP59: 0 | RVQ59: 0 | RVR59: 0 | RVS59: 0 | RVT59: 0 | RVU59: 0 | RVV59: 0 | RVW59: 0 | RVX59: 0 | RVY59: 0 | RVZ59: 0 | RWA59: 0 | RWB59: 0 | RWC59: 0 | RWD59: 0 | RWE59: 0 | RWF59: 0 | RWG59: 0 | RWH59: 0 | RWI59: 0 | RWJ59: 0 | RWK59: 0 | RWL59: 0 | RWM59: 0 | RWN59: 0 | RWO59: 0 | RWP59: 0 | RWQ59: 0 | RWR59: 0 | RWS59: 0 | RWT59: 0 | RWU59: 0 | RWV59: 0 | RWW59: 0 | RWX59: 0 | RWY59: 0 | RWZ59: 0 | RXA59: 0 | RXB59: 0 | RXC59: 0 | RXD59: 0 | RXE59: 0 | RXF59: 0 | RXG59: 0 | RXH59: 0 | RXI59: 0 | RXJ59: 0 | RXK59: 0 | RXL59: 0 | RXM59: 0 | RXN59: =RXN67 -> 0 | RXO59: 0 | RXP59: 0 | RXQ59: 0 | RXR59: 0 | RXS59: 0 | RXT59: 0 | RXU59: 0 | RXV59: 0 | RXW59: 0 | RXX59: 0 | RXY59: 0 | RXZ59: 0 | RYA59: 0 | RYB59: 0 | RYC59: 0 | RYD59: 0 | RYE59: 0 | RYF59: 0 | RYG59: 0 | RYH59: 0 | RYI59: 0 | RYJ59: 0 | RYK59: 0 | RYL59: 0 | RYM59: 0 | RYN59: 0 | RYO59: 0 | RYP59: 0 | RYQ59: 0 | RYR59: 0 | RYS59: 0 | RYT59: 0 | RYU59: 0 | RYV59: 0 | RYW59: 0 | RYX59: 0 | RYY59: 0 | RYZ59: 0 | RZA59: 0 | RZB59: 0 | RZC59: 0 | RZD59: 0 | RZE59: 0 | RZF59: 0 | RZG59: 0 | RZH59: 0 | RZI59: 0 | RZJ59: 0 | RZK59: 0 | RZL59: 0 | RZM59: 0 | RZN59: 0 | RZO59: 0 | RZP59: 0 | RZQ59: 0 | RZR59: 0 | RZS59: 0 | RZT59: 0 | RZU59: 0 | RZV59: 0 | RZW59: 0 | RZX59: 0 | RZY59: 0 | RZZ59: =RZZ67 -> 0 | SAA59: 0 | SAB59: 0 | SAC59: 0 | SAD59: 0 | SAE59: 0 | SAF59: 0 | SAG59: 0 | SAH59: 0 | SAI59: 0 | SAJ59: 0 | SAK59: 0 | SAL59: 0 | SAM59: 0 | SAN59: 0 | SAO59: 0 | SAP59: 0 | SAQ59: 0 | SAR59: 0 | SAS59: 0 | SAT59: 0 | SAU59: 0 | SAV59: 0 | SAW59: 0 | SAX59: 0 | SAY59: 0 | SAZ59: 0 | SBA59: 0 | SBB59: 0 | SBC59: 0 | SBD59: 0 | SBE59: 0 | SBF59: 0 | SBG59: 0 | SBH59: 0 | SBI59: 0 | SBJ59: 0 | SBK59: 0 | SBL59: 0 | SBM59: 0 | SBN59: 0 | SBO59: 0 | SBP59: 0 | SBQ59: 0 | SBR59: 0 | SBS59: 0 | SBT59: 0 | SBU59: 0 | SBV59: 0 | SBW59: 0 | SBX59: 0 | SBY59: 0 | SBZ59: 0 | SCA59: 0 | SCB59: 0 | SCC59: 0 | SCD59: 0 | SCE59: 0 | SCF59: 0 | SCG59: 0 | SCH59: 0 | SCI59: 0 | SCJ59: 0 | SCK59: 0 | SCL59: =SCL67 -> 0 | SCM59: 0 | SCN59: 0 | SCO59: 0 | SCP59: 0 | SCQ59: 0 | SCR59: 0 | SCS59: 0 | SCT59: 0 | SCU59: 0 | SCV59: 0 | SCW59: 0 | SCX59: 0 | SCY59: 0 | SCZ59: 0 | SDA59: 0 | SDB59: 0 | SDC59: 0 | SDD59: 0 | SDE59: 0 | SDF59: 0 | SDG59: 0 | SDH59: 0 | SDI59: 0 | SDJ59: 0 | SDK59: 0 | SDL59: 0 | SDM59: 0 | SDN59: 0 | SDO59: 0 | SDP59: 0 | SDQ59: 0 | SDR59: 0 | SDS59: 0 | SDT59: 0 | SDU59: 0 | SDV59: 0 | SDW59: 0 | SDX59: 0 | SDY59: 0 | SDZ59: 0 | SEA59: 0 | SEB59: 0 | SEC59: 0 | SED59: 0 | SEE59: 0 | SEF59: 0 | SEG59: 0 | SEH59: 0 | SEI59: 0 | SEJ59: 0 | SEK59: 0 | SEL59: 0 | SEM59: 0 | SEN59: 0 | SEO59: 0 | SEP59: 0 | SEQ59: 0 | SER59: 0 | SES59: 0 | SET59: 0 | SEU59: 0 | SEV59: 0 | SEW59: 0 | SEX59: =SEX67 -> 0 | SEY59: 0 | SEZ59: 0 | SFA59: 0 | SFB59: 0 | SFC59: 0 | SFD59: 0 | SFE59: 0 | SFF59: 0 | SFG59: 0 | SFH59: 0 | SFI59: 0 | SFJ59: 0 | SFK59: 0 | SFL59: 0 | SFM59: 0 | SFN59: 0 | SFO59: 0 | SFP59: 0 | SFQ59: 0 | SFR59: 0 | SFS59: 0 | SFT59: 0 | SFU59: 0 | SFV59: 0 | SFW59: 0 | SFX59: 0 | SFY59: 0 | SFZ59: 0 | SGA59: 0 | SGB59: 0 | SGC59: 0 | SGD59: 0 | SGE59: 0 | SGF59: 0 | SGG59: 0 | SGH59: 0 | SGI59: 0 | SGJ59: 0 | SGK59: 0 | SGL59: 0 | SGM59: 0 | SGN59: 0 | SGO59: 0 | SGP59: 0 | SGQ59: 0 | SGR59: 0 | SGS59: 0 | SGT59: 0 | SGU59: 0 | SGV59: 0 | SGW59: 0 | SGX59: 0 | SGY59: 0 | SGZ59: 0 | SHA59: 0 | SHB59: 0 | SHC59: 0 | SHD59: 0 | SHE59: 0 | SHF59: 0 | SHG59: 0 | SHH59: 0 | SHI59: 0 | SHJ59: =SHJ67 -> 0 | SHK59: 0 | SHL59: 0 | SHM59: 0 | SHN59: 0 | SHO59: 0 | SHP59: 0 | SHQ59: 0 | SHR59: 0 | SHS59: 0 | SHT59: 0 | SHU59: 0 | SHV59: 0 | SHW59: 0 | SHX59: 0 | SHY59: 0 | SHZ59: 0 | SIA59: 0 | SIB59: 0 | SIC59: 0 | SID59: 0 | SIE59: 0 | SIF59: 0 | SIG59: 0 | SIH59: 0 | SII59: 0 | SIJ59: 0 | SIK59: 0 | SIL59: 0 | SIM59: 0 | SIN59: 0 | SIO59: 0 | SIP59: 0 | SIQ59: 0 | SIR59: 0 | SIS59: 0 | SIT59: 0 | SIU59: 0 | SIV59: 0 | SIW59: 0 | SIX59: 0 | SIY59: 0 | SIZ59: 0 | SJA59: 0 | SJB59: 0 | SJC59: 0 | SJD59: 0 | SJE59: 0 | SJF59: 0 | SJG59: 0 | SJH59: 0 | SJI59: 0 | SJJ59: 0 | SJK59: 0 | SJL59: 0 | SJM59: 0 | SJN59: 0 | SJO59: 0 | SJP59: 0 | SJQ59: 0 | SJR59: 0 | SJS59: 0 | SJT59: 0 | SJU59: 0 | SJV59: =SJV67 -> 0 | SJW59: 0 | SJX59: 0 | SJY59: 0 | SJZ59: 0 | SKA59: 0 | SKB59: 0 | SKC59: 0 | SKD59: 0 | SKE59: 0 | SKF59: 0 | SKG59: 0 | SKH59: 0 | SKI59: 0 | SKJ59: 0 | SKK59: 0 | SKL59: 0 | SKM59: 0 | SKN59: 0 | SKO59: 0 | SKP59: 0 | SKQ59: 0 | SKR59: 0 | SKS59: 0 | SKT59: 0 | SKU59: 0 | SKV59: 0 | SKW59: 0 | SKX59: 0 | SKY59: 0 | SKZ59: 0 | SLA59: 0 | SLB59: 0 | SLC59: 0 | SLD59: 0 | SLE59: 0 | SLF59: 0 | SLG59: 0 | SLH59: 0 | SLI59: 0 | SLJ59: 0 | SLK59: 0 | SLL59: 0 | SLM59: 0 | SLN59: 0 | SLO59: 0 | SLP59: 0 | SLQ59: 0 | SLR59: 0 | SLS59: 0 | SLT59: 0 | SLU59: 0 | SLV59: 0 | SLW59: 0 | SLX59: 0 | SLY59: 0 | SLZ59: 0 | SMA59: 0 | SMB59: 0 | SMC59: 0 | SMD59: 0 | SME59: 0 | SMF59: 0 | SMG59: 0 | SMH59: =SMH67 -> 0 | SMI59: 0 | SMJ59: 0 | SMK59: 0 | SML59: 0 | SMM59: 0 | SMN59: 0 | SMO59: 0 | SMP59: 0 | SMQ59: 0 | SMR59: 0 | SMS59: 0 | SMT59: 0 | SMU59: 0 | SMV59: 0 | SMW59: 0 | SMX59: 0 | SMY59: 0 | SMZ59: 0 | SNA59: 0 | SNB59: 0 | SNC59: 0 | SND59: 0 | SNE59: 0 | SNF59: 0 | SNG59: 0 | SNH59: 0 | SNI59: 0 | SNJ59: 0 | SNK59: 0 | SNL59: 0 | SNM59: 0 | SNN59: 0 | SNO59: 0 | SNP59: 0 | SNQ59: 0 | SNR59: 0 | SNS59: 0 | SNT59: 0 | SNU59: 0 | SNV59: 0 | SNW59: 0 | SNX59: 0 | SNY59: 0 | SNZ59: 0 | SOA59: 0 | SOB59: 0 | SOC59: 0 | SOD59: 0 | SOE59: 0 | SOF59: 0 | SOG59: 0 | SOH59: 0 | SOI59: 0 | SOJ59: 0 | SOK59: 0 | SOL59: 0 | SOM59: 0 | SON59: 0 | SOO59: 0 | SOP59: 0 | SOQ59: 0 | SOR59: 0 | SOS59: 0 | SOT59: =SOT67 -> 0 | SOU59: 0 | SOV59: 0 | SOW59: 0 | SOX59: 0 | SOY59: 0 | SOZ59: 0 | SPA59: 0 | SPB59: 0 | SPC59: 0 | SPD59: 0 | SPE59: 0 | SPF59: 0 | SPG59: 0 | SPH59: 0 | SPI59: 0 | SPJ59: 0 | SPK59: 0 | SPL59: 0 | SPM59: 0 | SPN59: 0 | SPO59: 0 | SPP59: 0 | SPQ59: 0 | SPR59: 0 | SPS59: 0 | SPT59: 0 | SPU59: 0 | SPV59: 0 | SPW59: 0 | SPX59: 0 | SPY59: 0 | SPZ59: 0 | SQA59: 0 | SQB59: 0 | SQC59: 0 | SQD59: 0 | SQE59: 0 | SQF59: 0 | SQG59: 0 | SQH59: 0 | SQI59: 0 | SQJ59: 0 | SQK59: 0 | SQL59: 0 | SQM59: 0 | SQN59: 0 | SQO59: 0 | SQP59: 0 | SQQ59: 0 | SQR59: 0 | SQS59: 0 | SQT59: 0 | SQU59: 0 | SQV59: 0 | SQW59: 0 | SQX59: 0 | SQY59: 0 | SQZ59: 0 | SRA59: 0 | SRB59: 0 | SRC59: 0 | SRD59: 0 | SRE59: 0 | SRF59: =SRF67 -> 0 | SRG59: 0 | SRH59: 0 | SRI59: 0 | SRJ59: 0 | SRK59: 0 | SRL59: 0 | SRM59: 0 | SRN59: 0 | SRO59: 0 | SRP59: 0 | SRQ59: 0 | SRR59: 0 | SRS59: 0 | SRT59: 0 | SRU59: 0 | SRV59: 0 | SRW59: 0 | SRX59: 0 | SRY59: 0 | SRZ59: 0 | SSA59: 0 | SSB59: 0 | SSC59: 0 | SSD59: 0 | SSE59: 0 | SSF59: 0 | SSG59: 0 | SSH59: 0 | SSI59: 0 | SSJ59: 0 | SSK59: 0 | SSL59: 0 | SSM59: 0 | SSN59: 0 | SSO59: 0 | SSP59: 0 | SSQ59: 0 | SSR59: 0 | SSS59: 0 | SST59: 0 | SSU59: 0 | SSV59: 0 | SSW59: 0 | SSX59: 0 | SSY59: 0 | SSZ59: 0 | STA59: 0 | STB59: 0 | STC59: 0 | STD59: 0 | STE59: 0 | STF59: 0 | STG59: 0 | STH59: 0 | STI59: 0 | STJ59: 0 | STK59: 0 | STL59: 0 | STM59: 0 | STN59: 0 | STO59: 0 | STP59: 0 | STQ59: 0 | STR59: =STR67 -> 0 | STS59: 0 | STT59: 0 | STU59: 0 | STV59: 0 | STW59: 0 | STX59: 0 | STY59: 0 | STZ59: 0 | SUA59: 0 | SUB59: 0 | SUC59: 0 | SUD59: 0 | SUE59: 0 | SUF59: 0 | SUG59: 0 | SUH59: 0 | SUI59: 0 | SUJ59: 0 | SUK59: 0 | SUL59: 0 | SUM59: 0 | SUN59: 0 | SUO59: 0 | SUP59: 0 | SUQ59: 0 | SUR59: 0 | SUS59: 0 | SUT59: 0 | SUU59: 0 | SUV59: 0 | SUW59: 0 | SUX59: 0 | SUY59: 0 | SUZ59: 0 | SVA59: 0 | SVB59: 0 | SVC59: 0 | SVD59: 0 | SVE59: 0 | SVF59: 0 | SVG59: 0 | SVH59: 0 | SVI59: 0 | SVJ59: 0 | SVK59: 0 | SVL59: 0 | SVM59: 0 | SVN59: 0 | SVO59: 0 | SVP59: 0 | SVQ59: 0 | SVR59: 0 | SVS59: 0 | SVT59: 0 | SVU59: 0 | SVV59: 0 | SVW59: 0 | SVX59: 0 | SVY59: 0 | SVZ59: 0 | SWA59: 0 | SWB59: 0 | SWC59: 0 | SWD59: =SWD67 -> 0 | SWE59: 0 | SWF59: 0 | SWG59: 0 | SWH59: 0 | SWI59: 0 | SWJ59: 0 | SWK59: 0 | SWL59: 0 | SWM59: 0 | SWN59: 0 | SWO59: 0 | SWP59: 0 | SWQ59: 0 | SWR59: 0 | SWS59: 0 | SWT59: 0 | SWU59: 0 | SWV59: 0 | SWW59: 0 | SWX59: 0 | SWY59: 0 | SWZ59: 0 | SXA59: 0 | SXB59: 0 | SXC59: 0 | SXD59: 0 | SXE59: 0 | SXF59: 0 | SXG59: 0 | SXH59: 0 | SXI59: 0 | SXJ59: 0 | SXK59: 0 | SXL59: 0 | SXM59: 0 | SXN59: 0 | SXO59: 0 | SXP59: 0 | SXQ59: 0 | SXR59: 0 | SXS59: 0 | SXT59: 0 | SXU59: 0 | SXV59: 0 | SXW59: 0 | SXX59: 0 | SXY59: 0 | SXZ59: 0 | SYA59: 0 | SYB59: 0 | SYC59: 0 | SYD59: 0 | SYE59: 0 | SYF59: 0 | SYG59: 0 | SYH59: 0 | SYI59: 0 | SYJ59: 0 | SYK59: 0 | SYL59: 0 | SYM59: 0 | SYN59: 0 | SYO59: 0 | SYP59: =SYP67 -> 0 | SYQ59: 0 | SYR59: 0 | SYS59: 0 | SYT59: 0 | SYU59: 0 | SYV59: 0 | SYW59: 0 | SYX59: 0 | SYY59: 0 | SYZ59: 0 | SZA59: 0 | SZB59: 0 | SZC59: 0 | SZD59: 0 | SZE59: 0 | SZF59: 0 | SZG59: 0 | SZH59: 0 | SZI59: 0 | SZJ59: 0 | SZK59: 0 | SZL59: 0 | SZM59: 0 | SZN59: 0 | SZO59: 0 | SZP59: 0 | SZQ59: 0 | SZR59: 0 | SZS59: 0 | SZT59: 0 | SZU59: 0 | SZV59: 0 | SZW59: 0 | SZX59: 0 | SZY59: 0 | SZZ59: 0 | TAA59: 0 | TAB59: 0 | TAC59: 0 | TAD59: 0 | TAE59: 0 | TAF59: 0 | TAG59: 0 | TAH59: 0 | TAI59: 0 | TAJ59: 0 | TAK59: 0 | TAL59: 0 | TAM59: 0 | TAN59: 0 | TAO59: 0 | TAP59: 0 | TAQ59: 0 | TAR59: 0 | TAS59: 0 | TAT59: 0 | TAU59: 0 | TAV59: 0 | TAW59: 0 | TAX59: 0 | TAY59: 0 | TAZ59: 0 | TBA59: 0 | TBB59: =TBB67 -> 0 | TBC59: 0 | TBD59: 0 | TBE59: 0 | TBF59: 0 | TBG59: 0 | TBH59: 0 | TBI59: 0 | TBJ59: 0 | TBK59: 0 | TBL59: 0 | TBM59: 0 | TBN59: 0 | TBO59: 0 | TBP59: 0 | TBQ59: 0 | TBR59: 0 | TBS59: 0 | TBT59: 0 | TBU59: 0 | TBV59: 0 | TBW59: 0 | TBX59: 0 | TBY59: 0 | TBZ59: 0 | TCA59: 0 | TCB59: 0 | TCC59: 0 | TCD59: 0 | TCE59: 0 | TCF59: 0 | TCG59: 0 | TCH59: 0 | TCI59: 0 | TCJ59: 0 | TCK59: 0 | TCL59: 0 | TCM59: 0 | TCN59: 0 | TCO59: 0 | TCP59: 0 | TCQ59: 0 | TCR59: 0 | TCS59: 0 | TCT59: 0 | TCU59: 0 | TCV59: 0 | TCW59: 0 | TCX59: 0 | TCY59: 0 | TCZ59: 0 | TDA59: 0 | TDB59: 0 | TDC59: 0 | TDD59: 0 | TDE59: 0 | TDF59: 0 | TDG59: 0 | TDH59: 0 | TDI59: 0 | TDJ59: 0 | TDK59: 0 | TDL59: 0 | TDM59: 0 | TDN59: =TDN67 -> 0 | TDO59: 0 | TDP59: 0 | TDQ59: 0 | TDR59: 0 | TDS59: 0 | TDT59: 0 | TDU59: 0 | TDV59: 0 | TDW59: 0 | TDX59: 0 | TDY59: 0 | TDZ59: 0 | TEA59: 0 | TEB59: 0 | TEC59: 0 | TED59: 0 | TEE59: 0 | TEF59: 0 | TEG59: 0 | TEH59: 0 | TEI59: 0 | TEJ59: 0 | TEK59: 0 | TEL59: 0 | TEM59: 0 | TEN59: 0 | TEO59: 0 | TEP59: 0 | TEQ59: 0 | TER59: 0 | TES59: 0 | TET59: 0 | TEU59: 0 | TEV59: 0 | TEW59: 0 | TEX59: 0 | TEY59: 0 | TEZ59: 0 | TFA59: 0 | TFB59: 0 | TFC59: 0 | TFD59: 0 | TFE59: 0 | TFF59: 0 | TFG59: 0 | TFH59: 0 | TFI59: 0 | TFJ59: 0 | TFK59: 0 | TFL59: 0 | TFM59: 0 | TFN59: 0 | TFO59: 0 | TFP59: 0 | TFQ59: 0 | TFR59: 0 | TFS59: 0 | TFT59: 0 | TFU59: 0 | TFV59: 0 | TFW59: 0 | TFX59: 0 | TFY59: 0 | TFZ59: =TFZ67 -> 0 | TGA59: 0 | TGB59: 0 | TGC59: 0 | TGD59: 0 | TGE59: 0 | TGF59: 0 | TGG59: 0 | TGH59: 0 | TGI59: 0 | TGJ59: 0 | TGK59: 0 | TGL59: 0 | TGM59: 0 | TGN59: 0 | TGO59: 0 | TGP59: 0 | TGQ59: 0 | TGR59: 0 | TGS59: 0 | TGT59: 0 | TGU59: 0 | TGV59: 0 | TGW59: 0 | TGX59: 0 | TGY59: 0 | TGZ59: 0 | THA59: 0 | THB59: 0 | THC59: 0 | THD59: 0 | THE59: 0 | THF59: 0 | THG59: 0 | THH59: 0 | THI59: 0 | THJ59: 0 | THK59: 0 | THL59: 0 | THM59: 0 | THN59: 0 | THO59: 0 | THP59: 0 | THQ59: 0 | THR59: 0 | THS59: 0 | THT59: 0 | THU59: 0 | THV59: 0 | THW59: 0 | THX59: 0 | THY59: 0 | THZ59: 0 | TIA59: 0 | TIB59: 0 | TIC59: 0 | TID59: 0 | TIE59: 0 | TIF59: 0 | TIG59: 0 | TIH59: 0 | TII59: 0 | TIJ59: 0 | TIK59: 0 | TIL59: =TIL67 -> 0 | TIM59: 0 | TIN59: 0 | TIO59: 0 | TIP59: 0 | TIQ59: 0 | TIR59: 0 | TIS59: 0 | TIT59: 0 | TIU59: 0 | TIV59: 0 | TIW59: 0 | TIX59: 0 | TIY59: 0 | TIZ59: 0 | TJA59: 0 | TJB59: 0 | TJC59: 0 | TJD59: 0 | TJE59: 0 | TJF59: 0 | TJG59: 0 | TJH59: 0 | TJI59: 0 | TJJ59: 0 | TJK59: 0 | TJL59: 0 | TJM59: 0 | TJN59: 0 | TJO59: 0 | TJP59: 0 | TJQ59: 0 | TJR59: 0 | TJS59: 0 | TJT59: 0 | TJU59: 0 | TJV59: 0 | TJW59: 0 | TJX59: 0 | TJY59: 0 | TJZ59: 0 | TKA59: 0 | TKB59: 0 | TKC59: 0 | TKD59: 0 | TKE59: 0 | TKF59: 0 | TKG59: 0 | TKH59: 0 | TKI59: 0 | TKJ59: 0 | TKK59: 0 | TKL59: 0 | TKM59: 0 | TKN59: 0 | TKO59: 0 | TKP59: 0 | TKQ59: 0 | TKR59: 0 | TKS59: 0 | TKT59: 0 | TKU59: 0 | TKV59: 0 | TKW59: 0 | TKX59: =TKX67 -> 0 | TKY59: 0 | TKZ59: 0 | TLA59: 0 | TLB59: 0 | TLC59: 0 | TLD59: 0 | TLE59: 0 | TLF59: 0 | TLG59: 0 | TLH59: 0 | TLI59: 0 | TLJ59: 0 | TLK59: 0 | TLL59: 0 | TLM59: 0 | TLN59: 0 | TLO59: 0 | TLP59: 0 | TLQ59: 0 | TLR59: 0 | TLS59: 0 | TLT59: 0 | TLU59: 0 | TLV59: 0 | TLW59: 0 | TLX59: 0 | TLY59: 0 | TLZ59: 0 | TMA59: 0 | TMB59: 0 | TMC59: 0 | TMD59: 0 | TME59: 0 | TMF59: 0 | TMG59: 0 | TMH59: 0 | TMI59: 0 | TMJ59: 0 | TMK59: 0 | TML59: 0 | TMM59: 0 | TMN59: 0 | TMO59: 0 | TMP59: 0 | TMQ59: 0 | TMR59: 0 | TMS59: 0 | TMT59: 0 | TMU59: 0 | TMV59: 0 | TMW59: 0 | TMX59: 0 | TMY59: 0 | TMZ59: 0 | TNA59: 0 | TNB59: 0 | TNC59: 0 | TND59: 0 | TNE59: 0 | TNF59: 0 | TNG59: 0 | TNH59: 0 | TNI59: 0 | TNJ59: =TNJ67 -> 0 | TNK59: 0 | TNL59: 0 | TNM59: 0 | TNN59: 0 | TNO59: 0 | TNP59: 0 | TNQ59: 0 | TNR59: 0 | TNS59: 0 | TNT59: 0 | TNU59: 0 | TNV59: 0 | TNW59: 0 | TNX59: 0 | TNY59: 0 | TNZ59: 0 | TOA59: 0 | TOB59: 0 | TOC59: 0 | TOD59: 0 | TOE59: 0 | TOF59: 0 | TOG59: 0 | TOH59: 0 | TOI59: 0 | TOJ59: 0 | TOK59: 0 | TOL59: 0 | TOM59: 0 | TON59: 0 | TOO59: 0 | TOP59: 0 | TOQ59: 0 | TOR59: 0 | TOS59: 0 | TOT59: 0 | TOU59: 0 | TOV59: 0 | TOW59: 0 | TOX59: 0 | TOY59: 0 | TOZ59: 0 | TPA59: 0 | TPB59: 0 | TPC59: 0 | TPD59: 0 | TPE59: 0 | TPF59: 0 | TPG59: 0 | TPH59: 0 | TPI59: 0 | TPJ59: 0 | TPK59: 0 | TPL59: 0 | TPM59: 0 | TPN59: 0 | TPO59: 0 | TPP59: 0 | TPQ59: 0 | TPR59: 0 | TPS59: 0 | TPT59: 0 | TPU59: 0 | TPV59: =TPV67 -> 0 | TPW59: 0 | TPX59: 0 | TPY59: 0 | TPZ59: 0 | TQA59: 0 | TQB59: 0 | TQC59: 0 | TQD59: 0 | TQE59: 0 | TQF59: 0 | TQG59: 0 | TQH59: 0 | TQI59: 0 | TQJ59: 0 | TQK59: 0 | TQL59: 0 | TQM59: 0 | TQN59: 0 | TQO59: 0 | TQP59: 0 | TQQ59: 0 | TQR59: 0 | TQS59: 0 | TQT59: 0 | TQU59: 0 | TQV59: 0 | TQW59: 0 | TQX59: 0 | TQY59: 0 | TQZ59: 0 | TRA59: 0 | TRB59: 0 | TRC59: 0 | TRD59: 0 | TRE59: 0 | TRF59: 0 | TRG59: 0 | TRH59: 0 | TRI59: 0 | TRJ59: 0 | TRK59: 0 | TRL59: 0 | TRM59: 0 | TRN59: 0 | TRO59: 0 | TRP59: 0 | TRQ59: 0 | TRR59: 0 | TRS59: 0 | TRT59: 0 | TRU59: 0 | TRV59: 0 | TRW59: 0 | TRX59: 0 | TRY59: 0 | TRZ59: 0 | TSA59: 0 | TSB59: 0 | TSC59: 0 | TSD59: 0 | TSE59: 0 | TSF59: 0 | TSG59: 0 | TSH59: =TSH67 -> 0 | TSI59: 0 | TSJ59: 0 | TSK59: 0 | TSL59: 0 | TSM59: 0 | TSN59: 0 | TSO59: 0 | TSP59: 0 | TSQ59: 0 | TSR59: 0 | TSS59: 0 | TST59: 0 | TSU59: 0 | TSV59: 0 | TSW59: 0 | TSX59: 0 | TSY59: 0 | TSZ59: 0 | TTA59: 0 | TTB59: 0 | TTC59: 0 | TTD59: 0 | TTE59: 0 | TTF59: 0 | TTG59: 0 | TTH59: 0 | TTI59: 0 | TTJ59: 0 | TTK59: 0 | TTL59: 0 | TTM59: 0 | TTN59: 0 | TTO59: 0 | TTP59: 0 | TTQ59: 0 | TTR59: 0 | TTS59: 0 | TTT59: 0 | TTU59: 0 | TTV59: 0 | TTW59: 0 | TTX59: 0 | TTY59: 0 | TTZ59: 0 | TUA59: 0 | TUB59: 0 | TUC59: 0 | TUD59: 0 | TUE59: 0 | TUF59: 0 | TUG59: 0 | TUH59: 0 | TUI59: 0 | TUJ59: 0 | TUK59: 0 | TUL59: 0 | TUM59: 0 | TUN59: 0 | TUO59: 0 | TUP59: 0 | TUQ59: 0 | TUR59: 0 | TUS59: 0 | TUT59: =TUT67 -> 0 | TUU59: 0 | TUV59: 0 | TUW59: 0 | TUX59: 0 | TUY59: 0 | TUZ59: 0 | TVA59: 0 | TVB59: 0 | TVC59: 0 | TVD59: 0 | TVE59: 0 | TVF59: 0 | TVG59: 0 | TVH59: 0 | TVI59: 0 | TVJ59: 0 | TVK59: 0 | TVL59: 0 | TVM59: 0 | TVN59: 0 | TVO59: 0 | TVP59: 0 | TVQ59: 0 | TVR59: 0 | TVS59: 0 | TVT59: 0 | TVU59: 0 | TVV59: 0 | TVW59: 0 | TVX59: 0 | TVY59: 0 | TVZ59: 0 | TWA59: 0 | TWB59: 0 | TWC59: 0 | TWD59: 0 | TWE59: 0 | TWF59: 0 | TWG59: 0 | TWH59: 0 | TWI59: 0 | TWJ59: 0 | TWK59: 0 | TWL59: 0 | TWM59: 0 | TWN59: 0 | TWO59: 0 | TWP59: 0 | TWQ59: 0 | TWR59: 0 | TWS59: 0 | TWT59: 0 | TWU59: 0 | TWV59: 0 | TWW59: 0 | TWX59: 0 | TWY59: 0 | TWZ59: 0 | TXA59: 0 | TXB59: 0 | TXC59: 0 | TXD59: 0 | TXE59: 0 | TXF59: =TXF67 -> 0 | TXG59: 0 | TXH59: 0 | TXI59: 0 | TXJ59: 0 | TXK59: 0 | TXL59: 0 | TXM59: 0 | TXN59: 0 | TXO59: 0 | TXP59: 0 | TXQ59: 0 | TXR59: 0 | TXS59: 0 | TXT59: 0 | TXU59: 0 | TXV59: 0 | TXW59: 0 | TXX59: 0 | TXY59: 0 | TXZ59: 0 | TYA59: 0 | TYB59: 0 | TYC59: 0 | TYD59: 0 | TYE59: 0 | TYF59: 0 | TYG59: 0 | TYH59: 0 | TYI59: 0 | TYJ59: 0 | TYK59: 0 | TYL59: 0 | TYM59: 0 | TYN59: 0 | TYO59: 0 | TYP59: 0 | TYQ59: 0 | TYR59: 0 | TYS59: 0 | TYT59: 0 | TYU59: 0 | TYV59: 0 | TYW59: 0 | TYX59: 0 | TYY59: 0 | TYZ59: 0 | TZA59: 0 | TZB59: 0 | TZC59: 0 | TZD59: 0 | TZE59: 0 | TZF59: 0 | TZG59: 0 | TZH59: 0 | TZI59: 0 | TZJ59: 0 | TZK59: 0 | TZL59: 0 | TZM59: 0 | TZN59: 0 | TZO59: 0 | TZP59: 0 | TZQ59: 0 | TZR59: =TZR67 -> 0 | TZS59: 0 | TZT59: 0 | TZU59: 0 | TZV59: 0 | TZW59: 0 | TZX59: 0 | TZY59: 0 | TZZ59: 0 | UAA59: 0 | UAB59: 0 | UAC59: 0 | UAD59: 0 | UAE59: 0 | UAF59: 0 | UAG59: 0 | UAH59: 0 | UAI59: 0 | UAJ59: 0 | UAK59: 0 | UAL59: 0 | UAM59: 0 | UAN59: 0 | UAO59: 0 | UAP59: 0 | UAQ59: 0 | UAR59: 0 | UAS59: 0 | UAT59: 0 | UAU59: 0 | UAV59: 0 | UAW59: 0 | UAX59: 0 | UAY59: 0 | UAZ59: 0 | UBA59: 0 | UBB59: 0 | UBC59: 0 | UBD59: 0 | UBE59: 0 | UBF59: 0 | UBG59: 0 | UBH59: 0 | UBI59: 0 | UBJ59: 0 | UBK59: 0 | UBL59: 0 | UBM59: 0 | UBN59: 0 | UBO59: 0 | UBP59: 0 | UBQ59: 0 | UBR59: 0 | UBS59: 0 | UBT59: 0 | UBU59: 0 | UBV59: 0 | UBW59: 0 | UBX59: 0 | UBY59: 0 | UBZ59: 0 | UCA59: 0 | UCB59: 0 | UCC59: 0 | UCD59: =UCD67 -> 0 | UCE59: 0 | UCF59: 0 | UCG59: 0 | UCH59: 0 | UCI59: 0 | UCJ59: 0 | UCK59: 0 | UCL59: 0 | UCM59: 0 | UCN59: 0 | UCO59: 0 | UCP59: 0 | UCQ59: 0 | UCR59: 0 | UCS59: 0 | UCT59: 0 | UCU59: 0 | UCV59: 0 | UCW59: 0 | UCX59: 0 | UCY59: 0 | UCZ59: 0 | UDA59: 0 | UDB59: 0 | UDC59: 0 | UDD59: 0 | UDE59: 0 | UDF59: 0 | UDG59: 0 | UDH59: 0 | UDI59: 0 | UDJ59: 0 | UDK59: 0 | UDL59: 0 | UDM59: 0 | UDN59: 0 | UDO59: 0 | UDP59: 0 | UDQ59: 0 | UDR59: 0 | UDS59: 0 | UDT59: 0 | UDU59: 0 | UDV59: 0 | UDW59: 0 | UDX59: 0 | UDY59: 0 | UDZ59: 0 | UEA59: 0 | UEB59: 0 | UEC59: 0 | UED59: 0 | UEE59: 0 | UEF59: 0 | UEG59: 0 | UEH59: 0 | UEI59: 0 | UEJ59: 0 | UEK59: 0 | UEL59: 0 | UEM59: 0 | UEN59: 0 | UEO59: 0 | UEP59: =UEP67 -> 0 | UEQ59: 0 | UER59: 0 | UES59: 0 | UET59: 0 | UEU59: 0 | UEV59: 0 | UEW59: 0 | UEX59: 0 | UEY59: 0 | UEZ59: 0 | UFA59: 0 | UFB59: 0 | UFC59: 0 | UFD59: 0 | UFE59: 0 | UFF59: 0 | UFG59: 0 | UFH59: 0 | UFI59: 0 | UFJ59: 0 | UFK59: 0 | UFL59: 0 | UFM59: 0 | UFN59: 0 | UFO59: 0 | UFP59: 0 | UFQ59: 0 | UFR59: 0 | UFS59: 0 | UFT59: 0 | UFU59: 0 | UFV59: 0 | UFW59: 0 | UFX59: 0 | UFY59: 0 | UFZ59: 0 | UGA59: 0 | UGB59: 0 | UGC59: 0 | UGD59: 0 | UGE59: 0 | UGF59: 0 | UGG59: 0 | UGH59: 0 | UGI59: 0 | UGJ59: 0 | UGK59: 0 | UGL59: 0 | UGM59: 0 | UGN59: 0 | UGO59: 0 | UGP59: 0 | UGQ59: 0 | UGR59: 0 | UGS59: 0 | UGT59: 0 | UGU59: 0 | UGV59: 0 | UGW59: 0 | UGX59: 0 | UGY59: 0 | UGZ59: 0 | UHA59: 0 | UHB59: =UHB67 -> 0 | UHC59: 0 | UHD59: 0 | UHE59: 0 | UHF59: 0 | UHG59: 0 | UHH59: 0 | UHI59: 0 | UHJ59: 0 | UHK59: 0 | UHL59: 0 | UHM59: 0 | UHN59: 0 | UHO59: 0 | UHP59: 0 | UHQ59: 0 | UHR59: 0 | UHS59: 0 | UHT59: 0 | UHU59: 0 | UHV59: 0 | UHW59: 0 | UHX59: 0 | UHY59: 0 | UHZ59: 0 | UIA59: 0 | UIB59: 0 | UIC59: 0 | UID59: 0 | UIE59: 0 | UIF59: 0 | UIG59: 0 | UIH59: 0 | UII59: 0 | UIJ59: 0 | UIK59: 0 | UIL59: 0 | UIM59: 0 | UIN59: 0 | UIO59: 0 | UIP59: 0 | UIQ59: 0 | UIR59: 0 | UIS59: 0 | UIT59: 0 | UIU59: 0 | UIV59: 0 | UIW59: 0 | UIX59: 0 | UIY59: 0 | UIZ59: 0 | UJA59: 0 | UJB59: 0 | UJC59: 0 | UJD59: 0 | UJE59: 0 | UJF59: 0 | UJG59: 0 | UJH59: 0 | UJI59: 0 | UJJ59: 0 | UJK59: 0 | UJL59: 0 | UJM59: 0 | UJN59: =UJN67 -> 0 | UJO59: 0 | UJP59: 0 | UJQ59: 0 | UJR59: 0 | UJS59: 0 | UJT59: 0 | UJU59: 0 | UJV59: 0 | UJW59: 0 | UJX59: 0 | UJY59: 0 | UJZ59: 0 | UKA59: 0 | UKB59: 0 | UKC59: 0 | UKD59: 0 | UKE59: 0 | UKF59: 0 | UKG59: 0 | UKH59: 0 | UKI59: 0 | UKJ59: 0 | UKK59: 0 | UKL59: 0 | UKM59: 0 | UKN59: 0 | UKO59: 0 | UKP59: 0 | UKQ59: 0 | UKR59: 0 | UKS59: 0 | UKT59: 0 | UKU59: 0 | UKV59: 0 | UKW59: 0 | UKX59: 0 | UKY59: 0 | UKZ59: 0 | ULA59: 0 | ULB59: 0 | ULC59: 0 | ULD59: 0 | ULE59: 0 | ULF59: 0 | ULG59: 0 | ULH59: 0 | ULI59: 0 | ULJ59: 0 | ULK59: 0 | ULL59: 0 | ULM59: 0 | ULN59: 0 | ULO59: 0 | ULP59: 0 | ULQ59: 0 | ULR59: 0 | ULS59: 0 | ULT59: 0 | ULU59: 0 | ULV59: 0 | ULW59: 0 | ULX59: 0 | ULY59: 0 | ULZ59: =ULZ67 -> 0 | UMA59: 0 | UMB59: 0 | UMC59: 0 | UMD59: 0 | UME59: 0 | UMF59: 0 | UMG59: 0 | UMH59: 0 | UMI59: 0 | UMJ59: 0 | UMK59: 0 | UML59: 0 | UMM59: 0 | UMN59: 0 | UMO59: 0 | UMP59: 0 | UMQ59: 0 | UMR59: 0 | UMS59: 0 | UMT59: 0 | UMU59: 0 | UMV59: 0 | UMW59: 0 | UMX59: 0 | UMY59: 0 | UMZ59: 0 | UNA59: 0 | UNB59: 0 | UNC59: 0 | UND59: 0 | UNE59: 0 | UNF59: 0 | UNG59: 0 | UNH59: 0 | UNI59: 0 | UNJ59: 0 | UNK59: 0 | UNL59: 0 | UNM59: 0 | UNN59: 0 | UNO59: 0 | UNP59: 0 | UNQ59: 0 | UNR59: 0 | UNS59: 0 | UNT59: 0 | UNU59: 0 | UNV59: 0 | UNW59: 0 | UNX59: 0 | UNY59: 0 | UNZ59: 0 | UOA59: 0 | UOB59: 0 | UOC59: 0 | UOD59: 0 | UOE59: 0 | UOF59: 0 | UOG59: 0 | UOH59: 0 | UOI59: 0 | UOJ59: 0 | UOK59: 0 | UOL59: =UOL67 -> 0 | UOM59: 0 | UON59: 0 | UOO59: 0 | UOP59: 0 | UOQ59: 0 | UOR59: 0 | UOS59: 0 | UOT59: 0 | UOU59: 0 | UOV59: 0 | UOW59: 0 | UOX59: 0 | UOY59: 0 | UOZ59: 0 | UPA59: 0 | UPB59: 0 | UPC59: 0 | UPD59: 0 | UPE59: 0 | UPF59: 0 | UPG59: 0 | UPH59: 0 | UPI59: 0 | UPJ59: 0 | UPK59: 0 | UPL59: 0 | UPM59: 0 | UPN59: 0 | UPO59: 0 | UPP59: 0 | UPQ59: 0 | UPR59: 0 | UPS59: 0 | UPT59: 0 | UPU59: 0 | UPV59: 0 | UPW59: 0 | UPX59: 0 | UPY59: 0 | UPZ59: 0 | UQA59: 0 | UQB59: 0 | UQC59: 0 | UQD59: 0 | UQE59: 0 | UQF59: 0 | UQG59: 0 | UQH59: 0 | UQI59: 0 | UQJ59: 0 | UQK59: 0 | UQL59: 0 | UQM59: 0 | UQN59: 0 | UQO59: 0 | UQP59: 0 | UQQ59: 0 | UQR59: 0 | UQS59: 0 | UQT59: 0 | UQU59: 0 | UQV59: 0 | UQW59: 0 | UQX59: =UQX67 -> 0 | UQY59: 0 | UQZ59: 0 | URA59: 0 | URB59: 0 | URC59: 0 | URD59: 0 | URE59: 0 | URF59: 0 | URG59: 0 | URH59: 0 | URI59: 0 | URJ59: 0 | URK59: 0 | URL59: 0 | URM59: 0 | URN59: 0 | URO59: 0 | URP59: 0 | URQ59: 0 | URR59: 0 | URS59: 0 | URT59: 0 | URU59: 0 | URV59: 0 | URW59: 0 | URX59: 0 | URY59: 0 | URZ59: 0 | USA59: 0 | USB59: 0 | USC59: 0 | USD59: 0 | USE59: 0 | USF59: 0 | USG59: 0 | USH59: 0 | USI59: 0 | USJ59: 0 | USK59: 0 | USL59: 0 | USM59: 0 | USN59: 0 | USO59: 0 | USP59: 0 | USQ59: 0 | USR59: 0 | USS59: 0 | UST59: 0 | USU59: 0 | USV59: 0 | USW59: 0 | USX59: 0 | USY59: 0 | USZ59: 0 | UTA59: 0 | UTB59: 0 | UTC59: 0 | UTD59: 0 | UTE59: 0 | UTF59: 0 | UTG59: 0 | UTH59: 0 | UTI59: 0 | UTJ59: =UTJ67 -> 0 | UTK59: 0 | UTL59: 0 | UTM59: 0 | UTN59: 0 | UTO59: 0 | UTP59: 0 | UTQ59: 0 | UTR59: 0 | UTS59: 0 | UTT59: 0 | UTU59: 0 | UTV59: 0 | UTW59: 0 | UTX59: 0 | UTY59: 0 | UTZ59: 0 | UUA59: 0 | UUB59: 0 | UUC59: 0 | UUD59: 0 | UUE59: 0 | UUF59: 0 | UUG59: 0 | UUH59: 0 | UUI59: 0 | UUJ59: 0 | UUK59: 0 | UUL59: 0 | UUM59: 0 | UUN59: 0 | UUO59: 0 | UUP59: 0 | UUQ59: 0 | UUR59: 0 | UUS59: 0 | UUT59: 0 | UUU59: 0 | UUV59: 0 | UUW59: 0 | UUX59: 0 | UUY59: 0 | UUZ59: 0 | UVA59: 0 | UVB59: 0 | UVC59: 0 | UVD59: 0 | UVE59: 0 | UVF59: 0 | UVG59: 0 | UVH59: 0 | UVI59: 0 | UVJ59: 0 | UVK59: 0 | UVL59: 0 | UVM59: 0 | UVN59: 0 | UVO59: 0 | UVP59: 0 | UVQ59: 0 | UVR59: 0 | UVS59: 0 | UVT59: 0 | UVU59: 0 | UVV59: =UVV67 -> 0 | UVW59: 0 | UVX59: 0 | UVY59: 0 | UVZ59: 0 | UWA59: 0 | UWB59: 0 | UWC59: 0 | UWD59: 0 | UWE59: 0 | UWF59: 0 | UWG59: 0 | UWH59: 0 | UWI59: 0 | UWJ59: 0 | UWK59: 0 | UWL59: 0 | UWM59: 0 | UWN59: 0 | UWO59: 0 | UWP59: 0 | UWQ59: 0 | UWR59: 0 | UWS59: 0 | UWT59: 0 | UWU59: 0 | UWV59: 0 | UWW59: 0 | UWX59: 0 | UWY59: 0 | UWZ59: 0 | UXA59: 0 | UXB59: 0 | UXC59: 0 | UXD59: 0 | UXE59: 0 | UXF59: 0 | UXG59: 0 | UXH59: 0 | UXI59: 0 | UXJ59: 0 | UXK59: 0 | UXL59: 0 | UXM59: 0 | UXN59: 0 | UXO59: 0 | UXP59: 0 | UXQ59: 0 | UXR59: 0 | UXS59: 0 | UXT59: 0 | UXU59: 0 | UXV59: 0 | UXW59: 0 | UXX59: 0 | UXY59: 0 | UXZ59: 0 | UYA59: 0 | UYB59: 0 | UYC59: 0 | UYD59: 0 | UYE59: 0 | UYF59: 0 | UYG59: 0 | UYH59: =UYH67 -> 0 | UYI59: 0 | UYJ59: 0 | UYK59: 0 | UYL59: 0 | UYM59: 0 | UYN59: 0 | UYO59: 0 | UYP59: 0 | UYQ59: 0 | UYR59: 0 | UYS59: 0 | UYT59: 0 | UYU59: 0 | UYV59: 0 | UYW59: 0 | UYX59: 0 | UYY59: 0 | UYZ59: 0 | UZA59: 0 | UZB59: 0 | UZC59: 0 | UZD59: 0 | UZE59: 0 | UZF59: 0 | UZG59: 0 | UZH59: 0 | UZI59: 0 | UZJ59: 0 | UZK59: 0 | UZL59: 0 | UZM59: 0 | UZN59: 0 | UZO59: 0 | UZP59: 0 | UZQ59: 0 | UZR59: 0 | UZS59: 0 | UZT59: 0 | UZU59: 0 | UZV59: 0 | UZW59: 0 | UZX59: 0 | UZY59: 0 | UZZ59: 0 | VAA59: 0 | VAB59: 0 | VAC59: 0 | VAD59: 0 | VAE59: 0 | VAF59: 0 | VAG59: 0 | VAH59: 0 | VAI59: 0 | VAJ59: 0 | VAK59: 0 | VAL59: 0 | VAM59: 0 | VAN59: 0 | VAO59: 0 | VAP59: 0 | VAQ59: 0 | VAR59: 0 | VAS59: 0 | VAT59: =VAT67 -> 0 | VAU59: 0 | VAV59: 0 | VAW59: 0 | VAX59: 0 | VAY59: 0 | VAZ59: 0 | VBA59: 0 | VBB59: 0 | VBC59: 0 | VBD59: 0 | VBE59: 0 | VBF59: 0 | VBG59: 0 | VBH59: 0 | VBI59: 0 | VBJ59: 0 | VBK59: 0 | VBL59: 0 | VBM59: 0 | VBN59: 0 | VBO59: 0 | VBP59: 0 | VBQ59: 0 | VBR59: 0 | VBS59: 0 | VBT59: 0 | VBU59: 0 | VBV59: 0 | VBW59: 0 | VBX59: 0 | VBY59: 0 | VBZ59: 0 | VCA59: 0 | VCB59: 0 | VCC59: 0 | VCD59: 0 | VCE59: 0 | VCF59: 0 | VCG59: 0 | VCH59: 0 | VCI59: 0 | VCJ59: 0 | VCK59: 0 | VCL59: 0 | VCM59: 0 | VCN59: 0 | VCO59: 0 | VCP59: 0 | VCQ59: 0 | VCR59: 0 | VCS59: 0 | VCT59: 0 | VCU59: 0 | VCV59: 0 | VCW59: 0 | VCX59: 0 | VCY59: 0 | VCZ59: 0 | VDA59: 0 | VDB59: 0 | VDC59: 0 | VDD59: 0 | VDE59: 0 | VDF59: =VDF67 -> 0 | VDG59: 0 | VDH59: 0 | VDI59: 0 | VDJ59: 0 | VDK59: 0 | VDL59: 0 | VDM59: 0 | VDN59: 0 | VDO59: 0 | VDP59: 0 | VDQ59: 0 | VDR59: 0 | VDS59: 0 | VDT59: 0 | VDU59: 0 | VDV59: 0 | VDW59: 0 | VDX59: 0 | VDY59: 0 | VDZ59: 0 | VEA59: 0 | VEB59: 0 | VEC59: 0 | VED59: 0 | VEE59: 0 | VEF59: 0 | VEG59: 0 | VEH59: 0 | VEI59: 0 | VEJ59: 0 | VEK59: 0 | VEL59: 0 | VEM59: 0 | VEN59: 0 | VEO59: 0 | VEP59: 0 | VEQ59: 0 | VER59: 0 | VES59: 0 | VET59: 0 | VEU59: 0 | VEV59: 0 | VEW59: 0 | VEX59: 0 | VEY59: 0 | VEZ59: 0 | VFA59: 0 | VFB59: 0 | VFC59: 0 | VFD59: 0 | VFE59: 0 | VFF59: 0 | VFG59: 0 | VFH59: 0 | VFI59: 0 | VFJ59: 0 | VFK59: 0 | VFL59: 0 | VFM59: 0 | VFN59: 0 | VFO59: 0 | VFP59: 0 | VFQ59: 0 | VFR59: =VFR67 -> 0 | VFS59: 0 | VFT59: 0 | VFU59: 0 | VFV59: 0 | VFW59: 0 | VFX59: 0 | VFY59: 0 | VFZ59: 0 | VGA59: 0 | VGB59: 0 | VGC59: 0 | VGD59: 0 | VGE59: 0 | VGF59: 0 | VGG59: 0 | VGH59: 0 | VGI59: 0 | VGJ59: 0 | VGK59: 0 | VGL59: 0 | VGM59: 0 | VGN59: 0 | VGO59: 0 | VGP59: 0 | VGQ59: 0 | VGR59: 0 | VGS59: 0 | VGT59: 0 | VGU59: 0 | VGV59: 0 | VGW59: 0 | VGX59: 0 | VGY59: 0 | VGZ59: 0 | VHA59: 0 | VHB59: 0 | VHC59: 0 | VHD59: 0 | VHE59: 0 | VHF59: 0 | VHG59: 0 | VHH59: 0 | VHI59: 0 | VHJ59: 0 | VHK59: 0 | VHL59: 0 | VHM59: 0 | VHN59: 0 | VHO59: 0 | VHP59: 0 | VHQ59: 0 | VHR59: 0 | VHS59: 0 | VHT59: 0 | VHU59: 0 | VHV59: 0 | VHW59: 0 | VHX59: 0 | VHY59: 0 | VHZ59: 0 | VIA59: 0 | VIB59: 0 | VIC59: 0 | VID59: =VID67 -> 0 | VIE59: 0 | VIF59: 0 | VIG59: 0 | VIH59: 0 | VII59: 0 | VIJ59: 0 | VIK59: 0 | VIL59: 0 | VIM59: 0 | VIN59: 0 | VIO59: 0 | VIP59: 0 | VIQ59: 0 | VIR59: 0 | VIS59: 0 | VIT59: 0 | VIU59: 0 | VIV59: 0 | VIW59: 0 | VIX59: 0 | VIY59: 0 | VIZ59: 0 | VJA59: 0 | VJB59: 0 | VJC59: 0 | VJD59: 0 | VJE59: 0 | VJF59: 0 | VJG59: 0 | VJH59: 0 | VJI59: 0 | VJJ59: 0 | VJK59: 0 | VJL59: 0 | VJM59: 0 | VJN59: 0 | VJO59: 0 | VJP59: 0 | VJQ59: 0 | VJR59: 0 | VJS59: 0 | VJT59: 0 | VJU59: 0 | VJV59: 0 | VJW59: 0 | VJX59: 0 | VJY59: 0 | VJZ59: 0 | VKA59: 0 | VKB59: 0 | VKC59: 0 | VKD59: 0 | VKE59: 0 | VKF59: 0 | VKG59: 0 | VKH59: 0 | VKI59: 0 | VKJ59: 0 | VKK59: 0 | VKL59: 0 | VKM59: 0 | VKN59: 0 | VKO59: 0 | VKP59: =VKP67 -> 0 | VKQ59: 0 | VKR59: 0 | VKS59: 0 | VKT59: 0 | VKU59: 0 | VKV59: 0 | VKW59: 0 | VKX59: 0 | VKY59: 0 | VKZ59: 0 | VLA59: 0 | VLB59: 0 | VLC59: 0 | VLD59: 0 | VLE59: 0 | VLF59: 0 | VLG59: 0 | VLH59: 0 | VLI59: 0 | VLJ59: 0 | VLK59: 0 | VLL59: 0 | VLM59: 0 | VLN59: 0 | VLO59: 0 | VLP59: 0 | VLQ59: 0 | VLR59: 0 | VLS59: 0 | VLT59: 0 | VLU59: 0 | VLV59: 0 | VLW59: 0 | VLX59: 0 | VLY59: 0 | VLZ59: 0 | VMA59: 0 | VMB59: 0 | VMC59: 0 | VMD59: 0 | VME59: 0 | VMF59: 0 | VMG59: 0 | VMH59: 0 | VMI59: 0 | VMJ59: 0 | VMK59: 0 | VML59: 0 | VMM59: 0 | VMN59: 0 | VMO59: 0 | VMP59: 0 | VMQ59: 0 | VMR59: 0 | VMS59: 0 | VMT59: 0 | VMU59: 0 | VMV59: 0 | VMW59: 0 | VMX59: 0 | VMY59: 0 | VMZ59: 0 | VNA59: 0 | VNB59: =VNB67 -> 0 | VNC59: 0 | VND59: 0 | VNE59: 0 | VNF59: 0 | VNG59: 0 | VNH59: 0 | VNI59: 0 | VNJ59: 0 | VNK59: 0 | VNL59: 0 | VNM59: 0 | VNN59: 0 | VNO59: 0 | VNP59: 0 | VNQ59: 0 | VNR59: 0 | VNS59: 0 | VNT59: 0 | VNU59: 0 | VNV59: 0 | VNW59: 0 | VNX59: 0 | VNY59: 0 | VNZ59: 0 | VOA59: 0 | VOB59: 0 | VOC59: 0 | VOD59: 0 | VOE59: 0 | VOF59: 0 | VOG59: 0 | VOH59: 0 | VOI59: 0 | VOJ59: 0 | VOK59: 0 | VOL59: 0 | VOM59: 0 | VON59: 0 | VOO59: 0 | VOP59: 0 | VOQ59: 0 | VOR59: 0 | VOS59: 0 | VOT59: 0 | VOU59: 0 | VOV59: 0 | VOW59: 0 | VOX59: 0 | VOY59: 0 | VOZ59: 0 | VPA59: 0 | VPB59: 0 | VPC59: 0 | VPD59: 0 | VPE59: 0 | VPF59: 0 | VPG59: 0 | VPH59: 0 | VPI59: 0 | VPJ59: 0 | VPK59: 0 | VPL59: 0 | VPM59: 0 | VPN59: =VPN67 -> 0 | VPO59: 0 | VPP59: 0 | VPQ59: 0 | VPR59: 0 | VPS59: 0 | VPT59: 0 | VPU59: 0 | VPV59: 0 | VPW59: 0 | VPX59: 0 | VPY59: 0 | VPZ59: 0 | VQA59: 0 | VQB59: 0 | VQC59: 0 | VQD59: 0 | VQE59: 0 | VQF59: 0 | VQG59: 0 | VQH59: 0 | VQI59: 0 | VQJ59: 0 | VQK59: 0 | VQL59: 0 | VQM59: 0 | VQN59: 0 | VQO59: 0 | VQP59: 0 | VQQ59: 0 | VQR59: 0 | VQS59: 0 | VQT59: 0 | VQU59: 0 | VQV59: 0 | VQW59: 0 | VQX59: 0 | VQY59: 0 | VQZ59: 0 | VRA59: 0 | VRB59: 0 | VRC59: 0 | VRD59: 0 | VRE59: 0 | VRF59: 0 | VRG59: 0 | VRH59: 0 | VRI59: 0 | VRJ59: 0 | VRK59: 0 | VRL59: 0 | VRM59: 0 | VRN59: 0 | VRO59: 0 | VRP59: 0 | VRQ59: 0 | VRR59: 0 | VRS59: 0 | VRT59: 0 | VRU59: 0 | VRV59: 0 | VRW59: 0 | VRX59: 0 | VRY59: 0 | VRZ59: =VRZ67 -> 0 | VSA59: 0 | VSB59: 0 | VSC59: 0 | VSD59: 0 | VSE59: 0 | VSF59: 0 | VSG59: 0 | VSH59: 0 | VSI59: 0 | VSJ59: 0 | VSK59: 0 | VSL59: 0 | VSM59: 0 | VSN59: 0 | VSO59: 0 | VSP59: 0 | VSQ59: 0 | VSR59: 0 | VSS59: 0 | VST59: 0 | VSU59: 0 | VSV59: 0 | VSW59: 0 | VSX59: 0 | VSY59: 0 | VSZ59: 0 | VTA59: 0 | VTB59: 0 | VTC59: 0 | VTD59: 0 | VTE59: 0 | VTF59: 0 | VTG59: 0 | VTH59: 0 | VTI59: 0 | VTJ59: 0 | VTK59: 0 | VTL59: 0 | VTM59: 0 | VTN59: 0 | VTO59: 0 | VTP59: 0 | VTQ59: 0 | VTR59: 0 | VTS59: 0 | VTT59: 0 | VTU59: 0 | VTV59: 0 | VTW59: 0 | VTX59: 0 | VTY59: 0 | VTZ59: 0 | VUA59: 0 | VUB59: 0 | VUC59: 0 | VUD59: 0 | VUE59: 0 | VUF59: 0 | VUG59: 0 | VUH59: 0 | VUI59: 0 | VUJ59: 0 | VUK59: 0 | VUL59: =VUL67 -> 0 | VUM59: 0 | VUN59: 0 | VUO59: 0 | VUP59: 0 | VUQ59: 0 | VUR59: 0 | VUS59: 0 | VUT59: 0 | VUU59: 0 | VUV59: 0 | VUW59: 0 | VUX59: 0 | VUY59: 0 | VUZ59: 0 | VVA59: 0 | VVB59: 0 | VVC59: 0 | VVD59: 0 | VVE59: 0 | VVF59: 0 | VVG59: 0 | VVH59: 0 | VVI59: 0 | VVJ59: 0 | VVK59: 0 | VVL59: 0 | VVM59: 0 | VVN59: 0 | VVO59: 0 | VVP59: 0 | VVQ59: 0 | VVR59: 0 | VVS59: 0 | VVT59: 0 | VVU59: 0 | VVV59: 0 | VVW59: 0 | VVX59: 0 | VVY59: 0 | VVZ59: 0 | VWA59: 0 | VWB59: 0 | VWC59: 0 | VWD59: 0 | VWE59: 0 | VWF59: 0 | VWG59: 0 | VWH59: 0 | VWI59: 0 | VWJ59: 0 | VWK59: 0 | VWL59: 0 | VWM59: 0 | VWN59: 0 | VWO59: 0 | VWP59: 0 | VWQ59: 0 | VWR59: 0 | VWS59: 0 | VWT59: 0 | VWU59: 0 | VWV59: 0 | VWW59: 0 | VWX59: =VWX67 -> 0 | VWY59: 0 | VWZ59: 0 | VXA59: 0 | VXB59: 0 | VXC59: 0 | VXD59: 0 | VXE59: 0 | VXF59: 0 | VXG59: 0 | VXH59: 0 | VXI59: 0 | VXJ59: 0 | VXK59: 0 | VXL59: 0 | VXM59: 0 | VXN59: 0 | VXO59: 0 | VXP59: 0 | VXQ59: 0 | VXR59: 0 | VXS59: 0 | VXT59: 0 | VXU59: 0 | VXV59: 0 | VXW59: 0 | VXX59: 0 | VXY59: 0 | VXZ59: 0 | VYA59: 0 | VYB59: 0 | VYC59: 0 | VYD59: 0 | VYE59: 0 | VYF59: 0 | VYG59: 0 | VYH59: 0 | VYI59: 0 | VYJ59: 0 | VYK59: 0 | VYL59: 0 | VYM59: 0 | VYN59: 0 | VYO59: 0 | VYP59: 0 | VYQ59: 0 | VYR59: 0 | VYS59: 0 | VYT59: 0 | VYU59: 0 | VYV59: 0 | VYW59: 0 | VYX59: 0 | VYY59: 0 | VYZ59: 0 | VZA59: 0 | VZB59: 0 | VZC59: 0 | VZD59: 0 | VZE59: 0 | VZF59: 0 | VZG59: 0 | VZH59: 0 | VZI59: 0 | VZJ59: =VZJ67 -> 0 | VZK59: 0 | VZL59: 0 | VZM59: 0 | VZN59: 0 | VZO59: 0 | VZP59: 0 | VZQ59: 0 | VZR59: 0 | VZS59: 0 | VZT59: 0 | VZU59: 0 | VZV59: 0 | VZW59: 0 | VZX59: 0 | VZY59: 0 | VZZ59: 0 | WAA59: 0 | WAB59: 0 | WAC59: 0 | WAD59: 0 | WAE59: 0 | WAF59: 0 | WAG59: 0 | WAH59: 0 | WAI59: 0 | WAJ59: 0 | WAK59: 0 | WAL59: 0 | WAM59: 0 | WAN59: 0 | WAO59: 0 | WAP59: 0 | WAQ59: 0 | WAR59: 0 | WAS59: 0 | WAT59: 0 | WAU59: 0 | WAV59: 0 | WAW59: 0 | WAX59: 0 | WAY59: 0 | WAZ59: 0 | WBA59: 0 | WBB59: 0 | WBC59: 0 | WBD59: 0 | WBE59: 0 | WBF59: 0 | WBG59: 0 | WBH59: 0 | WBI59: 0 | WBJ59: 0 | WBK59: 0 | WBL59: 0 | WBM59: 0 | WBN59: 0 | WBO59: 0 | WBP59: 0 | WBQ59: 0 | WBR59: 0 | WBS59: 0 | WBT59: 0 | WBU59: 0 | WBV59: =WBV67 -> 0 | WBW59: 0 | WBX59: 0 | WBY59: 0 | WBZ59: 0 | WCA59: 0 | WCB59: 0 | WCC59: 0 | WCD59: 0 | WCE59: 0 | WCF59: 0 | WCG59: 0 | WCH59: 0 | WCI59: 0 | WCJ59: 0 | WCK59: 0 | WCL59: 0 | WCM59: 0 | WCN59: 0 | WCO59: 0 | WCP59: 0 | WCQ59: 0 | WCR59: 0 | WCS59: 0 | WCT59: 0 | WCU59: 0 | WCV59: 0 | WCW59: 0 | WCX59: 0 | WCY59: 0 | WCZ59: 0 | WDA59: 0 | WDB59: 0 | WDC59: 0 | WDD59: 0 | WDE59: 0 | WDF59: 0 | WDG59: 0 | WDH59: 0 | WDI59: 0 | WDJ59: 0 | WDK59: 0 | WDL59: 0 | WDM59: 0 | WDN59: 0 | WDO59: 0 | WDP59: 0 | WDQ59: 0 | WDR59: 0 | WDS59: 0 | WDT59: 0 | WDU59: 0 | WDV59: 0 | WDW59: 0 | WDX59: 0 | WDY59: 0 | WDZ59: 0 | WEA59: 0 | WEB59: 0 | WEC59: 0 | WED59: 0 | WEE59: 0 | WEF59: 0 | WEG59: 0 | WEH59: =WEH67 -> 0 | WEI59: 0 | WEJ59: 0 | WEK59: 0 | WEL59: 0 | WEM59: 0 | WEN59: 0 | WEO59: 0 | WEP59: 0 | WEQ59: 0 | WER59: 0 | WES59: 0 | WET59: 0 | WEU59: 0 | WEV59: 0 | WEW59: 0 | WEX59: 0 | WEY59: 0 | WEZ59: 0 | WFA59: 0 | WFB59: 0 | WFC59: 0 | WFD59: 0 | WFE59: 0 | WFF59: 0 | WFG59: 0 | WFH59: 0 | WFI59: 0 | WFJ59: 0 | WFK59: 0 | WFL59: 0 | WFM59: 0 | WFN59: 0 | WFO59: 0 | WFP59: 0 | WFQ59: 0 | WFR59: 0 | WFS59: 0 | WFT59: 0 | WFU59: 0 | WFV59: 0 | WFW59: 0 | WFX59: 0 | WFY59: 0 | WFZ59: 0 | WGA59: 0 | WGB59: 0 | WGC59: 0 | WGD59: 0 | WGE59: 0 | WGF59: 0 | WGG59: 0 | WGH59: 0 | WGI59: 0 | WGJ59: 0 | WGK59: 0 | WGL59: 0 | WGM59: 0 | WGN59: 0 | WGO59: 0 | WGP59: 0 | WGQ59: 0 | WGR59: 0 | WGS59: 0 | WGT59: =WGT67 -> 0 | WGU59: 0 | WGV59: 0 | WGW59: 0 | WGX59: 0 | WGY59: 0 | WGZ59: 0 | WHA59: 0 | WHB59: 0 | WHC59: 0 | WHD59: 0 | WHE59: 0 | WHF59: 0 | WHG59: 0 | WHH59: 0 | WHI59: 0 | WHJ59: 0 | WHK59: 0 | WHL59: 0 | WHM59: 0 | WHN59: 0 | WHO59: 0 | WHP59: 0 | WHQ59: 0 | WHR59: 0 | WHS59: 0 | WHT59: 0 | WHU59: 0 | WHV59: 0 | WHW59: 0 | WHX59: 0 | WHY59: 0 | WHZ59: 0 | WIA59: 0 | WIB59: 0 | WIC59: 0 | WID59: 0 | WIE59: 0 | WIF59: 0 | WIG59: 0 | WIH59: 0 | WII59: 0 | WIJ59: 0 | WIK59: 0 | WIL59: 0 | WIM59: 0 | WIN59: 0 | WIO59: 0 | WIP59: 0 | WIQ59: 0 | WIR59: 0 | WIS59: 0 | WIT59: 0 | WIU59: 0 | WIV59: 0 | WIW59: 0 | WIX59: 0 | WIY59: 0 | WIZ59: 0 | WJA59: 0 | WJB59: 0 | WJC59: 0 | WJD59: 0 | WJE59: 0 | WJF59: =WJF67 -> 0 | WJG59: 0 | WJH59: 0 | WJI59: 0 | WJJ59: 0 | WJK59: 0 | WJL59: 0 | WJM59: 0 | WJN59: 0 | WJO59: 0 | WJP59: 0 | WJQ59: 0 | WJR59: 0 | WJS59: 0 | WJT59: 0 | WJU59: 0 | WJV59: 0 | WJW59: 0 | WJX59: 0 | WJY59: 0 | WJZ59: 0 | WKA59: 0 | WKB59: 0 | WKC59: 0 | WKD59: 0 | WKE59: 0 | WKF59: 0 | WKG59: 0 | WKH59: 0 | WKI59: 0 | WKJ59: 0 | WKK59: 0 | WKL59: 0 | WKM59: 0 | WKN59: 0 | WKO59: 0 | WKP59: 0 | WKQ59: 0 | WKR59: 0 | WKS59: 0 | WKT59: 0 | WKU59: 0 | WKV59: 0 | WKW59: 0 | WKX59: 0 | WKY59: 0 | WKZ59: 0 | WLA59: 0 | WLB59: 0 | WLC59: 0 | WLD59: 0 | WLE59: 0 | WLF59: 0 | WLG59: 0 | WLH59: 0 | WLI59: 0 | WLJ59: 0 | WLK59: 0 | WLL59: 0 | WLM59: 0 | WLN59: 0 | WLO59: 0 | WLP59: 0 | WLQ59: 0 | WLR59: =WLR67 -> 0 | WLS59: 0 | WLT59: 0 | WLU59: 0 | WLV59: 0 | WLW59: 0 | WLX59: 0 | WLY59: 0 | WLZ59: 0 | WMA59: 0 | WMB59: 0 | WMC59: 0 | WMD59: 0 | WME59: 0 | WMF59: 0 | WMG59: 0 | WMH59: 0 | WMI59: 0 | WMJ59: 0 | WMK59: 0 | WML59: 0 | WMM59: 0 | WMN59: 0 | WMO59: 0 | WMP59: 0 | WMQ59: 0 | WMR59: 0 | WMS59: 0 | WMT59: 0 | WMU59: 0 | WMV59: 0 | WMW59: 0 | WMX59: 0 | WMY59: 0 | WMZ59: 0 | WNA59: 0 | WNB59: 0 | WNC59: 0 | WND59: 0 | WNE59: 0 | WNF59: 0 | WNG59: 0 | WNH59: 0 | WNI59: 0 | WNJ59: 0 | WNK59: 0 | WNL59: 0 | WNM59: 0 | WNN59: 0 | WNO59: 0 | WNP59: 0 | WNQ59: 0 | WNR59: 0 | WNS59: 0 | WNT59: 0 | WNU59: 0 | WNV59: 0 | WNW59: 0 | WNX59: 0 | WNY59: 0 | WNZ59: 0 | WOA59: 0 | WOB59: 0 | WOC59: 0 | WOD59: =WOD67 -> 0 | WOE59: 0 | WOF59: 0 | WOG59: 0 | WOH59: 0 | WOI59: 0 | WOJ59: 0 | WOK59: 0 | WOL59: 0 | WOM59: 0 | WON59: 0 | WOO59: 0 | WOP59: 0 | WOQ59: 0 | WOR59: 0 | WOS59: 0 | WOT59: 0 | WOU59: 0 | WOV59: 0 | WOW59: 0 | WOX59: 0 | WOY59: 0 | WOZ59: 0 | WPA59: 0 | WPB59: 0 | WPC59: 0 | WPD59: 0 | WPE59: 0 | WPF59: 0 | WPG59: 0 | WPH59: 0 | WPI59: 0 | WPJ59: 0 | WPK59: 0 | WPL59: 0 | WPM59: 0 | WPN59: 0 | WPO59: 0 | WPP59: 0 | WPQ59: 0 | WPR59: 0 | WPS59: 0 | WPT59: 0 | WPU59: 0 | WPV59: 0 | WPW59: 0 | WPX59: 0 | WPY59: 0 | WPZ59: 0 | WQA59: 0 | WQB59: 0 | WQC59: 0 | WQD59: 0 | WQE59: 0 | WQF59: 0 | WQG59: 0 | WQH59: 0 | WQI59: 0 | WQJ59: 0 | WQK59: 0 | WQL59: 0 | WQM59: 0 | WQN59: 0 | WQO59: 0 | WQP59: =WQP67 -> 0 | WQQ59: 0 | WQR59: 0 | WQS59: 0 | WQT59: 0 | WQU59: 0 | WQV59: 0 | WQW59: 0 | WQX59: 0 | WQY59: 0 | WQZ59: 0 | WRA59: 0 | WRB59: 0 | WRC59: 0 | WRD59: 0 | WRE59: 0 | WRF59: 0 | WRG59: 0 | WRH59: 0 | WRI59: 0 | WRJ59: 0 | WRK59: 0 | WRL59: 0 | WRM59: 0 | WRN59: 0 | WRO59: 0 | WRP59: 0 | WRQ59: 0 | WRR59: 0 | WRS59: 0 | WRT59: 0 | WRU59: 0 | WRV59: 0 | WRW59: 0 | WRX59: 0 | WRY59: 0 | WRZ59: 0 | WSA59: 0 | WSB59: 0 | WSC59: 0 | WSD59: 0 | WSE59: 0 | WSF59: 0 | WSG59: 0 | WSH59: 0 | WSI59: 0 | WSJ59: 0 | WSK59: 0 | WSL59: 0 | WSM59: 0 | WSN59: 0 | WSO59: 0 | WSP59: 0 | WSQ59: 0 | WSR59: 0 | WSS59: 0 | WST59: 0 | WSU59: 0 | WSV59: 0 | WSW59: 0 | WSX59: 0 | WSY59: 0 | WSZ59: 0 | WTA59: 0 | WTB59: =WTB67 -> 0 | WTC59: 0 | WTD59: 0 | WTE59: 0 | WTF59: 0 | WTG59: 0 | WTH59: 0 | WTI59: 0 | WTJ59: 0 | WTK59: 0 | WTL59: 0 | WTM59: 0 | WTN59: 0 | WTO59: 0 | WTP59: 0 | WTQ59: 0 | WTR59: 0 | WTS59: 0 | WTT59: 0 | WTU59: 0 | WTV59: 0 | WTW59: 0 | WTX59: 0 | WTY59: 0 | WTZ59: 0 | WUA59: 0 | WUB59: 0 | WUC59: 0 | WUD59: 0 | WUE59: 0 | WUF59: 0 | WUG59: 0 | WUH59: 0 | WUI59: 0 | WUJ59: 0 | WUK59: 0 | WUL59: 0 | WUM59: 0 | WUN59: 0 | WUO59: 0 | WUP59: 0 | WUQ59: 0 | WUR59: 0 | WUS59: 0 | WUT59: 0 | WUU59: 0 | WUV59: 0 | WUW59: 0 | WUX59: 0 | WUY59: 0 | WUZ59: 0 | WVA59: 0 | WVB59: 0 | WVC59: 0 | WVD59: 0 | WVE59: 0 | WVF59: 0 | WVG59: 0 | WVH59: 0 | WVI59: 0 | WVJ59: 0 | WVK59: 0 | WVL59: 0 | WVM59: 0 | WVN59: =WVN67 -> 0 | WVO59: 0 | WVP59: 0 | WVQ59: 0 | WVR59: 0 | WVS59: 0 | WVT59: 0 | WVU59: 0 | WVV59: 0 | WVW59: 0 | WVX59: 0 | WVY59: 0 | WVZ59: 0 | WWA59: 0 | WWB59: 0 | WWC59: 0 | WWD59: 0 | WWE59: 0 | WWF59: 0 | WWG59: 0 | WWH59: 0 | WWI59: 0 | WWJ59: 0 | WWK59: 0 | WWL59: 0 | WWM59: 0 | WWN59: 0 | WWO59: 0 | WWP59: 0 | WWQ59: 0 | WWR59: 0 | WWS59: 0 | WWT59: 0 | WWU59: 0 | WWV59: 0 | WWW59: 0 | WWX59: 0 | WWY59: 0 | WWZ59: 0 | WXA59: 0 | WXB59: 0 | WXC59: 0 | WXD59: 0 | WXE59: 0 | WXF59: 0 | WXG59: 0 | WXH59: 0 | WXI59: 0 | WXJ59: 0 | WXK59: 0 | WXL59: 0 | WXM59: 0 | WXN59: 0 | WXO59: 0 | WXP59: 0 | WXQ59: 0 | WXR59: 0 | WXS59: 0 | WXT59: 0 | WXU59: 0 | WXV59: 0 | WXW59: 0 | WXX59: 0 | WXY59: 0 | WXZ59: =WXZ67 -> 0 | WYA59: 0 | WYB59: 0 | WYC59: 0 | WYD59: 0 | WYE59: 0 | WYF59: 0 | WYG59: 0 | WYH59: 0 | WYI59: 0 | WYJ59: 0 | WYK59: 0 | WYL59: 0 | WYM59: 0 | WYN59: 0 | WYO59: 0 | WYP59: 0 | WYQ59: 0 | WYR59: 0 | WYS59: 0 | WYT59: 0 | WYU59: 0 | WYV59: 0 | WYW59: 0 | WYX59: 0 | WYY59: 0 | WYZ59: 0 | WZA59: 0 | WZB59: 0 | WZC59: 0 | WZD59: 0 | WZE59: 0 | WZF59: 0 | WZG59: 0 | WZH59: 0 | WZI59: 0 | WZJ59: 0 | WZK59: 0 | WZL59: 0 | WZM59: 0 | WZN59: 0 | WZO59: 0 | WZP59: 0 | WZQ59: 0 | WZR59: 0 | WZS59: 0 | WZT59: 0 | WZU59: 0 | WZV59: 0 | WZW59: 0 | WZX59: 0 | WZY59: 0 | WZZ59: 0 | XAA59: 0 | XAB59: 0 | XAC59: 0 | XAD59: 0 | XAE59: 0 | XAF59: 0 | XAG59: 0 | XAH59: 0 | XAI59: 0 | XAJ59: 0 | XAK59: 0 | XAL59: =XAL67 -> 0 | XAM59: 0 | XAN59: 0 | XAO59: 0 | XAP59: 0 | XAQ59: 0 | XAR59: 0 | XAS59: 0 | XAT59: 0 | XAU59: 0 | XAV59: 0 | XAW59: 0 | XAX59: 0 | XAY59: 0 | XAZ59: 0 | XBA59: 0 | XBB59: 0 | XBC59: 0 | XBD59: 0 | XBE59: 0 | XBF59: 0 | XBG59: 0 | XBH59: 0 | XBI59: 0 | XBJ59: 0 | XBK59: 0 | XBL59: 0 | XBM59: 0 | XBN59: 0 | XBO59: 0 | XBP59: 0 | XBQ59: 0 | XBR59: 0 | XBS59: 0 | XBT59: 0 | XBU59: 0 | XBV59: 0 | XBW59: 0 | XBX59: 0 | XBY59: 0 | XBZ59: 0 | XCA59: 0 | XCB59: 0 | XCC59: 0 | XCD59: 0 | XCE59: 0 | XCF59: 0 | XCG59: 0 | XCH59: 0 | XCI59: 0 | XCJ59: 0 | XCK59: 0 | XCL59: 0 | XCM59: 0 | XCN59: 0 | XCO59: 0 | XCP59: 0 | XCQ59: 0 | XCR59: 0 | XCS59: 0 | XCT59: 0 | XCU59: 0 | XCV59: 0 | XCW59: 0 | XCX59: =XCX67 -> 0 | XCY59: 0 | XCZ59: 0 | XDA59: 0 | XDB59: 0 | XDC59: 0 | XDD59: 0 | XDE59: 0 | XDF59: 0 | XDG59: 0 | XDH59: 0 | XDI59: 0 | XDJ59: 0 | XDK59: 0 | XDL59: 0 | XDM59: 0 | XDN59: 0 | XDO59: 0 | XDP59: 0 | XDQ59: 0 | XDR59: 0 | XDS59: 0 | XDT59: 0 | XDU59: 0 | XDV59: 0 | XDW59: 0 | XDX59: 0 | XDY59: 0 | XDZ59: 0 | XEA59: 0 | XEB59: 0 | XEC59: 0 | XED59: 0 | XEE59: 0 | XEF59: 0 | XEG59: 0 | XEH59: 0 | XEI59: 0 | XEJ59: 0 | XEK59: 0 | XEL59: 0 | XEM59: 0 | XEN59: 0 | XEO59: 0 | XEP59: 0 | XEQ59: 0 | XER59: 0 | XES59: 0 | XET59: 0 | XEU59: 0 | XEV59: 0 | XEW59: 0 | XEX59: 0 | XEY59: 0 | XEZ59: 0 | XFA59: 0 | XFB59: 0 | XFC59: 0 | XFD59: 0
